Workbook

Sheet notes (hidden)
A1: FY25 Chapter 70 Prelim
A3: Tabs | B3: What happens on this sheet | C3: Data source (if any) | D3: Notes
A4: Parameters | B4: Allows the user to adjust all of the policy levers in Chapter 70, except for changes to foundation. Foundation budget scenarios can be changed, but they must 1st be run separately and dropped into localcont (all the way to the right). Up to 11 alternatives can be included.
A5: Index | B5: Controls the district being viewed for all reports except regional dist members | C5: Dropdown box reads LEAs
A6: Rates | B6: CY and PY foundation budget rates Used to calculate foundation budget report | C6: Copied in from found file | D6: Copied in FY25 rates
A7: Foundation Budget | B7: 1 district report showing build-up of foundation budget | C7: Rates, dist435
A8: Municipal Contribution | B8: 1 city/town report showing build-up of required local contribution (municipal level) | C8: townwide contributions
A9: Regional Allocation | B9: 1 city/town report showing allocation of total municipal required local contribution based on proportion of foundation budget at each district to which it belongs | C9: localcont
A10: Summary | B10: 1 district report summarizing C70 calculation and comparison to PY | C10: aid436, disthist
A11: Regional Dist Members | B11: 1 regional district report summarizing enrollment and local contribution for each member town Changed in FY18 to vlookup on localcont | C11: localcont, leas
A12: LocalCont | B12: Results from distfrac get copied into the far right (up to 11 versions of foundation budget can be entered). Toggle is on parameters sheet. Data is organized in 5 row format for each city/town (municipality and its districts, blanks are 998 and total is 999). Used to calculate each municipal-district combination's RLC. | C12: found file, distfrac (allocate sheet) | D12: Copied in FY23 foundation budget, %s, RLCs and enro. Starting in FY24, Warwick will no longer be part of Pioneer. Removed Warwick/Pioneer combination on this tab.
A14: Comparison to FY24 | B14: 2 year comparison for operating districts | C14: aid436, disthist, localcont | D14: Only includes districts operating in both years
A15: Townwide Contributions | B15: Calculates municipal required local contributions | C15: DOR (EQV, Income, MRGFs), PY file (RLCs), parameters | D15: Copied FY24 RLCs into PY RLC column; updated formulas in columns I, Q, and Y to return value = 0 if townwide foundation budget = 0
A16: Aid436 | B16: Calculates district Ch 70 aid | C16: disthist, localcont, frac, parameters Starting w/ LEA 406, in col J (target aid %), formula changes to pull from frac tab. | D16: min aid adjustment only applied to operating districts; adjusted base aid for Warwick and Pioneer Valley
A17: Frac | B17: Calculates target aid percentage for regional districts | D17: Copied from distfrac25prelim 1/5/2024, checked and updated ranges
A18: DistHist | B18: ***Don't forget to copy in target aid %s from PY Historical C70 data used in summary report, and other places | D18: Copied in FY24 FB, RLC and Aid Copied in target aid %s from FY24 12/14/2023
A19: Dist435 | B19: Data source for foundation budget report, shows detailed enrollment and budget columns | C19: found25prelim
A21: Data | B21: Source | C21: Year | D21: Notes
A22: Inflation | B22: BEA website | C22: updated 12/21/23 | D22: Table 1.1.9. Implicit Price Deflators for Gross Domestic Product
A23: Wage Adjustment Factor Inputs | B23: EOLWD | C23: 2022
A24: EQV | B24: DOR | C24: 2022
A25: Income | B25: DOR | C25: 2021 | D25: 2023-12-13
A26: Enrollment incl. Postgrads | B26: DESE | C26: 2023-10-01 | D26: found25prelim
A27: MRGFs | B27: DOR/ANF | C27: 2025 | D27: updated MRGFs 1/11/2024
A30: 12/7/22: Starting in FY24, Warwick will no longer be part of Pioneer.
A31: 12/13/2023: Copied in output from distfrac25draft into localcont
A32: 12/13/23 copied in income 2021
A33: 12/14/23 : updated frac, disthist, added in min aid adjustment figures into aid 436
A34: 2023-12-21
A35: 1/3/2024 updated distfrac and found, ran scenarios 1 and 2 again
A37: 1/5/2024 updated minaidadjustment #s in Aid436, no change otherwise

Sheet parameters (hidden)
A1: Cyr | B1: FY25 | C1: 24
A2: Pyr | B2: FY24 | C2: 23
A3: As of | B3: 2023-12-14
A5: Parameters | D5: Base | K5: Analysis of Aggregate Wealth Model Implementation
B6: Which version of foundation budget? | C6: 1 | D6: 1 | G6: FY24 C70 including Devens | H6: 6592623086
B7: Effort reduction | C7: 1 | D7: 0 | K7: Progress Towards Target Local Share
B8: Pct downpayment on target aid share | C8: 0 | D8: 0 | G8: FY25 foundation aid increase | H8: ='Aid436'!L448 -> 249461924
D9: 0 | L9: FY07 | M9: FY08 | N9: FY09 | O9: FY10 | P9: FY11 | Q9: FY12 | R9: FY13 | S9: FY14 | T9: FY15 | U9: FY16 | V9: FY17 | W9: FY18 | X9: FY19 | Y9: FY20 | Z9: FY21 | AA9: FY22 | AB9: FY23 | AC9: =CYr -> FY25
G10: Minimum per pupil aid increase | H10: ='Aid436'!R448 -> 13961966.49 | K10: excess effort before effort reduction | L10: 621.084157 | M10: 494.058912 | N10: 372.382091 | O10: 228.110232 | P10: 366 | Q10: 293.3 | R10: 229.8 | S10: 234.5 | T10: 307.903014 | U10: 235.358789 | V10: 299.86437 | W10: 151.670894 | X10: 68.664221 | Y10: 21.435137 | Z10: 104.649236 | AA10: 93.814687 | AB10: 3.87058 | AC10: ='Townwide Contributions'!V361/1000000 -> 37.943609
G11: Min aid adjustment increase | H11: ='Aid436'!U448 -> 1.360604074e-09 | K11: effort reduction | L11: 124.2168314 | M11: 123.514728 | N11: 122.88609 | O11: 34.216535 | P11: 109.8 | Q11: 58.7 | R11: 34.5 | S11: 35.2 | T11: 153.951507 | U11: 117.6793945 | V11: 254.8847145 | W11: 128.9202599 | X11: 68.664221 | Y11: 21.435137 | Z11: 104.649236 | AA11: 93.814687 | AB11: 3.87058 | AC11: ='Townwide Contributions'!V361/1000000 -> 37.943609
G12: Non-op reduction | H12: ='Aid436'!W448 -> 464306.34 | K12: net excess after effort reduction | L12: 496.8673256 | M12: 370.544184 | N12: 249.496001 | O12: 193.893697 | P12: 256.2 | Q12: =Q10-Q11 -> 234.6 | R12: =R10-R11 -> 195.3 | S12: 199.3 | T12: 152.0806983 | U12: 117.4829132 | V12: 44.97879348 | W12: 22.74921402 | X12: 0 | Y12: 0 | Z12: 0 | AA12: 0 | AB12: 0 | AC12: ='Townwide Contributions'!AC361/1000000 -> 0
G13: FY24 Chapter 70 | H13: ='Aid436'!Y448 -> 6855719330 | K13: shortfall below target before increment | L13: -321.452322 | M13: -352.174875 | N13: -359.193563 | O13: -427.2 | P13: -228 | Q13: -211 | R13: -200 | S13: -180.2 | T13: -162.972215 | U13: -132.627218 | V13: -96.928091 | W13: -103.17317 | X13: -117.254713 | Y13: -207.485209 | Z13: -163.71 | AA13: -228.999327 | AB13: -494.818496 | AC13: ='Townwide Contributions'!AA361/1000000 -> -654.76244
B14: Per pupil guaranteed increase | C14: 30 | D14: 0 | G14: Devens | H14: =308558 -> 308558 | K14: additional increments toward target | L14: 0 | M14: -19.739149 | N14: -21.387588 | O14: -121.2 | P14: -10.6 | Q14: -10 | R14: -4.2 | S14: -3.9 | T14: -7.563093 | U14: -5.848739 | V14: -2.474215 | W14: -3.628178 | X14: -5.320349 | Y14: -19.253945 | Z14: -9.378217 | AA14: -20.199768 | AB14: -56.264627 | AC14: =('Townwide Contributions'!T361/1000000*-1)+('Townwide Contributions'!W361/1000000*-1) -> -58.34568
B15: Which version of mrgf? | C15: 1 | D15: 1 | K15: net shortfall below target after increment | L15: -321.452322 | M15: -332.435726 | N15: -337.805975 | O15: -306 | P15: -217.4 | Q15: -200.9 | R15: -195.7 | S15: -176.3 | T15: -155.409122 | U15: -126.778479 | V15: -94.453876 | W15: -99.544992 | X15: -111.934364 | Y15: -188.231264 | Z15: -154.331783 | AA15: -208.799559 | AB15: -438.553869 | AC15: ='Townwide Contributions'!AB361/1000000 -> -596.41676
B16: Below effort threshold 1 | C16: 2.5 | D16: 2.5 | G16: Change in C70 Appropriation | H16: =H13+H14-H6 -> 263404802.2 | K16: n of municipalities with effort too high | L16: 232 | M16: 218 | N16: 214 | O16: 193 | P16: 282 | Q16: 257 | R16: 249 | S16: 255 | T16: 279 | U16: 278 | V16: 303 | W16: 291 | X16: 0 | Y16: 0 | Z16: 0 | AA16: 0 | AB16: 0 | AC16: ='Townwide Contributions'!AC364 -> 0
B17: Below effort threshold 2 | C17: 7.5 | D17: 7.5 | G17: Percent Change | H17: =H16/H6 -> 0.0399544762
B18: Below effort contribution increment, 5-10% under | C18: 0.01 | D18: 0.01
B19: Below effort contribution increment, >10% under | C19: 0.02 | D19: 0.02 | G19: N of Foundation Aid Districts | H19: ='Aid436'!P448 -> 115
B20: Maximum local contribution pct of foundation | C20: 0.825 | D20: 0.825 | G20: N of Operating Districts with an Aid Increase | H20: ='Comparison to FY24'!N331 -> 318
B21: Statewide target for local contribution % of foundation | C21: 0.59 | D21: 0.59 | G21: Total C70 Including Devens | H21: =H13+H14 -> 6856027888
B22: Cap contributions at fixed percentage of foundation | C22: 0.9 | D22: 0.9
D23: 0
A24: Eqv/income percentages
B26: Target effort | C26: =C21*localcont!K1765 -> 8566245942
B27: Effort based upon following percentages | C27: ='Townwide Contributions'!K361 -> 8566245936
B28: Difference from target | C28: =IF(ABS(C27-C26)<10,0,C27-C26) -> 0
B29: Percentage of EQV | C29: 0.003901954956
B30: Percentage of INCOME | C30: =C29*1/C34 -> 0.01429851375
B32: Total EQV | C32: ='Townwide Contributions'!C361 -> 1583183946900
B33: Total Income | C33: ='Townwide Contributions'!E361 -> 4.320387808e+11
B34: State Average % of EQV | C34: =C33/C32 -> 0.2728923456
A37: See Progress Towards Targets
K42: Progress Towards Target Aid Share
L44: FY07 | M44: FY08 | N44: FY09 | O44: FY10 | P44: FY11 | Q44: FY12 | R44: FY13 | S44: FY14 | T44: FY15 | U44: FY16 | V44: FY17 | W44: FY18 | X44: FY19 | Y44: FY20 | Z44: FY21 | AA44: FY22 | AB44: FY23 | AC44: =CYr -> FY25
K45: aid above target | L45: 394.9 | M45: 421 | N45: 440.4 | O45: 413.5991456 | P45: 489.2905867 | Q45: 360.5802896 | R45: 372.9139726 | S45: 385.3 | T45: 404.6539336 | U45: 419.0730779 | V45: 488.1362137 | W45: 497.4038449 | X45: 487.8069694 | Y45: 518.4487954 | Z45: 516.4943275 | AA45: 613.17696 | AB45: 712.8031016 | AC45: ='Aid436'!AE449/1000000 -> 903.1881877
K46: aid below target | L46: -176.3 | M46: -143 | N46: -105.5 | O46: -97.82363262 | P46: -75.73073977 | Q46: -110.4290612 | R46: -84.70629692 | S46: -66.9 | T46: -49.39921427 | U46: -44.48798888 | V46: -13.01302676 | W46: -7.202688836 | X46: -0.01809683687 | Y46: -0.001189981026 | Z46: -0.01283887927 | AA46: -0.001771922842 | AB46: -1.962882748e-06 | AC46: ='Aid436'!AE450/1000000 -> -9.631309996e-07
C50: =TEXT(effortred,"0%") -> 100%

Sheet localcont (hidden)
I1: c70fy24 | J1: c70fy24 | O1: c70fy24 | R1: c70fy24 | CM1: Lookup table for foundation budget scenarios | CN1: 1 | CO1: 2
CN2: 2 | CO2: 8
D3: 1 | E3: 2 | F3: 3 | G3: 4 | H3: 5 | I3: 6 | J3: 7 | K3: 8 | L3: 9 | M3: 10 | N3: 11 | O3: 12 | P3: 13 | Q3: 14 | R3: 15 | S3: 16 | T3: 17 | U3: 18 | V3: 19 | W3: 20 | X3: 21 | Y3: 1 | BD3: 32 | BE3: 33 | BF3: 34 | BG3: 35 | BH3: 36 | BI3: 37 | BJ3: 38 | BK3: 39 | BL3: 40 | BM3: 41 | BN3: 42 | BO3: 43 | BP3: 44 | BQ3: 45 | BR3: 46 | BS3: 47 | BT3: 48 | BU3: 49 | BV3: 50 | BW3: 51 | BX3: 52 | BY3: 53 | BZ3: 54 | CA3: 55 | CB3: 56 | CC3: 57 | CD3: 58 | CE3: 59 | CF3: 60 | CG3: 61 | CH3: 62 | CI3: 63 | CJ3: 64 | CK3: 65 | CL3: 66 | CN3: 3 | CO3: 14
G4: lea1755 | K4: found1755 | N4: prelcont1755 | O4: pynetmin | R4: pyenro | W4: enro1755 | CN4: 4 | CO4: 20
Z5: 1 | BD5: 6 | BJ5: 7 | BP5: 8 | BV5: 9 | CB5: 10 | CH5: 11 | CN5: 5 | CO5: 26
T6: =parameters!$C$6 -> 1 | Z6: found25prelim 1/3/2024 12:29pm | CN6: 6 | CO6: 32
I7: =PYr -> FY24 | J7: =PYr -> FY24 | K7: =CYr -> FY25 | L7: =CYr -> FY25 | M7: =CYr -> FY25 | N7: =CYr -> FY25 | O7: =PYr -> FY24 | CN7: 7 | CO7: 38
I8: Foundation | J8: Share of Total | K8: Foundation | L8: Share of Total | M8: Townwide | N8: Net Minimum | O8: Net Minimum | P8: =PYr&" to "&CYr -> FY24 to FY25 | Q8: Percent | R8: =PYr -> FY24 | S8: =CYr -> FY25 | W8: final | X8: foundation | BG8: final | BH8: foundation | BM8: final | BN8: foundation | BS8: final | BT8: foundation | BY8: final | BZ8: foundation | CE8: final | CF8: foundation | CK8: final | CL8: foundation | CN8: 8 | CO8: 44
A9: TownLEA | B9: Town | C9: LEA | D9: Order | E9: Town | F9: City or Town | G9: LEA | H9: School District | I9: Budget | J9: Foundation | K9: Budget | L9: Foundation | M9: Contribution | N9: Contribution | O9: Contribution | P9: Change | Q9: Change | R9: Enrollment | S9: Enrollment | T9: Town | U9: LEA | V9: Order | W9: enrollment | X9: budget | BD9: Town | BE9: LEA | BF9: Order | BG9: enrollment | BH9: budget | BJ9: Town | BK9: LEA | BL9: Order | BM9: enrollment | BN9: budget | BP9: Town | BQ9: LEA | BR9: Order | BS9: enrollment | BT9: budget | BV9: Town | BW9: LEA | BX9: Order | BY9: enrollment | BZ9: budget | CB9: Town | CC9: LEA | CD9: Order | CE9: enrollment | CF9: budget | CH9: Town | CI9: LEA | CJ9: Order | CK9: enrollment | CL9: budget | CN9: 9 | CO9: 50
A10: =B10&C10 -> 00010001 | B10: 0001 | C10: 0001 | D10: 1 | E10: 1 | F10: Abington | G10: 1 | H10: Abington | I10: 31287579.08 | J10: 0.9358639524 | K10: =X10 -> 32218371.7 | L10: =IF(K14>0, K10/K14, 0) -> 0.9312355808 | N10: =ROUND(M14*L10,0) -> 17753424 | O10: 17104459 | P10: =N10-O10 -> 648965 | Q10: =IF(O10>0,P10*100/O10,IF(P10>0,100,0)) -> 3.794127601 | R10: 2206 | S10: =W10 -> 2202 | T10: =VLOOKUP($D10, foundoptions, VLOOKUP($T$6, foundoptcell, 2, FALSE), FALSE) -> 1 | U10: =VLOOKUP($D10, foundoptions, VLOOKUP($T$6, foundoptcell, 2, FALSE)+1, FALSE) -> 1 | V10: =VLOOKUP($D10, foundoptions, VLOOKUP($T$6, foundoptcell, 2, FALSE)+2, FALSE) -> 1 | W10: =VLOOKUP($D10, foundoptions, VLOOKUP($T$6, foundoptcell, 2, FALSE)+3, FALSE) -> 2202 | X10: =VLOOKUP($D10, foundoptions, VLOOKUP($T$6, foundoptcell, 2, FALSE)+4, FALSE) -> 32218371.7 | Y10: =D10 -> 1 | Z10: 1 | AA10: 1 | AB10: 1 | AC10: 2202 | AD10: 32218371.7 | CN10: 10 | CO10: 56
A11: 00010873 | B11: 0001 | C11: 0873 | D11: 2 | E11: 1 | F11: Abington | G11: 873 | H11: South Shore | I11: 2144180.951 | J11: 0.06413604755 | K11: =X11 -> 2379073.204 | L11: =IF(K14>0, K11/K14, 0) -> 0.06876441918 | N11: =ROUND(M14*L11,0) -> 1310951 | O11: 1172192 | P11: =N11-O11 -> 138759 | Q11: 11.83756586 | R11: 103 | S11: =W11 -> 114 | T11: 1 | U11: 873 | V11: 2 | W11: 114 | X11: 2379073.204 | Y11: =D11 -> 2 | Z11: 1 | AA11: 873 | AB11: 2 | AC11: 114 | AD11: 2379073.204 | CN11: 11 | CO11: 62
A12: 00010998 | B12: 0001 | C12: 0998 | D12: 3 | E12: 1 | G12: 998 | I12: 0 | J12: 0 | K12: =X12 -> 0 | L12: =IF(K14>0, K12/K14, 0) -> 0 | N12: =ROUND(M14*L12,0) -> 0 | O12: 0 | P12: =N12-O12 -> 0 | Q12: 0 | R12: 0 | S12: 0 | T12: 1 | U12: 998 | V12: 3 | W12: 0 | X12: 0 | Y12: 3 | Z12: 1 | AA12: 998 | AB12: 3 | AC12: 0 | AD12: 0
A13: 00010998 | B13: 0001 | C13: 0998 | D13: 4 | E13: 1 | G13: 998 | I13: 0 | J13: 0 | K13: =X13 -> 0 | L13: =IF(K14>0, K13/K14, 0) -> 0 | N13: =ROUND(M14*L13,0) -> 0 | O13: 0 | P13: =N13-O13 -> 0 | Q13: 0 | R13: 0 | S13: 0 | T13: 1 | U13: 998 | V13: 4 | W13: 0 | X13: 0 | Y13: 4 | Z13: 1 | AA13: 998 | AB13: 4 | AC13: 0 | AD13: 0
A14: 00010999 | B14: 0001 | C14: 0999 | D14: 5 | E14: 1 | F14: Abington | G14: 999 | H14: Total | I14: 33431760.03 | J14: 1 | K14: =SUM(K10:K13) -> 34597444.91 | L14: =SUM(L10:L13) -> 1 | M14: =VLOOKUP(E14,town351,24) -> 19064375 | N14: =SUM(N10:N13) -> 19064375 | O14: 18276651 | P14: =SUM(P10:P13) -> 787724 | Q14: 4.310001871 | R14: 2309 | S14: 2316 | T14: 1 | U14: 999 | V14: 5 | W14: 2316 | X14: 34597444.91 | Y14: 5 | Z14: 1 | AA14: 999 | AB14: 5 | AC14: 2316 | AD14: 34597444.91
A15: 00020002 | B15: 0002 | C15: 0002 | D15: 6 | E15: 2 | F15: Acton | G15: 2 | H15: Acton | I15: 0 | J15: 0 | K15: =X15 -> 0 | L15: =IF(K19>0, K15/K19, 0) -> 0 | N15: =ROUND(M19*L15,0) -> 0 | O15: 0 | P15: =N15-O15 -> 0 | Q15: 0 | R15: 0 | S15: 0 | T15: 2 | U15: 2 | V15: 6 | W15: 0 | X15: 0 | Y15: 6 | Z15: 2 | AA15: 2 | AB15: 6 | AC15: 0 | AD15: 0
A16: 00020600 | B16: 0002 | C16: 0600 | D16: 7 | E16: 2 | F16: Acton | G16: 600 | H16: Acton Boxborough | I16: 53374954.46 | J16: 0.9667451215 | K16: 53992858.19 | L16: =IF(K19>0, K16/K19, 0) -> 0.9638505145 | N16: =ROUND(M19*L16,0) -> 43461512 | O16: 41971918 | P16: =N16-O16 -> 1489594 | Q16: 3.549025327 | R16: 4160.188346 | S16: 4082.280285 | T16: 2 | U16: 600 | V16: 7 | W16: 4082.280285 | X16: 53992858.19 | Y16: 7 | Z16: 2 | AA16: 600 | AB16: 7 | AC16: 4082.280285 | AD16: 53992858.19
A17: 00020830 | B17: 0002 | C17: 0830 | D17: 8 | E17: 2 | F17: Acton | G17: 830 | H17: Minuteman | I17: 1836034.738 | J17: 0.0332548785 | K17: 2025017.379 | L17: =IF(K19>0, K17/K19, 0) -> 0.03614948547 | N17: =ROUND(M19*L17,0) -> 1630036 | O17: 1443784 | P17: =N17-O17 -> 186252 | Q17: 12.90026763 | R17: 88 | S17: 97 | T17: 2 | U17: 830 | V17: 8 | W17: 97 | X17: 2025017.379 | Y17: 8 | Z17: 2 | AA17: 830 | AB17: 8 | AC17: 97 | AD17: 2025017.379
A18: 00020998 | B18: 0002 | C18: 0998 | D18: 9 | E18: 2 | G18: 998 | I18: 0 | J18: 0 | K18: 0 | L18: =IF(K19>0, K18/K19, 0) -> 0 | N18: =ROUND(M19*L18,0) -> 0 | O18: 0 | P18: =N18-O18 -> 0 | Q18: 0 | R18: 0 | S18: 0 | T18: 2 | U18: 998 | V18: 9 | W18: 0 | X18: 0 | Y18: 9 | Z18: 2 | AA18: 998 | AB18: 9 | AC18: 0 | AD18: 0
A19: 00020999 | B19: 0002 | C19: 0999 | D19: 10 | E19: 2 | F19: Acton | G19: 999 | H19: Total | I19: 55210989.2 | J19: 1 | K19: =SUM(K15:K18) -> 56017875.56 | L19: =SUM(L15:L18) -> 1 | M19: =VLOOKUP(E19,town351,24) -> 45091548 | N19: =SUM(N15:N18) -> 45091548 | O19: 43415702 | P19: =SUM(P15:P18) -> 1675846 | Q19: =IF(O19>0,P19*100/O19,IF(P19>0,100,0)) -> 3.859999776 | R19: 4248.188346 | S19: 4179.280285 | T19: 2 | U19: 999 | V19: 10 | W19: 4179.280285 | X19: 56017875.56 | Y19: 10 | Z19: 2 | AA19: 999 | AB19: 10 | AC19: 4179.280285 | AD19: 56017875.56
A20: 00030003 | B20: 0003 | C20: 0003 | D20: 11 | E20: 3 | F20: Acushnet | G20: 3 | H20: Acushnet | I20: 15911255.39 | J20: 0.8184652571 | K20: =X20 -> 15616988.59 | L20: =IF(K24>0, K20/K24, 0) -> 0.7903145114 | N20: =ROUND(M24*L20,0) -> 8852171 | O20: 8740925 | P20: =N20-O20 -> 111246 | Q20: 1.272702832 | R20: 1221 | S20: 1173 | T20: 3 | U20: 3 | V20: 11 | W20: 1173 | X20: 15616988.59 | Y20: 11 | Z20: 3 | AA20: 3 | AB20: 11 | AC20: 1173 | AD20: 15616988.59
A21: 00030855 | B21: 0003 | C21: 0855 | D21: 12 | E21: 3 | F21: Acushnet | G21: 855 | H21: Old Colony | I21: 3264388.454 | J21: 0.1679181478 | K21: 3747380.496 | L21: =IF(K24>0, K21/K24, 0) -> 0.1896402222 | N21: =ROUND(M24*L21,0) -> 2124126 | O21: 1793308 | P21: =N21-O21 -> 330818 | Q21: 18.44736097 | R21: 168 | S21: 190 | T21: 3 | U21: 855 | V21: 12 | W21: 190 | X21: 3747380.496 | Y21: 12 | Z21: 3 | AA21: 855 | AB21: 12 | AC21: 190 | AD21: 3747380.496
A22: 00030910 | B22: 0003 | C22: 0910 | D22: 13 | E22: 3 | F22: Acushnet | G22: 910 | H22: Bristol County | I22: 264711.4466 | J22: 0.0136165951 | K22: 396103.9475 | L22: =IF(K24>0, K22/K24, 0) -> 0.02004526647 | N22: =ROUND(M24*L22,0) -> 224523 | O22: 145421 | P22: =N22-O22 -> 79102 | Q22: 54.39516989 | R22: 13 | S22: 19 | T22: 3 | U22: 910 | V22: 13 | W22: 19 | X22: 396103.9475 | Y22: 13 | Z22: 3 | AA22: 910 | AB22: 13 | AC22: 19 | AD22: 396103.9475
A23: 00030998 | B23: 0003 | C23: 0998 | D23: 14 | E23: 3 | G23: 998 | I23: 0 | J23: 0 | K23: 0 | L23: =IF(K24>0, K23/K24, 0) -> 0 | N23: =ROUND(M24*L23,0) -> 0 | O23: 0 | P23: =N23-O23 -> 0 | Q23: 0 | R23: 0 | S23: 0 | T23: 3 | U23: 998 | V23: 14 | W23: 0 | X23: 0 | Y23: 14 | Z23: 3 | AA23: 998 | AB23: 14 | AC23: 0 | AD23: 0
A24: 00030999 | B24: 0003 | C24: 0999 | D24: 15 | E24: 3 | F24: Acushnet | G24: 999 | H24: Total | I24: 19440355.29 | J24: 1 | K24: =SUM(K20:K23) -> 19760473.03 | L24: =SUM(L20:L23) -> 1 | M24: =VLOOKUP(E24,town351,24) -> 11200821 | N24: =SUM(N20:N23) -> 11200820 | O24: 10679654 | P24: =SUM(P20:P23) -> 521166 | Q24: 4.879989558 | R24: 1402 | S24: 1382 | T24: 3 | U24: 999 | V24: 15 | W24: 1382 | X24: 19760473.03 | Y24: 15 | Z24: 3 | AA24: 999 | AB24: 15 | AC24: 1382 | AD24: 19760473.03
A25: 00040004 | B25: 0004 | C25: 0004 | D25: 16 | E25: 4 | F25: Adams | G25: 4 | H25: Adams | I25: 0 | J25: 0 | K25: =X25 -> 0 | L25: =IF(K29>0, K25/K29, 0) -> 0 | N25: =ROUND(M29*L25,0) -> 0 | O25: 0 | P25: =N25-O25 -> 0 | Q25: 0 | R25: 0 | S25: 0 | T25: 4 | U25: 4 | V25: 16 | W25: 0 | X25: 0 | Y25: 16 | Z25: 4 | AA25: 4 | AB25: 16 | AC25: 0 | AD25: 0
A26: 00040603 | B26: 0004 | C26: 0603 | D26: 17 | E26: 4 | F26: Adams | G26: 603 | H26: Hoosac Valley | I26: 12998538.14 | J26: 0.815497705 | K26: 13550780.29 | L26: =IF(K29>0, K26/K29, 0) -> 0.8121086828 | N26: =ROUND(M29*L26,0) -> 4059349 | O26: 3947597 | P26: =N26-O26 -> 111752 | Q26: 2.830886739 | R26: 856.0834753 | S26: 860.1831224 | T26: 4 | U26: 603 | V26: 17 | W26: 860.1831224 | X26: 13550780.29 | Y26: 17 | Z26: 4 | AA26: 603 | AB26: 17 | AC26: 860.1831224 | AD26: 13550780.29
A27: 00040851 | B27: 0004 | C27: 0851 | D27: 18 | E27: 4 | F27: Adams | G27: 851 | H27: Northern Berkshire | I27: 2940854.529 | J27: 0.184502295 | K27: 3135139.437 | L27: =IF(K29>0, K27/K29, 0) -> 0.1878913172 | N27: =ROUND(M29*L27,0) -> 939180 | O27: 893124 | P27: =N27-O27 -> 46056 | Q27: 5.156730756 | R27: 139 | S27: 143 | T27: 4 | U27: 851 | V27: 18 | W27: 143 | X27: 3135139.437 | Y27: 18 | Z27: 4 | AA27: 851 | AB27: 18 | AC27: 143 | AD27: 3135139.437
A28: 00040998 | B28: 0004 | C28: 0998 | D28: 19 | E28: 4 | G28: 998 | I28: 0 | J28: 0 | K28: 0 | L28: =IF(K29>0, K28/K29, 0) -> 0 | N28: =ROUND(M29*L28,0) -> 0 | O28: 0 | P28: =N28-O28 -> 0 | Q28: 0 | R28: 0 | S28: 0 | T28: 4 | U28: 998 | V28: 19 | W28: 0 | X28: 0 | Y28: 19 | Z28: 4 | AA28: 998 | AB28: 19 | AC28: 0 | AD28: 0
A29: 00040999 | B29: 0004 | C29: 0999 | D29: 20 | E29: 4 | F29: Adams | G29: 999 | H29: Total | I29: 15939392.67 | J29: 1 | K29: =SUM(K25:K28) -> 16685919.72 | L29: =SUM(L25:L28) -> 1 | M29: =VLOOKUP(E29,town351,24) -> 4998529 | N29: =SUM(N25:N28) -> 4998529 | O29: 4840721 | P29: =SUM(P25:P28) -> 157808 | Q29: 3.260010234 | R29: 995.0834753 | S29: 1003.183122 | T29: 4 | U29: 999 | V29: 20 | W29: 1003.183122 | X29: 16685919.72 | Y29: 20 | Z29: 4 | AA29: 999 | AB29: 20 | AC29: 1003.183122 | AD29: 16685919.72
A30: 00050005 | B30: 0005 | C30: 0005 | D30: 21 | E30: 5 | F30: Agawam | G30: 5 | H30: Agawam | I30: 50397491.3 | J30: 1 | K30: =X30 -> 52963671.53 | L30: =IF(K34>0, K30/K34, 0) -> 1 | N30: =ROUND(M34*L30,0) -> 26903037 | O30: 25373043 | P30: =N30-O30 -> 1529994 | Q30: 6.029998057 | R30: 3421 | S30: 3486 | T30: 5 | U30: 5 | V30: 21 | W30: 3486 | X30: 52963671.53 | Y30: 21 | Z30: 5 | AA30: 5 | AB30: 21 | AC30: 3486 | AD30: 52963671.53
A31: 00050998 | B31: 0005 | C31: 0998 | D31: 22 | E31: 5 | G31: 998 | I31: 0 | J31: 0 | K31: 0 | L31: =IF(K34>0, K31/K34, 0) -> 0 | N31: =ROUND(M34*L31,0) -> 0 | O31: 0 | P31: =N31-O31 -> 0 | Q31: 0 | R31: 0 | S31: 0 | T31: 5 | U31: 998 | V31: 22 | W31: 0 | X31: 0 | Y31: 22 | Z31: 5 | AA31: 998 | AB31: 22 | AC31: 0 | AD31: 0
A32: 00050998 | B32: 0005 | C32: 0998 | D32: 23 | E32: 5 | G32: 998 | I32: 0 | J32: 0 | K32: 0 | L32: =IF(K34>0, K32/K34, 0) -> 0 | N32: =ROUND(M34*L32,0) -> 0 | O32: 0 | P32: =N32-O32 -> 0 | Q32: 0 | R32: 0 | S32: 0 | T32: 5 | U32: 998 | V32: 23 | W32: 0 | X32: 0 | Y32: 23 | Z32: 5 | AA32: 998 | AB32: 23 | AC32: 0 | AD32: 0
A33: 00050998 | B33: 0005 | C33: 0998 | D33: 24 | E33: 5 | G33: 998 | I33: 0 | J33: 0 | K33: 0 | L33: =IF(K34>0, K33/K34, 0) -> 0 | N33: =ROUND(M34*L33,0) -> 0 | O33: 0 | P33: =N33-O33 -> 0 | Q33: 0 | R33: 0 | S33: 0 | T33: 5 | U33: 998 | V33: 24 | W33: 0 | X33: 0 | Y33: 24 | Z33: 5 | AA33: 998 | AB33: 24 | AC33: 0 | AD33: 0
A34: 00050999 | B34: 0005 | C34: 0999 | D34: 25 | E34: 5 | F34: Agawam | G34: 999 | H34: Total | I34: 50397491.3 | J34: 1 | K34: =SUM(K30:K33) -> 52963671.53 | L34: =SUM(L30:L33) -> 1 | M34: =VLOOKUP(E34,town351,24) -> 26903037 | N34: =SUM(N30:N33) -> 26903037 | O34: 25373043 | P34: =SUM(P30:P33) -> 1529994 | Q34: 6.029998057 | R34: 3421 | S34: 3486 | T34: 5 | U34: 999 | V34: 25 | W34: 3486 | X34: 52963671.53 | Y34: 25 | Z34: 5 | AA34: 999 | AB34: 25 | AC34: 3486 | AD34: 52963671.53
A35: 00060006 | B35: 0006 | C35: 0006 | D35: 26 | E35: 6 | F35: Alford | G35: 6 | H35: Alford | I35: 0 | J35: 0 | K35: =X35 -> 0 | L35: =IF(K39>0, K35/K39, 0) -> 0 | N35: =ROUND(M39*L35,0) -> 0 | O35: 0 | P35: =N35-O35 -> 0 | Q35: 0 | R35: 0 | S35: 0 | T35: 6 | U35: 6 | V35: 26 | W35: 0 | X35: 0 | Y35: 26 | Z35: 6 | AA35: 6 | AB35: 26 | AC35: 0 | AD35: 0
A36: 00060765 | B36: 0006 | C36: 0765 | D36: 27 | E36: 6 | F36: Alford | G36: 765 | H36: Southern Berkshire | I36: 278259.7125 | J36: 1 | K36: 278846.8239 | L36: =IF(K39>0, K36/K39, 0) -> 1 | N36: =ROUND(M39*L36,0) -> 230049 | O36: 229564 | P36: =N36-O36 -> 485 | Q36: 0.2112700598 | R36: 19.39849624 | S36: 19.17304747 | T36: 6 | U36: 765 | V36: 27 | W36: 19.17304747 | X36: 278846.8239 | Y36: 27 | Z36: 6 | AA36: 765 | AB36: 27 | AC36: 19.17304747 | AD36: 278846.8239
A37: 00060998 | B37: 0006 | C37: 0998 | D37: 28 | E37: 6 | G37: 998 | I37: 0 | J37: 0 | K37: 0 | L37: =IF(K39>0, K37/K39, 0) -> 0 | N37: =ROUND(M39*L37,0) -> 0 | O37: 0 | P37: =N37-O37 -> 0 | Q37: 0 | R37: 0 | S37: 0 | T37: 6 | U37: 998 | V37: 28 | W37: 0 | X37: 0 | Y37: 28 | Z37: 6 | AA37: 998 | AB37: 28 | AC37: 0 | AD37: 0
A38: 00060998 | B38: 0006 | C38: 0998 | D38: 29 | E38: 6 | G38: 998 | I38: 0 | J38: 0 | K38: 0 | L38: =IF(K39>0, K38/K39, 0) -> 0 | N38: =ROUND(M39*L38,0) -> 0 | O38: 0 | P38: =N38-O38 -> 0 | Q38: 0 | R38: 0 | S38: 0 | T38: 6 | U38: 998 | V38: 29 | W38: 0 | X38: 0 | Y38: 29 | Z38: 6 | AA38: 998 | AB38: 29 | AC38: 0 | AD38: 0
A39: 00060999 | B39: 0006 | C39: 0999 | D39: 30 | E39: 6 | F39: Alford | G39: 999 | H39: Total | I39: 278259.7125 | J39: 1 | K39: =SUM(K35:K38) -> 278846.8239 | L39: =SUM(L35:L38) -> 1 | M39: =VLOOKUP(E39,town351,24) -> 230049 | N39: =SUM(N35:N38) -> 230049 | O39: 229564 | P39: =SUM(P35:P38) -> 485 | Q39: 0.2112700598 | R39: 19.39849624 | S39: 19.17304747 | T39: 6 | U39: 999 | V39: 30 | W39: 19.17304747 | X39: 278846.8239 | Y39: 30 | Z39: 6 | AA39: 999 | AB39: 30 | AC39: 19.17304747 | AD39: 278846.8239
A40: 00070007 | B40: 0007 | C40: 0007 | D40: 31 | E40: 7 | F40: Amesbury | G40: 7 | H40: Amesbury | I40: 24965747.03 | J40: 0.9111821997 | K40: =X40 -> 26472545.38 | L40: =IF(K44>0, K40/K44, 0) -> 0.9097882957 | N40: =ROUND(M44*L40,0) -> 19158918 | O40: 18234602 | P40: =N40-O40 -> 924316 | Q40: 5.069022071 | R40: 1847 | S40: 1898 | T40: 7 | U40: 7 | V40: 31 | W40: 1898 | X40: 26472545.38 | Y40: 31 | Z40: 7 | AA40: 7 | AB40: 31 | AC40: 1898 | AD40: 26472545.38
A41: 00070885 | B41: 0007 | C41: 0885 | D41: 32 | E41: 7 | F41: Amesbury | G41: 885 | H41: Whittier | I41: 2433544.833 | J41: 0.08881780029 | K41: 2624933.128 | L41: =IF(K44>0, K41/K44, 0) -> 0.09021170434 | N41: =ROUND(M44*L41,0) -> 1899737 | O41: 1777424 | P41: =N41-O41 -> 122313 | Q41: 6.881475664 | R41: 117 | S41: 123.2896389 | T41: 7 | U41: 885 | V41: 32 | W41: 123.2896389 | X41: 2624933.128 | Y41: 32 | Z41: 7 | AA41: 885 | AB41: 32 | AC41: 123.2896389 | AD41: 2624933.128
A42: 00070998 | B42: 0007 | C42: 0998 | D42: 33 | E42: 7 | G42: 998 | I42: 0 | J42: 0 | K42: 0 | L42: =IF(K44>0, K42/K44, 0) -> 0 | N42: =ROUND(M44*L42,0) -> 0 | O42: 0 | P42: =N42-O42 -> 0 | Q42: 0 | R42: 0 | S42: 0 | T42: 7 | U42: 998 | V42: 33 | W42: 0 | X42: 0 | Y42: 33 | Z42: 7 | AA42: 998 | AB42: 33 | AC42: 0 | AD42: 0
A43: 00070998 | B43: 0007 | C43: 0998 | D43: 34 | E43: 7 | G43: 998 | I43: 0 | J43: 0 | K43: 0 | L43: =IF(K44>0, K43/K44, 0) -> 0 | N43: =ROUND(M44*L43,0) -> 0 | O43: 0 | P43: =N43-O43 -> 0 | Q43: 0 | R43: 0 | S43: 0 | T43: 7 | U43: 998 | V43: 34 | W43: 0 | X43: 0 | Y43: 34 | Z43: 7 | AA43: 998 | AB43: 34 | AC43: 0 | AD43: 0
A44: 00070999 | B44: 0007 | C44: 0999 | D44: 35 | E44: 7 | F44: Amesbury | G44: 999 | H44: Total | I44: 27399291.86 | J44: 1 | K44: =SUM(K40:K43) -> 29097478.51 | L44: =SUM(L40:L43) -> 1 | M44: =VLOOKUP(E44,town351,24) -> 21058655 | N44: =SUM(N40:N43) -> 21058655 | O44: 20012026 | P44: =SUM(P40:P43) -> 1046629 | Q44: 5.230000201 | R44: 1964 | S44: 2021.289639 | T44: 7 | U44: 999 | V44: 35 | W44: 2021.289639 | X44: 29097478.51 | Y44: 35 | Z44: 7 | AA44: 999 | AB44: 35 | AC44: 2021.289639 | AD44: 29097478.51
A45: 00080008 | B45: 0008 | C45: 0008 | D45: 36 | E45: 8 | F45: Amherst | G45: 8 | H45: Amherst | I45: 14207190.94 | J45: 0.501047366 | K45: =X45 -> 13465370.21 | L45: =IF(K49>0, K45/K49, 0) -> 0.4915144004 | N45: =ROUND(M49*L45,0) -> 11108930 | O45: 11168148 | P45: =N45-O45 -> -59218 | Q45: -0.5302401078 | R45: 1055 | S45: 984 | T45: 8 | U45: 8 | V45: 36 | W45: 984 | X45: 13465370.21 | Y45: 36 | Z45: 8 | AA45: 8 | AB45: 36 | AC45: 984 | AD45: 13465370.21
A46: 00080605 | B46: 0008 | C46: 0605 | D46: 37 | E46: 8 | F46: Amherst | G46: 605 | H46: Amherst Pelham | I46: 14147794.84 | J46: 0.498952634 | K46: 13930307.72 | L46: =IF(K49>0, K46/K49, 0) -> 0.5084855996 | N46: =ROUND(M49*L46,0) -> 11492504 | O46: 11121458 | P46: =N46-O46 -> 371046 | Q46: 3.336307164 | R46: 997 | S46: 964 | T46: 8 | U46: 605 | V46: 37 | W46: 964 | X46: 13930307.72 | Y46: 37 | Z46: 8 | AA46: 605 | AB46: 37 | AC46: 964 | AD46: 13930307.72
A47: 00080998 | B47: 0008 | C47: 0998 | D47: 38 | E47: 8 | G47: 998 | I47: 0 | J47: 0 | K47: 0 | L47: =IF(K49>0, K47/K49, 0) -> 0 | N47: =ROUND(M49*L47,0) -> 0 | O47: 0 | P47: =N47-O47 -> 0 | Q47: 0 | R47: 0 | S47: 0 | T47: 8 | U47: 998 | V47: 38 | W47: 0 | X47: 0 | Y47: 38 | Z47: 8 | AA47: 998 | AB47: 38 | AC47: 0 | AD47: 0
A48: 00080998 | B48: 0008 | C48: 0998 | D48: 39 | E48: 8 | G48: 998 | I48: 0 | J48: 0 | K48: 0 | L48: =IF(K49>0, K48/K49, 0) -> 0 | N48: =ROUND(M49*L48,0) -> 0 | O48: 0 | P48: =N48-O48 -> 0 | Q48: 0 | R48: 0 | S48: 0 | T48: 8 | U48: 998 | V48: 39 | W48: 0 | X48: 0 | Y48: 39 | Z48: 8 | AA48: 998 | AB48: 39 | AC48: 0 | AD48: 0
A49: 00080999 | B49: 0008 | C49: 0999 | D49: 40 | E49: 8 | F49: Amherst | G49: 999 | H49: Total | I49: 28354985.78 | J49: 1 | K49: =SUM(K45:K48) -> 27395677.93 | L49: =SUM(L45:L48) -> 1 | M49: =VLOOKUP(E49,town351,24) -> 22601434 | N49: =SUM(N45:N48) -> 22601434 | O49: 22289606 | P49: =SUM(P45:P48) -> 311828 | Q49: 1.398983903 | R49: 2052 | S49: 1948 | T49: 8 | U49: 999 | V49: 40 | W49: 1948 | X49: 27395677.93 | Y49: 40 | Z49: 8 | AA49: 999 | AB49: 40 | AC49: 1948 | AD49: 27395677.93
A50: 00090009 | B50: 0009 | C50: 0009 | D50: 41 | E50: 9 | F50: Andover | G50: 9 | H50: Andover | I50: 72244408.49 | J50: 0.9820397139 | K50: =X50 -> 72585434.36 | L50: =IF(K54>0, K50/K54, 0) -> 0.9827617389 | N50: =ROUND(M54*L50,0) -> 59882984 | O50: 58293608 | P50: =N50-O50 -> 1589376 | Q50: 2.726501334 | R50: 5554 | S50: 5465 | T50: 9 | U50: 9 | V50: 41 | W50: 5465 | X50: 72585434.36 | Y50: 41 | Z50: 9 | AA50: 9 | AB50: 41 | AC50: 5465 | AD50: 72585434.36
A51: 00090823 | B51: 0009 | C51: 0823 | D51: 42 | E51: 9 | F51: Andover | G51: 823 | H51: Greater Lawrence | I51: 1321260.461 | J51: 0.0179602861 | K51: 1273194.327 | L51: =IF(K54>0, K51/K54, 0) -> 0.01723826112 | N51: =ROUND(M54*L51,0) -> 1050385 | O51: 1066118 | P51: =N51-O51 -> -15733 | Q51: -1.475727828 | R51: 52.00000001 | S51: 49 | T51: 9 | U51: 823 | V51: 42 | W51: 49 | X51: 1273194.327 | Y51: 42 | Z51: 9 | AA51: 823 | AB51: 42 | AC51: 49 | AD51: 1273194.327
A52: 00090998 | B52: 0009 | C52: 0998 | D52: 43 | E52: 9 | G52: 998 | I52: 0 | J52: 0 | K52: 0 | L52: =IF(K54>0, K52/K54, 0) -> 0 | N52: =ROUND(M54*L52,0) -> 0 | O52: 0 | P52: =N52-O52 -> 0 | Q52: 0 | R52: 0 | S52: 0 | T52: 9 | U52: 998 | V52: 43 | W52: 0 | X52: 0 | Y52: 43 | Z52: 9 | AA52: 998 | AB52: 43 | AC52: 0 | AD52: 0
A53: 00090998 | B53: 0009 | C53: 0998 | D53: 44 | E53: 9 | G53: 998 | I53: 0 | J53: 0 | K53: 0 | L53: =IF(K54>0, K53/K54, 0) -> 0 | N53: =ROUND(M54*L53,0) -> 0 | O53: 0 | P53: =N53-O53 -> 0 | Q53: 0 | R53: 0 | S53: 0 | T53: 9 | U53: 998 | V53: 44 | W53: 0 | X53: 0 | Y53: 44 | Z53: 9 | AA53: 998 | AB53: 44 | AC53: 0 | AD53: 0
A54: 00090999 | B54: 0009 | C54: 0999 | D54: 45 | E54: 9 | F54: Andover | G54: 999 | H54: Total | I54: 73565668.95 | J54: 1 | K54: =SUM(K50:K53) -> 73858628.69 | L54: =SUM(L50:L53) -> 1 | M54: =VLOOKUP(E54,town351,24) -> 60933369 | N54: =SUM(N50:N53) -> 60933369 | O54: 59359726 | P54: =SUM(P50:P53) -> 1573643 | Q54: 2.651028072 | R54: 5606 | S54: 5514 | T54: 9 | U54: 999 | V54: 45 | W54: 5514 | X54: 73858628.69 | Y54: 45 | Z54: 9 | AA54: 999 | AB54: 45 | AC54: 5514 | AD54: 73858628.69
A55: 00100010 | B55: 0010 | C55: 0010 | D55: 46 | E55: 10 | F55: Arlington | G55: 10 | H55: Arlington | I55: 74896748.64 | J55: 0.9427484092 | K55: =X55 -> 77440051.96 | L55: =IF(K59>0, K55/K59, 0) -> 0.944974353 | N55: =ROUND(M59*L55,0) -> 58894486 | O55: 56193340 | P55: =N55-O55 -> 2701146 | Q55: 4.806879249 | R55: 6002 | S55: 6021 | T55: 10 | U55: 10 | V55: 46 | W55: 6021 | X55: 77440051.96 | Y55: 46 | Z55: 10 | AA55: 10 | AB55: 46 | AC55: 6021 | AD55: 77440051.96
A56: 00100830 | B56: 0010 | C56: 0830 | D56: 47 | E56: 10 | F56: Arlington | G56: 830 | H56: Minuteman | I56: 4548358.782 | J56: 0.05725159081 | K56: 4509317.05 | L56: =IF(K59>0, K56/K59, 0) -> 0.05502564699 | N56: =ROUND(M59*L56,0) -> 3429413 | O56: 3412531 | P56: =N56-O56 -> 16882 | Q56: 0.4947061287 | R56: 218 | S56: 216 | T56: 10 | U56: 830 | V56: 47 | W56: 216 | X56: 4509317.05 | Y56: 47 | Z56: 10 | AA56: 830 | AB56: 47 | AC56: 216 | AD56: 4509317.05
A57: 00100998 | B57: 0010 | C57: 0998 | D57: 48 | E57: 10 | G57: 998 | I57: 0 | J57: 0 | K57: 0 | L57: =IF(K59>0, K57/K59, 0) -> 0 | N57: =ROUND(M59*L57,0) -> 0 | O57: 0 | P57: =N57-O57 -> 0 | Q57: 0 | R57: 0 | S57: 0 | T57: 10 | U57: 998 | V57: 48 | W57: 0 | X57: 0 | Y57: 48 | Z57: 10 | AA57: 998 | AB57: 48 | AC57: 0 | AD57: 0
A58: 00100998 | B58: 0010 | C58: 0998 | D58: 49 | E58: 10 | G58: 998 | I58: 0 | J58: 0 | K58: 0 | L58: =IF(K59>0, K58/K59, 0) -> 0 | N58: =ROUND(M59*L58,0) -> 0 | O58: 0 | P58: =N58-O58 -> 0 | Q58: 0 | R58: 0 | S58: 0 | T58: 10 | U58: 998 | V58: 49 | W58: 0 | X58: 0 | Y58: 49 | Z58: 10 | AA58: 998 | AB58: 49 | AC58: 0 | AD58: 0
A59: 00100999 | B59: 0010 | C59: 0999 | D59: 50 | E59: 10 | F59: Arlington | G59: 999 | H59: Total | I59: 79445107.42 | J59: 1 | K59: =SUM(K55:K58) -> 81949369.01 | L59: =SUM(L55:L58) -> 1 | M59: =VLOOKUP(E59,town351,24) -> 62323899 | N59: =SUM(N55:N58) -> 62323899 | O59: 59605871 | P59: =SUM(P55:P58) -> 2718028 | Q59: 4.560000474 | R59: 6220 | S59: 6237 | T59: 10 | U59: 999 | V59: 50 | W59: 6237 | X59: 81949369.01 | Y59: 50 | Z59: 10 | AA59: 999 | AB59: 50 | AC59: 6237 | AD59: 81949369.01
A60: 00110011 | B60: 0011 | C60: 0011 | D60: 51 | E60: 11 | F60: Ashburnham | G60: 11 | H60: Ashburnham | I60: 0 | J60: 0 | K60: =X60 -> 0 | L60: =IF(K64>0, K60/K64, 0) -> 0 | N60: =ROUND(M64*L60,0) -> 0 | O60: 0 | P60: =N60-O60 -> 0 | Q60: 0 | R60: 0 | S60: 0 | T60: 11 | U60: 11 | V60: 51 | W60: 0 | X60: 0 | Y60: 51 | Z60: 11 | AA60: 11 | AB60: 51 | AC60: 0 | AD60: 0
A61: 00110610 | B61: 0011 | C61: 0610 | D61: 52 | E61: 11 | F61: Ashburnham | G61: 610 | H61: Ashburnham Westminster | I61: 13603235.59 | J61: 0.9036077589 | K61: 13009088.37 | L61: =IF(K64>0, K61/K64, 0) -> 0.9093716994 | N61: =ROUND(M64*L61,0) -> 5969252 | O61: 5653276 | P61: =N61-O61 -> 315976 | Q61: 5.589254797 | R61: 1047.104696 | S61: 982.8947368 | T61: 11 | U61: 610 | V61: 52 | W61: 982.8947368 | X61: 13009088.37 | Y61: 52 | Z61: 11 | AA61: 610 | AB61: 52 | AC61: 982.8947368 | AD61: 13009088.37
A62: 00110832 | B62: 0011 | C62: 0832 | D62: 53 | E62: 11 | F62: Ashburnham | G62: 832 | H62: Montachusett | I62: 1451123.403 | J62: 0.09639224114 | K62: 1296490.282 | L62: =IF(K64>0, K62/K64, 0) -> 0.09062830058 | N62: =ROUND(M64*L62,0) -> 594898 | O62: 603063 | P62: =N62-O62 -> -8165 | Q62: -1.353921564 | R62: 72.09842789 | S62: 63.99999999 | T62: 11 | U62: 832 | V62: 53 | W62: 63.99999999 | X62: 1296490.282 | Y62: 53 | Z62: 11 | AA62: 832 | AB62: 53 | AC62: 63.99999999 | AD62: 1296490.282
A63: 00110998 | B63: 0011 | C63: 0998 | D63: 54 | E63: 11 | G63: 998 | I63: 0 | J63: 0 | K63: 0 | L63: =IF(K64>0, K63/K64, 0) -> 0 | N63: =ROUND(M64*L63,0) -> 0 | O63: 0 | P63: =N63-O63 -> 0 | Q63: 0 | R63: 0 | S63: 0 | T63: 11 | U63: 998 | V63: 54 | W63: 0 | X63: 0 | Y63: 54 | Z63: 11 | AA63: 998 | AB63: 54 | AC63: 0 | AD63: 0
A64: 00110999 | B64: 0011 | C64: 0999 | D64: 55 | E64: 11 | F64: Ashburnham | G64: 999 | H64: Total | I64: 15054359 | J64: 1 | K64: =SUM(K60:K63) -> 14305578.66 | L64: =SUM(L60:L63) -> 1 | M64: =VLOOKUP(E64,town351,24) -> 6564150 | N64: =SUM(N60:N63) -> 6564150 | O64: 6256339 | P64: =SUM(P60:P63) -> 307811 | Q64: 4.919985953 | R64: 1119.203124 | S64: 1046.894737 | T64: 11 | U64: 999 | V64: 55 | W64: 1046.894737 | X64: 14305578.66 | Y64: 55 | Z64: 11 | AA64: 999 | AB64: 55 | AC64: 1046.894737 | AD64: 14305578.66
A65: 00120012 | B65: 0012 | C65: 0012 | D65: 56 | E65: 12 | F65: Ashby | G65: 12 | H65: Ashby | I65: 0 | J65: 0 | K65: =X65 -> 0 | L65: =IF(K69>0, K65/K69, 0) -> 0 | N65: =ROUND(M69*L65,0) -> 0 | O65: 0 | P65: =N65-O65 -> 0 | Q65: 0 | R65: 0 | S65: 0 | T65: 12 | U65: 12 | V65: 56 | W65: 0 | X65: 0 | Y65: 56 | Z65: 12 | AA65: 12 | AB65: 56 | AC65: 0 | AD65: 0
A66: 00120735 | B66: 0012 | C66: 0735 | D66: 57 | E66: 12 | F66: Ashby | G66: 735 | H66: North Middlesex | I66: 5218991.298 | J66: 0.8749785813 | K66: 5443354.565 | L66: =IF(K69>0, K66/K69, 0) -> 0.8965652938 | N66: =ROUND(M69*L66,0) -> 2832172 | O66: 2618646 | P66: =N66-O66 -> 213526 | Q66: 8.154061297 | R66: 398.4657534 | S66: 405.9700923 | T66: 12 | U66: 735 | V66: 57 | W66: 405.9700923 | X66: 5443354.565 | Y66: 57 | Z66: 12 | AA66: 735 | AB66: 57 | AC66: 405.9700923 | AD66: 5443354.565
A67: 00120832 | B67: 0012 | C67: 0832 | D67: 58 | E67: 12 | F67: Ashby | G67: 832 | H67: Montachusett | I67: 745716.1928 | J67: 0.1250214187 | K67: 627987.4807 | L67: =IF(K69>0, K67/K69, 0) -> 0.1034347062 | N67: =ROUND(M69*L67,0) -> 326741 | O67: 374166 | P67: =N67-O67 -> -47425 | Q67: -12.67485555 | R67: 37.05058099 | S67: 31 | T67: 12 | U67: 832 | V67: 58 | W67: 31 | X67: 627987.4807 | Y67: 58 | Z67: 12 | AA67: 832 | AB67: 58 | AC67: 31 | AD67: 627987.4807
A68: 00120998 | B68: 0012 | C68: 0998 | D68: 59 | E68: 12 | G68: 998 | I68: 0 | J68: 0 | K68: 0 | L68: =IF(K69>0, K68/K69, 0) -> 0 | N68: =ROUND(M69*L68,0) -> 0 | O68: 0 | P68: =N68-O68 -> 0 | Q68: 0 | R68: 0 | S68: 0 | T68: 12 | U68: 998 | V68: 59 | W68: 0 | X68: 0 | Y68: 59 | Z68: 12 | AA68: 998 | AB68: 59 | AC68: 0 | AD68: 0
A69: 00120999 | B69: 0012 | C69: 0999 | D69: 60 | E69: 12 | F69: Ashby | G69: 999 | H69: Total | I69: 5964707.491 | J69: 1 | K69: =SUM(K65:K68) -> 6071342.046 | L69: =SUM(L65:L68) -> 1 | M69: =VLOOKUP(E69,town351,24) -> 3158913 | N69: =SUM(N65:N68) -> 3158913 | O69: 2992812 | P69: =SUM(P65:P68) -> 166101 | Q69: 5.549997795 | R69: 435.5163344 | S69: 436.9700923 | T69: 12 | U69: 999 | V69: 60 | W69: 436.9700923 | X69: 6071342.046 | Y69: 60 | Z69: 12 | AA69: 999 | AB69: 60 | AC69: 436.9700923 | AD69: 6071342.046
A70: 00130013 | B70: 0013 | C70: 0013 | D70: 61 | E70: 13 | F70: Ashfield | G70: 13 | H70: Ashfield | I70: 245151 | J70: 0.1113203452 | K70: =X70 -> 216797.25 | L70: =IF(K74>0, K70/K74, 0) -> 0.09221029449 | N70: =ROUND(M74*L70,0) -> 158708 | O70: 179015 | P70: =N70-O70 -> -20307 | Q70: -11.34374214 | R70: 13 | S70: 11 | T70: 13 | U70: 13 | V70: 61 | W70: 11 | X70: 216797.25 | Y70: 61 | Z70: 13 | AA70: 13 | AB70: 61 | AC70: 11 | AD70: 216797.25
A71: 00130717 | B71: 0013 | C71: 0717 | D71: 62 | E71: 13 | F71: Ashfield | G71: 717 | H71: Mohawk Trail | I71: 1957060.999 | J71: 0.8886796548 | K71: 2134320.39 | L71: =IF(K74>0, K71/K74, 0) -> 0.9077897055 | N71: =ROUND(M74*L71,0) -> 1562445 | O71: 1429088 | P71: =N71-O71 -> 133357 | Q71: 9.331615688 | R71: 136.0134146 | S71: 141.641791 | T71: 13 | U71: 717 | V71: 62 | W71: 141.641791 | X71: 2134320.39 | Y71: 62 | Z71: 13 | AA71: 717 | AB71: 62 | AC71: 141.641791 | AD71: 2134320.39
A72: 00130998 | B72: 0013 | C72: 0998 | D72: 63 | E72: 13 | G72: 998 | I72: 0 | J72: 0 | K72: 0 | L72: =IF(K74>0, K72/K74, 0) -> 0 | N72: =ROUND(M74*L72,0) -> 0 | O72: 0 | P72: =N72-O72 -> 0 | Q72: 0 | R72: 0 | S72: 0 | T72: 13 | U72: 998 | V72: 63 | W72: 0 | X72: 0 | Y72: 63 | Z72: 13 | AA72: 998 | AB72: 63 | AC72: 0 | AD72: 0
A73: 00130998 | B73: 0013 | C73: 0998 | D73: 64 | E73: 13 | G73: 998 | I73: 0 | J73: 0 | K73: 0 | L73: =IF(K74>0, K73/K74, 0) -> 0 | N73: =ROUND(M74*L73,0) -> 0 | O73: 0 | P73: =N73-O73 -> 0 | Q73: 0 | R73: 0 | S73: 0 | T73: 13 | U73: 998 | V73: 64 | W73: 0 | X73: 0 | Y73: 64 | Z73: 13 | AA73: 998 | AB73: 64 | AC73: 0 | AD73: 0
A74: =B74&C74 -> 00130999 | B74: 0013 | C74: 0999 | D74: 65 | E74: 13 | F74: Ashfield | G74: 999 | H74: Total | I74: 2202211.999 | J74: 1 | K74: =SUM(K70:K73) -> 2351117.64 | L74: =SUM(L70:L73) -> 1 | M74: =VLOOKUP(E74,town351,24) -> 1721153 | N74: =SUM(N70:N73) -> 1721153 | O74: 1608103 | P74: =SUM(P70:P73) -> 113050 | Q74: 7.030022331 | R74: 149.0134146 | S74: 152.641791 | T74: =VLOOKUP($D74, foundoptions, VLOOKUP($T$6, foundoptcell, 2, FALSE), FALSE) -> 13 | U74: =VLOOKUP($D74, foundoptions, VLOOKUP($T$6, foundoptcell, 2, FALSE)+1, FALSE) -> 999 | V74: =VLOOKUP($D74, foundoptions, VLOOKUP($T$6, foundoptcell, 2, FALSE)+2, FALSE) -> 65 | W74: =VLOOKUP($D74, foundoptions, VLOOKUP($T$6, foundoptcell, 2, FALSE)+3, FALSE) -> 152.641791 | X74: =VLOOKUP($D74, foundoptions, VLOOKUP($T$6, foundoptcell, 2, FALSE)+4, FALSE) -> 2351117.64 | Y74: 65 | Z74: 13 | AA74: 999 | AB74: 65 | AC74: 152.641791 | AD74: 2351117.64
A75: 00140014 | B75: 0014 | C75: 0014 | D75: 66 | E75: 14 | F75: Ashland | G75: 14 | H75: Ashland | I75: 36758230.61 | J75: 0.9645188383 | K75: =X75 -> 37765344.57 | L75: =IF(K79>0, K75/K79, 0) -> 0.9627839617 | N75: =ROUND(M79*L75,0) -> 26792240 | O75: 25484731 | P75: =N75-O75 -> 1307509 | Q75: 5.130558372 | R75: 2839 | S75: =W75 -> 2857 | T75: 14 | U75: 14 | V75: 66 | W75: 2857 | X75: 37765344.57 | Y75: =D75 -> 66 | Z75: 14 | AA75: 14 | AB75: 66 | AC75: 2857 | AD75: 37765344.57
A76: 00140829 | B76: 0014 | C76: 0829 | D76: 67 | E76: 14 | F76: Ashland | G76: 829 | H76: South Middlesex | I76: 1352202.437 | J76: 0.03548116169 | K76: 1459804.658 | L76: =IF(K79>0, K76/K79, 0) -> 0.03721603834 | N76: =ROUND(M79*L76,0) -> 1035644 | O76: 937491 | P76: =N76-O76 -> 98153 | Q76: 10.46975384 | R76: 59.21121718 | S76: 62.2147806 | T76: 14 | U76: 829 | V76: 67 | W76: 62.2147806 | X76: 1459804.658 | Y76: 67 | Z76: 14 | AA76: 829 | AB76: 67 | AC76: 62.2147806 | AD76: 1459804.658
A77: 00140998 | B77: 0014 | C77: 0998 | D77: 68 | E77: 14 | G77: 998 | I77: 0 | J77: 0 | K77: 0 | L77: =IF(K79>0, K77/K79, 0) -> 0 | N77: =ROUND(M79*L77,0) -> 0 | O77: 0 | P77: =N77-O77 -> 0 | Q77: 0 | R77: 0 | S77: 0 | T77: 14 | U77: 998 | V77: 68 | W77: 0 | X77: 0 | Y77: 68 | Z77: 14 | AA77: 998 | AB77: 68 | AC77: 0 | AD77: 0
A78: 00140998 | B78: 0014 | C78: 0998 | D78: 69 | E78: 14 | G78: 998 | I78: 0 | J78: 0 | K78: 0 | L78: =IF(K79>0, K78/K79, 0) -> 0 | N78: =ROUND(M79*L78,0) -> 0 | O78: 0 | P78: =N78-O78 -> 0 | Q78: 0 | R78: 0 | S78: 0 | T78: 14 | U78: 998 | V78: 69 | W78: 0 | X78: 0 | Y78: 69 | Z78: 14 | AA78: 998 | AB78: 69 | AC78: 0 | AD78: 0
A79: 00140999 | B79: 0014 | C79: 0999 | D79: 70 | E79: 14 | F79: Ashland | G79: 999 | H79: Total | I79: 38110433.05 | J79: 1 | K79: =SUM(K75:K78) -> 39225149.23 | L79: =SUM(L75:L78) -> 1 | M79: =VLOOKUP(E79,town351,24) -> 27827884 | N79: =SUM(N75:N78) -> 27827884 | O79: 26422222 | P79: =SUM(P75:P78) -> 1405662 | Q79: 5.319999204 | R79: 2898.211217 | S79: 2919.214781 | T79: 14 | U79: 999 | V79: 70 | W79: 2919.214781 | X79: 39225149.23 | Y79: 70 | Z79: 14 | AA79: 999 | AB79: 70 | AC79: 2919.214781 | AD79: 39225149.23
A80: 00150015 | B80: 0015 | C80: 0015 | D80: 71 | E80: 15 | F80: Athol | G80: 15 | H80: Athol | I80: 0 | J80: 0 | K80: =X80 -> 0 | L80: =IF(K84>0, K80/K84, 0) -> 0 | N80: =ROUND(M84*L80,0) -> 0 | O80: 0 | P80: =N80-O80 -> 0 | Q80: =IF(O80>0,P80*100/O80,IF(P80>0,100,0)) -> 0 | R80: 0 | S80: 0 | T80: 15 | U80: 15 | V80: 71 | W80: 0 | X80: 0 | Y80: 71 | Z80: 15 | AA80: 15 | AB80: 71 | AC80: 0 | AD80: 0
A81: 00150615 | B81: 0015 | C81: 0615 | D81: 72 | E81: 15 | F81: Athol | G81: 615 | H81: Athol Royalston | I81: 25947947.7 | J81: 0.9206265412 | K81: 26787662.26 | L81: =IF(K84>0, K81/K84, 0) -> 0.9270864801 | N81: =ROUND(M84*L81,0) -> 4034284 | O81: 3730491 | P81: =N81-O81 -> 303793 | Q81: =IF(O81>0,P81*100/O81,IF(P81>0,100,0)) -> 8.143512476 | R81: 1632.087739 | S81: 1656.30365 | T81: 15 | U81: 615 | V81: 72 | W81: 1656.30365 | X81: 26787662.26 | Y81: 72 | Z81: 15 | AA81: 615 | AB81: 72 | AC81: 1656.30365 | AD81: 26787662.26
A82: 00150832 | B82: 0015 | C82: 0832 | D82: 73 | E82: 15 | F82: Athol | G82: 832 | H82: Montachusett | I82: 2237148.579 | J82: 0.07937345883 | K82: 2106796.709 | L82: =IF(K84>0, K82/K84, 0) -> 0.07291351991 | N82: =ROUND(M84*L82,0) -> 317289 | O82: 321631 | P82: =N82-O82 -> -4342 | Q82: =IF(O82>0,P82*100/O82,IF(P82>0,100,0)) -> -1.349994248 | R82: 111.151743 | S82: 104 | T82: 15 | U82: 832 | V82: 73 | W82: 104 | X82: 2106796.709 | Y82: 73 | Z82: 15 | AA82: 832 | AB82: 73 | AC82: 104 | AD82: 2106796.709
A83: 00150998 | B83: 0015 | C83: 0998 | D83: 74 | E83: 15 | G83: 998 | I83: 0 | J83: 0 | K83: 0 | L83: =IF(K84>0, K83/K84, 0) -> 0 | N83: =ROUND(M84*L83,0) -> 0 | O83: 0 | P83: =N83-O83 -> 0 | Q83: =IF(O83>0,P83*100/O83,IF(P83>0,100,0)) -> 0 | R83: 0 | S83: 0 | T83: 15 | U83: 998 | V83: 74 | W83: 0 | X83: 0 | Y83: 74 | Z83: 15 | AA83: 998 | AB83: 74 | AC83: 0 | AD83: 0
A84: 00150999 | B84: 0015 | C84: 0999 | D84: 75 | E84: 15 | F84: Athol | G84: 999 | H84: Total | I84: 28185096.27 | J84: 1 | K84: =SUM(K80:K83) -> 28894458.97 | L84: =SUM(L80:L83) -> 1 | M84: =VLOOKUP(E84,town351,24) -> 4351573 | N84: =SUM(N80:N83) -> 4351573 | O84: 4052122 | P84: =SUM(P80:P83) -> 299451 | Q84: =IF(O84>0,P84*100/O84,IF(P84>0,100,0)) -> 7.389979867 | R84: 1743.239482 | S84: 1760.30365 | T84: 15 | U84: 999 | V84: 75 | W84: 1760.30365 | X84: 28894458.97 | Y84: 75 | Z84: 15 | AA84: 999 | AB84: 75 | AC84: 1760.30365 | AD84: 28894458.97
A85: 00160016 | B85: 0016 | C85: 0016 | D85: 76 | E85: 16 | F85: Attleboro | G85: 16 | H85: Attleboro | I85: 97105120.72 | J85: 0.9960316135 | K85: =X85 -> 101966843.3 | L85: =IF(K89>0, K85/K89, 0) -> 0.995724812 | N85: =ROUND(M89*L85,0) -> 46028688 | O85: 43712969 | P85: =N85-O85 -> 2315719 | Q85: 5.297555972 | R85: 6238 | S85: 6313 | T85: 16 | U85: 16 | V85: 76 | W85: 6313 | X85: 101966843.3 | Y85: 76 | Z85: 16 | AA85: 16 | AB85: 76 | AC85: 6313 | AD85: 101966843.3
A86: 00160910 | B86: 0016 | C86: 0910 | D86: 77 | E86: 16 | F86: Attleboro | G86: 910 | H86: Bristol County | I86: 386885.9605 | J86: 0.003968386473 | K86: 437799.0999 | L86: =IF(K89>0, K86/K89, 0) -> 0.004275188017 | N86: =ROUND(M89*L86,0) -> 197626 | O86: 174161 | P86: =N86-O86 -> 23465 | Q86: 13.47316563 | R86: 19 | S86: 21 | T86: 16 | U86: 910 | V86: 77 | W86: 21 | X86: 437799.0999 | Y86: 77 | Z86: 16 | AA86: 910 | AB86: 77 | AC86: 21 | AD86: 437799.0999
A87: 00160998 | B87: 0016 | C87: 0998 | D87: 78 | E87: 16 | G87: 998 | I87: 0 | J87: 0 | K87: 0 | L87: =IF(K89>0, K87/K89, 0) -> 0 | N87: =ROUND(M89*L87,0) -> 0 | O87: 0 | P87: =N87-O87 -> 0 | Q87: 0 | R87: 0 | S87: 0 | T87: 16 | U87: 998 | V87: 78 | W87: 0 | X87: 0 | Y87: 78 | Z87: 16 | AA87: 998 | AB87: 78 | AC87: 0 | AD87: 0
A88: 00160998 | B88: 0016 | C88: 0998 | D88: 79 | E88: 16 | G88: 998 | I88: 0 | J88: 0 | K88: 0 | L88: =IF(K89>0, K88/K89, 0) -> 0 | N88: =ROUND(M89*L88,0) -> 0 | O88: 0 | P88: =N88-O88 -> 0 | Q88: 0 | R88: 0 | S88: 0 | T88: 16 | U88: 998 | V88: 79 | W88: 0 | X88: 0 | Y88: 79 | Z88: 16 | AA88: 998 | AB88: 79 | AC88: 0 | AD88: 0
A89: 00160999 | B89: 0016 | C89: 0999 | D89: 80 | E89: 16 | F89: Attleboro | G89: 999 | H89: Total | I89: 97492006.68 | J89: 1 | K89: =SUM(K85:K88) -> 102404642.3 | L89: =SUM(L85:L88) -> 1 | M89: =VLOOKUP(E89,town351,24) -> 46226314 | N89: =SUM(N85:N88) -> 46226314 | O89: 43887130 | P89: =SUM(P85:P88) -> 2339184 | Q89: 5.329999934 | R89: 6257 | S89: 6334 | T89: 16 | U89: 999 | V89: 80 | W89: 6334 | X89: 102404642.3 | Y89: 80 | Z89: 16 | AA89: 999 | AB89: 80 | AC89: 6334 | AD89: 102404642.3
A90: 00170017 | B90: 0017 | C90: 0017 | D90: 81 | E90: 17 | F90: Auburn | G90: 17 | H90: Auburn | I90: 32176028.36 | J90: 0.9315018494 | K90: =X90 -> 32465114.43 | L90: =IF(K94>0, K90/K94, 0) -> 0.9230525256 | N90: =ROUND(M94*L90,0) -> 17758504 | O90: 17041707 | P90: =N90-O90 -> 716797 | Q90: 4.20613381 | R90: 2422 | S90: 2367 | T90: 17 | U90: 17 | V90: 81 | W90: 2367 | X90: 32465114.43 | Y90: 81 | Z90: 17 | AA90: 17 | AB90: 81 | AC90: 2367 | AD90: 32465114.43
A91: 00170876 | B91: 0017 | C91: 0876 | D91: 82 | E91: 17 | F91: Auburn | G91: 876 | H91: Southern Worcester | I91: 2366069.846 | J91: 0.06849815063 | K91: 2706355.806 | L91: =IF(K94>0, K91/K94, 0) -> 0.07694747441 | N91: =ROUND(M94*L91,0) -> 1480384 | O91: 1253165 | P91: =N91-O91 -> 227219 | Q91: 18.13161076 | R91: 117 | S91: 131 | T91: 17 | U91: 876 | V91: 82 | W91: 131 | X91: 2706355.806 | Y91: 82 | Z91: 17 | AA91: 876 | AB91: 82 | AC91: 131 | AD91: 2706355.806
A92: 00170998 | B92: 0017 | C92: 0998 | D92: 83 | E92: 17 | G92: 998 | I92: 0 | J92: 0 | K92: 0 | L92: =IF(K94>0, K92/K94, 0) -> 0 | N92: =ROUND(M94*L92,0) -> 0 | O92: 0 | P92: =N92-O92 -> 0 | Q92: 0 | R92: 0 | S92: 0 | T92: 17 | U92: 998 | V92: 83 | W92: 0 | X92: 0 | Y92: 83 | Z92: 17 | AA92: 998 | AB92: 83 | AC92: 0 | AD92: 0
A93: 00170998 | B93: 0017 | C93: 0998 | D93: 84 | E93: 17 | G93: 998 | I93: 0 | J93: 0 | K93: 0 | L93: =IF(K94>0, K93/K94, 0) -> 0 | N93: =ROUND(M94*L93,0) -> 0 | O93: 0 | P93: =N93-O93 -> 0 | Q93: 0 | R93: 0 | S93: 0 | T93: 17 | U93: 998 | V93: 84 | W93: 0 | X93: 0 | Y93: 84 | Z93: 17 | AA93: 998 | AB93: 84 | AC93: 0 | AD93: 0
A94: 00170999 | B94: 0017 | C94: 0999 | D94: 85 | E94: 17 | F94: Auburn | G94: 999 | H94: Total | I94: 34542098.21 | J94: 1 | K94: =SUM(K90:K93) -> 35171470.24 | L94: =SUM(L90:L93) -> 1 | M94: =VLOOKUP(E94,town351,24) -> 19238888 | N94: =SUM(N90:N93) -> 19238888 | O94: 18294872 | P94: =SUM(P90:P93) -> 944016 | Q94: 5.160003306 | R94: 2539 | S94: 2498 | T94: 17 | U94: 999 | V94: 85 | W94: 2498 | X94: 35171470.24 | Y94: 85 | Z94: 17 | AA94: 999 | AB94: 85 | AC94: 2498 | AD94: 35171470.24
A95: 00180018 | B95: 0018 | C95: 0018 | D95: 86 | E95: 18 | F95: Avon | G95: 18 | H95: Avon | I95: 9536788.92 | J95: 0.8955437459 | K95: =X95 -> 9514711.52 | L95: =IF(K99>0, K95/K99, 0) -> 0.8991587691 | N95: =ROUND(M99*L95,0) -> 5674988 | O95: 5390722 | P95: =N95-O95 -> 284266 | Q95: 5.273245402 | R95: 586 | S95: 572 | T95: 18 | U95: 18 | V95: 86 | W95: 572 | X95: 9514711.52 | Y95: 86 | Z95: 18 | AA95: 18 | AB95: 86 | AC95: 572 | AD95: 9514711.52
A96: 00180806 | B96: 0018 | C96: 0806 | D96: 87 | E96: 18 | F96: Avon | G96: 806 | H96: Blue Hills | I96: 1090844.713 | J96: 0.10243481 | K96: 1045057.009 | L96: =IF(K99>0, K96/K99, 0) -> 0.09875992262 | N96: =ROUND(M99*L96,0) -> 623318 | O96: 616606 | P96: =N96-O96 -> 6712 | Q96: 1.088539521 | R96: 50 | S96: 47 | T96: 18 | U96: 806 | V96: 87 | W96: 47 | X96: 1045057.009 | Y96: 87 | Z96: 18 | AA96: 806 | AB96: 87 | AC96: 47 | AD96: 1045057.009
A97: 00180915 | B97: 0018 | C97: 0915 | D97: 88 | E97: 18 | F97: Avon | G97: 915 | H97: Norfolk County | I97: 21526.68295 | J97: 0.002021444162 | K97: 22023.97186 | L97: =IF(K99>0, K97/K99, 0) -> 0.002081308234 | N97: =ROUND(M99*L97,0) -> 13136 | O97: 12168 | P97: =N97-O97 -> 968 | Q97: 7.955292571 | R97: 1 | S97: 0.9999999989 | T97: 18 | U97: 915 | V97: 88 | W97: 0.9999999989 | X97: 22023.97186 | Y97: 88 | Z97: 18 | AA97: 915 | AB97: 88 | AC97: 0.9999999989 | AD97: 22023.97186
A98: 00180998 | B98: 0018 | C98: 0998 | D98: 89 | E98: 18 | G98: 998 | I98: 0 | J98: 0 | K98: 0 | L98: =IF(K99>0, K98/K99, 0) -> 0 | N98: =ROUND(M99*L98,0) -> 0 | O98: 0 | P98: =N98-O98 -> 0 | Q98: 0 | R98: 0 | S98: 0 | T98: 18 | U98: 998 | V98: 89 | W98: 0 | X98: 0 | Y98: 89 | Z98: 18 | AA98: 998 | AB98: 89 | AC98: 0 | AD98: 0
A99: 00180999 | B99: 0018 | C99: 0999 | D99: 90 | E99: 18 | F99: Avon | G99: 999 | H99: Total | I99: 10649160.32 | J99: 1 | K99: =SUM(K95:K98) -> 10581792.5 | L99: =SUM(L95:L98) -> 1 | M99: =VLOOKUP(E99,town351,24) -> 6311442 | N99: =SUM(N95:N98) -> 6311442 | O99: 6019496 | P99: =SUM(P95:P98) -> 291946 | Q99: 4.850007376 | R99: 637 | S99: 620 | T99: 18 | U99: 999 | V99: 90 | W99: 620 | X99: 10581792.5 | Y99: 90 | Z99: 18 | AA99: 999 | AB99: 90 | AC99: 620 | AD99: 10581792.5
A100: 00190019 | B100: 0019 | C100: 0019 | D100: 91 | E100: 19 | F100: Ayer | G100: 19 | H100: Ayer | I100: 0 | J100: 0 | K100: =X100 -> 0 | L100: =IF(K104>0, K100/K104, 0) -> 0 | N100: =ROUND(M104*L100,0) -> 0 | O100: 0 | P100: =N100-O100 -> 0 | Q100: 0 | R100: 0 | S100: 0 | T100: 19 | U100: 19 | V100: 91 | W100: 0 | X100: 0 | Y100: 91 | Z100: 19 | AA100: 19 | AB100: 91 | AC100: 0 | AD100: 0
A101: 00190616 | B101: 0019 | C101: 0616 | D101: 92 | E101: 19 | F101: Ayer | G101: 616 | H101: Ayer Shirley | I101: 13108566.87 | J101: 0.903259836 | K101: 13642018.63 | L101: =IF(K104>0, K101/K104, 0) -> 0.9130987896 | N101: =ROUND(M104*L101,0) -> 9735557 | O101: 9087237 | P101: =N101-O101 -> 648320 | Q101: 7.134401799 | R101: 970.6912018 | S101: 971.8488577 | T101: 19 | U101: 616 | V101: 92 | W101: 971.8488577 | X101: 13642018.63 | Y101: 92 | Z101: 19 | AA101: 616 | AB101: 92 | AC101: 971.8488577 | AD101: 13642018.63
A102: 00190852 | B102: 0019 | C102: 0852 | D102: 93 | E102: 19 | F102: Ayer | G102: 852 | H102: Nashoba Valley | I102: 1403942.541 | J102: 0.09674016403 | K102: 1298334.797 | L102: =IF(K104>0, K102/K104, 0) -> 0.08690121043 | N102: =ROUND(M104*L102,0) -> 926550 | O102: 973253 | P102: =N102-O102 -> -46703 | Q102: -4.798649478 | R102: 69 | S102: 63 | T102: 19 | U102: 852 | V102: 93 | W102: 63 | X102: 1298334.797 | Y102: 93 | Z102: 19 | AA102: 852 | AB102: 93 | AC102: 63 | AD102: 1298334.797
A103: 00190998 | B103: 0019 | C103: 0998 | D103: 94 | E103: 19 | G103: 998 | I103: 0 | J103: 0 | K103: 0 | L103: =IF(K104>0, K103/K104, 0) -> 0 | N103: =ROUND(M104*L103,0) -> 0 | O103: 0 | P103: =N103-O103 -> 0 | Q103: 0 | R103: 0 | S103: 0 | T103: 19 | U103: 998 | V103: 94 | W103: 0 | X103: 0 | Y103: 94 | Z103: 19 | AA103: 998 | AB103: 94 | AC103: 0 | AD103: 0
A104: 00190999 | B104: 0019 | C104: 0999 | D104: 95 | E104: 19 | F104: Ayer | G104: 999 | H104: Total | I104: 14512509.41 | J104: 1 | K104: =SUM(K100:K103) -> 14940353.43 | L104: =SUM(L100:L103) -> 1 | M104: =VLOOKUP(E104,town351,24) -> 10662107 | N104: =SUM(N100:N103) -> 10662107 | O104: 10060490 | P104: =SUM(P100:P103) -> 601617 | Q104: 5.979996998 | R104: 1039.691202 | S104: 1034.848858 | T104: 19 | U104: 999 | V104: 95 | W104: 1034.848858 | X104: 14940353.43 | Y104: 95 | Z104: 19 | AA104: 999 | AB104: 95 | AC104: 1034.848858 | AD104: 14940353.43
A105: 00200020 | B105: 0020 | C105: 0020 | D105: 96 | E105: 20 | F105: Barnstable | G105: 20 | H105: Barnstable | I105: 84542110.14 | J105: 0.9524161119 | K105: =X105 -> 88800528.96 | L105: =IF(K109>0, K105/K109, 0) -> 0.9574269684 | N105: =ROUND(M109*L105,0) -> 63909248 | O105: 59790057 | P105: =N105-O105 -> 4119191 | Q105: 6.889424775 | R105: 5302 | S105: 5306 | T105: 20 | U105: 20 | V105: 96 | W105: 5306 | X105: 88800528.96 | Y105: 96 | Z105: 20 | AA105: 20 | AB105: 96 | AC105: 5306 | AD105: 88800528.96
A106: 00200815 | B106: 0020 | C106: 0815 | D106: 97 | E106: 20 | F106: Barnstable | G106: 815 | H106: Cape Cod | I106: 4223828.492 | J106: 0.04758388811 | K106: 3948612.112 | L106: =IF(K109>0, K106/K109, 0) -> 0.04257303158 | N106: =ROUND(M109*L106,0) -> 2841794 | O106: 2987185 | P106: =N106-O106 -> -145391 | Q106: -4.867157541 | R106: 194.5817091 | S106: 181.2717718 | T106: 20 | U106: 815 | V106: 97 | W106: 181.2717718 | X106: 3948612.112 | Y106: 97 | Z106: 20 | AA106: 815 | AB106: 97 | AC106: 181.2717718 | AD106: 3948612.112
A107: 00200998 | B107: 0020 | C107: 0998 | D107: 98 | E107: 20 | G107: 998 | I107: 0 | J107: 0 | K107: 0 | L107: =IF(K109>0, K107/K109, 0) -> 0 | N107: =ROUND(M109*L107,0) -> 0 | O107: 0 | P107: =N107-O107 -> 0 | Q107: 0 | R107: 0 | S107: 0 | T107: 20 | U107: 998 | V107: 98 | W107: 0 | X107: 0 | Y107: 98 | Z107: 20 | AA107: 998 | AB107: 98 | AC107: 0 | AD107: 0
A108: 00200998 | B108: 0020 | C108: 0998 | D108: 99 | E108: 20 | G108: 998 | I108: 0 | J108: 0 | K108: 0 | L108: =IF(K109>0, K108/K109, 0) -> 0 | N108: =ROUND(M109*L108,0) -> 0 | O108: 0 | P108: =N108-O108 -> 0 | Q108: 0 | R108: 0 | S108: 0 | T108: 20 | U108: 998 | V108: 99 | W108: 0 | X108: 0 | Y108: 99 | Z108: 20 | AA108: 998 | AB108: 99 | AC108: 0 | AD108: 0
A109: 00200999 | B109: 0020 | C109: 0999 | D109: 100 | E109: 20 | F109: Barnstable | G109: 999 | H109: Total | I109: 88765938.63 | J109: 1 | K109: =SUM(K105:K108) -> 92749141.07 | L109: =SUM(L105:L108) -> 1 | M109: =VLOOKUP(E109,town351,24) -> 66751042 | N109: =SUM(N105:N108) -> 66751042 | O109: 62777242 | P109: =SUM(P105:P108) -> 3973800 | Q109: 6.330000926 | R109: 5496.581709 | S109: 5487.271772 | T109: 20 | U109: 999 | V109: 100 | W109: 5487.271772 | X109: 92749141.07 | Y109: 100 | Z109: 20 | AA109: 999 | AB109: 100 | AC109: 5487.271772 | AD109: 92749141.07
A110: 00210021 | B110: 0021 | C110: 0021 | D110: 101 | E110: 21 | F110: Barre | G110: 21 | H110: Barre | I110: 0 | J110: 0 | K110: =X110 -> 0 | L110: =IF(K114>0, K110/K114, 0) -> 0 | N110: =ROUND(M114*L110,0) -> 0 | O110: 0 | P110: =N110-O110 -> 0 | Q110: 0 | R110: 0 | S110: 0 | T110: 21 | U110: 21 | V110: 101 | W110: 0 | X110: 0 | Y110: 101 | Z110: 21 | AA110: 21 | AB110: 101 | AC110: 0 | AD110: 0
A111: 00210753 | B111: 0021 | C111: 0753 | D111: 102 | E111: 21 | F111: Barre | G111: 753 | H111: Quabbin | I111: 10294721.16 | J111: 0.9240218373 | K111: 10413561.93 | L111: =IF(K114>0, K111/K114, 0) -> 0.9195070976 | N111: =ROUND(M114*L111,0) -> 3988837 | O111: 3851659 | P111: =N111-O111 -> 137178 | Q111: 3.561530239 | R111: 742.776342 | S111: 726.1880342 | T111: 21 | U111: 753 | V111: 102 | W111: 726.1880342 | X111: 10413561.93 | Y111: 102 | Z111: 21 | AA111: 753 | AB111: 102 | AC111: 726.1880342 | AD111: 10413561.93
A112: 00210832 | B112: 0021 | C112: 0832 | D112: 103 | E112: 21 | F112: Barre | G112: 832 | H112: Montachusett | I112: 846488.6514 | J112: 0.07597816266 | K112: 911594.7299 | L112: =IF(K114>0, K112/K114, 0) -> 0.08049290242 | N112: =ROUND(M114*L112,0) -> 349180 | O112: 316705 | P112: =N112-O112 -> 32475 | Q112: 10.25402188 | R112: 42.05741627 | S112: 45 | T112: 21 | U112: 832 | V112: 103 | W112: 45 | X112: 911594.7299 | Y112: 103 | Z112: 21 | AA112: 832 | AB112: 103 | AC112: 45 | AD112: 911594.7299
A113: 00210998 | B113: 0021 | C113: 0998 | D113: 104 | E113: 21 | G113: 998 | I113: 0 | J113: 0 | K113: 0 | L113: =IF(K114>0, K113/K114, 0) -> 0 | N113: =ROUND(M114*L113,0) -> 0 | O113: 0 | P113: =N113-O113 -> 0 | Q113: 0 | R113: 0 | S113: 0 | T113: 21 | U113: 998 | V113: 104 | W113: 0 | X113: 0 | Y113: 104 | Z113: 21 | AA113: 998 | AB113: 104 | AC113: 0 | AD113: 0
A114: 00210999 | B114: 0021 | C114: 0999 | D114: 105 | E114: 21 | F114: Barre | G114: 999 | H114: Total | I114: 11141209.81 | J114: 1 | K114: =SUM(K110:K113) -> 11325156.66 | L114: =SUM(L110:L113) -> 1 | M114: =VLOOKUP(E114,town351,24) -> 4338017 | N114: =SUM(N110:N113) -> 4338017 | O114: 4168364 | P114: =SUM(P110:P113) -> 169653 | Q114: 4.070014039 | R114: 784.8337582 | S114: 771.1880342 | T114: 21 | U114: 999 | V114: 105 | W114: 771.1880342 | X114: 11325156.66 | Y114: 105 | Z114: 21 | AA114: 999 | AB114: 105 | AC114: 771.1880342 | AD114: 11325156.66
A115: 00220022 | B115: 0022 | C115: 0022 | D115: 106 | E115: 22 | F115: Becket | G115: 22 | H115: Becket | I115: 261641.76 | J115: 0.08391660674 | K115: =X115 -> 250517.91 | L115: =IF(K119>0, K115/K119, 0) -> 0.08474773863 | N115: =ROUND(M119*L115,0) -> 198962 | O115: 189361 | P115: =N115-O115 -> 9601 | Q115: 5.070209811 | R115: 14 | S115: 13 | T115: 22 | U115: 22 | V115: 106 | W115: 13 | X115: 250517.91 | Y115: 106 | Z115: 22 | AA115: 22 | AB115: 106 | AC115: 13 | AD115: 250517.91
A116: 00220635 | B116: 0022 | C116: 0635 | D116: 107 | E116: 22 | F116: Becket | G116: 635 | H116: Central Berkshire | I116: 2856236.455 | J116: 0.9160833933 | K116: 2705524.505 | L116: =IF(K119>0, K116/K119, 0) -> 0.9152522614 | N116: =ROUND(M119*L116,0) -> 2148734 | O116: 2067171 | P116: =N116-O116 -> 81563 | Q116: 3.945633912 | R116: 199.706684 | S116: 184.1082474 | T116: 22 | U116: 635 | V116: 107 | W116: 184.1082474 | X116: 2705524.505 | Y116: 107 | Z116: 22 | AA116: 635 | AB116: 107 | AC116: 184.1082474 | AD116: 2705524.505
A117: 00220998 | B117: 0022 | C117: 0998 | D117: 108 | E117: 22 | G117: 998 | I117: 0 | J117: 0 | K117: 0 | L117: =IF(K119>0, K117/K119, 0) -> 0 | N117: =ROUND(M119*L117,0) -> 0 | O117: 0 | P117: =N117-O117 -> 0 | Q117: 0 | R117: 0 | S117: 0 | T117: 22 | U117: 998 | V117: 108 | W117: 0 | X117: 0 | Y117: 108 | Z117: 22 | AA117: 998 | AB117: 108 | AC117: 0 | AD117: 0
A118: 00220998 | B118: 0022 | C118: 0998 | D118: 109 | E118: 22 | G118: 998 | I118: 0 | J118: 0 | K118: 0 | L118: =IF(K119>0, K118/K119, 0) -> 0 | N118: =ROUND(M119*L118,0) -> 0 | O118: 0 | P118: =N118-O118 -> 0 | Q118: 0 | R118: 0 | S118: 0 | T118: 22 | U118: 998 | V118: 109 | W118: 0 | X118: 0 | Y118: 109 | Z118: 22 | AA118: 998 | AB118: 109 | AC118: 0 | AD118: 0
A119: 00220999 | B119: 0022 | C119: 0999 | D119: 110 | E119: 22 | F119: Becket | G119: 999 | H119: Total | I119: 3117878.215 | J119: 1 | K119: =SUM(K115:K118) -> 2956042.415 | L119: =SUM(L115:L118) -> 1 | M119: =VLOOKUP(E119,town351,24) -> 2347696 | N119: =SUM(N115:N118) -> 2347696 | O119: 2256532 | P119: =SUM(P115:P118) -> 91164 | Q119: 4.040004751 | R119: 213.706684 | S119: 197.1082474 | T119: 22 | U119: 999 | V119: 110 | W119: 197.1082474 | X119: 2956042.415 | Y119: 110 | Z119: 22 | AA119: 999 | AB119: 110 | AC119: 197.1082474 | AD119: 2956042.415
A120: 00230023 | B120: 0023 | C120: 0023 | D120: 111 | E120: 23 | F120: Bedford | G120: 23 | H120: Bedford | I120: 33265363.04 | J120: 0.978446434 | K120: =X120 -> 34823363.94 | L120: =IF(K124>0, K120/K124, 0) -> 0.9783540253 | N120: =ROUND(M124*L120,0) -> 28729275 | O120: 27443924 | P120: =N120-O120 -> 1285351 | Q120: 4.683553999 | R120: 2549 | S120: 2579 | T120: 23 | U120: 23 | V120: 111 | W120: 2579 | X120: 34823363.94 | Y120: 111 | Z120: 23 | AA120: 23 | AB120: 111 | AC120: 2579 | AD120: 34823363.94
A121: 00230871 | B121: 0023 | C121: 0871 | D121: 112 | E121: 23 | F121: Bedford | G121: 871 | H121: Shawsheen Valley | I121: 732781.2478 | J121: 0.02155356603 | K121: 770463.0783 | L121: =IF(K124>0, K121/K124, 0) -> 0.02164597468 | N121: =ROUND(M124*L121,0) -> 635632 | O121: 604545 | P121: =N121-O121 -> 31087 | Q121: 5.142214393 | R121: 38 | S121: 39 | T121: 23 | U121: 871 | V121: 112 | W121: 39 | X121: 770463.0783 | Y121: 112 | Z121: 23 | AA121: 871 | AB121: 112 | AC121: 39 | AD121: 770463.0783
A122: 00230998 | B122: 0023 | C122: 0998 | D122: 113 | E122: 23 | G122: 998 | I122: 0 | J122: 0 | K122: 0 | L122: =IF(K124>0, K122/K124, 0) -> 0 | N122: =ROUND(M124*L122,0) -> 0 | O122: 0 | P122: =N122-O122 -> 0 | Q122: 0 | R122: 0 | S122: 0 | T122: 23 | U122: 998 | V122: 113 | W122: 0 | X122: 0 | Y122: 113 | Z122: 23 | AA122: 998 | AB122: 113 | AC122: 0 | AD122: 0
A123: 00230998 | B123: 0023 | C123: 0998 | D123: 114 | E123: 23 | G123: 998 | I123: 0 | J123: 0 | K123: 0 | L123: =IF(K124>0, K123/K124, 0) -> 0 | N123: =ROUND(M124*L123,0) -> 0 | O123: 0 | P123: =N123-O123 -> 0 | Q123: 0 | R123: 0 | S123: 0 | T123: 23 | U123: 998 | V123: 114 | W123: 0 | X123: 0 | Y123: 114 | Z123: 23 | AA123: 998 | AB123: 114 | AC123: 0 | AD123: 0
A124: 00230999 | B124: 0023 | C124: 0999 | D124: 115 | E124: 23 | F124: Bedford | G124: 999 | H124: Total | I124: 33998144.29 | J124: 1 | K124: =SUM(K120:K123) -> 35593827.02 | L124: =SUM(L120:L123) -> 1 | M124: =VLOOKUP(E124,town351,24) -> 29364907 | N124: =SUM(N120:N123) -> 29364907 | O124: 28048469 | P124: =SUM(P120:P123) -> 1316438 | Q124: 4.693439774 | R124: 2587 | S124: 2618 | T124: 23 | U124: 999 | V124: 115 | W124: 2618 | X124: 35593827.02 | Y124: 115 | Z124: 23 | AA124: 999 | AB124: 115 | AC124: 2618 | AD124: 35593827.02
A125: 00240024 | B125: 0024 | C125: 0024 | D125: 116 | E125: 24 | F125: Belchertown | G125: 24 | H125: Belchertown | I125: 27713334.38 | J125: 0.9248359154 | K125: =X125 -> 27898291.62 | L125: =IF(K129>0, K125/K129, 0) -> 0.9169637478 | N125: =ROUND(M129*L125,0) -> 14251966 | O125: 13763232 | P125: =N125-O125 -> 488734 | Q125: 3.551011855 | R125: 2152 | S125: 2106 | T125: 24 | U125: 24 | V125: 116 | W125: 2106 | X125: 27898291.62 | Y125: 116 | Z125: 24 | AA125: 24 | AB125: 116 | AC125: 2106 | AD125: 27898291.62
A126: 00240860 | B126: 0024 | C126: 0860 | D126: 117 | E126: 24 | F126: Belchertown | G126: 860 | H126: Pathfinder | I126: 2252342.687 | J126: 0.07516408462 | K126: 2526348.052 | L126: =IF(K129>0, K126/K129, 0) -> 0.08303625218 | N126: =ROUND(M129*L126,0) -> 1290596 | O126: 1118578 | P126: =N126-O126 -> 172018 | Q126: 15.37827492 | R126: 106 | S126: 116 | T126: 24 | U126: 860 | V126: 117 | W126: 116 | X126: 2526348.052 | Y126: 117 | Z126: 24 | AA126: 860 | AB126: 117 | AC126: 116 | AD126: 2526348.052
A127: 00240998 | B127: 0024 | C127: 0998 | D127: 118 | E127: 24 | G127: 998 | I127: 0 | J127: 0 | K127: 0 | L127: =IF(K129>0, K127/K129, 0) -> 0 | N127: =ROUND(M129*L127,0) -> 0 | O127: 0 | P127: =N127-O127 -> 0 | Q127: 0 | R127: 0 | S127: 0 | T127: 24 | U127: 998 | V127: 118 | W127: 0 | X127: 0 | Y127: 118 | Z127: 24 | AA127: 998 | AB127: 118 | AC127: 0 | AD127: 0
A128: 00240998 | B128: 0024 | C128: 0998 | D128: 119 | E128: 24 | G128: 998 | I128: 0 | J128: 0 | K128: 0 | L128: =IF(K129>0, K128/K129, 0) -> 0 | N128: =ROUND(M129*L128,0) -> 0 | O128: 0 | P128: =N128-O128 -> 0 | Q128: 0 | R128: 0 | S128: 0 | T128: 24 | U128: 998 | V128: 119 | W128: 0 | X128: 0 | Y128: 119 | Z128: 24 | AA128: 998 | AB128: 119 | AC128: 0 | AD128: 0
A129: 00240999 | B129: 0024 | C129: 0999 | D129: 120 | E129: 24 | F129: Belchertown | G129: 999 | H129: Total | I129: 29965677.07 | J129: 1 | K129: =SUM(K125:K128) -> 30424639.67 | L129: =SUM(L125:L128) -> 1 | M129: =VLOOKUP(E129,town351,24) -> 15542562 | N129: =SUM(N125:N128) -> 15542562 | O129: 14881810 | P129: =SUM(P125:P128) -> 660752 | Q129: 4.439997554 | R129: 2258 | S129: 2222 | T129: 24 | U129: 999 | V129: 120 | W129: 2222 | X129: 30424639.67 | Y129: 120 | Z129: 24 | AA129: 999 | AB129: 120 | AC129: 2222 | AD129: 30424639.67
A130: 00250025 | B130: 0025 | C130: 0025 | D130: 121 | E130: 25 | F130: Bellingham | G130: 25 | H130: Bellingham | I130: 29660512.23 | J130: 0.9433210962 | K130: =X130 -> 30061498.64 | L130: =IF(K134>0, K130/K134, 0) -> 0.9440821259 | N130: =ROUND(M134*L130,0) -> 20821034 | O130: 19686080 | P130: =N130-O130 -> 1134954 | Q130: 5.765261545 | R130: 2175 | S130: 2175 | T130: 25 | U130: 25 | V130: 121 | W130: 2175 | X130: 30061498.64 | Y130: 121 | Z130: 25 | AA130: 25 | AB130: 121 | AC130: 2175 | AD130: 30061498.64
A131: 00250805 | B131: 0025 | C131: 0805 | D131: 122 | E131: 25 | F131: Bellingham | G131: 805 | H131: Blackstone Valley | I131: 1416181.153 | J131: 0.04504013778 | K131: 1472203.447 | L131: =IF(K134>0, K131/K134, 0) -> 0.04623458653 | N131: =ROUND(M134*L131,0) -> 1019670 | O131: 939938 | P131: =N131-O131 -> 79732 | Q131: 8.482687156 | R131: 75 | S131: 76 | T131: 25 | U131: 805 | V131: 122 | W131: 76 | X131: 1472203.447 | Y131: 122 | Z131: 25 | AA131: 805 | AB131: 122 | AC131: 76 | AD131: 1472203.447
A132: 00250915 | B132: 0025 | C132: 0915 | D132: 123 | E132: 25 | F132: Bellingham | G132: 915 | H132: Norfolk County | I132: 365953.6102 | J132: 0.01163876598 | K132: 308335.6063 | L132: =IF(K134>0, K132/K134, 0) -> 0.009683287524 | N132: =ROUND(M134*L132,0) -> 213558 | O132: 242888 | P132: =N132-O132 -> -29330 | Q132: -12.07552452 | R132: 17 | S132: 14 | T132: 25 | U132: 915 | V132: 123 | W132: 14 | X132: 308335.6063 | Y132: 123 | Z132: 25 | AA132: 915 | AB132: 123 | AC132: 14 | AD132: 308335.6063
A133: 00250998 | B133: 0025 | C133: 0998 | D133: 124 | E133: 25 | G133: 998 | I133: 0 | J133: 0 | K133: 0 | L133: =IF(K134>0, K133/K134, 0) -> 0 | N133: =ROUND(M134*L133,0) -> 0 | O133: 0 | P133: =N133-O133 -> 0 | Q133: 0 | R133: 0 | S133: 0 | T133: 25 | U133: 998 | V133: 124 | W133: 0 | X133: 0 | Y133: 124 | Z133: 25 | AA133: 998 | AB133: 124 | AC133: 0 | AD133: 0
A134: 00250999 | B134: 0025 | C134: 0999 | D134: 125 | E134: 25 | F134: Bellingham | G134: 999 | H134: Total | I134: 31442646.99 | J134: 1 | K134: =SUM(K130:K133) -> 31842037.69 | L134: =SUM(L130:L133) -> 1 | M134: =VLOOKUP(E134,town351,24) -> 22054261 | N134: =SUM(N130:N133) -> 22054262 | O134: 20868906 | P134: =SUM(P130:P133) -> 1185356 | Q134: 5.680010251 | R134: 2267 | S134: 2265 | T134: 25 | U134: 999 | V134: 125 | W134: 2265 | X134: 31842037.69 | Y134: 125 | Z134: 25 | AA134: 999 | AB134: 125 | AC134: 2265 | AD134: 31842037.69
A135: 00260026 | B135: 0026 | C135: 0026 | D135: 126 | E135: 26 | F135: Belmont | G135: 26 | H135: Belmont | I135: 57423975.88 | J135: 1 | K135: =X135 -> 59519672.35 | L135: =IF(K139>0, K135/K139, 0) -> 1 | N135: =ROUND(M139*L135,0) -> 47889465 | O135: 45639441 | P135: =N135-O135 -> 2250024 | Q135: 4.929999033 | R135: 4505 | S135: 4521 | T135: 26 | U135: 26 | V135: 126 | W135: 4521 | X135: 59519672.35 | Y135: 126 | Z135: 26 | AA135: 26 | AB135: 126 | AC135: 4521 | AD135: 59519672.35
A136: 00260830 | B136: 0026 | C136: 0830 | D136: 127 | E136: 26 | G136: 998 | I136: 0 | J136: 0 | K136: 0 | L136: =IF(K139>0, K136/K139, 0) -> 0 | N136: =ROUND(M139*L136,0) -> 0 | O136: 0 | P136: =N136-O136 -> 0 | Q136: 0 | R136: 0 | S136: 0 | T136: 26 | U136: 830 | V136: 127 | W136: 0 | X136: 0 | Y136: 127 | Z136: 26 | AA136: 830 | AB136: 127 | AC136: 0 | AD136: 0
A137: 00260998 | B137: 0026 | C137: 0998 | D137: 128 | E137: 26 | G137: 998 | I137: 0 | J137: 0 | K137: 0 | L137: =IF(K139>0, K137/K139, 0) -> 0 | N137: =ROUND(M139*L137,0) -> 0 | O137: 0 | P137: =N137-O137 -> 0 | Q137: 0 | R137: 0 | S137: 0 | T137: 26 | U137: 998 | V137: 128 | W137: 0 | X137: 0 | Y137: 128 | Z137: 26 | AA137: 998 | AB137: 128 | AC137: 0 | AD137: 0
A138: =B138&C138 -> 00260998 | B138: 0026 | C138: 0998 | D138: 129 | E138: 26 | G138: 998 | I138: 0 | J138: 0 | K138: 0 | L138: =IF(K139>0, K138/K139, 0) -> 0 | N138: =ROUND(M139*L138,0) -> 0 | O138: 0 | P138: =N138-O138 -> 0 | Q138: 0 | R138: 0 | S138: 0 | T138: =VLOOKUP($D138, foundoptions, VLOOKUP($T$6, foundoptcell, 2, FALSE), FALSE) -> 26 | U138: =VLOOKUP($D138, foundoptions, VLOOKUP($T$6, foundoptcell, 2, FALSE)+1, FALSE) -> 998 | V138: =VLOOKUP($D138, foundoptions, VLOOKUP($T$6, foundoptcell, 2, FALSE)+2, FALSE) -> 129 | W138: =VLOOKUP($D138, foundoptions, VLOOKUP($T$6, foundoptcell, 2, FALSE)+3, FALSE) -> 0 | X138: =VLOOKUP($D138, foundoptions, VLOOKUP($T$6, foundoptcell, 2, FALSE)+4, FALSE) -> 0 | Y138: 129 | Z138: 26 | AA138: 998 | AB138: 129 | AC138: 0 | AD138: 0
A139: 00260999 | B139: 0026 | C139: 0999 | D139: 130 | E139: 26 | F139: Belmont | G139: 999 | H139: Total | I139: 57423975.88 | J139: 1 | K139: =SUM(K135:K138) -> 59519672.35 | L139: =SUM(L135:L138) -> 1 | M139: =VLOOKUP(E139,town351,24) -> 47889465 | N139: =SUM(N135:N138) -> 47889465 | O139: 45639441 | P139: =SUM(P135:P138) -> 2250024 | Q139: 4.929999033 | R139: 4505 | S139: =W139 -> 4521 | T139: 26 | U139: 999 | V139: 130 | W139: 4521 | X139: 59519672.35 | Y139: =D139 -> 130 | Z139: 26 | AA139: 999 | AB139: 130 | AC139: 4521 | AD139: 59519672.35
A140: 00270027 | B140: 0027 | C140: 0027 | D140: 131 | E140: 27 | F140: Berkley | G140: 27 | H140: Berkley | I140: 8929788.14 | J140: 0.6046882925 | K140: =X140 -> 8885526.93 | L140: =IF(K144>0, K140/K144, 0) -> 0.5976451655 | N140: =ROUND(M144*L140,0) -> 5015940 | O140: 4777868 | P140: =N140-O140 -> 238072 | Q140: 4.982808232 | R140: 698 | S140: 682 | T140: 27 | U140: 27 | V140: 131 | W140: 682 | X140: 8885526.93 | Y140: 131 | Z140: 27 | AA140: 27 | AB140: 131 | AC140: 682 | AD140: 8885526.93
A141: 00270763 | B141: 0027 | C141: 0763 | D141: 132 | E141: 27 | F141: Berkley | G141: 763 | H141: Somerset Berkley | I141: 3647366.851 | J141: 0.2469845867 | K141: 3435128.552 | L141: =IF(K144>0, K141/K144, 0) -> 0.2310485341 | N141: =ROUND(M144*L141,0) -> 1939153 | O141: 1951517 | P141: =N141-O141 -> -12364 | Q141: -0.6335584061 | R141: 257.5160643 | S141: 232 | T141: 27 | U141: 763 | V141: 132 | W141: 232 | X141: 3435128.552 | Y141: 132 | Z141: 27 | AA141: 763 | AB141: 132 | AC141: 232 | AD141: 3435128.552
A142: 00270810 | B142: 0027 | C142: 0810 | D142: 133 | E142: 27 | F142: Berkley | G142: 810 | H142: Bristol Plymouth | I142: 1864635.245 | J142: 0.1262653811 | K142: 2255041.084 | L142: =IF(K144>0, K142/K144, 0) -> 0.1516752369 | N142: =ROUND(M144*L142,0) -> 1272986 | O142: 997670 | P142: =N142-O142 -> 275316 | Q142: 27.59589844 | R142: 92.49047982 | S142: 111.3269514 | T142: 27 | U142: 810 | V142: 133 | W142: 111.3269514 | X142: 2255041.084 | Y142: 133 | Z142: 27 | AA142: 810 | AB142: 133 | AC142: 111.3269514 | AD142: 2255041.084
A143: 00270910 | B143: 0027 | C143: 0910 | D143: 134 | E143: 27 | F143: Berkley | G143: 910 | H143: Bristol County | I143: 325798.7036 | J143: 0.02206173973 | K143: 291866.0665 | L143: =IF(K144>0, K143/K144, 0) -> 0.01963106353 | N143: =ROUND(M144*L143,0) -> 164760 | O143: 174318 | P143: =N143-O143 -> -9558 | Q143: -5.483082642 | R143: 16 | S143: 14 | T143: 27 | U143: 910 | V143: 134 | W143: 14 | X143: 291866.0665 | Y143: 134 | Z143: 27 | AA143: 910 | AB143: 134 | AC143: 14 | AD143: 291866.0665
A144: 00270999 | B144: 0027 | C144: 0999 | D144: 135 | E144: 27 | F144: Berkley | G144: 999 | H144: Total | I144: 14767588.94 | J144: 1 | K144: =SUM(K140:K143) -> 14867562.63 | L144: =SUM(L140:L143) -> 1 | M144: =VLOOKUP(E144,town351,24) -> 8392839 | N144: =SUM(N140:N143) -> 8392839 | O144: 7901373 | P144: =SUM(P140:P143) -> 491466 | Q144: =IF(O144>0,P144*100/O144,IF(P144>0,100,0)) -> 6.220007586 | R144: 1064.006544 | S144: 1039.326951 | T144: 27 | U144: 999 | V144: 135 | W144: 1039.326951 | X144: 14867562.63 | Y144: 135 | Z144: 27 | AA144: 999 | AB144: 135 | AC144: 1039.326951 | AD144: 14867562.63
A145: 00280028 | B145: 0028 | C145: 0028 | D145: 136 | E145: 28 | F145: Berlin | G145: 28 | H145: Berlin | I145: 0 | J145: 0 | K145: =X145 -> 0 | L145: =IF(K149>0, K145/K149, 0) -> 0 | N145: =ROUND(M149*L145,0) -> 0 | O145: 0 | P145: =N145-O145 -> 0 | Q145: 0 | R145: 0 | S145: 0 | T145: 28 | U145: 28 | V145: 136 | W145: 0 | X145: 0 | Y145: 136 | Z145: 28 | AA145: 28 | AB145: 136 | AC145: 0 | AD145: 0
A146: 00280620 | B146: 0028 | C146: 0620 | D146: 137 | E146: 28 | F146: Berlin | G146: 620 | H146: Berlin Boylston | I146: 4843565.867 | J146: 0.8329821868 | K146: 5313972.682 | L146: =IF(K149>0, K146/K149, 0) -> 0.8625392174 | N146: =ROUND(M149*L146,0) -> 3750990 | O146: 3383257 | P146: =N146-O146 -> 367733 | Q146: 10.86920089 | R146: 389.6712871 | S146: 415.631728 | T146: 28 | U146: 620 | V146: 137 | W146: 415.631728 | X146: 5313972.682 | Y146: 137 | Z146: 28 | AA146: 620 | AB146: 137 | AC146: 415.631728 | AD146: 5313972.682
A147: 00280801 | B147: 0028 | C147: 0801 | D147: 138 | E147: 28 | F147: Berlin | G147: 801 | H147: Assabet Valley | I147: 971163.3599 | J147: 0.1670178132 | K147: 846874.9351 | L147: =IF(K149>0, K147/K149, 0) -> 0.1374607826 | N147: =ROUND(M149*L147,0) -> 597786 | O147: 678363 | P147: =N147-O147 -> -80577 | Q147: -11.87815373 | R147: 44 | S147: 37 | T147: 28 | U147: 801 | V147: 138 | W147: 37 | X147: 846874.9351 | Y147: 138 | Z147: 28 | AA147: 801 | AB147: 138 | AC147: 37 | AD147: 846874.9351
A148: 00280998 | B148: 0028 | C148: 0998 | D148: 139 | E148: 28 | G148: 998 | I148: 0 | J148: 0 | K148: 0 | L148: =IF(K149>0, K148/K149, 0) -> 0 | N148: =ROUND(M149*L148,0) -> 0 | O148: 0 | P148: =N148-O148 -> 0 | Q148: 0 | R148: 0 | S148: 0 | T148: 28 | U148: 998 | V148: 139 | W148: 0 | X148: 0 | Y148: 139 | Z148: 28 | AA148: 998 | AB148: 139 | AC148: 0 | AD148: 0
A149: 00280999 | B149: 0028 | C149: 0999 | D149: 140 | E149: 28 | F149: Berlin | G149: 999 | H149: Total | I149: 5814729.227 | J149: 1 | K149: =SUM(K145:K148) -> 6160847.617 | L149: =SUM(L145:L148) -> 1 | M149: =VLOOKUP(E149,town351,24) -> 4348776 | N149: =SUM(N145:N148) -> 4348776 | O149: 4061620 | P149: =SUM(P145:P148) -> 287156 | Q149: 7.069986853 | R149: 433.6712871 | S149: 452.6317281 | T149: 28 | U149: 999 | V149: 140 | W149: 452.6317281 | X149: 6160847.617 | Y149: 140 | Z149: 28 | AA149: 999 | AB149: 140 | AC149: 452.6317281 | AD149: 6160847.617
A150: 00290029 | B150: 0029 | C150: 0029 | D150: 141 | E150: 29 | F150: Bernardston | G150: 29 | H150: Bernardston | I150: 0 | J150: 0 | K150: =X150 -> 0 | L150: =IF(K154>0, K150/K154, 0) -> 0 | N150: =ROUND(M154*L150,0) -> 0 | O150: 0 | P150: =N150-O150 -> 0 | Q150: 0 | R150: 0 | S150: 0 | T150: 29 | U150: 29 | V150: 141 | W150: 0 | X150: 0 | Y150: 141 | Z150: 29 | AA150: 29 | AB150: 141 | AC150: 0 | AD150: 0
A151: 00290750 | B151: 0029 | C151: 0750 | D151: 142 | E151: 29 | F151: Bernardston | G151: 750 | H151: Pioneer | I151: 3105454.882 | J151: 0.8532825645 | K151: 3074405.055 | L151: =IF(K154>0, K151/K154, 0) -> 0.824290332 | N151: =ROUND(M154*L151,0) -> 1656436 | O151: 1622998 | P151: =N151-O151 -> 33438 | Q151: 2.060261319 | R151: 224.862543 | S151: 219.2066421 | T151: 29 | U151: 750 | V151: 142 | W151: 219.2066421 | X151: 3074405.055 | Y151: 142 | Z151: 29 | AA151: 750 | AB151: 142 | AC151: 219.2066421 | AD151: 3074405.055
A152: 00290818 | B152: 0029 | C152: 0818 | D152: 143 | E152: 29 | F152: Bernardston | G152: 818 | H152: Franklin County | I152: 533966.5843 | J152: 0.1467174355 | K152: 655354.8798 | L152: =IF(K154>0, K152/K154, 0) -> 0.175709668 | N152: =ROUND(M154*L152,0) -> 353094 | O152: 279066 | P152: =N152-O152 -> 74028 | Q152: 26.52705812 | R152: 25 | S152: 30 | T152: 29 | U152: 818 | V152: 143 | W152: 30 | X152: 655354.8798 | Y152: 143 | Z152: 29 | AA152: 818 | AB152: 143 | AC152: 30 | AD152: 655354.8798
A153: 00290998 | B153: 0029 | C153: 0998 | D153: 144 | E153: 29 | G153: 998 | I153: 0 | J153: 0 | K153: 0 | L153: =IF(K154>0, K153/K154, 0) -> 0 | N153: =ROUND(M154*L153,0) -> 0 | O153: 0 | P153: =N153-O153 -> 0 | Q153: 0 | R153: 0 | S153: 0 | T153: 29 | U153: 998 | V153: 144 | W153: 0 | X153: 0 | Y153: 144 | Z153: 29 | AA153: 998 | AB153: 144 | AC153: 0 | AD153: 0
A154: 00290999 | B154: 0029 | C154: 0999 | D154: 145 | E154: 29 | F154: Bernardston | G154: 999 | H154: Total | I154: 3639421.467 | J154: 1 | K154: =SUM(K150:K153) -> 3729759.934 | L154: =SUM(L150:L153) -> 1 | M154: =VLOOKUP(E154,town351,24) -> 2009530 | N154: =SUM(N150:N153) -> 2009530 | O154: 1902064 | P154: =SUM(P150:P153) -> 107466 | Q154: 5.649967614 | R154: 249.862543 | S154: 249.2066421 | T154: 29 | U154: 999 | V154: 145 | W154: 249.2066421 | X154: 3729759.934 | Y154: 145 | Z154: 29 | AA154: 999 | AB154: 145 | AC154: 249.2066421 | AD154: 3729759.934
A155: 00300030 | B155: 0030 | C155: 0030 | D155: 146 | E155: 30 | F155: Beverly | G155: 30 | H155: Beverly | I155: 61798815.26 | J155: 0.9479709501 | K155: =X155 -> 61923100.55 | L155: =IF(K159>0, K155/K159, 0) -> 0.9394055877 | N155: =ROUND(M159*L155,0) -> 49131276 | O155: 47254334 | P155: =N155-O155 -> 1876942 | Q155: 3.97199969 | R155: 4541 | S155: 4466 | T155: 30 | U155: 30 | V155: 146 | W155: 4466 | X155: 61923100.55 | Y155: 146 | Z155: 30 | AA155: 30 | AB155: 146 | AC155: 4466 | AD155: 61923100.55
A156: 00300817 | B156: 0030 | C156: 0817 | D156: 147 | E156: 30 | F156: Beverly | G156: 817 | H156: Essex North Shore | I156: 3391806.093 | J156: 0.05202904993 | K156: 3994221.385 | L156: =IF(K159>0, K156/K159, 0) -> 0.06059441234 | N156: =ROUND(M159*L156,0) -> 3169111 | O156: 2593537 | P156: =N156-O156 -> 575574 | Q156: 22.19262729 | R156: 172 | S156: 198 | T156: 30 | U156: 817 | V156: 147 | W156: 198 | X156: 3994221.385 | Y156: 147 | Z156: 30 | AA156: 817 | AB156: 147 | AC156: 198 | AD156: 3994221.385
A157: 00300998 | B157: 0030 | C157: 0998 | D157: 148 | E157: 30 | G157: 998 | I157: 0 | J157: 0 | K157: 0 | L157: =IF(K159>0, K157/K159, 0) -> 0 | N157: =ROUND(M159*L157,0) -> 0 | O157: 0 | P157: =N157-O157 -> 0 | Q157: 0 | R157: 0 | S157: 0 | T157: 30 | U157: 998 | V157: 148 | W157: 0 | X157: 0 | Y157: 148 | Z157: 30 | AA157: 998 | AB157: 148 | AC157: 0 | AD157: 0
A158: 00300998 | B158: 0030 | C158: 0998 | D158: 149 | E158: 30 | G158: 998 | I158: 0 | J158: 0 | K158: 0 | L158: =IF(K159>0, K158/K159, 0) -> 0 | N158: =ROUND(M159*L158,0) -> 0 | O158: 0 | P158: =N158-O158 -> 0 | Q158: 0 | R158: 0 | S158: 0 | T158: 30 | U158: 998 | V158: 149 | W158: 0 | X158: 0 | Y158: 149 | Z158: 30 | AA158: 998 | AB158: 149 | AC158: 0 | AD158: 0
A159: 00300999 | B159: 0030 | C159: 0999 | D159: 150 | E159: 30 | F159: Beverly | G159: 999 | H159: Total | I159: 65190621.35 | J159: 1 | K159: =SUM(K155:K158) -> 65917321.94 | L159: =SUM(L155:L158) -> 1 | M159: =VLOOKUP(E159,town351,24) -> 52300387 | N159: =SUM(N155:N158) -> 52300387 | O159: 49847871 | P159: =SUM(P155:P158) -> 2452516 | Q159: 4.920001498 | R159: 4713 | S159: 4664 | T159: 30 | U159: 999 | V159: 150 | W159: 4664 | X159: 65917321.94 | Y159: 150 | Z159: 30 | AA159: 999 | AB159: 150 | AC159: 4664 | AD159: 65917321.94
A160: 00310031 | B160: 0031 | C160: 0031 | D160: 151 | E160: 31 | F160: Billerica | G160: 31 | H160: Billerica | I160: 63590856.68 | J160: 0.8761838651 | K160: =X160 -> 65207959.51 | L160: =IF(K164>0, K160/K164, 0) -> 0.8753565509 | N160: =ROUND(M164*L160,0) -> 52489382 | O160: 49635324 | P160: =N160-O160 -> 2854058 | Q160: 5.750054135 | R160: 4879 | S160: 4925 | T160: 31 | U160: 31 | V160: 151 | W160: 4925 | X160: 65207959.51 | Y160: 151 | Z160: 31 | AA160: 31 | AB160: 151 | AC160: 4925 | AD160: 65207959.51
A161: 00310871 | B161: 0031 | C161: 0871 | D161: 152 | E161: 31 | F161: Billerica | G161: 871 | H161: Shawsheen Valley | I161: 8986212.146 | J161: 0.1238161349 | K161: 9285067.867 | L161: =IF(K164>0, K161/K164, 0) -> 0.1246434491 | N161: =ROUND(M164*L161,0) -> 7474049 | O161: 7014115 | P161: =N161-O161 -> 459934 | Q161: 6.557263461 | R161: 466 | S161: 470 | T161: 31 | U161: 871 | V161: 152 | W161: 470 | X161: 9285067.867 | Y161: 152 | Z161: 31 | AA161: 871 | AB161: 152 | AC161: 470 | AD161: 9285067.867
A162: 00310998 | B162: 0031 | C162: 0998 | D162: 153 | E162: 31 | G162: 998 | I162: 0 | J162: 0 | K162: 0 | L162: =IF(K164>0, K162/K164, 0) -> 0 | N162: =ROUND(M164*L162,0) -> 0 | O162: 0 | P162: =N162-O162 -> 0 | Q162: 0 | R162: 0 | S162: 0 | T162: 31 | U162: 998 | V162: 153 | W162: 0 | X162: 0 | Y162: 153 | Z162: 31 | AA162: 998 | AB162: 153 | AC162: 0 | AD162: 0
A163: 00310998 | B163: 0031 | C163: 0998 | D163: 154 | E163: 31 | G163: 998 | I163: 0 | J163: 0 | K163: 0 | L163: =IF(K164>0, K163/K164, 0) -> 0 | N163: =ROUND(M164*L163,0) -> 0 | O163: 0 | P163: =N163-O163 -> 0 | Q163: 0 | R163: 0 | S163: 0 | T163: 31 | U163: 998 | V163: 154 | W163: 0 | X163: 0 | Y163: 154 | Z163: 31 | AA163: 998 | AB163: 154 | AC163: 0 | AD163: 0
A164: 00310999 | B164: 0031 | C164: 0999 | D164: 155 | E164: 31 | F164: Billerica | G164: 999 | H164: Total | I164: 72577068.83 | J164: 1 | K164: =SUM(K160:K163) -> 74493027.38 | L164: =SUM(L160:L163) -> 1 | M164: =VLOOKUP(E164,town351,24) -> 59963431 | N164: =SUM(N160:N163) -> 59963431 | O164: 56649439 | P164: =SUM(P160:P163) -> 3313992 | Q164: 5.84999968 | R164: 5345 | S164: 5395 | T164: 31 | U164: 999 | V164: 155 | W164: 5395 | X164: 74493027.38 | Y164: 155 | Z164: 31 | AA164: 999 | AB164: 155 | AC164: 5395 | AD164: 74493027.38
A165: 00320032 | B165: 0032 | C165: 0032 | D165: 156 | E165: 32 | F165: Blackstone | G165: 32 | H165: Blackstone | I165: 393567.84 | J165: 0.02264964295 | K165: =X165 -> 317959.23 | L165: =IF(K169>0, K165/K169, 0) -> 0.01772096487 | N165: =ROUND(M169*L165,0) -> 163660 | O165: 197879 | P165: =N165-O165 -> -34219 | Q165: -17.29289111 | R165: 22 | S165: 17 | T165: 32 | U165: 32 | V165: 156 | W165: 17 | X165: 317959.23 | Y165: 156 | Z165: 32 | AA165: 32 | AB165: 156 | AC165: 17 | AD165: 317959.23
A166: 00320622 | B166: 0032 | C166: 0622 | D166: 157 | E166: 32 | F166: Blackstone | G166: 622 | H166: Blackstone Millville | I166: 15849824.73 | J166: 0.9121499129 | K166: 16539805.44 | L166: =IF(K169>0, K166/K169, 0) -> 0.9218204203 | N166: =ROUND(M169*L166,0) -> 8513357 | O166: 7969016 | P166: =N166-O166 -> 544341 | Q166: 6.83071787 | R166: 1179.646695 | S166: 1194.073665 | T166: 32 | U166: 622 | V166: 157 | W166: 1194.073665 | X166: 16539805.44 | Y166: 157 | Z166: 32 | AA166: 622 | AB166: 157 | AC166: 1194.073665 | AD166: 16539805.44
A167: 00320805 | B167: 0032 | C167: 0805 | D167: 158 | E167: 32 | F167: Blackstone | G167: 805 | H167: Blackstone Valley | I167: 1132944.922 | J167: 0.06520044414 | K167: 1084781.487 | L167: =IF(K169>0, K167/K169, 0) -> 0.06045861485 | N167: =ROUND(M169*L167,0) -> 558358 | O167: 569625 | P167: =N167-O167 -> -11267 | Q167: -1.977967961 | R167: 59.99999999 | S167: 56 | T167: 32 | U167: 805 | V167: 158 | W167: 56 | X167: 1084781.487 | Y167: 158 | Z167: 32 | AA167: 805 | AB167: 158 | AC167: 56 | AD167: 1084781.487
A168: 00320998 | B168: 0032 | C168: 0998 | D168: 159 | E168: 32 | G168: 998 | I168: 0 | J168: 0 | K168: 0 | L168: =IF(K169>0, K168/K169, 0) -> 0 | N168: =ROUND(M169*L168,0) -> 0 | O168: 0 | P168: =N168-O168 -> 0 | Q168: 0 | R168: 0 | S168: 0 | T168: 32 | U168: 998 | V168: 159 | W168: 0 | X168: 0 | Y168: 159 | Z168: 32 | AA168: 998 | AB168: 159 | AC168: 0 | AD168: 0
A169: 00320999 | B169: 0032 | C169: 0999 | D169: 160 | E169: 32 | F169: Blackstone | G169: 999 | H169: Total | I169: 17376337.49 | J169: 1 | K169: =SUM(K165:K168) -> 17942546.15 | L169: =SUM(L165:L168) -> 1 | M169: =VLOOKUP(E169,town351,24) -> 9235375 | N169: =SUM(N165:N168) -> 9235375 | O169: 8736520 | P169: =SUM(P165:P168) -> 498855 | Q169: 5.709996658 | R169: 1261.646695 | S169: 1267.073665 | T169: 32 | U169: 999 | V169: 160 | W169: 1267.073665 | X169: 17942546.15 | Y169: 160 | Z169: 32 | AA169: 999 | AB169: 160 | AC169: 1267.073665 | AD169: 17942546.15
A170: 00330033 | B170: 0033 | C170: 0033 | D170: 161 | E170: 33 | F170: Blandford | G170: 33 | H170: Blandford | I170: 245151 | J170: 0.1633145869 | K170: =X170 -> 250517.91 | L170: =IF(K174>0, K170/K174, 0) -> 0.1465494074 | N170: =ROUND(M174*L170,0) -> 173107 | O170: 186549 | P170: =N170-O170 -> -13442 | Q170: -7.205613539 | R170: 13 | S170: 13 | T170: 33 | U170: 33 | V170: 161 | W170: 13 | X170: 250517.91 | Y170: 161 | Z170: 33 | AA170: 33 | AB170: 161 | AC170: 13 | AD170: 250517.91
A171: 00330672 | B171: 0033 | C171: 0672 | D171: 162 | E171: 33 | F171: Blandford | G171: 672 | H171: Gateway | I171: 1255945.777 | J171: 0.8366854131 | K171: 1458925.441 | L171: =IF(K174>0, K171/K174, 0) -> 0.8534505926 | N171: =ROUND(M174*L171,0) -> 1008110 | O171: 955717 | P171: =N171-O171 -> 52393 | Q171: 5.482062159 | R171: 85.3097561 | S171: 93.38509317 | T171: 33 | U171: 672 | V171: 162 | W171: 93.38509317 | X171: 1458925.441 | Y171: 162 | Z171: 33 | AA171: 672 | AB171: 162 | AC171: 93.38509317 | AD171: 1458925.441
A172: 00330998 | B172: 0033 | C172: 0998 | D172: 163 | E172: 33 | G172: 998 | I172: 0 | J172: 0 | K172: 0 | L172: =IF(K174>0, K172/K174, 0) -> 0 | N172: =ROUND(M174*L172,0) -> 0 | O172: 0 | P172: =N172-O172 -> 0 | Q172: 0 | R172: 0 | S172: 0 | T172: 33 | U172: 998 | V172: 163 | W172: 0 | X172: 0 | Y172: 163 | Z172: 33 | AA172: 998 | AB172: 163 | AC172: 0 | AD172: 0
A173: 00330998 | B173: 0033 | C173: 0998 | D173: 164 | E173: 33 | G173: 998 | I173: 0 | J173: 0 | K173: 0 | L173: =IF(K174>0, K173/K174, 0) -> 0 | N173: =ROUND(M174*L173,0) -> 0 | O173: 0 | P173: =N173-O173 -> 0 | Q173: 0 | R173: 0 | S173: 0 | T173: 33 | U173: 998 | V173: 164 | W173: 0 | X173: 0 | Y173: 164 | Z173: 33 | AA173: 998 | AB173: 164 | AC173: 0 | AD173: 0
A174: 00330999 | B174: 0033 | C174: 0999 | D174: 165 | E174: 33 | F174: Blandford | G174: 999 | H174: Total | I174: 1501096.777 | J174: 1 | K174: =SUM(K170:K173) -> 1709443.351 | L174: =SUM(L170:L173) -> 1 | M174: =VLOOKUP(E174,town351,24) -> 1181217 | N174: =SUM(N170:N173) -> 1181217 | O174: 1142266 | P174: =SUM(P170:P173) -> 38951 | Q174: 3.40997631 | R174: 98.3097561 | S174: 106.3850932 | T174: 33 | U174: 999 | V174: 165 | W174: 106.3850932 | X174: 1709443.351 | Y174: 165 | Z174: 33 | AA174: 999 | AB174: 165 | AC174: 106.3850932 | AD174: 1709443.351
A175: 00340034 | B175: 0034 | C175: 0034 | D175: 166 | E175: 34 | F175: Bolton | G175: 34 | H175: Bolton | I175: 0 | J175: 0 | K175: =X175 -> 0 | L175: =IF(K179>0, K175/K179, 0) -> 0 | N175: =ROUND(M179*L175,0) -> 0 | O175: 0 | P175: =N175-O175 -> 0 | Q175: 0 | R175: 0 | S175: 0 | T175: 34 | U175: 34 | V175: 166 | W175: 0 | X175: 0 | Y175: 166 | Z175: 34 | AA175: 34 | AB175: 166 | AC175: 0 | AD175: 0
A176: 00340725 | B176: 0034 | C176: 0725 | D176: 167 | E176: 34 | F176: Bolton | G176: 725 | H176: Nashoba | I176: 12637109.94 | J176: 0.9483316443 | K176: 12919235.34 | L176: =IF(K179>0, K176/K179, 0) -> 0.9450249077 | N176: =ROUND(M179*L176,0) -> 10432645 | O176: 10037536 | P176: =N176-O176 -> 395109 | Q176: 3.936314649 | R176: 1010.615532 | S176: 1006.288184 | T176: 34 | U176: 725 | V176: 167 | W176: 1006.288184 | X176: 12919235.34 | Y176: 167 | Z176: 34 | AA176: 725 | AB176: 167 | AC176: 1006.288184 | AD176: 12919235.34
A177: 00340830 | B177: 0034 | C177: 0830 | D177: 168 | E177: 34 | F177: Bolton | G177: 830 | H177: Minuteman | I177: 688513.0266 | J177: 0.05166835565 | K177: 751552.8417 | L177: =IF(K179>0, K177/K179, 0) -> 0.05497509226 | N177: =ROUND(M179*L177,0) -> 606900 | O177: 546879 | P177: =N177-O177 -> 60021 | Q177: 10.9751883 | R177: 33 | S177: 36 | T177: 34 | U177: 830 | V177: 168 | W177: 36 | X177: 751552.8417 | Y177: 168 | Z177: 34 | AA177: 830 | AB177: 168 | AC177: 36 | AD177: 751552.8417
A178: 00340998 | B178: 0034 | C178: 0998 | D178: 169 | E178: 34 | G178: 998 | I178: 0 | J178: 0 | K178: 0 | L178: =IF(K179>0, K178/K179, 0) -> 0 | N178: =ROUND(M179*L178,0) -> 0 | O178: 0 | P178: =N178-O178 -> 0 | Q178: 0 | R178: 0 | S178: 0 | T178: 34 | U178: 998 | V178: 169 | W178: 0 | X178: 0 | Y178: 169 | Z178: 34 | AA178: 998 | AB178: 169 | AC178: 0 | AD178: 0
A179: 00340999 | B179: 0034 | C179: 0999 | D179: 170 | E179: 34 | F179: Bolton | G179: 999 | H179: Total | I179: 13325622.96 | J179: 1 | K179: =SUM(K175:K178) -> 13670788.18 | L179: =SUM(L175:L178) -> 1 | M179: =VLOOKUP(E179,town351,24) -> 11039545 | N179: =SUM(N175:N178) -> 11039545 | O179: 10584415 | P179: =SUM(P175:P178) -> 455130 | Q179: 4.300001464 | R179: 1043.615532 | S179: 1042.288184 | T179: 34 | U179: 999 | V179: 170 | W179: 1042.288184 | X179: 13670788.18 | Y179: 170 | Z179: 34 | AA179: 999 | AB179: 170 | AC179: 1042.288184 | AD179: 13670788.18
A180: 00350035 | B180: 0035 | C180: 0035 | D180: 171 | E180: 35 | F180: Boston | G180: 35 | H180: Boston | I180: 1095713386 | J180: 1 | K180: =X180 -> 1144725045 | L180: =IF(K184>0, K180/K184, 0) -> 1 | N180: =ROUND(M184*L180,0) -> 944398162 | O180: 880485066 | P180: =N180-O180 -> 63913096 | Q180: 7.258850657 | R180: 57738 | S180: 57369 | T180: 35 | U180: 35 | V180: 171 | W180: 57369 | X180: 1144725045 | Y180: 171 | Z180: 35 | AA180: 35 | AB180: 171 | AC180: 57369 | AD180: 1144725045
A181: 00350998 | B181: 0035 | C181: 0998 | D181: 172 | E181: 35 | G181: 998 | I181: 0 | J181: 0 | K181: 0 | L181: =IF(K184>0, K181/K184, 0) -> 0 | N181: =ROUND(M184*L181,0) -> 0 | O181: 0 | P181: =N181-O181 -> 0 | Q181: 0 | R181: 0 | S181: 0 | T181: 35 | U181: 998 | V181: 172 | W181: 0 | X181: 0 | Y181: 172 | Z181: 35 | AA181: 998 | AB181: 172 | AC181: 0 | AD181: 0
A182: 00350998 | B182: 0035 | C182: 0998 | D182: 173 | E182: 35 | G182: 998 | I182: 0 | J182: 0 | K182: 0 | L182: =IF(K184>0, K182/K184, 0) -> 0 | N182: =ROUND(M184*L182,0) -> 0 | O182: 0 | P182: =N182-O182 -> 0 | Q182: 0 | R182: 0 | S182: 0 | T182: 35 | U182: 998 | V182: 173 | W182: 0 | X182: 0 | Y182: 173 | Z182: 35 | AA182: 998 | AB182: 173 | AC182: 0 | AD182: 0
A183: 00350998 | B183: 0035 | C183: 0998 | D183: 174 | E183: 35 | G183: 998 | I183: 0 | J183: 0 | K183: 0 | L183: =IF(K184>0, K183/K184, 0) -> 0 | N183: =ROUND(M184*L183,0) -> 0 | O183: 0 | P183: =N183-O183 -> 0 | Q183: 0 | R183: 0 | S183: 0 | T183: 35 | U183: 998 | V183: 174 | W183: 0 | X183: 0 | Y183: 174 | Z183: 35 | AA183: 998 | AB183: 174 | AC183: 0 | AD183: 0
A184: 00350999 | B184: 0035 | C184: 0999 | D184: 175 | E184: 35 | F184: Boston | G184: 999 | H184: Total | I184: 1095713386 | J184: 1 | K184: =SUM(K180:K183) -> 1144725045 | L184: =SUM(L180:L183) -> 1 | M184: =VLOOKUP(E184,town351,24) -> 944398162 | N184: =SUM(N180:N183) -> 944398162 | O184: 880485066 | P184: =SUM(P180:P183) -> 63913096 | Q184: 7.258850657 | R184: 57738 | S184: 57369 | T184: 35 | U184: 999 | V184: 175 | W184: 57369 | X184: 1144725045 | Y184: 175 | Z184: 35 | AA184: 999 | AB184: 175 | AC184: 57369 | AD184: 1144725045
A185: 00360036 | B185: 0036 | C185: 0036 | D185: 176 | E185: 36 | F185: Bourne | G185: 36 | H185: Bourne | I185: 22858350.51 | J185: 0.8498075635 | K185: =X185 -> 24109451.63 | L185: =IF(K189>0, K185/K189, 0) -> 0.8507444537 | N185: =ROUND(M189*L185,0) -> 19319804 | O185: 18409357 | P185: =N185-O185 -> 910447 | Q185: 4.94556654 | R185: 1678 | S185: 1698 | T185: 36 | U185: 36 | V185: 176 | W185: 1698 | X185: 24109451.63 | Y185: 176 | Z185: 36 | AA185: 36 | AB185: 176 | AC185: 1698 | AD185: 24109451.63
A186: 00360879 | B186: 0036 | C186: 0879 | D186: 177 | E186: 36 | F186: Bourne | G186: 879 | H186: Upper Cape Cod | I186: 4039916.218 | J186: 0.1501924365 | K186: 4229788.813 | L186: =IF(K189>0, K186/K189, 0) -> 0.1492555463 | N186: =ROUND(M189*L186,0) -> 3389488 | O186: 3253614 | P186: =N186-O186 -> 135874 | Q186: 4.176094644 | R186: 192.973384 | S186: 199.6998828 | T186: 36 | U186: 879 | V186: 177 | W186: 199.6998828 | X186: 4229788.813 | Y186: 177 | Z186: 36 | AA186: 879 | AB186: 177 | AC186: 199.6998828 | AD186: 4229788.813
A187: 00360998 | B187: 0036 | C187: 0998 | D187: 178 | E187: 36 | G187: 998 | I187: 0 | J187: 0 | K187: 0 | L187: =IF(K189>0, K187/K189, 0) -> 0 | N187: =ROUND(M189*L187,0) -> 0 | O187: 0 | P187: =N187-O187 -> 0 | Q187: 0 | R187: 0 | S187: 0 | T187: 36 | U187: 998 | V187: 178 | W187: 0 | X187: 0 | Y187: 178 | Z187: 36 | AA187: 998 | AB187: 178 | AC187: 0 | AD187: 0
A188: 00360998 | B188: 0036 | C188: 0998 | D188: 179 | E188: 36 | G188: 998 | I188: 0 | J188: 0 | K188: 0 | L188: =IF(K189>0, K188/K189, 0) -> 0 | N188: =ROUND(M189*L188,0) -> 0 | O188: 0 | P188: =N188-O188 -> 0 | Q188: 0 | R188: 0 | S188: 0 | T188: 36 | U188: 998 | V188: 179 | W188: 0 | X188: 0 | Y188: 179 | Z188: 36 | AA188: 998 | AB188: 179 | AC188: 0 | AD188: 0
A189: 00360999 | B189: 0036 | C189: 0999 | D189: 180 | E189: 36 | F189: Bourne | G189: 999 | H189: Total | I189: 26898266.73 | J189: 1 | K189: =SUM(K185:K188) -> 28339240.44 | L189: =SUM(L185:L188) -> 1 | M189: =VLOOKUP(E189,town351,24) -> 22709292 | N189: =SUM(N185:N188) -> 22709292 | O189: 21662971 | P189: =SUM(P185:P188) -> 1046321 | Q189: 4.829997695 | R189: 1870.973384 | S189: 1897.699883 | T189: 36 | U189: 999 | V189: 180 | W189: 1897.699883 | X189: 28339240.44 | Y189: 180 | Z189: 36 | AA189: 999 | AB189: 180 | AC189: 1897.699883 | AD189: 28339240.44
A190: 00370037 | B190: 0037 | C190: 0037 | D190: 181 | E190: 37 | F190: Boxborough | G190: 37 | H190: Boxborough | I190: 107478.8431 | J190: 0.009649043336 | K190: =X190 -> 90908.90505 | L190: =IF(K194>0, K190/K194, 0) -> 0.007770149297 | N190: =ROUND(M194*L190,0) -> 69326 | O190: 82107 | P190: =N190-O190 -> -12781 | Q190: -15.56627328 | R190: 6 | S190: 5 | T190: 37 | U190: 37 | V190: 181 | W190: 5 | X190: 90908.90505 | Y190: 181 | Z190: 37 | AA190: 37 | AB190: 181 | AC190: 5 | AD190: 90908.90505
A191: 00370600 | B191: 0037 | C191: 0600 | D191: 182 | E191: 37 | F191: Boxborough | G191: 600 | H191: Acton Boxborough | I191: 11031329.37 | J191: 0.9903509567 | K191: 11608854.07 | L191: =IF(K194>0, K191/K194, 0) -> 0.9922298507 | N191: =ROUND(M194*L191,0) -> 8852761 | O191: 8427275 | P191: =N191-O191 -> 425486 | Q191: 5.048915575 | R191: 859.8116539 | S191: 877.719715 | T191: 37 | U191: 600 | V191: 182 | W191: 877.719715 | X191: 11608854.07 | Y191: 182 | Z191: 37 | AA191: 600 | AB191: 182 | AC191: 877.719715 | AD191: 11608854.07
A192: 00370830 | B192: 0037 | C192: 0830 | D192: 183 | E192: 37 | G192: 998 | I192: 0 | J192: 0 | K192: 0 | L192: =IF(K194>0, K192/K194, 0) -> 0 | N192: =ROUND(M194*L192,0) -> 0 | O192: 0 | P192: =N192-O192 -> 0 | Q192: 0 | R192: 0 | S192: 0 | T192: 37 | U192: 998 | V192: 183 | W192: 0 | X192: 0 | Y192: 183 | Z192: 37 | AA192: 998 | AB192: 183 | AC192: 0 | AD192: 0
A193: 00370998 | B193: 0037 | C193: 0998 | D193: 184 | E193: 37 | G193: 998 | I193: 0 | J193: 0 | K193: 0 | L193: =IF(K194>0, K193/K194, 0) -> 0 | N193: =ROUND(M194*L193,0) -> 0 | O193: 0 | P193: =N193-O193 -> 0 | Q193: 0 | R193: 0 | S193: 0 | T193: 37 | U193: 998 | V193: 184 | W193: 0 | X193: 0 | Y193: 184 | Z193: 37 | AA193: 998 | AB193: 184 | AC193: 0 | AD193: 0
A194: 00370999 | B194: 0037 | C194: 0999 | D194: 185 | E194: 37 | F194: Boxborough | G194: 999 | H194: Total | I194: 11138808.21 | J194: 1 | K194: =SUM(K190:K193) -> 11699762.97 | L194: =SUM(L190:L193) -> 1 | M194: =VLOOKUP(E194,town351,24) -> 8922087 | N194: =SUM(N190:N193) -> 8922087 | O194: 8509382 | P194: =SUM(P190:P193) -> 412705 | Q194: 4.849999683 | R194: 865.8116539 | S194: 882.719715 | T194: 37 | U194: 999 | V194: 185 | W194: 882.719715 | X194: 11699762.97 | Y194: 185 | Z194: 37 | AA194: 999 | AB194: 185 | AC194: 882.719715 | AD194: 11699762.97
A195: 00380038 | B195: 0038 | C195: 0038 | D195: 186 | E195: 38 | F195: Boxford | G195: 38 | H195: Boxford | I195: 8528050.268 | J195: 0.508431322 | K195: =X195 -> 9024222.11 | L195: =IF(K199>0, K195/K199, 0) -> 0.5170051559 | N195: =ROUND(M199*L195,0) -> 7139876 | O195: 6718468 | P195: =N195-O195 -> 421408 | Q195: 6.272382335 | R195: 721 | S195: 745 | T195: 38 | U195: 38 | V195: 186 | W195: 745 | X195: 9024222.11 | Y195: 186 | Z195: 38 | AA195: 38 | AB195: 186 | AC195: 745 | AD195: 9024222.11
A196: 00380705 | B196: 0038 | C196: 0705 | D196: 187 | E196: 38 | F196: Boxford | G196: 705 | H196: Masconomet | I196: 7811373.11 | J196: 0.4657039572 | K196: 7926258.002 | L196: =IF(K199>0, K196/K199, 0) -> 0.4541018832 | N196: =ROUND(M199*L196,0) -> 6271178 | O196: 6153864 | P196: =N196-O196 -> 117314 | Q196: 1.906346972 | R196: 605.7510863 | S196: 594.1309599 | T196: 38 | U196: 705 | V196: 187 | W196: 594.1309599 | X196: 7926258.002 | Y196: 187 | Z196: 38 | AA196: 705 | AB196: 187 | AC196: 594.1309599 | AD196: 7926258.002
A197: 00380817 | B197: 0038 | C197: 0817 | D197: 188 | E197: 38 | F197: Boxford | G197: 817 | H197: Essex North Shore | I197: 433835.6629 | J197: 0.02586472086 | K197: 504320.8821 | L197: =IF(K199>0, K197/K199, 0) -> 0.02889296087 | N197: =ROUND(M199*L197,0) -> 399014 | O197: 341779 | P197: =N197-O197 -> 57235 | Q197: 16.74620149 | R197: 21.99999999 | S197: 25 | T197: 38 | U197: 817 | V197: 188 | W197: 25 | X197: 504320.8821 | Y197: 188 | Z197: 38 | AA197: 817 | AB197: 188 | AC197: 25 | AD197: 504320.8821
A198: 00380998 | B198: 0038 | C198: 0998 | D198: 189 | E198: 38 | G198: 998 | I198: 0 | J198: 0 | K198: 0 | L198: =IF(K199>0, K198/K199, 0) -> 0 | N198: =ROUND(M199*L198,0) -> 0 | O198: 0 | P198: =N198-O198 -> 0 | Q198: 0 | R198: 0 | S198: 0 | T198: 38 | U198: 998 | V198: 189 | W198: 0 | X198: 0 | Y198: 189 | Z198: 38 | AA198: 998 | AB198: 189 | AC198: 0 | AD198: 0
A199: 00380999 | B199: 0038 | C199: 0999 | D199: 190 | E199: 38 | F199: Boxford | G199: 999 | H199: Total | I199: 16773259.04 | J199: 1 | K199: =SUM(K195:K198) -> 17454800.99 | L199: =SUM(L195:L198) -> 1 | M199: =VLOOKUP(E199,town351,24) -> 13810068 | N199: =SUM(N195:N198) -> 13810068 | O199: 13214111 | P199: =SUM(P195:P198) -> 595957 | Q199: 4.510004494 | R199: 1348.751086 | S199: 1364.13096 | T199: 38 | U199: 999 | V199: 190 | W199: 1364.13096 | X199: 17454800.99 | Y199: 190 | Z199: 38 | AA199: 999 | AB199: 190 | AC199: 1364.13096 | AD199: 17454800.99
A200: 00390039 | B200: 0039 | C200: 0039 | D200: 191 | E200: 39 | F200: Boylston | G200: 39 | H200: Boylston | I200: 377077.08 | J200: 0.04705753745 | K200: =X200 -> 267378.24 | L200: =IF(K204>0, K200/K204, 0) -> 0.03176903073 | N200: =ROUND(M204*L200,0) -> 220587 | O200: 311089 | P200: =N200-O200 -> -90502 | Q200: -29.09199618 | R200: 21 | S200: 14 | T200: 39 | U200: 39 | V200: 191 | W200: 14 | X200: 267378.24 | Y200: 191 | Z200: 39 | AA200: 39 | AB200: 191 | AC200: 14 | AD200: 267378.24
... 1565 more rows

Sheet Index
A1: Massachusetts Department of Elementary and Secondary Education | J1: 2024-01-24
A2: =parameters!B1& " Chapter 70 and Net School Spending Formula Spreadsheet" -> FY25 Chapter 70 and Net School Spending Formula Spreadsheet
B3: Select or type full district name below | C3: LEA code
A4: =C4 -> 999 | B4: Select a district | C4: =VLOOKUP(B4,leas!$E$4:$F$445,2,FALSE) -> 999
B6: Use the drop-down menu to select a municipal or regional district and then go to any of the first four links below.
B7: Only municipal district selections will activate the Municipal Contribution Requirement and Regional Allocation reports.
B8: A list of LEAs by code begins on row 26 of this sheet.
B10: We recommend that you save this workbook to your computer before proceeding, then leave this browser, and open the workbook using Excel or My Computer.
B12: Summary
B13: Foundation Budget
B14: Municipal Contribution Requirement
B15: Regional Allocation
B17: Regional District Detail | D17: (go to this sheet to see any particular regional district's comparison of enrollment and minimum contributions to the prior year)
B19: There are also a number of "hidden" sheets which contain the underlying spreadsheet calculations.
B20: They can be accessed by right-clicking on any of the tabs below and choosing a sheet to unhide.
B22: Questions or comments about Chapter 70 may be directed to:
B24: Rob O'Donnell | D24: Robert.F.O'Donnell@mass.gov | G24: 781-338-6512
B26: District | D26: LEA Number
B27: Abington | D27: 1
B28: Acton | D28: 2
B29: Acton Boxborough | D29: 600
B30: Acushnet | D30: 3
B31: Adams | D31: 4
B32: Agawam | D32: 5
B33: Alford | D33: 6
B34: Amesbury | D34: 7
B35: Amherst | D35: 8
B36: Amherst Pelham | D36: 605
B37: Andover | D37: 9
B38: Aquinnah | D38: 104
B39: Arlington | D39: 10
B40: Ashburnham | D40: 11
B41: Ashburnham Westminster | D41: 610
B42: Ashby | D42: 12
B43: Ashfield | D43: 13
B44: Ashland | D44: 14
B45: Assabet Valley | D45: 801
B46: Athol | D46: 15
B47: Athol Royalston | D47: 615
B48: Attleboro | D48: 16
B49: Auburn | D49: 17
B50: Avon | D50: 18
B51: Ayer | D51: 19
B52: Ayer Shirley | D52: 616
B53: Barnstable | D53: 20
B54: Barre | D54: 21
B55: Becket | D55: 22
B56: Bedford | D56: 23
B57: Belchertown | D57: 24
B58: Bellingham | D58: 25
B59: Belmont | D59: 26
B60: Berkley | D60: 27
B61: Berkshire Hills | D61: 618
B62: Berlin | D62: 28
B63: Berlin Boylston | D63: 620
B64: Bernardston | D64: 29
B65: Beverly | D65: 30
B66: Billerica | D66: 31
B67: Blackstone | D67: 32
B68: Blackstone Millville | D68: 622
B69: Blackstone Valley | D69: 805
B70: Blandford | D70: 33
B71: Blue Hills | D71: 806
B72: Bolton | D72: 34
B73: Boston | D73: 35
B74: Bourne | D74: 36
B75: Boxborough | D75: 37
B76: Boxford | D76: 38
B77: Boylston | D77: 39
B78: Braintree | D78: 40
B79: Brewster | D79: 41
B80: Bridgewater | D80: 42
B81: Bridgewater Raynham | D81: 625
B82: Brimfield | D82: 43
B83: Bristol County | D83: 910
B84: Bristol Plymouth | D84: 810
B85: Brockton | D85: 44
B86: Brookfield | D86: 45
B87: Brookline | D87: 46
B88: Buckland | D88: 47
B89: Burlington | D89: 48
B90: Cambridge | D90: 49
B91: Canton | D91: 50
B92: Cape Cod | D92: 815
B93: Carlisle | D93: 51
B94: Carver | D94: 52
B95: Central Berkshire | D95: 635
B96: Charlemont | D96: 53
B97: Charlton | D97: 54
B98: Chatham | D98: 55
B99: Chelmsford | D99: 56
B100: Chelsea | D100: 57
B101: Cheshire | D101: 58
B102: Chester | D102: 59
B103: Chesterfield | D103: 60
B104: Chesterfield Goshen | D104: 632
B105: Chicopee | D105: 61
B106: Chilmark | D106: 62
B107: Clarksburg | D107: 63
B108: Clinton | D108: 64
B109: Cohasset | D109: 65
B110: Colrain | D110: 66
B111: Concord | D111: 67
B112: Concord Carlisle | D112: 640
B113: Conway | D113: 68
B114: Cummington | D114: 69
B115: Dalton | D115: 70
B116: Danvers | D116: 71
B117: Dartmouth | D117: 72
B118: Dedham | D118: 73
B119: Deerfield | D119: 74
B120: Dennis | D120: 75
B121: Dennis Yarmouth | D121: 645
B122: Dighton | D122: 76
B123: Dighton Rehoboth | D123: 650
B124: Douglas | D124: 77
B125: Dover | D125: 78
B126: Dover Sherborn | D126: 655
B127: Dracut | D127: 79
B128: Dudley | D128: 80
B129: Dudley Charlton | D129: 658
B130: Dunstable | D130: 81
B131: Duxbury | D131: 82
B132: East Bridgewater | D132: 83
B133: East Brookfield | D133: 84
B134: East Longmeadow | D134: 87
B135: Eastham | D135: 85
B136: Easthampton | D136: 86
B137: Easton | D137: 88
B138: Edgartown | D138: 89
B139: Egremont | D139: 90
B140: Erving | D140: 91
B141: Essex | D141: 92
B142: Essex North Shore | D142: 817
B143: Everett | D143: 93
B144: Fairhaven | D144: 94
B145: Fall River | D145: 95
B146: Falmouth | D146: 96
B147: Farmington River | D147: 662
B148: Fitchburg | D148: 97
B149: Florida | D149: 98
B150: Foxborough | D150: 99
B151: Framingham | D151: 100
B152: Franklin | D152: 101
B153: Franklin County | D153: 818
B154: Freetown | D154: 102
B155: Freetown Lakeville | D155: 665
B156: Frontier | D156: 670
B157: Gardner | D157: 103
B158: Gateway | D158: 672
B159: Georgetown | D159: 105
B160: Gill | D160: 106
B161: Gill Montague | D161: 674
B162: Gloucester | D162: 107
B163: Goshen | D163: 108
B164: Gosnold | D164: 109
B165: Grafton | D165: 110
B166: Granby | D166: 111
B167: Granville | D167: 112
B168: Great Barrington | D168: 113
B169: Greater Fall River | D169: 821
B170: Greater Lawrence | D170: 823
B171: Greater Lowell | D171: 828
B172: Greater New Bedford | D172: 825
B173: Greenfield | D173: 114
B174: Groton | D174: 115
B175: Groton Dunstable | D175: 673
B176: Groveland | D176: 116
B177: Hadley | D177: 117
B178: Halifax | D178: 118
B179: Hamilton | D179: 119
B180: Hamilton Wenham | D180: 675
B181: Hampden | D181: 120
B182: Hampden Wilbraham | D182: 680
B183: Hampshire | D183: 683
B184: Hancock | D184: 121
B185: Hanover | D185: 122
B186: Hanson | D186: 123
B187: Hardwick | D187: 124
B188: Harvard | D188: 125
B189: Harwich | D189: 126
B190: Hatfield | D190: 127
B191: Haverhill | D191: 128
B192: Hawlemont | D192: 685
B193: Hawley | D193: 129
B194: Heath | D194: 130
B195: Hingham | D195: 131
B196: Hinsdale | D196: 132
B197: Holbrook | D197: 133
B198: Holden | D198: 134
B199: Holland | D199: 135
B200: Holliston | D200: 136
B201: Holyoke | D201: 137
B202: Hoosac Valley | D202: 603
B203: Hopedale | D203: 138
B204: Hopkinton | D204: 139
B205: Hubbardston | D205: 140
B206: Hudson | D206: 141
B207: Hull | D207: 142
B208: Huntington | D208: 143
... 256 more rows

Sheet MoreAboutData
B1: =CYr&" Chapter 70 and Net School Spending Formula" -> FY25 Chapter 70 and Net School Spending Formula | C1: FY18 Chapter 70 and Net School Spending Formula Spreadsheet | D1: FY18 Chapter 70 and Net School Spending Formula Spreadsheet | E1: FY18 Chapter 70 and Net School Spending Formula Spreadsheet | F1: FY18 Chapter 70 and Net School Spending Formula Spreadsheet | G1: Return to Index
B2: More about the data
A3: TABLE OF CONTENTS
A4: Index | E4: Back to the top
A5: Select the district you're interested in from the dropdown list on this sheet.
A6: Foundation Budget | E6: Back to the top
A7: This report displays the foundation enrollment and foundation budget for a single district. A district’s foundation budget is updated each year and it is derived by multiplying the number of pupils in thirteen enrollment categories by cost rates in eleven functional areas.
A9: Key Terms
A10: Foundation Enrollment: A count of the students for whom a school district is financially responsible on October 1st of any given year. Inflation: Foundation budget rates are adjusted each year by a statutorily defined inflationary factor. It affects all districts in the same way. Wage Adjustment Factor (WAF): Gives a district credit for having higher school costs if it is located in a geographic area where average wages are higher than in other areas of the state. Calculated using the latest available average wage data supplied by the state’s Executive Office of Labor and Workforce Development (EOLWD). Low-Income Group: Determined based on the relative concentration of low-income students served in the district. Corresponds to a foundation budget rate for low-income students.
A11: Municipal Contribution | E11: Back to the top
A12: This report displays the required local contribution for a single municipality. Each municipality has a target local share of its foundation budget, based on local ability to pay. The required local contribution for each municipality is based on the previous year's required contribution, and includes some transition factors so that the shift toward the target levels occurs over a period of several years.
A14: Key Terms
A15: Equalized Valuation (EQV): Calculated by DOR every two years. Full and fair cash value of all taxable property for each municipality. Income: Derived annually by DOR from state income tax returns. Includes all forms of wage, pension, interest, business, investment, and capital gains income. Combined Effort Yield (CEY): Sum of property and income effort. Based on DESE-calculated property and income percentages, which, when applied to all municipalities in the Commonwealth, yields 59% of statewide foundation coming from local revenue. Target Local Contribution/Share: Calculated for each municipality as an equitable share of its foundation budget based on property wealth and income. Municipal Revenue Growth Factor (MRGF): Calculated each year by DOR and quantifies the most recent annual percentage change in each community's local revenues (such as the annual increase in the Proposition 2½ levy limit) that should be available for schools.
A16: Regional Allocation | E16: Back to the top
A17: This report displays the allocation of a municipality's required local contribution across the districts to which it belongs. The municipality's required contribution is allocated in direct proportion to the district's share of the municipality's foundation budget.
A18: Summary | E18: Back to the top
A19: This report displays the Chapter 70 aid calculation for a single district. The aid calculation begins with each district's prior year Chapter 70 amount. The difference between each district's foundation budget and its required contribution equals foundation aid. On the right-hand side, there is a comparison to the prior year.
A20: Key Terms
A21: Foundation Aid: The amount of aid needed by a district to reach its foundation budget, after factoring in this year's required local contribution. Foundation budget - Required Local Contribution = Foundation Aid Minimum Aid: A guaranteed per pupil aid increase over the prior year. Required Net School Spending (NSS): The sum of this year's required local contribution and Chapter 70 aid. A district must spend this amount to be in compliance.
A22: Regional District Members | E22: Back to the top
A23: This report displays relevant data for municipal members of a single regional district.
A24: Key Terms
A25: Foundation Enrollment: Foundation enrollment for the selected district, in total and by member. Required Minimum Contribution: Total required minimum contribution for the selected district, in total and by member.
A26: ="Comparison to "&PYr -> Comparison to FY24 | E26: Back to the top
A27: This report displays prior year and current year foundation enrollment, foundation budget, required local contribution and Chapter 70 aid for all operating districts.
A29: Rates | E29: Back to the top
A30: ="This sheet displays the "&CYr&" foundation budget rates." -> This sheet displays the FY25 foundation budget rates.
A31: Townwide Contributions | E31: Back to the top
A32: ="This sheet calculates the "&CYr&" required local contribution for each municipality" -> This sheet calculates the FY25 required local contribution for each municipality
A33: Aid436 | E33: Back to the top
A34: ="This sheet calculates the "&CYr&" Chapter 70 aid for each district." -> This sheet calculates the FY25 Chapter 70 aid for each district.

Sheet Foundation Budget
A1: Return to Index | U1: More about the data
A2: Massachusetts Department of Elementary and Secondary Education
A3: Office of School Finance
A4: =parameters!B1&" Chapter 70 Foundation Budget" -> FY25 Chapter 70 Foundation Budget
A5: =lea -> 999 | B5: =IF(lea=999,"State total cannot be computed on this page; Please enter an lea code on the index sheet",VLOOKUP(A5,dist915,2)) -> State total cannot be computed on this page; Please enter an lea code on the index sheet | H5: 6 | I5: 8 | K5: 9 | L5: 10 | M5: 11 | N5: 12 | O5: 13 | P5: 14
C6: Base Foundation Components | K6: Incremental Costs Above the Base
C7: 1 | D7: 2 | E7: 3 | F7: 4 | G7: 5 | H7: 6 | I7: 7 | K7: 8 | L7: 9 | M7: 10 | N7: 11 | O7: 12 | P7: 13 | Q7: 14
D8: ------ Kindergarten ------ | G8: Junior/ | H8: High | K8: Special Ed | L8: Special Ed | M8: English learners | N8: English learners | O8: English learners
C9: Pre-school | D9: Half-Day | E9: Full-Day | F9: Elementary | G9: Middle | H9: School | I9: Vocational | K9: In-District | L9: Tuitioned-Out | M9: PK-5 | N9: 6-8 | O9: High School/Voc | P9: Low income | Q9: TOTAL
B10: Foundation Enrollment | C10: =IF($A$5<>999,VLOOKUP(lea,dist915,VALUE(C$7)+2),0) -> 0 | D10: 0 | E10: 0 | F10: 0 | G10: 0 | H10: 0 | I10: =IF($A$5<>999,VLOOKUP(lea,dist915,VALUE(I$7)+2),0) -> 0 | K10: =IF($A$5<>999,VLOOKUP(lea,dist915,VALUE(K$7)+2),0) -> 0 | L10: 0 | M10: 0 | N10: 0 | O10: 0 | P10: 0 | Q10: 0
A12: 1 | B12: Administration | C12: =(VLOOKUP(VALUE(C$7),newrates,$A12+2)*C$10*waf) -> 0 | D12: 0 | E12: 0 | F12: 0 | G12: 0 | H12: 0 | I12: 0 | K12: =(VLOOKUP(VALUE(K$7),newrates,$A12+2)*K$10*waf) -> 0 | L12: 0 | M12: 0 | N12: 0 | O12: 0 | P12: =IF(C29=0,0,(VLOOKUP(VALUE(P$7)+$C$29-1, newrates, $A12+2, FALSE))*P$10*waf) -> 0 | Q12: =SUM(C12:P12) -> 0
A13: 2 | B13: Instructional Leadership | C13: 0 | D13: 0 | E13: 0 | F13: 0 | G13: 0 | H13: 0 | I13: 0 | K13: 0 | L13: 0 | M13: 0 | N13: 0 | O13: 0 | P13: =IF(C29=0,0,(VLOOKUP(VALUE(P$7)+$C$29-1, newrates, $A13+2, FALSE))*P$10*waf) -> 0 | Q13: 0
A14: 3 | B14: Classroom & Specialist Teachers | C14: 0 | D14: 0 | E14: 0 | F14: 0 | G14: 0 | H14: 0 | I14: 0 | K14: 0 | L14: 0 | M14: 0 | N14: 0 | O14: 0 | P14: =IF(C29=0,0,(VLOOKUP(VALUE(P$7)+$C$29-1, newrates, $A14+2, FALSE))*P$10*waf) -> 0 | Q14: 0
A15: 4 | B15: Other Teaching Services | C15: 0 | D15: 0 | E15: 0 | F15: 0 | G15: 0 | H15: 0 | I15: 0 | K15: 0 | L15: 0 | M15: 0 | N15: 0 | O15: 0 | P15: =IF(C29=0,0,(VLOOKUP(VALUE(P$7)+$C$29-1, newrates, $A15+2, FALSE))*P$10*waf) -> 0 | Q15: 0
A16: 5 | B16: Professional Development | C16: 0 | D16: 0 | E16: 0 | F16: 0 | G16: 0 | H16: 0 | I16: 0 | K16: 0 | L16: 0 | M16: 0 | N16: 0 | O16: 0 | P16: =IF(C29=0,0,(VLOOKUP(VALUE(P$7)+$C$29-1, newrates, $A16+2, FALSE))*P$10*waf) -> 0 | Q16: 0
A17: 6 | B17: Instructional Materials, Equipment & Technology* | C17: =(VLOOKUP(VALUE(C$7),newrates,$A17+2)*C$10) -> 0 | D17: 0 | E17: 0 | F17: 0 | G17: 0 | H17: 0 | I17: 0 | K17: =(VLOOKUP(VALUE(K$7),newrates,$A17+2)*K$10) -> 0 | L17: =(VLOOKUP(VALUE(L$7),newrates,$A17+2)*L$10) -> 0 | M17: =(VLOOKUP(VALUE(M$7),newrates,$A17+2)*M$10) -> 0 | N17: =(VLOOKUP(VALUE(N$7),newrates,$A17+2)*N$10) -> 0 | O17: =(VLOOKUP(VALUE(O$7),newrates,$A17+2)*O$10) -> 0 | P17: =IF(C29=0,0,(VLOOKUP(VALUE(P$7)+$C$29-1, newrates, $A17+2, FALSE))*P$10) -> 0 | Q17: 0
A18: 7 | B18: Guidance & Psychological Services | C18: =(VLOOKUP(VALUE(C$7),newrates,$A18+2)*C$10*waf) -> 0 | D18: 0 | E18: 0 | F18: 0 | G18: 0 | H18: 0 | I18: 0 | K18: =(VLOOKUP(VALUE(K$7),newrates,$A18+2)*K$10*waf) -> 0 | L18: 0 | M18: 0 | N18: 0 | O18: 0 | P18: =IF(C29=0,0,(VLOOKUP(VALUE(P$7)+$C$29-1, newrates, $A18+2, FALSE))*P$10*waf) -> 0 | Q18: 0
A19: 8 | B19: Pupil Services | C19: 0 | D19: 0 | E19: 0 | F19: 0 | G19: 0 | H19: 0 | I19: 0 | K19: 0 | L19: 0 | M19: 0 | N19: 0 | O19: 0 | P19: =IF(C29=0,0,(VLOOKUP(VALUE(P$7)+$C$29-1, newrates, $A19+2, FALSE))*P$10*waf) -> 0 | Q19: 0
A20: 9 | B20: Operations & Maintenance | C20: 0 | D20: 0 | E20: 0 | F20: 0 | G20: 0 | H20: 0 | I20: 0 | K20: 0 | L20: 0 | M20: 0 | N20: 0 | O20: 0 | P20: =IF(C29=0,0,(VLOOKUP(VALUE(P$7)+$C$29-1, newrates, $A20+2, FALSE))*P$10*waf) -> 0 | Q20: 0
A21: 10 | B21: Employee Benefits/Fixed Charges* | C21: =(VLOOKUP(VALUE(C$7),newrates,$A21+2)*C$10) -> 0 | D21: 0 | E21: 0 | F21: 0 | G21: 0 | H21: 0 | I21: 0 | K21: =(VLOOKUP(VALUE(K$7),newrates,$A21+2)*K$10) -> 0 | L21: =(VLOOKUP(VALUE(L$7),newrates,$A21+2)*L$10) -> 0 | M21: =(VLOOKUP(VALUE(M$7),newrates,$A21+2)*M$10) -> 0 | N21: =(VLOOKUP(VALUE(N$7),newrates,$A21+2)*N$10) -> 0 | O21: =(VLOOKUP(VALUE(O$7),newrates,$A21+2)*O$10) -> 0 | P21: =IF(C29=0,0,(VLOOKUP(VALUE(P$7)+$C$29-1, newrates, $A21+2, FALSE))*P$10) -> 0 | Q21: 0
A22: 11 | B22: Special Education Tuition* | C22: 0 | D22: 0 | E22: 0 | F22: 0 | G22: 0 | H22: 0 | I22: 0 | K22: =(VLOOKUP(VALUE(K$7)-2,newrates,$A22+2)*K$10) -> 0 | L22: =(VLOOKUP(VALUE(L$7),newrates,$A22+2)*L$10) -> 0 | M22: =(VLOOKUP(VALUE(M$7),newrates,$A22+2)*M$10) -> 0 | N22: =(VLOOKUP(VALUE(N$7),newrates,$A22+2)*N$10) -> 0 | O22: =(VLOOKUP(VALUE(O$7)-2,newrates,$A22+2)*O$10) -> 0 | P22: =IF(C29=0,0,(VLOOKUP(VALUE(P$7)+$C$29-1, newrates, $A22+2, FALSE))*P$10) -> 0 | Q22: 0
A24: 12 | B24: Total | C24: =SUM(C12:C22) -> 0 | D24: =SUM(D12:D22) -> 0 | E24: =SUM(E12:E22) -> 0 | F24: 0 | G24: 0 | H24: 0 | I24: =SUM(I12:I22) -> 0 | K24: 0 | L24: 0 | M24: 0 | N24: 0 | O24: 0 | P24: 0 | Q24: =SUM(Q12:Q23) -> 0
A26: 13 | B26: Wage Adjustment Factor | C26: =VLOOKUP(lea,dist915,17) -> 0 | N26: Foundation Budget per Pupil | Q26: =IFERROR(IF(A5<>999,Q24/Q10," "),"") -> 
B27: *The wage adjustment factor is applied to underlying rates in all functions except instructional equipment, benefits and special education tuition.
A28: 14 | B28: Low-income percentage | C28: =VLOOKUP(lea,dist915,19) -> 0 | L28: English learner foundation budget as % total foundation budget | Q28: =IFERROR(IF(A5=999,"",SUM(M24:O24)/Q24),"") -> 
A29: 15 | B29: Low-income group | C29: =VLOOKUP(lea,dist915,18) -> 0 | L29: Low-income foundation budget as % total foundation budget | Q29: =IFERROR(IF(A5=999,"",P24/Q24),"") -> 
B32: Total foundation enrollment (column 14) does not include incremental costs above the base. The pupils are already counted in columns 1 to 7. | K32: Low-income group | L32: Low-income %
B33: Total foundation enrollment assigns pupils in pre-kindergarten and half-time kindergarten an enrollment count of .5. | K33: Group 1 | L33: 0-5.99%
B34: Special education in-district enrollment is an assumed percentage, representing 3.93 percent of K-12 non-vocational enrollment and | K34: Group 2 | L34: 6-11.99%
B35: 4.93 percent of vocational enrollment. | K35: Group 3 | L35: 12-17.99%
B36: Special education tuitioned-out enrollment is also an assumed percentage, representing 1 percent of non-vocational K-12 enrollment. | K36: Group 4 | L36: 18-23.99%
B37: Low-income enrollment is based on: (1) participation in Supplemental Nutrition Assistance Program (SNAP), | K37: Group 5 | L37: 24-29.99%
B38: the Transitional Assistance for Families with Dependent Children (TAFDC), MassHealth (Medicaid), or foster care; | K38: Group 6 | L38: 30-35.99%
B39: (2) homeless designation through the McKinney-Vento Homeless Education Assistance program; | K39: Group 7 | L39: 36-41.99%
B40: or (3) verification as low income through a supplemental data collection process. | K40: Group 8 | L40: 42-47.99%
B41: Low-income and English learner foundation budget increments are based on the number of students attending school in the district | K41: Group 9 | L41: 48-53.99%
B42: or district residents who attend charter schools. | K42: Group 10 | L42: 54-69.99%
B43: The low-income percentage is the ratio of the low-income enrollment to: | K43: Group 11 | L43: 70-79.99%
B44: the total students attending school in the district and the total resident students attending charter schools. | K44: Group 12 | L44: 80%+
B46: Each component of the foundation budget represents the enrollment in row 10 multiplied by the appropriate statewide foundation allotment.
B47: The foundation budget shown on this page may differ from the final number used in the formula, due to rounding error.
B50: Return to Index

Sheet Municipal Contribution
M1: =IF(VLOOKUP(A6,town351,18)>0,"lo","hi") -> hi
A2: Return to Index | G2: More about the data
A3: Massachusetts Department of Elementary and Secondary Education
A4: Office of School Finance
A5: =parameters!B1&" Chapter 70 Determination of City and Town Total Required Contribution" -> FY25 Chapter 70 Determination of City and Town Total Required Contribution
A6: =lea -> 999 | B6: =IF(lea>351, "This lea code does not refer to a city or a town - this table shows municipal data only.",VLOOKUP(A6,aidcalc,2)) -> This lea code does not refer to a city or a town - this table shows municipal data only.
A8: Effort Goal | E8: =parameters!B1&" Increments Toward Goal" -> FY25 Increments Toward Goal
A10: 1) | B10: 2022 equalized valuation | C10: =IF(A6<352,VLOOKUP($A$6,town351,3)," ") ->  | E10: 13) | F10: =PYr&" required local contribution" -> FY24 required local contribution | G10: =IF(A6<352,VLOOKUP($A$6,town351,14)," ") -> 
A11: 2) | B11: Uniform property percentage | C11: =IF(A6<352,'Townwide Contributions'!D5," ") ->  | E11: 14) | F11: Municipal revenue growth factor (DOR) | G11: =IF(A$6<352,VLOOKUP($A$6,town351,15)," ") -> 
A12: 3) | B12: Local effort from property wealth | C12: =IF(A6<352,VLOOKUP($A$6,town351,4)," ") ->  | E12: 15) | F12: =parameters!B1&" preliminary contribution (13 raised by 14)" -> FY25 preliminary contribution (13 raised by 14) | G12: =IF(A$6<352,VLOOKUP($A$6,town351,16)," ") -> 
E13: 16) | F13: Preliminary contribution pct of foundation (15 / 8) | G13: =IF(A$6<352,VLOOKUP($A$6,town351,17)/100," ") -> 
A14: 4) | B14: 2021 income | C14: =IF(A6<352,VLOOKUP($A$6,town351,5)," ") -> 
A15: 5) | B15: Uniform income percentage | C15: =IF(A6<352,'Townwide Contributions'!F5," ") ->  | E15: If preliminary contribution is above the target share:
A16: 6) | B16: Local effort from income | C16: =IF(A6<352,VLOOKUP($A$6,town351,6)," ") ->  | E16: 17) | F16: Excess local effort (15 - 10) | G16: =IF(AND(A$6<352,M$1="hi"),VLOOKUP($A$6,town351,21)," ") -> 
E17: 18) | F17: =parameters!$C$50&" reduction toward target (17 x "&parameters!$C$50&")" -> 100% reduction toward target (17 x 100%) | G17: =IF(AND(A$6<352,M$1="hi"),VLOOKUP($A$6,town351,22)," ") -> 
A18: 7) | B18: Combined effort yield (3 + 6) | C18: =IF(A6<352,VLOOKUP($A$6,town351,7)," ") ->  | E18: 19) | F18: =parameters!B1&" required local contribution (15 - 18), capped at 90% of foundation" -> FY25 required local contribution (15 - 18), capped at 90% of foundation | G18: =IF(AND(A$6<352,M$1="hi"),VLOOKUP($A$6,town351,24)," ") -> 
E19: 20) | F19: Contribution as percentage of foundation (19 / 8) | G19: =IF(AND(A$6<352,M$1="hi"),VLOOKUP($A$6,town351,25)/100," ") -> 
A20: 8) | B20: =parameters!B1&" Foundation budget" -> FY25 Foundation budget | C20: =IF(A6<352,VLOOKUP($A$6,town351,8)," ") -> 
A21: 9) | B21: Maximum local contribution (82.5% * 8) | C21: =IF(A6<352,VLOOKUP($A$6,town351,10)," ") ->  | E21: If preliminary contribution is below the target share:
E22: 21) | F22: Shortfall from target local share (10 - 15) | G22: =IF(AND(A$6<352,M1="lo"),-1*VLOOKUP($A$6,town351,27)," ") -> 
A23: 10) | B23: Target local contribution (lesser of 7 or 9) | C23: =IF(A6<352,VLOOKUP($A$6,town351,11)," ") ->  | E23: 22) | F23: Shortfall percentage (11 - 16) | G23: =IF(AND(A$6<352,M1="lo"),VLOOKUP($A$6,town351,18)/100," ") -> 
E24: 23) | F24: Added increment toward target (13 x 1% or 2%)* | G24: =IF(AND(A$6<352,M1="lo"),VLOOKUP($A$6,town351,20)," ") -> 
A25: 11) | B25: Target local share (10 as % of 8) | C25: =IF(A6<352,VLOOKUP(lea,town351,12)/100," ") ->  | F25: *1% if shortfall is between 2.5% and 7.5%; 2% if shortfall > 7.5%
A26: 12) | B26: Target aid share (100% minus 11) | C26: =IF(A6<352,VLOOKUP(lea,aidcalc,13)/100," ") ->  | E26: 24) | F26: Special increment toward 82.5% target** | G26: =IF(AND(A$6<352,M1="lo"),VLOOKUP($A$6,town351,23)," ") -> 
F27: **if combined effort yield > 175% foundation
F28: Combined effort yield as % of foundation | G28: =IF(AND(A$6<352,M1="lo"),IF(VLOOKUP($A$6,town351,9)>175%,VLOOKUP($A$6,town351,9)," "),"") -> 
B29: See a listing of all 351 communities | E29: 25) | F29: Shortfall from target after adding increments (10 - 15 - 23 - 24) | G29: =IF(AND(A$6<352,M1="lo"),-1*VLOOKUP($A$6,town351,28)," ") -> 
E30: 26) | F30: =parameters!B1&" required local contribution (15 + 23 + 24)" -> FY25 required local contribution (15 + 23 + 24) | G30: =IF(AND(A$6<352,M1="lo"),VLOOKUP($A$6,town351,24)," ") -> 
E31: 27) | F31: Contribution as percentage of foundation (26 / 8) | G31: =IF(AND(A$6<352,M1="lo"),VLOOKUP($A$6,town351,25)/100," ") -> 

Sheet Regional Allocation
J1: More about the data
D2: Return to Index
D3: Massachusetts Department of Elementary and Secondary Education
D4: Office of School Finance
D5: =CYr& " Chapter 70 Apportionment of Local Contribution Across School Districts" -> FY25 Chapter 70 Apportionment of Local Contribution Across School Districts
E7: 4 | F7: 4 | G7: 3 | H7: 2 | I7: 1
A9: 5 | D9: =lea -> 999 | E9: =IF($D$9>351, "", IF(AND($D$9>0, VLOOKUP($D$9*5-E$7, order1755, $A9)<>0), VLOOKUP($D$9*5-E$7, order1755, $A9), "")) ->  | F9: =IF(OR($D$9="", $D$9>351), "", IF(AND($D$9>0, VLOOKUP($D$9*5-F$7, order1755, $A9)<>0), VLOOKUP($D$9*5-F$7, order1755, $A9), "")) ->  | G9: =IF(OR($D$9="", $D$9>351), "", IF(AND($D$9>0, VLOOKUP($D$9*5-G$7, order1755, $A9)<>0), VLOOKUP($D$9*5-G$7, order1755, $A9), "")) ->  | H9: =IF(OR($D$9="", $D$9>351), "", IF(AND($D$9>0, VLOOKUP($D$9*5-H$7, order1755, $A9)<>0), VLOOKUP($D$9*5-H$7, order1755, $A9), "")) ->  | I9: =IF(OR($D$9="", $D$9>351), "", IF(AND($D$9>0, VLOOKUP($D$9*5-I$7, order1755, $A9)<>0), VLOOKUP($D$9*5-I$7, order1755, $A9), "")) ->  | J9: Combined Total for All Districts
A10: 6
E11: Prior Year Data (for comparison purposes)
A13: 15 | D13: 1 | E13: =parameters!B2&" foundation enrollment" -> FY24 foundation enrollment | F13: =IF(OR($D$9="", $D$9>351), "", IF(AND($D$9>0, VLOOKUP($D$9*5-F$7, order1755, $A13)<>0), VLOOKUP($D$9*5-F$7, order1755, $A13), "")) ->  | J13: =IF(OR($D$9="", $D$9>351), "", VLOOKUP($D$9*5, order1755, $A13)) -> 
A14: 6 | D14: 2 | E14: =parameters!B2&" foundation budget" -> FY24 foundation budget | J14: =IF(OR($D$9="", $D$9>351), "", VLOOKUP($D$9*5, order1755, $A14)) -> 
A15: 7 | D15: 3 | E15: ="Each district's share of municipality's combined "& parameters!B2&" foundation" -> Each district's share of municipality's combined FY24 foundation | J15: =IF(OR($D$9="", $D$9>351), "", VLOOKUP($D$9*5, order1755, $A15)) -> 
A16: 12 | D16: 4 | E16: =parameters!B2&" required contribution" -> FY24 required contribution | J16: =IF(OR($D$9="", $D$9>351), "", VLOOKUP($D$9*5, order1755, $A16)) -> 
E17: =parameters!B1& " apportionment of contribution among community's districts" -> FY25 apportionment of contribution among community's districts
D18: 5 | E18: =parameters!B1&" total unapportioned required contribution ('municipal contribution' tab row 19 or 25)" -> FY25 total unapportioned required contribution ('municipal contribution' tab row 19 or 25) | J18: =IF(OR($D$9="", $D$9>351), "", VLOOKUP($D$9,town351,24)) -> 
A19: 20 | D19: 6 | E19: =parameters!B1&" foundation enrollment" -> FY25 foundation enrollment | F19: =IF(OR($D$9="", $D$9>351), "", IF(AND($D$9>0, VLOOKUP($D$9*5-F$7, order1755, $A19)<>0), VLOOKUP($D$9*5-F$7, order1755, $A19), "")) ->  | J19: =IF(OR($D$9="", $D$9>351), "", VLOOKUP($D$9*5, order1755, $A19)) -> 
A20: 8 | D20: 7 | E20: =parameters!B1&" foundation budget" -> FY25 foundation budget | J20: =IF(OR($D$9="", $D$9>351), "", VLOOKUP($D$9*5, order1755, $A20)) -> 
A21: 9 | D21: 8 | E21: ="Each district's share of municipality's total "& parameters!B1&" foundation " -> Each district's share of municipality's total FY25 foundation | J21: =IF(OR($D$9="", $D$9>351), "", VLOOKUP($D$9*5, order1755, $A21)) -> 
A22: 11 | D22: 9 | E22: =parameters!B1&" Required Contribution" -> FY25 Required Contribution | J22: =VLOOKUP($D$9*5, order1755, $A22) -> 7969829177
A24: 13 | D24: 10 | E24: ="Change "&parameters!B1&" to "&parameters!B2& " (9 - 4)" -> Change FY25 to FY24 (9 - 4) | F24: =IF(OR($D$9="", $D$9>351), "", IF(AND($D$9>0, VLOOKUP($D$9*5-F$7, order1755, $A24)<>0), VLOOKUP($D$9*5-F$7, order1755, $A24), "")) ->  | G24: =IF(OR($D$9="", $D$9>351), "", IF(AND($D$9>0, VLOOKUP($D$9*5-G$7, order1755, $A24)<>0), VLOOKUP($D$9*5-G$7, order1755, $A24), "")) ->  | H24: =IF(OR($D$9="", $D$9>351), "", IF(AND($D$9>0, VLOOKUP($D$9*5-H$7, order1755, $A24)<>0), VLOOKUP($D$9*5-H$7, order1755, $A24), "")) ->  | I24: =IF(OR($D$9="", $D$9>351), "", IF(AND($D$9>0, VLOOKUP($D$9*5-I$7, order1755, $A24)<>0), VLOOKUP($D$9*5-I$7, order1755, $A24), "")) ->  | J24: =IF(OR($D$9="", $D$9>351), "", VLOOKUP($D$9*5, order1755, $A24)) -> 
E26: The combined totals on lines 5 and 9 may differ due to rounding.

Sheet Summary
A1: Return to Index | J1: More about the data
A3: Massachusetts Department of Elementary and Secondary Education
A4: =parameters!B1&" Chapter 70 Summary" -> FY25 Chapter 70 Summary
A6: =lea -> 999 | B6: =PROPER(VLOOKUP(A6,dist915,2)) -> State Total
A8: ="Aid Calculation "&CYr -> Aid Calculation FY25 | E8: ="Comparison to "&PYr -> Comparison to FY24
F10: =PYr -> FY24 | G10: =CYr -> FY25 | H10: Change | I10: Pct Chg | U10: FY06 | V10: FY07 | W10: FY08 | X10: FY09 | Y10: FY10 | Z10: FY11 | AA10: FY12 | AB10: FY13 | AC10: FY14 | AD10: FY15 | AE10: FY16 | AF10: FY17 | AG10: FY18 | AH10: FY19 | AI10: FY20 | AJ10: FY21 | AK10: FY22 | AL10: FY23 | AM10: FY24 | AN10: FY25
A11: Prior Year Aid | E11: Enrollment | F11: =VLOOKUP(A6,aidcalc,14) -> 905106 | G11: =VLOOKUP(A6,aidcalc,15) -> 905331 | H11: =G11-F11 -> 225.0000001 | I11: =IF(F11>0, H11/F11, 0) -> 0.0002485896681 | T11: Required District Contribution | U11: =VLOOKUP($A$6,disthist,5) -> 4743946672 | V11: =VLOOKUP($A$6,disthist,8) -> 4876428772 | W11: =VLOOKUP($A$6,disthist,11) -> 4997705374 | X11: =VLOOKUP($A$6,disthist,14) -> 5110365426 | Y11: =VLOOKUP($A$6,disthist,18) -> 5250106061 | Z11: =VLOOKUP($A$6,disthist,22) -> 5302200670 | AA11: =VLOOKUP($A$6,disthist,27) -> 5413602268 | AB11: =VLOOKUP($A$6,disthist,30) -> 5582113529 | AC11: =VLOOKUP($A$6,disthist, 33) -> 5748475145 | AD11: =VLOOKUP($A$6,disthist, 36) -> 5817618237 | AE11: =VLOOKUP($A$6,disthist, 39) -> 5943909029 | AF11: =VLOOKUP($A$6,disthist, 42) -> 5926185567 | AG11: =VLOOKUP($A$6,disthist, 45) -> 6046916786 | AH11: =VLOOKUP($A$6,disthist, 48) -> 6246842886 | AI11: =VLOOKUP($A$6,disthist, 51) -> 6513607368 | AJ11: =VLOOKUP($A$6,disthist, 54) -> 6705321561 | AK11: =VLOOKUP($A$6,disthist, 57) -> 6827673657 | AL11: =VLOOKUP($A$6,disthist, 60) -> 7166744291 | AM11: =VLOOKUP($A$6,disthist, 63) -> 7566302116 | AN11: =VLOOKUP($A$6,aidcalc,10 ) -> 7969443892
A12: 1 | B12: ="Chapter 70 "&PYr -> Chapter 70 FY24 | C12: =VLOOKUP(A6,aidcalc,6) -> 6592314528 | E12: Foundation budget | F12: =VLOOKUP(A6,disthist,62) -> 1.396338987e+10 | G12: =VLOOKUP(A6,aidcalc,9) -> 1.451853967e+10 | H12: =G12-F12 -> 555149793.1 | I12: =IF(F12>0, H12/F12, 0) -> 0.03975752294 | T12: C70 Aid | U12: =VLOOKUP($A$6,disthist,6) -> 3288603062 | V12: =VLOOKUP($A$6,disthist,9) -> 3505192039 | W12: =VLOOKUP($A$6,disthist,12) -> 3725343327 | X12: =VLOOKUP($A$6,disthist,15)+VLOOKUP($A$6,disthist,16) -> 3948496062 | Y12: =VLOOKUP($A$6,disthist,19)+VLOOKUP($A$6,disthist,20) -> 4043156700 | Z12: =VLOOKUP($A$6,disthist,23)+VLOOKUP($A$6,disthist,24)+VLOOKUP($A$6,disthist,25) -> 4072032853 | AA12: =VLOOKUP($A$6,disthist,28) -> 3990504093 | AB12: =VLOOKUP($A$6,disthist,31) -> 4173223954 | AC12: =VLOOKUP($A$6,disthist,34) -> 4300854366 | AD12: =VLOOKUP($A$6,disthist,37) -> 4400335962 | AE12: =VLOOKUP($A$6,disthist,40) -> 4511521974 | AF12: =VLOOKUP($A$6,disthist,43) -> 4627705061 | AG12: =VLOOKUP($A$6,disthist,46) -> 4745645156 | AH12: =VLOOKUP($A$6,disthist,49) -> 4906614766 | AI12: =VLOOKUP($A$6,disthist,52) -> 5175694094 | AJ12: =VLOOKUP($A$6,disthist,55) -> 5283343073 | AK12: =VLOOKUP($A$6,disthist,58) -> 5502959667 | AL12: =VLOOKUP($A$6,disthist,61) -> 5997901329 | AM12: =VLOOKUP($A$6,disthist,64) -> 6592314528 | AN12: =VLOOKUP($A$6,aidcalc,25) -> 6855719330
E13: Required district contribution | F13: =VLOOKUP(A6,disthist,63) -> 7566302116 | G13: =VLOOKUP($A$6, aidcalc, 10) -> 7969443892 | H13: =G13-F13 -> 403141776 | I13: =IF(F13>0, H13/F13, 0) -> 0.05328121582 | T13: Foundation Budget | U13: =VLOOKUP($A$6,disthist,4) -> 7551933454 | V13: =VLOOKUP($A$6,disthist,7) -> 8014672861 | W13: =VLOOKUP($A$6,disthist,10) -> 8406096436 | X13: =VLOOKUP($A$6,disthist,13) -> 8811314229 | Y13: =VLOOKUP($A$6,disthist,17) -> 9088557473 | Z13: =VLOOKUP($A$6,disthist,21) -> 8921047970 | AA13: =VLOOKUP($A$6,disthist,26) -> 9119340580 | AB13: =VLOOKUP($A$6,disthist,29) -> 9467117141 | AC13: =VLOOKUP($A$6,disthist, 32) -> 9711217585 | AD13: =VLOOKUP($A$6,disthist, 35) -> 9866011313 | AE13: =VLOOKUP($A$6,disthist, 38) -> 1.009017727e+10 | AF13: =VLOOKUP($A$6,disthist, 41) -> 1.012823838e+10 | AG13: =VLOOKUP($A$6,disthist, 44) -> 1.037917384e+10 | AH13: =VLOOKUP($A$6,disthist, 47) -> 1.077758855e+10 | AI13: =VLOOKUP($A$6,disthist, 50) -> 1.135904851e+10 | AJ13: =VLOOKUP($A$6,disthist, 53) -> 1.16265311e+10 | AK13: =VLOOKUP($A$6,disthist, 56) -> 1.192622579e+10 | AL13: =VLOOKUP($A$6,disthist, 59) -> 1.289033588e+10 | AM13: =VLOOKUP($A$6,disthist, 62) -> 1.396338987e+10 | AN13: =VLOOKUP($A$6,aidcalc,9 ) -> 1.451853967e+10
A14: Foundation Aid | E14: Chapter 70 aid | F14: =IF(A6=999,VLOOKUP(A6,disthist,64,0)+308558,VLOOKUP(A6,disthist,64,0)) -> 6592623086 | G14: =IF(A6=999,VLOOKUP($A$6,aidcalc,25,0)+308558,VLOOKUP($A$6,aidcalc,25,0)) -> 6856027888 | H14: =G14-F14 -> 263404802.2 | I14: =IF(F14>0, H14/F14, 0) -> 0.0399544762
A15: 2 | B15: ="Foundation budget "&CYr -> Foundation budget FY25 | C15: =VLOOKUP($A$6, aidcalc, 9) -> 1.451853967e+10 | E15: Required net school spending (NSS) | F15: =F13+F14 -> 1.41589252e+10 | G15: =G13+G14 -> 1.482547178e+10 | H15: =G15-F15 -> 666546578.2 | I15: =IF(F15>0, H15/F15, 0) -> 0.04707607171
A16: 3 | B16: ="Required district contribution "& CYr -> Required district contribution FY25 | C16: =VLOOKUP($A$6, aidcalc, 10) -> 7969443892
A17: 4 | B17: Foundation aid (2 -3) | C17: =VLOOKUP($A$6, aidcalc, 11) -> 6549095775 | E17: Target aid share | F17: =VLOOKUP(A$6,disthist,3)/100 -> 0.41 | G17: =VLOOKUP(A6,aidcalc,13)/100 -> 0.41
A18: 5 | B18: ="Increase over " & PYr&" (4 - 1)" -> Increase over FY24 (4 - 1) | C18: =VLOOKUP($A$6, aidcalc, 12) -> 249461924 | E18: C70 % of foundation | F18: =IF(F12>0,F14/F12,IF(F14>0,1,0)) -> 0.4721362897 | G18: =IF(G12>0,G14/G12,IF(G14>0,1,0)) -> 0.4722257228
A20: Minimum Aid | E20: Required NSS % of foundation | F20: =IF(F12>0,F15/F12,IF(F15>0,1,0)) -> 1.014003428 | G20: =IF(G12>0,G15/G12,IF(G15>0,1,0)) -> 1.021140702
A21: 6 | B21: ="Minimum $"&parameters!$C$14&" per pupil increase" -> Minimum $30 per pupil increase | C21: =IF(A6=999,"",VLOOKUP($A$6,aidcalc,17,0)) -> 
A22: 7 | B22: Minimum aid amount
B23: (if line 6 - line 5 > 0, then line 6 - line 5, otherwise 0) | C23: =VLOOKUP($A$6, aidcalc, 18,0) -> 13961966.49
A25: Subtotal
A26: 8 | B26: Sum of 1,5,7 | C26: =C12+C18+C23 -> 6855738418
A28: Minimum Aid Adjustment
A29: 9 | B29: Minimum aid adjustment | C29: =IF(A6=999,"",VLOOKUP($A$6, aidcalc, 20)) -> 
A30: 10 | B30: Aid adjustment increment
B31: (if line 9 - line 8 > 0, then line 9 - line 8, otherwise 0) | C31: =VLOOKUP($A$6, aidcalc, 21, FALSE) -> 1.360604074e-09
A33: Non-Operating District Reduction to Foundation
A34: 11 | B34: Reduction to foundation | C34: =VLOOKUP($A$6, aidcalc, 23) -> 464306.34
A36: Hold Harmless Aid
A37: 12 | B37: Hold harmless aid | C37: =VLOOKUP($A$6, aidcalc, 24) -> 445218
A39: =CYr&" Chapter 70 Aid" -> FY25 Chapter 70 Aid
A40: 13 | B40: Sum of 1,5,7,10, 12 minus 11 | C40: =VLOOKUP($A$6, aidcalc, 25) -> 6855719330
B41: =IF(A6=999,"with Devens aid","") -> with Devens aid | C41: =IF(A6=999,C40+308558,"") -> 6856027888
A43: Note on Minimum Aid Adjustment on lines 9 and 10:
A44: The minimum aid adjustment is the sum of (a) the greater of foundation aid or base aid determined based on the FY21 base and incremental rates, inflated to FY24, and (b) foundation enrollment multiplied by $30. The aid adjustment increment (line 10) is the line 9 amount less the line 8 amount if the difference is positive. Otherwise, the increment is zero.

Sheet Regional District Members
E2: Return to Index
F3: Select or type full regional district name below
E4: =VLOOKUP(reg_order, regdistricts, 3, FALSE) -> 600 | F4: Acton Boxborough | G4: =VLOOKUP(F4,leas!$E$450:$H$536,4,FALSE) -> 1
E6: Massachusetts Department of Elementary and Secondary Education
E7: Office of School Finance
E8: =CYr&" Chapter 70" -> FY25 Chapter 70
E9: Regional District Enrollment and Contributions by Member City or Town
E10: The table below presents the minimum required local contribution for each member to the selected regional district.
E11: Note: A city or town might belong to more than one regional district (e.g., a regional district and a vocational district) and therefore be required to contribute to multiple districts. See the regional allocation tab for a full list of minimum required contributions for each city or town. Foundation enrollments are presented as whole numbers. The change column reflects differences prior to rounding.
B12: =VLOOKUP(E4, leas!D6:G445, 4, FALSE) -> 0600 | D12: 2 | E12: =VLOOKUP(reg_order, regdistricts, 2, FALSE) -> 600 Acton Boxborough
G14: Foundation Enrollment in Regional District | J14: Required Minimum Contribution to Regional District
B16: =VLOOKUP($E$4, regcount, 2, FALSE) -> 2 | E16: LEA | F16: Member | G16: =PYr -> FY24 | H16: =CYr -> FY25 | I16: Change | J16: =PYr -> FY24 | K16: =CYr -> FY25 | L16: Change
F18: Total | G18: =SUM(G20:G67) -> 5020 | H18: =SUM(H20:H67) -> 4960 | I18: =SUM(I20:I67) -> -60 | J18: =SUM(J20:J67) -> 50399193 | K18: =SUM(K20:K67) -> 52314273 | L18: =SUM(L20:L62) -> 1915080
A20: =IF($C20<=$B$16,VLOOKUP(E20,leas!D6:G445,4,FALSE),"") -> 0002 | B20: =$E$4*100+C20 -> 60001 | C20: 1 | E20: =IF($C20<=$B$16, VLOOKUP($B20, regdetail, 5), " ") -> 2 | F20: =IF($C20<=$B$16, VLOOKUP($B20, regdetail, 6), " ") -> Acton | G20: =IF($C20<=$B$16,VLOOKUP(A20&$B$12, localcont!A10:X1764, 18, FALSE), "") -> 4160.188346 | H20: =IF($C20<=$B$16,VLOOKUP(A20&$B$12, localcont!$A$10:$X$1764, 23, FALSE), "") -> 4082.280285 | I20: =IF($C20<=$B$16, H20-G20, " ") -> -77.90806101 | J20: =IF($C20<=$B$16,VLOOKUP(A20&$B$12, localcont!$A$10:$X$1764, 15, FALSE), "") -> 41971918 | K20: =IF($C20<=$B$16,VLOOKUP(A20&$B$12, localcont!$A$10:$X$1764, 14, FALSE),"") -> 43461512 | L20: =IF($C20<=$B$16, K20-J20, " ") -> 1489594
A21: =IF($C21<=$B$16,VLOOKUP(E21,leas!D7:G446,4,FALSE),"") -> 0037 | B21: =$E$4*100+C21 -> 60002 | C21: 2 | E21: 37 | F21: Boxborough | G21: =IF($C21<=$B$16,VLOOKUP(A21&$B$12, localcont!A11:X1765, 18, FALSE), "") -> 859.8116539 | H21: =IF($C21<=$B$16,VLOOKUP(A21&$B$12, localcont!$A$10:$X$1764, 23, FALSE), "") -> 877.719715 | I21: =IF($C21<=$B$16, H21-G21, " ") -> 17.90806101 | J21: =IF($C21<=$B$16,VLOOKUP(A21&$B$12, localcont!$A$10:$X$1764, 15, FALSE), "") -> 8427275 | K21: =IF($C21<=$B$16,VLOOKUP(A21&$B$12, localcont!$A$10:$X$1764, 14, FALSE),"") -> 8852761 | L21: =IF($C21<=$B$16, K21-J21, " ") -> 425486
A22: =IF($C22<=$B$16,VLOOKUP(E22,leas!D8:G447,4,FALSE),"") ->  | B22: 60003 | C22: 3 | G22: =IF($C22<=$B$16,VLOOKUP(A22&$B$12, localcont!A12:X1766, 18, FALSE), "") ->  | H22: =IF($C22<=$B$16,VLOOKUP(A22&$B$12, localcont!$A$10:$X$1764, 23, FALSE), "") ->  | J22: =IF($C22<=$B$16,VLOOKUP(A22&$B$12, localcont!$A$10:$X$1764, 15, FALSE), "") ->  | K22: =IF($C22<=$B$16,VLOOKUP(A22&$B$12, localcont!$A$10:$X$1764, 14, FALSE),"") -> 
A23: =IF($C23<=$B$16,VLOOKUP(E23,leas!D9:G448,4,FALSE),"") ->  | B23: 60004 | C23: 4 | G23: =IF($C23<=$B$16,VLOOKUP(A23&$B$12, localcont!A13:X1767, 18, FALSE), "") ->  | H23: =IF($C23<=$B$16,VLOOKUP(A23&$B$12, localcont!$A$10:$X$1764, 23, FALSE), "") ->  | J23: =IF($C23<=$B$16,VLOOKUP(A23&$B$12, localcont!$A$10:$X$1764, 15, FALSE), "") ->  | K23: =IF($C23<=$B$16,VLOOKUP(A23&$B$12, localcont!$A$10:$X$1764, 14, FALSE),"") -> 
A24: =IF($C24<=$B$16,VLOOKUP(E24,leas!D10:G449,4,FALSE),"") ->  | B24: 60005 | C24: 5 | G24: =IF($C24<=$B$16,VLOOKUP(A24&$B$12, localcont!A14:X1768, 18, FALSE), "") ->  | H24: =IF($C24<=$B$16,VLOOKUP(A24&$B$12, localcont!$A$10:$X$1764, 23, FALSE), "") ->  | J24: =IF($C24<=$B$16,VLOOKUP(A24&$B$12, localcont!$A$10:$X$1764, 15, FALSE), "") ->  | K24: =IF($C24<=$B$16,VLOOKUP(A24&$B$12, localcont!$A$10:$X$1764, 14, FALSE),"") -> 
A25: =IF($C25<=$B$16,VLOOKUP(E25,leas!D11:G450,4,FALSE),"") ->  | B25: 60006 | C25: 6 | G25: =IF($C25<=$B$16,VLOOKUP(A25&$B$12, localcont!A15:X1769, 18, FALSE), "") ->  | H25: =IF($C25<=$B$16,VLOOKUP(A25&$B$12, localcont!$A$10:$X$1764, 23, FALSE), "") ->  | J25: =IF($C25<=$B$16,VLOOKUP(A25&$B$12, localcont!$A$10:$X$1764, 15, FALSE), "") ->  | K25: =IF($C25<=$B$16,VLOOKUP(A25&$B$12, localcont!$A$10:$X$1764, 14, FALSE),"") -> 
A26: =IF($C26<=$B$16,VLOOKUP(E26,leas!D12:G451,4,FALSE),"") ->  | B26: 60007 | C26: 7 | G26: =IF($C26<=$B$16,VLOOKUP(A26&$B$12, localcont!A16:X1770, 18, FALSE), "") ->  | H26: =IF($C26<=$B$16,VLOOKUP(A26&$B$12, localcont!$A$10:$X$1764, 23, FALSE), "") ->  | J26: =IF($C26<=$B$16,VLOOKUP(A26&$B$12, localcont!$A$10:$X$1764, 15, FALSE), "") ->  | K26: =IF($C26<=$B$16,VLOOKUP(A26&$B$12, localcont!$A$10:$X$1764, 14, FALSE),"") -> 
A27: =IF($C27<=$B$16,VLOOKUP(E27,leas!D13:G452,4,FALSE),"") ->  | B27: 60008 | C27: 8 | G27: =IF($C27<=$B$16,VLOOKUP(A27&$B$12, localcont!A17:X1771, 18, FALSE), "") ->  | H27: =IF($C27<=$B$16,VLOOKUP(A27&$B$12, localcont!$A$10:$X$1764, 23, FALSE), "") ->  | J27: =IF($C27<=$B$16,VLOOKUP(A27&$B$12, localcont!$A$10:$X$1764, 15, FALSE), "") ->  | K27: =IF($C27<=$B$16,VLOOKUP(A27&$B$12, localcont!$A$10:$X$1764, 14, FALSE),"") -> 
A28: =IF($C28<=$B$16,VLOOKUP(E28,leas!D14:G453,4,FALSE),"") ->  | B28: 60009 | C28: 9 | G28: =IF($C28<=$B$16,VLOOKUP(A28&$B$12, localcont!A18:X1772, 18, FALSE), "") ->  | H28: =IF($C28<=$B$16,VLOOKUP(A28&$B$12, localcont!$A$10:$X$1764, 23, FALSE), "") ->  | J28: =IF($C28<=$B$16,VLOOKUP(A28&$B$12, localcont!$A$10:$X$1764, 15, FALSE), "") ->  | K28: =IF($C28<=$B$16,VLOOKUP(A28&$B$12, localcont!$A$10:$X$1764, 14, FALSE),"") -> 
A29: =IF($C29<=$B$16,VLOOKUP(E29,leas!D15:G454,4,FALSE),"") ->  | B29: 60010 | C29: 10 | G29: =IF($C29<=$B$16,VLOOKUP(A29&$B$12, localcont!A19:X1773, 18, FALSE), "") ->  | H29: =IF($C29<=$B$16,VLOOKUP(A29&$B$12, localcont!$A$10:$X$1764, 23, FALSE), "") ->  | J29: =IF($C29<=$B$16,VLOOKUP(A29&$B$12, localcont!$A$10:$X$1764, 15, FALSE), "") ->  | K29: =IF($C29<=$B$16,VLOOKUP(A29&$B$12, localcont!$A$10:$X$1764, 14, FALSE),"") -> 
A30: =IF($C30<=$B$16,VLOOKUP(E30,leas!D16:G455,4,FALSE),"") ->  | B30: 60011 | C30: 11 | G30: =IF($C30<=$B$16,VLOOKUP(A30&$B$12, localcont!A20:X1774, 18, FALSE), "") ->  | H30: =IF($C30<=$B$16,VLOOKUP(A30&$B$12, localcont!$A$10:$X$1764, 23, FALSE), "") ->  | J30: =IF($C30<=$B$16,VLOOKUP(A30&$B$12, localcont!$A$10:$X$1764, 15, FALSE), "") ->  | K30: =IF($C30<=$B$16,VLOOKUP(A30&$B$12, localcont!$A$10:$X$1764, 14, FALSE),"") -> 
A31: =IF($C31<=$B$16,VLOOKUP(E31,leas!D17:G456,4,FALSE),"") ->  | B31: 60012 | C31: 12 | G31: =IF($C31<=$B$16,VLOOKUP(A31&$B$12, localcont!A21:X1775, 18, FALSE), "") ->  | H31: =IF($C31<=$B$16,VLOOKUP(A31&$B$12, localcont!$A$10:$X$1764, 23, FALSE), "") ->  | J31: =IF($C31<=$B$16,VLOOKUP(A31&$B$12, localcont!$A$10:$X$1764, 15, FALSE), "") ->  | K31: =IF($C31<=$B$16,VLOOKUP(A31&$B$12, localcont!$A$10:$X$1764, 14, FALSE),"") -> 
A32: =IF($C32<=$B$16,VLOOKUP(E32,leas!D18:G457,4,FALSE),"") ->  | B32: 60013 | C32: 13 | G32: =IF($C32<=$B$16,VLOOKUP(A32&$B$12, localcont!A22:X1776, 18, FALSE), "") ->  | H32: =IF($C32<=$B$16,VLOOKUP(A32&$B$12, localcont!$A$10:$X$1764, 23, FALSE), "") ->  | J32: =IF($C32<=$B$16,VLOOKUP(A32&$B$12, localcont!$A$10:$X$1764, 15, FALSE), "") ->  | K32: =IF($C32<=$B$16,VLOOKUP(A32&$B$12, localcont!$A$10:$X$1764, 14, FALSE),"") -> 
A33: =IF($C33<=$B$16,VLOOKUP(E33,leas!D19:G458,4,FALSE),"") ->  | B33: 60014 | C33: 14 | G33: =IF($C33<=$B$16,VLOOKUP(A33&$B$12, localcont!A23:X1777, 18, FALSE), "") ->  | H33: =IF($C33<=$B$16,VLOOKUP(A33&$B$12, localcont!$A$10:$X$1764, 23, FALSE), "") ->  | J33: =IF($C33<=$B$16,VLOOKUP(A33&$B$12, localcont!$A$10:$X$1764, 15, FALSE), "") ->  | K33: =IF($C33<=$B$16,VLOOKUP(A33&$B$12, localcont!$A$10:$X$1764, 14, FALSE),"") -> 
A34: =IF($C34<=$B$16,VLOOKUP(E34,leas!D20:G459,4,FALSE),"") ->  | B34: 60015 | C34: 15 | G34: =IF($C34<=$B$16,VLOOKUP(A34&$B$12, localcont!A24:X1778, 18, FALSE), "") ->  | H34: =IF($C34<=$B$16,VLOOKUP(A34&$B$12, localcont!$A$10:$X$1764, 23, FALSE), "") ->  | J34: =IF($C34<=$B$16,VLOOKUP(A34&$B$12, localcont!$A$10:$X$1764, 15, FALSE), "") ->  | K34: =IF($C34<=$B$16,VLOOKUP(A34&$B$12, localcont!$A$10:$X$1764, 14, FALSE),"") -> 
A35: =IF($C35<=$B$16,VLOOKUP(E35,leas!D21:G460,4,FALSE),"") ->  | B35: 60016 | C35: 16 | G35: =IF($C35<=$B$16,VLOOKUP(A35&$B$12, localcont!A25:X1779, 18, FALSE), "") ->  | H35: =IF($C35<=$B$16,VLOOKUP(A35&$B$12, localcont!$A$10:$X$1764, 23, FALSE), "") ->  | J35: =IF($C35<=$B$16,VLOOKUP(A35&$B$12, localcont!$A$10:$X$1764, 15, FALSE), "") ->  | K35: =IF($C35<=$B$16,VLOOKUP(A35&$B$12, localcont!$A$10:$X$1764, 14, FALSE),"") -> 
A36: =IF($C36<=$B$16,VLOOKUP(E36,leas!D22:G461,4,FALSE),"") ->  | B36: 60017 | C36: 17 | G36: =IF($C36<=$B$16,VLOOKUP(A36&$B$12, localcont!A26:X1780, 18, FALSE), "") ->  | H36: =IF($C36<=$B$16,VLOOKUP(A36&$B$12, localcont!$A$10:$X$1764, 23, FALSE), "") ->  | J36: =IF($C36<=$B$16,VLOOKUP(A36&$B$12, localcont!$A$10:$X$1764, 15, FALSE), "") ->  | K36: =IF($C36<=$B$16,VLOOKUP(A36&$B$12, localcont!$A$10:$X$1764, 14, FALSE),"") -> 
A37: =IF($C37<=$B$16,VLOOKUP(E37,leas!D23:G462,4,FALSE),"") ->  | B37: 60018 | C37: 18 | G37: =IF($C37<=$B$16,VLOOKUP(A37&$B$12, localcont!A27:X1781, 18, FALSE), "") ->  | H37: =IF($C37<=$B$16,VLOOKUP(A37&$B$12, localcont!$A$10:$X$1764, 23, FALSE), "") ->  | J37: =IF($C37<=$B$16,VLOOKUP(A37&$B$12, localcont!$A$10:$X$1764, 15, FALSE), "") ->  | K37: =IF($C37<=$B$16,VLOOKUP(A37&$B$12, localcont!$A$10:$X$1764, 14, FALSE),"") -> 
A38: =IF($C38<=$B$16,VLOOKUP(E38,leas!D24:G463,4,FALSE),"") ->  | B38: 60019 | C38: 19 | G38: =IF($C38<=$B$16,VLOOKUP(A38&$B$12, localcont!A28:X1782, 18, FALSE), "") ->  | H38: =IF($C38<=$B$16,VLOOKUP(A38&$B$12, localcont!$A$10:$X$1764, 23, FALSE), "") ->  | J38: =IF($C38<=$B$16,VLOOKUP(A38&$B$12, localcont!$A$10:$X$1764, 15, FALSE), "") ->  | K38: =IF($C38<=$B$16,VLOOKUP(A38&$B$12, localcont!$A$10:$X$1764, 14, FALSE),"") -> 
A39: =IF($C39<=$B$16,VLOOKUP(E39,leas!D25:G464,4,FALSE),"") ->  | B39: 60020 | C39: 20 | G39: =IF($C39<=$B$16,VLOOKUP(A39&$B$12, localcont!A29:X1783, 18, FALSE), "") ->  | H39: =IF($C39<=$B$16,VLOOKUP(A39&$B$12, localcont!$A$10:$X$1764, 23, FALSE), "") ->  | J39: =IF($C39<=$B$16,VLOOKUP(A39&$B$12, localcont!$A$10:$X$1764, 15, FALSE), "") ->  | K39: =IF($C39<=$B$16,VLOOKUP(A39&$B$12, localcont!$A$10:$X$1764, 14, FALSE),"") -> 
A40: =IF($C40<=$B$16,VLOOKUP(E40,leas!D26:G465,4,FALSE),"") ->  | B40: 60021 | C40: 21 | G40: =IF($C40<=$B$16,VLOOKUP(A40&$B$12, localcont!A30:X1784, 18, FALSE), "") ->  | H40: =IF($C40<=$B$16,VLOOKUP(A40&$B$12, localcont!$A$10:$X$1764, 23, FALSE), "") ->  | J40: =IF($C40<=$B$16,VLOOKUP(A40&$B$12, localcont!$A$10:$X$1764, 15, FALSE), "") ->  | K40: =IF($C40<=$B$16,VLOOKUP(A40&$B$12, localcont!$A$10:$X$1764, 14, FALSE),"") -> 
A41: =IF($C41<=$B$16,VLOOKUP(E41,leas!D27:G466,4,FALSE),"") ->  | B41: 60022 | C41: 22 | G41: =IF($C41<=$B$16,VLOOKUP(A41&$B$12, localcont!A31:X1785, 18, FALSE), "") ->  | H41: =IF($C41<=$B$16,VLOOKUP(A41&$B$12, localcont!$A$10:$X$1764, 23, FALSE), "") ->  | J41: =IF($C41<=$B$16,VLOOKUP(A41&$B$12, localcont!$A$10:$X$1764, 15, FALSE), "") ->  | K41: =IF($C41<=$B$16,VLOOKUP(A41&$B$12, localcont!$A$10:$X$1764, 14, FALSE),"") -> 
A42: =IF($C42<=$B$16,VLOOKUP(E42,leas!D28:G467,4,FALSE),"") ->  | B42: 60023 | C42: 23 | G42: =IF($C42<=$B$16,VLOOKUP(A42&$B$12, localcont!A32:X1786, 18, FALSE), "") ->  | H42: =IF($C42<=$B$16,VLOOKUP(A42&$B$12, localcont!$A$10:$X$1764, 23, FALSE), "") ->  | J42: =IF($C42<=$B$16,VLOOKUP(A42&$B$12, localcont!$A$10:$X$1764, 15, FALSE), "") ->  | K42: =IF($C42<=$B$16,VLOOKUP(A42&$B$12, localcont!$A$10:$X$1764, 14, FALSE),"") -> 
A43: =IF($C43<=$B$16,VLOOKUP(E43,leas!D29:G468,4,FALSE),"") ->  | B43: 60024 | C43: 24 | G43: =IF($C43<=$B$16,VLOOKUP(A43&$B$12, localcont!A33:X1787, 18, FALSE), "") ->  | H43: =IF($C43<=$B$16,VLOOKUP(A43&$B$12, localcont!$A$10:$X$1764, 23, FALSE), "") ->  | J43: =IF($C43<=$B$16,VLOOKUP(A43&$B$12, localcont!$A$10:$X$1764, 15, FALSE), "") ->  | K43: =IF($C43<=$B$16,VLOOKUP(A43&$B$12, localcont!$A$10:$X$1764, 14, FALSE),"") -> 
A44: =IF($C44<=$B$16,VLOOKUP(E44,leas!D30:G469,4,FALSE),"") ->  | B44: 60025 | C44: 25 | G44: =IF($C44<=$B$16,VLOOKUP(A44&$B$12, localcont!A34:X1788, 18, FALSE), "") ->  | H44: =IF($C44<=$B$16,VLOOKUP(A44&$B$12, localcont!$A$10:$X$1764, 23, FALSE), "") ->  | J44: =IF($C44<=$B$16,VLOOKUP(A44&$B$12, localcont!$A$10:$X$1764, 15, FALSE), "") ->  | K44: =IF($C44<=$B$16,VLOOKUP(A44&$B$12, localcont!$A$10:$X$1764, 14, FALSE),"") -> 
A45: =IF($C45<=$B$16,VLOOKUP(E45,leas!D31:G470,4,FALSE),"") ->  | B45: 60026 | C45: 26 | G45: =IF($C45<=$B$16,VLOOKUP(A45&$B$12, localcont!A35:X1789, 18, FALSE), "") ->  | H45: =IF($C45<=$B$16,VLOOKUP(A45&$B$12, localcont!$A$10:$X$1764, 23, FALSE), "") ->  | J45: =IF($C45<=$B$16,VLOOKUP(A45&$B$12, localcont!$A$10:$X$1764, 15, FALSE), "") ->  | K45: =IF($C45<=$B$16,VLOOKUP(A45&$B$12, localcont!$A$10:$X$1764, 14, FALSE),"") -> 
A46: =IF($C46<=$B$16,VLOOKUP(E46,leas!D32:G471,4,FALSE),"") ->  | B46: 60027 | C46: 27 | G46: =IF($C46<=$B$16,VLOOKUP(A46&$B$12, localcont!A36:X1790, 18, FALSE), "") ->  | H46: =IF($C46<=$B$16,VLOOKUP(A46&$B$12, localcont!$A$10:$X$1764, 23, FALSE), "") ->  | J46: =IF($C46<=$B$16,VLOOKUP(A46&$B$12, localcont!$A$10:$X$1764, 15, FALSE), "") ->  | K46: =IF($C46<=$B$16,VLOOKUP(A46&$B$12, localcont!$A$10:$X$1764, 14, FALSE),"") -> 
A47: =IF($C47<=$B$16,VLOOKUP(E47,leas!D33:G472,4,FALSE),"") ->  | B47: 60028 | C47: 28 | G47: =IF($C47<=$B$16,VLOOKUP(A47&$B$12, localcont!A37:X1791, 18, FALSE), "") ->  | H47: =IF($C47<=$B$16,VLOOKUP(A47&$B$12, localcont!$A$10:$X$1764, 23, FALSE), "") ->  | J47: =IF($C47<=$B$16,VLOOKUP(A47&$B$12, localcont!$A$10:$X$1764, 15, FALSE), "") ->  | K47: =IF($C47<=$B$16,VLOOKUP(A47&$B$12, localcont!$A$10:$X$1764, 14, FALSE),"") -> 
A48: =IF($C48<=$B$16,VLOOKUP(E48,leas!D34:G473,4,FALSE),"") ->  | B48: 60029 | C48: 29 | G48: =IF($C48<=$B$16,VLOOKUP(A48&$B$12, localcont!A38:X1792, 18, FALSE), "") ->  | H48: =IF($C48<=$B$16,VLOOKUP(A48&$B$12, localcont!$A$10:$X$1764, 23, FALSE), "") ->  | J48: =IF($C48<=$B$16,VLOOKUP(A48&$B$12, localcont!$A$10:$X$1764, 15, FALSE), "") ->  | K48: =IF($C48<=$B$16,VLOOKUP(A48&$B$12, localcont!$A$10:$X$1764, 14, FALSE),"") -> 
A49: =IF($C49<=$B$16,VLOOKUP(E49,leas!D35:G474,4,FALSE),"") ->  | B49: 60030 | C49: 30 | G49: =IF($C49<=$B$16,VLOOKUP(A49&$B$12, localcont!A39:X1793, 18, FALSE), "") ->  | H49: =IF($C49<=$B$16,VLOOKUP(A49&$B$12, localcont!$A$10:$X$1764, 23, FALSE), "") ->  | J49: =IF($C49<=$B$16,VLOOKUP(A49&$B$12, localcont!$A$10:$X$1764, 15, FALSE), "") ->  | K49: =IF($C49<=$B$16,VLOOKUP(A49&$B$12, localcont!$A$10:$X$1764, 14, FALSE),"") -> 
A50: =IF($C50<=$B$16,VLOOKUP(E50,leas!D36:G475,4,FALSE),"") ->  | B50: 60031 | C50: 31 | G50: =IF($C50<=$B$16,VLOOKUP(A50&$B$12, localcont!A40:X1794, 18, FALSE), "") ->  | H50: =IF($C50<=$B$16,VLOOKUP(A50&$B$12, localcont!$A$10:$X$1764, 23, FALSE), "") ->  | J50: =IF($C50<=$B$16,VLOOKUP(A50&$B$12, localcont!$A$10:$X$1764, 15, FALSE), "") ->  | K50: =IF($C50<=$B$16,VLOOKUP(A50&$B$12, localcont!$A$10:$X$1764, 14, FALSE),"") -> 
A51: =IF($C51<=$B$16,VLOOKUP(E51,leas!D37:G476,4,FALSE),"") ->  | B51: 60032 | C51: 32 | G51: =IF($C51<=$B$16,VLOOKUP(A51&$B$12, localcont!A41:X1795, 18, FALSE), "") ->  | H51: =IF($C51<=$B$16,VLOOKUP(A51&$B$12, localcont!$A$10:$X$1764, 23, FALSE), "") ->  | J51: =IF($C51<=$B$16,VLOOKUP(A51&$B$12, localcont!$A$10:$X$1764, 15, FALSE), "") ->  | K51: =IF($C51<=$B$16,VLOOKUP(A51&$B$12, localcont!$A$10:$X$1764, 14, FALSE),"") -> 
A52: =IF($C52<=$B$16,VLOOKUP(E52,leas!D38:G477,4,FALSE),"") ->  | B52: 60033 | C52: 33 | F52: =IF($C52<=$B$16, VLOOKUP($B52, regdetail, 6), " ") ->  | G52: =IF($C52<=$B$16,VLOOKUP(A52&$B$12, localcont!A42:X1796, 18, FALSE), "") ->  | H52: =IF($C52<=$B$16,VLOOKUP(A52&$B$12, localcont!$A$10:$X$1764, 23, FALSE), "") ->  | J52: =IF($C52<=$B$16,VLOOKUP(A52&$B$12, localcont!$A$10:$X$1764, 15, FALSE), "") ->  | K52: =IF($C52<=$B$16,VLOOKUP(A52&$B$12, localcont!$A$10:$X$1764, 14, FALSE),"") -> 
A53: =IF($C53<=$B$16,VLOOKUP(E53,leas!D39:G478,4,FALSE),"") ->  | B53: 60034 | C53: 34 | G53: =IF($C53<=$B$16,VLOOKUP(A53&$B$12, localcont!A43:X1797, 18, FALSE), "") ->  | H53: =IF($C53<=$B$16,VLOOKUP(A53&$B$12, localcont!$A$10:$X$1764, 23, FALSE), "") ->  | J53: =IF($C53<=$B$16,VLOOKUP(A53&$B$12, localcont!$A$10:$X$1764, 15, FALSE), "") ->  | K53: =IF($C53<=$B$16,VLOOKUP(A53&$B$12, localcont!$A$10:$X$1764, 14, FALSE),"") -> 
A54: =IF($C54<=$B$16,VLOOKUP(E54,leas!D40:G479,4,FALSE),"") ->  | B54: 60035 | C54: 35 | G54: =IF($C54<=$B$16,VLOOKUP(A54&$B$12, localcont!A44:X1798, 18, FALSE), "") ->  | H54: =IF($C54<=$B$16,VLOOKUP(A54&$B$12, localcont!$A$10:$X$1764, 23, FALSE), "") ->  | J54: =IF($C54<=$B$16,VLOOKUP(A54&$B$12, localcont!$A$10:$X$1764, 15, FALSE), "") ->  | K54: =IF($C54<=$B$16,VLOOKUP(A54&$B$12, localcont!$A$10:$X$1764, 14, FALSE),"") -> 
A55: =IF($C55<=$B$16,VLOOKUP(E55,leas!D41:G480,4,FALSE),"") ->  | B55: 60036 | C55: 36 | G55: =IF($C55<=$B$16,VLOOKUP(A55&$B$12, localcont!A45:X1799, 18, FALSE), "") ->  | H55: =IF($C55<=$B$16,VLOOKUP(A55&$B$12, localcont!$A$10:$X$1764, 23, FALSE), "") ->  | J55: =IF($C55<=$B$16,VLOOKUP(A55&$B$12, localcont!$A$10:$X$1764, 15, FALSE), "") ->  | K55: =IF($C55<=$B$16,VLOOKUP(A55&$B$12, localcont!$A$10:$X$1764, 14, FALSE),"") -> 
A56: =IF($C56<=$B$16,VLOOKUP(E56,leas!D42:G481,4,FALSE),"") ->  | B56: 60037 | C56: 37 | G56: =IF($C56<=$B$16,VLOOKUP(A56&$B$12, localcont!A46:X1800, 18, FALSE), "") ->  | H56: =IF($C56<=$B$16,VLOOKUP(A56&$B$12, localcont!$A$10:$X$1764, 23, FALSE), "") ->  | J56: =IF($C56<=$B$16,VLOOKUP(A56&$B$12, localcont!$A$10:$X$1764, 15, FALSE), "") ->  | K56: =IF($C56<=$B$16,VLOOKUP(A56&$B$12, localcont!$A$10:$X$1764, 14, FALSE),"") -> 
A57: =IF($C57<=$B$16,VLOOKUP(E57,leas!D43:G482,4,FALSE),"") ->  | B57: 60038 | C57: 38 | G57: =IF($C57<=$B$16,VLOOKUP(A57&$B$12, localcont!A47:X1801, 18, FALSE), "") ->  | H57: =IF($C57<=$B$16,VLOOKUP(A57&$B$12, localcont!$A$10:$X$1764, 23, FALSE), "") ->  | J57: =IF($C57<=$B$16,VLOOKUP(A57&$B$12, localcont!$A$10:$X$1764, 15, FALSE), "") ->  | K57: =IF($C57<=$B$16,VLOOKUP(A57&$B$12, localcont!$A$10:$X$1764, 14, FALSE),"") -> 
A58: =IF($C58<=$B$16,VLOOKUP(E58,leas!D44:G483,4,FALSE),"") ->  | B58: 60039 | C58: 39 | G58: =IF($C58<=$B$16,VLOOKUP(A58&$B$12, localcont!A48:X1802, 18, FALSE), "") ->  | H58: =IF($C58<=$B$16,VLOOKUP(A58&$B$12, localcont!$A$10:$X$1764, 23, FALSE), "") ->  | J58: =IF($C58<=$B$16,VLOOKUP(A58&$B$12, localcont!$A$10:$X$1764, 15, FALSE), "") ->  | K58: =IF($C58<=$B$16,VLOOKUP(A58&$B$12, localcont!$A$10:$X$1764, 14, FALSE),"") -> 
A59: =IF($C59<=$B$16,VLOOKUP(E59,leas!D45:G484,4,FALSE),"") ->  | B59: 60040 | C59: 40 | G59: =IF($C59<=$B$16,VLOOKUP(A59&$B$12, localcont!A49:X1803, 18, FALSE), "") ->  | H59: =IF($C59<=$B$16,VLOOKUP(A59&$B$12, localcont!$A$10:$X$1764, 23, FALSE), "") ->  | J59: =IF($C59<=$B$16,VLOOKUP(A59&$B$12, localcont!$A$10:$X$1764, 15, FALSE), "") ->  | K59: =IF($C59<=$B$16,VLOOKUP(A59&$B$12, localcont!$A$10:$X$1764, 14, FALSE),"") -> 
A60: =IF($C60<=$B$16,VLOOKUP(E60,leas!D46:G485,4,FALSE),"") ->  | B60: 60041 | C60: 41 | G60: =IF($C60<=$B$16,VLOOKUP(A60&$B$12, localcont!A50:X1804, 18, FALSE), "") ->  | H60: =IF($C60<=$B$16,VLOOKUP(A60&$B$12, localcont!$A$10:$X$1764, 23, FALSE), "") ->  | J60: =IF($C60<=$B$16,VLOOKUP(A60&$B$12, localcont!$A$10:$X$1764, 15, FALSE), "") ->  | K60: =IF($C60<=$B$16,VLOOKUP(A60&$B$12, localcont!$A$10:$X$1764, 14, FALSE),"") -> 
A61: =IF($C61<=$B$16,VLOOKUP(E61,leas!D47:G486,4,FALSE),"") ->  | B61: 60042 | C61: 42 | G61: =IF($C61<=$B$16,VLOOKUP(A61&$B$12, localcont!A51:X1805, 18, FALSE), "") ->  | H61: =IF($C61<=$B$16,VLOOKUP(A61&$B$12, localcont!$A$10:$X$1764, 23, FALSE), "") ->  | J61: =IF($C61<=$B$16,VLOOKUP(A61&$B$12, localcont!$A$10:$X$1764, 15, FALSE), "") ->  | K61: =IF($C61<=$B$16,VLOOKUP(A61&$B$12, localcont!$A$10:$X$1764, 14, FALSE),"") -> 
A62: =IF($C62<=$B$16,VLOOKUP(E62,leas!D48:G487,4,FALSE),"") ->  | B62: 60043 | C62: 43 | G62: =IF($C62<=$B$16,VLOOKUP(A62&$B$12, localcont!A52:X1806, 18, FALSE), "") ->  | H62: =IF($C62<=$B$16,VLOOKUP(A62&$B$12, localcont!$A$10:$X$1764, 23, FALSE), "") ->  | J62: =IF($C62<=$B$16,VLOOKUP(A62&$B$12, localcont!$A$10:$X$1764, 15, FALSE), "") ->  | K62: =IF($C62<=$B$16,VLOOKUP(A62&$B$12, localcont!$A$10:$X$1764, 14, FALSE),"") -> 
A63: =IF($C63<=$B$16,VLOOKUP(E63,leas!D49:G488,4,FALSE),"") ->  | B63: 60044 | C63: 44 | G63: =IF($C63<=$B$16,VLOOKUP(A63&$B$12, localcont!A53:X1807, 18, FALSE), "") ->  | H63: =IF($C63<=$B$16,VLOOKUP(A63&$B$12, localcont!$A$10:$X$1764, 23, FALSE), "") ->  | J63: =IF($C63<=$B$16,VLOOKUP(A63&$B$12, localcont!$A$10:$X$1764, 15, FALSE), "") ->  | K63: =IF($C63<=$B$16,VLOOKUP(A63&$B$12, localcont!$A$10:$X$1764, 14, FALSE),"") ->  | P63: =IF($C63>$B$16,"",O63*$P$13) -> 
A64: =IF($C64<=$B$16,VLOOKUP(E64,leas!D50:G489,4,FALSE),"") ->  | B64: 60045 | C64: 45 | G64: =IF($C64<=$B$16,VLOOKUP(A64&$B$12, localcont!A54:X1808, 18, FALSE), "") ->  | H64: =IF($C64<=$B$16,VLOOKUP(A64&$B$12, localcont!$A$10:$X$1764, 23, FALSE), "") ->  | J64: =IF($C64<=$B$16,VLOOKUP(A64&$B$12, localcont!$A$10:$X$1764, 15, FALSE), "") ->  | K64: =IF($C64<=$B$16,VLOOKUP(A64&$B$12, localcont!$A$10:$X$1764, 14, FALSE),"") -> 
A65: =IF($C65<=$B$16,VLOOKUP(E65,leas!D51:G490,4,FALSE),"") ->  | B65: 60046 | C65: 46 | G65: =IF($C65<=$B$16,VLOOKUP(A65&$B$12, localcont!A55:X1809, 18, FALSE), "") ->  | H65: =IF($C65<=$B$16,VLOOKUP(A65&$B$12, localcont!$A$10:$X$1764, 23, FALSE), "") ->  | J65: =IF($C65<=$B$16,VLOOKUP(A65&$B$12, localcont!$A$10:$X$1764, 15, FALSE), "") ->  | K65: =IF($C65<=$B$16,VLOOKUP(A65&$B$12, localcont!$A$10:$X$1764, 14, FALSE),"") -> 
A66: =IF($C66<=$B$16,VLOOKUP(E66,leas!D52:G491,4,FALSE),"") ->  | B66: 60047 | C66: 47 | G66: =IF($C66<=$B$16,VLOOKUP(A66&$B$12, localcont!A56:X1810, 18, FALSE), "") ->  | H66: =IF($C66<=$B$16,VLOOKUP(A66&$B$12, localcont!$A$10:$X$1764, 23, FALSE), "") ->  | J66: =IF($C66<=$B$16,VLOOKUP(A66&$B$12, localcont!$A$10:$X$1764, 15, FALSE), "") ->  | K66: =IF($C66<=$B$16,VLOOKUP(A66&$B$12, localcont!$A$10:$X$1764, 14, FALSE),"") -> 
A67: =IF($C67<=$B$16,VLOOKUP(E67,leas!D53:G492,4,FALSE),"") ->  | B67: 60048 | C67: 48 | G67: =IF($C67<=$B$16,VLOOKUP(A67&$B$12, localcont!A57:X1811, 18, FALSE), "") ->  | H67: =IF($C67<=$B$16,VLOOKUP(A67&$B$12, localcont!$A$10:$X$1764, 23, FALSE), "") ->  | J67: =IF($C67<=$B$16,VLOOKUP(A67&$B$12, localcont!$A$10:$X$1764, 15, FALSE), "") ->  | K67: =IF($C67<=$B$16,VLOOKUP(A67&$B$12, localcont!$A$10:$X$1764, 14, FALSE),"") -> 
A68: =IF($C68<=$B$16,VLOOKUP(E68,leas!D54:G493,4,FALSE),"") ->  | B68: 60049 | C68: 49 | G68: =IF($C68<=$B$16,VLOOKUP(A68&$B$12, localcont!A58:X1812, 18, FALSE), "") ->  | H68: =IF($C68<=$B$16,VLOOKUP(A68&$B$12, localcont!$A$10:$X$1764, 23, FALSE), "") ->  | J68: =IF($C68<=$B$16,VLOOKUP(A68&$B$12, localcont!$A$10:$X$1764, 15, FALSE), "") ->  | K68: =IF($C68<=$B$16,VLOOKUP(A68&$B$12, localcont!$A$10:$X$1764, 14, FALSE),"") -> 

Sheet Comparison to FY24
B1: Return to Index | P1: More about the data
A2: Massachusetts Department of Elementary and Secondary Education
A3: =CYr&" Chapter 70 Comparison to "&PYr -> FY25 Chapter 70 Comparison to FY24
C7: =PYr -> FY24 | D7: =CYr -> FY25 | F7: =PYr -> FY24 | G7: =CYr -> FY25 | I7: =PYr -> FY24 | J7: =CYr -> FY25 | L7: =PYr -> FY24 | M7: =CYr -> FY25
B8: Operating | C8: Foundation | D8: Foundation | F8: Foundation | G8: Foundation | I8: Minimum | J8: Minimum | L8: Chapter 70 | M8: Chapter 70
A9: LEA | B9: District name | C9: Enrollment | D9: Enrollment | E9: change | F9: Budget | G9: Budget | H9: change per pupil | I9: Contribution | J9: Contribution | K9: change per pupil | L9: aid | M9: aid | N9: change in aid | O9: change in aid per pupil | P9: % change in aid
A10: 1 | B10: Abington | C10: =VLOOKUP(A10,aidcalc,14,FALSE) -> 2206 | D10: =VLOOKUP(A10,aidcalc,15,FALSE) -> 2202 | E10: =D10-C10 -> -4 | F10: =VLOOKUP(A10,aidcalc,4,FALSE) -> 31287579.08 | G10: =VLOOKUP(A10,aidcalc,9,FALSE) -> 32218371.7 | H10: =(G10-F10)/$D10 -> 422.7032814 | I10: =VLOOKUP(A10,aidcalc,5,FALSE) -> 17104459 | J10: =VLOOKUP(A10,aidcalc,10,FALSE) -> 17753424 | K10: =(J10-I10)/$D10 -> 294.7161671 | L10: =VLOOKUP(A10,aidcalc,6,FALSE) -> 14183120 | M10: =VLOOKUP(A10,aidcalc,25,FALSE) -> 14464948 | N10: =M10-L10 -> 281828 | O10: =(M10-L10)/$D10 -> 127.9872843 | P10: =ROUND(IF(F10>0,(M10-L10)/L10,100),2) -> 0.02
A11: 3 | B11: Acushnet | C11: 1221 | D11: 1173 | E11: -48 | F11: 15911255.39 | G11: 15616988.59 | H11: -250.8668372 | I11: 8740925 | J11: 8852171 | K11: 94.83887468 | L11: 7170330 | M11: 7205520 | N11: 35190 | O11: 30 | P11: 0
A12: 5 | B12: Agawam | C12: 3421 | D12: 3486 | E12: 65 | F12: 50397491.3 | G12: 52963671.53 | H12: 736.1389071 | I12: 25373043 | J12: 26903037 | K12: 438.8967298 | L12: 25024448 | M12: 26060635 | N12: 1036187 | O12: 297.2423982 | P12: 0.04
A13: 7 | B13: Amesbury | C13: 1847 | D13: 1898 | E13: 51 | F13: 24965747.03 | G13: 26472545.38 | H13: 793.8874341 | I13: 18234602 | J13: 19158918 | K13: 486.9947313 | L13: 9472287 | M13: 9529227 | N13: 56940 | O13: 30 | P13: 0.01
A14: 8 | B14: Amherst | C14: 1055 | D14: 984 | E14: -71 | F14: 14207190.94 | G14: 13465370.21 | H14: -753.8828557 | I14: 11168148 | J14: 11108930 | K14: -60.18089431 | L14: 6280773 | M14: 6310293 | N14: 29520 | O14: 30 | P14: 0
A15: 9 | B15: Andover | C15: 5554 | D15: 5465 | E15: -89 | F15: 72244408.49 | G15: 72585434.36 | H15: 62.4018057 | I15: 58293608 | J15: 59882984 | K15: 290.8281793 | L15: 13950800 | M15: 14114750 | N15: 163950 | O15: 30 | P15: 0.01
A16: 10 | B16: Arlington | C16: 6002 | D16: 6021 | E16: 19 | F16: 74896748.64 | G16: 77440051.96 | H16: 422.4054687 | I16: 56193340 | J16: 58894486 | K16: 448.6208271 | L16: 18703409 | M16: 18884039 | N16: 180630 | O16: 30 | P16: 0.01
A17: 14 | B17: Ashland | C17: 2839 | D17: 2857 | E17: 18 | F17: 36758230.61 | G17: 37765344.57 | H17: 352.5075114 | I17: 25484731 | J17: 26792240 | K17: 457.6510326 | L17: 11273500 | M17: 11359210 | N17: 85710 | O17: 30 | P17: 0.01
A18: 16 | B18: Attleboro | C18: 6238 | D18: 6313 | E18: 75 | F18: 97105120.72 | G18: 101966843.3 | H18: 770.1128671 | I18: 43712969 | J18: 46028688 | K18: 366.8175194 | L18: 53392152 | M18: 55938155 | N18: 2546003 | O18: 403.2952637 | P18: 0.05
A19: 17 | B19: Auburn | C19: 2422 | D19: 2367 | E19: -55 | F19: 32176028.36 | G19: 32465114.43 | H19: 122.131842 | I19: 17041707 | J19: 17758504 | K19: 302.8293198 | L19: 15134321 | M19: 15205331 | N19: 71010 | O19: 30 | P19: 0
A20: 18 | B20: Avon | C20: 586 | D20: 572 | E20: -14 | F20: 9536788.92 | G20: 9514711.52 | H20: -38.59685315 | I20: 5390722 | J20: 5674988 | K20: 496.9685315 | L20: 4146067 | M20: 4163227 | N20: 17160 | O20: 30 | P20: 0
A21: 20 | B21: Barnstable | C21: 5302 | D21: 5306 | E21: 4 | F21: 84542110.14 | G21: 88800528.96 | H21: 802.566683 | I21: 59790057 | J21: 63909248 | K21: 776.3269883 | L21: 24752053 | M21: 24911233 | N21: 159180 | O21: 30 | P21: 0.01
A22: 23 | B22: Bedford | C22: 2549 | D22: 2579 | E22: 30 | F22: 33265363.04 | G22: 34823363.94 | H22: 604.1104691 | I22: 27443924 | J22: 28729275 | K22: 498.3912369 | L22: 6020493 | M22: 6097863 | N22: 77370 | O22: 30 | P22: 0.01
A23: 24 | B23: Belchertown | C23: 2152 | D23: 2106 | E23: -46 | F23: 27713334.38 | G23: 27898291.62 | H23: 87.82395062 | I23: 13763232 | J23: 14251966 | K23: 232.0674264 | L23: 14210006 | M23: 14273186 | N23: 63180 | O23: 30 | P23: 0
A24: 25 | B24: Bellingham | C24: 2175 | D24: 2175 | E24: 0 | F24: 29660512.23 | G24: 30061498.64 | H24: 184.3615678 | I24: 19686080 | J24: 20821034 | K24: 521.817931 | L24: 9974432 | M24: 10039682 | N24: 65250 | O24: 30 | P24: 0.01
A25: 26 | B25: Belmont | C25: 4505 | D25: 4521 | E25: 16 | F25: 57423975.88 | G25: 59519672.35 | H25: 463.5471069 | I25: 45639441 | J25: 47889465 | K25: 497.6828135 | L25: 11784535 | M25: 11920165 | N25: 135630 | O25: 30 | P25: 0.01
A26: 27 | B26: Berkley | C26: 698 | D26: 682 | E26: -16 | F26: 8929788.14 | G26: 8885526.93 | H26: -64.8991349 | I26: 4777868 | J26: 5015940 | K26: 349.0791789 | L26: 4151920 | M26: 4172380 | N26: 20460 | O26: 30 | P26: 0
A27: 30 | B27: Beverly | C27: 4541 | D27: 4466 | E27: -75 | F27: 61798815.26 | G27: 61923100.55 | H27: 27.82921854 | I27: 47254334 | J27: 49131276 | K27: 420.2736229 | L27: 14544481 | M27: 14678461 | N27: 133980 | O27: 30 | P27: 0.01
A28: 31 | B28: Billerica | C28: 4879 | D28: 4925 | E28: 46 | F28: 63590856.68 | G28: 65207959.51 | H28: 328.3457523 | I28: 49635324 | J28: 52489382 | K28: 579.5041624 | L28: 20069934 | M28: 20217684 | N28: 147750 | O28: 30 | P28: 0.01
A29: 35 | B29: Boston | C29: 57738 | D29: 57369 | E29: -369 | F29: 1095713386 | G29: 1144725045 | H29: 854.3230442 | I29: 880485066 | J29: 944398162 | K29: 1114.070247 | L29: 230700785 | M29: 232421855 | N29: 1721070 | O29: 30 | P29: 0.01
A30: 36 | B30: Bourne | C30: 1678 | D30: 1698 | E30: 20 | F30: 22858350.51 | G30: 24109451.63 | H30: 736.808669 | I30: 18409357 | J30: 19319804 | K30: 536.1878681 | L30: 5472583 | M30: 5523523 | N30: 50940 | O30: 30 | P30: 0.01
A31: 38 | B31: Boxford | C31: 721 | D31: 745 | E31: 24 | F31: 8528050.268 | G31: 9024222.11 | H31: 666.002473 | I31: 6718468 | J31: 7139876 | K31: 565.6483221 | L31: 1855093 | M31: 1884346 | N31: 29253 | O31: 39.26577181 | P31: 0.02
A32: 40 | B32: Braintree | C32: 5244 | D32: 5181 | E32: -63 | F32: 72501248.64 | G32: 73504510.39 | H32: 193.6424912 | I32: 51848673 | J32: 55176445 | K32: 642.3030303 | L32: 20652576 | M32: 20808006 | N32: 155430 | O32: 30 | P32: 0.01
A33: 41 | B33: Brewster | C33: 418 | D33: 421 | E33: 3 | F33: 5743102.11 | G33: 5978097.31 | H33: 558.1833729 | I33: 4394765 | J33: 4931930 | K33: 1275.926366 | L33: 1377451 | M33: 1390081 | N33: 12630 | O33: 30 | P33: 0.01
A34: 43 | B34: Brimfield | C34: 264 | D34: 270 | E34: 6 | F34: 3511281.75 | G34: 3670007.24 | H34: 587.8721852 | I34: 1913482 | J34: 1921050 | K34: 28.02962963 | L34: 1597800 | M34: 1748957 | N34: 151157 | O34: 559.8407407 | P34: 0.09
A35: 44 | B35: Brockton | C35: 16619 | D35: 16775 | E35: 156 | F35: 295646847.7 | G35: 314644677 | H35: 1132.508451 | I35: 54579267 | J35: 58427021 | K35: 229.374307 | L35: 241067581 | M35: 256217656 | N35: 15150075 | O35: 903.1341282 | P35: 0.06
A36: 45 | B36: Brookfield | C36: 223 | D36: 225 | E36: 2 | F36: 3240938.55 | G36: 3232462.2 | H36: -37.67266667 | I36: 1329203 | J36: 1406962 | K36: 345.5955556 | L36: 1911736 | M36: 1918486 | N36: 6750 | O36: 30 | P36: 0
A37: 46 | B37: Brookline | C37: 6913 | D37: 6899 | E37: -14 | F37: 89394640.06 | G37: 91960933.81 | H37: 371.9805407 | I37: 73750578 | J37: 75867770 | K37: 306.8838962 | L37: 16035247 | M37: 16242217 | N37: 206970 | O37: 30 | P37: 0.01
A38: 48 | B38: Burlington | C38: 3424 | D38: 3523 | E38: 99 | F38: 46103747.99 | G38: 49023294.78 | H38: 828.7104141 | I38: 36818680 | J38: 39058284 | K38: 635.7093386 | L38: 9355284 | M38: 9965011 | N38: 609727 | O38: 173.0703946 | P38: 0.07
A39: 49 | B39: Cambridge | C39: 7030 | D39: 7297 | E39: 267 | F39: 112732473.5 | G39: 118880084.1 | H39: 842.484663 | I39: 93004291 | J39: 98076069 | K39: 695.0497465 | L39: 19728183 | M39: 20804015 | N39: 1075832 | O39: 147.4348362 | P39: 0.05
A40: 50 | B40: Canton | C40: 3260 | D40: 3291 | E40: 31 | F40: 43350134.77 | G40: 44989384.12 | H40: 498.1006842 | I40: 34684949 | J40: 36588775 | K40: 578.4946825 | L40: 8665186 | M40: 8763916 | N40: 98730 | O40: 30 | P40: 0.01
A41: 51 | B41: Carlisle | C41: 567 | D41: 571 | E41: 4 | F41: 6639945.163 | G41: 6853478.081 | H41: 373.9630787 | I41: 5477955 | J41: 5654120 | K41: 308.5201401 | L41: 1387990 | M41: 1405120 | N41: 17130 | O41: 30 | P41: 0.01
A42: 52 | B42: Carver | C42: 1535 | D42: 1501 | E42: -34 | F42: 21283331.5 | G42: 20942038.25 | H42: -227.377248 | I42: 10820042 | J42: 11413925 | K42: 395.6582278 | L42: 10463289 | M42: 10508319 | N42: 45030 | O42: 30 | P42: 0
A43: 56 | B43: Chelmsford | C43: 5108 | D43: 5181 | E43: 73 | F43: 63812307.76 | G43: 66873411.15 | H43: 590.8325401 | I43: 49670508 | J43: 52462577 | K43: 538.9054237 | L43: 14141800 | M43: 14410834 | N43: 269034 | O43: 51.92704111 | P43: 0.02
A44: 57 | B44: Chelsea | C44: 7110 | D44: 7095 | E44: -15 | F44: 138863180.5 | G44: 146607527.9 | H44: 1091.521842 | I44: 22081668 | J44: 23725244 | K44: 231.6527132 | L44: 116781512 | M44: 122882284 | N44: 6100772 | O44: 859.8692037 | P44: 0.05
A45: 61 | B45: Chicopee | C45: 7166 | D45: 7202 | E45: 36 | F45: 122693363.2 | G45: 129024990.3 | H45: 879.148449 | I45: 33865812 | J45: 35132393 | K45: 175.8651763 | L45: 88827551 | M45: 93892597 | N45: 5065046 | O45: 703.2832547 | P45: 0.06
A46: 63 | B46: Clarksburg | C46: 171 | D46: 204 | E46: 33 | F46: 2395286.75 | G46: 2889718.21 | H46: 2423.683627 | I46: 736864 | J46: 806811 | K46: 342.877451 | L46: 1827355 | M46: 2082907 | N46: 255552 | O46: 1252.705882 | P46: 0.14
A47: 64 | B47: Clinton | C47: 2062 | D47: 2095 | E47: 33 | F47: 32534279.41 | G47: 34402202.62 | H47: 891.6101241 | I47: 13217258 | J47: 14024833 | K47: 385.477327 | L47: 19317021 | M47: 20377370 | N47: 1060349 | O47: 506.1331742 | P47: 0.05
A48: 65 | B48: Cohasset | C48: 1367 | D48: 1433 | E48: 66 | F48: 16687439.72 | G48: 17839057.45 | H48: 803.6411266 | I48: 13767138 | J48: 14717222 | K48: 663.0034892 | L48: 2955742 | M48: 3121835 | N48: 166093 | O48: 115.905792 | P48: 0.06
A49: 67 | B49: Concord | C49: 1925 | D49: 1943 | E49: 18 | F49: 23075622.33 | G49: 24106981.04 | H49: 530.8073635 | I49: 19037389 | J49: 19888259 | K49: 437.9155944 | L49: 4038233 | M49: 4218722 | N49: 180489 | O49: 92.89191971 | P49: 0.04
A50: 68 | B50: Conway | C50: 66 | D50: 68 | E50: 2 | F50: 941811.15 | G50: 964363.6 | H50: 331.6536765 | I50: 776994 | J50: 795600 | K50: 273.6176471 | L50: 637444 | M50: 639484 | N50: 2040 | O50: 30 | P50: 0
A51: 71 | B51: Danvers | C51: 3315 | D51: 3349 | E51: 34 | F51: 42331707.48 | G51: 44318617.54 | H51: 593.2845805 | I51: 33039603 | J51: 34918789 | K51: 561.1185428 | L51: 9292104 | M51: 9399829 | N51: 107725 | O51: 32.1663183 | P51: 0.01
A52: 72 | B52: Dartmouth | C52: 3303 | D52: 3284 | E52: -19 | F52: 43916766.76 | G52: 44667767.9 | H52: 228.6848782 | I52: 34831363 | J52: 36167087 | K52: 406.7369062 | L52: 10449331 | M52: 10547851 | N52: 98520 | O52: 30 | P52: 0.01
A53: 73 | B53: Dedham | C53: 2529 | D53: 2748 | E53: 219 | F53: 34648058.13 | G53: 39060888.15 | H53: 1605.83334 | I53: 27655361 | J53: 29321888 | K53: 606.4508734 | L53: 6992697 | M53: 9739000 | N53: 2746303 | O53: 999.38246 | P53: 0.39
A54: 74 | B54: Deerfield | C54: 281 | D54: 279 | E54: -2 | F54: 3505682.31 | G54: 3547455.86 | H54: 149.7259857 | I54: 2863682 | J54: 2926651 | K54: 225.6953405 | L54: 1157053 | M54: 1165423 | N54: 8370 | O54: 30 | P54: 0.01
A55: 77 | B55: Douglas | C55: 1132 | D55: 1072 | E55: -60 | F55: 14574247.94 | G55: 14237865.39 | H55: -313.7896922 | I55: 8454786 | J55: 8850986 | K55: 369.5895522 | L55: 8927525 | M55: 8959685 | N55: 32160 | O55: 30 | P55: 0
A56: 78 | B56: Dover | C56: 500 | D56: 491 | E56: -9 | F56: 5901407.924 | G56: 5959421.474 | H56: 118.1538687 | I56: 4868661 | J56: 4916523 | K56: 97.47861507 | L56: 1032747 | M56: 1047477 | N56: 14730 | O56: 30 | P56: 0.01
A57: 79 | B57: Dracut | C57: 3900 | D57: 3833 | E57: -67 | F57: 54539267.46 | G57: 54513544.11 | H57: -6.711022698 | I57: 27369124 | J57: 27969794 | K57: 156.7101487 | L57: 27170143 | M57: 27285133 | N57: 114990 | O57: 30 | P57: 0
A58: 82 | B58: Duxbury | C58: 2729 | D58: 2658 | E58: -71 | F58: 33659011.2 | G58: 33652713.46 | H58: -2.369353898 | I58: 26987503 | J58: 27763489 | K58: 291.9435666 | L58: 6671508 | M58: 6751248 | N58: 79740 | O58: 30 | P58: 0.01
A59: 83 | B59: East Bridgewater | C59: 2022 | D59: 1963 | E59: -59 | F59: 26867274.06 | G59: 26713492.3 | H59: -78.3401732 | I59: 13993957 | J59: 14745140 | K59: 382.6709119 | L59: 12873317 | M59: 12932207 | N59: 58890 | O59: 30 | P59: 0
A60: 85 | B60: Eastham | C60: 197 | D60: 198 | E60: 1 | F60: 2896212.01 | G60: 2893667.62 | H60: -12.85045455 | I60: 2389375 | J60: 2387276 | K60: -10.6010101 | L60: 506837 | M60: 512777 | N60: 5940 | O60: 30 | P60: 0.01
A61: 86 | B61: Easthampton | C61: 1591 | D61: 1580 | E61: -11 | F61: 22559015.46 | G61: 23097746.73 | H61: 340.9691582 | I61: 13894543 | J61: 14936633 | K61: 659.5506329 | L61: 8664472 | M61: 8711872 | N61: 47400 | O61: 30 | P61: 0.01
A62: 87 | B62: East Longmeadow | C62: 2552 | D62: 2522 | E62: -30 | F62: 33881345.88 | G62: 34405381.24 | H62: 207.7856305 | I62: 18843898 | J62: 19663608 | K62: 325.0237906 | L62: 15037448 | M62: 15113108 | N62: 75660 | O62: 30 | P62: 0.01
A63: 88 | B63: Easton | C63: 3418 | D63: 3404 | E63: -14 | F63: 43192301.49 | G63: 44294804.81 | H63: 323.8846416 | I63: 33376275 | J63: 34692309 | K63: 386.6139835 | L63: 10655421 | M63: 10757541 | N63: 102120 | O63: 30 | P63: 0.01
A64: 89 | B64: Edgartown | C64: 438 | D64: 434 | E64: -4 | F64: 6660865.34 | G64: 6714943.73 | H64: 124.6045853 | I64: 5495214 | J64: 5539828 | K64: 102.797235 | L64: 1165651 | M64: 1178671 | N64: 13020 | O64: 30 | P64: 0.01
A65: 91 | B65: Erving | C65: 203 | D65: 204 | E65: 1 | F65: 2671388.78 | G65: 2756151.77 | H65: 415.5048529 | I65: 2115389 | J65: 2220874 | K65: 517.0833333 | L65: 556000 | M65: 562120 | N65: 6120 | O65: 30 | P65: 0.01
A66: 93 | B66: Everett | C66: 7937 | D66: 8020 | E66: 83 | F66: 152643280.5 | G66: 161607819 | H66: 1117.772888 | I66: 40961068 | J66: 43738229 | K66: 346.2794264 | L66: 111682212 | M66: 117869590 | N66: 6187378 | O66: 771.4935162 | P66: 0.06
A67: 94 | B67: Fairhaven | C67: 1659 | D67: 1595 | E67: -64 | F67: 23768492.65 | G67: 23585501.07 | H67: -114.7282633 | I67: 14136790 | J67: 14889056 | K67: 471.6401254 | L67: 9631703 | M67: 9679553 | N67: 47850 | O67: 30 | P67: 0
A68: 95 | B68: Fall River | C68: 12238 | D68: 12433 | E68: 195 | F68: 226544925.6 | G68: 242840295.5 | H68: 1310.654702 | I68: 38520449 | J68: 40719005 | K68: 176.8323011 | L68: 188024477 | M68: 202121291 | N68: 14096814 | O68: 1133.822408 | P68: 0.07
A69: 96 | B69: Falmouth | C69: 2959 | D69: 2870 | E69: -89 | F69: 42847018.86 | G69: 43193356.16 | H69: 120.6750174 | I69: 33524110 | J69: 35634519 | K69: 735.3341463 | L69: 9322909 | M69: 9409009 | N69: 86100 | O69: 30 | P69: 0.01
A70: 97 | B70: Fitchburg | C70: 5661 | D70: 5623 | E70: -38 | F70: 96678430.43 | G70: 101009130.4 | H70: 770.1760626 | I70: 21950317 | J70: 23118016 | K70: 207.6647697 | L70: 74728113 | M70: 77891114 | N70: 3163001 | O70: 562.5112929 | P70: 0.04
A71: 98 | B71: Florida | C71: 57 | D71: 55 | E71: -2 | F71: 917915.93 | G71: 865066.34 | H71: -960.9016364 | I71: 425391 | J71: 439942 | K71: 264.5636364 | L71: 559717 | M71: 561367 | N71: 1650 | O71: 30 | P71: 0
A72: 99 | B72: Foxborough | C72: 2537 | D72: 2573 | E72: 36 | F72: 34005786 | G72: 35589023.05 | H72: 615.3272641 | I72: 27296530 | J72: 28583974 | K72: 500.3668869 | L72: 9428040 | M72: 9505230 | N72: 77190 | O72: 30 | P72: 0.01
A73: 100 | B73: Framingham | C73: 9759 | D73: 9521 | E73: -238 | F73: 159351946.8 | G73: 163975458.5 | H73: 485.6119912 | I73: 74355413 | J73: 78035696 | K73: 386.5437454 | L73: 84996534 | M73: 85939763 | N73: 943229 | O73: 99.06827014 | P73: 0.01
A74: 101 | B74: Franklin | C74: =VLOOKUP(A74,aidcalc,14,FALSE) -> 5104 | D74: =VLOOKUP(A74,aidcalc,15,FALSE) -> 5058 | E74: =D74-C74 -> -46 | F74: =VLOOKUP(A74,aidcalc,4,FALSE) -> 65275976.23 | G74: =VLOOKUP(A74,aidcalc,9,FALSE) -> 66575133.26 | H74: =(G74-F74)/$D74 -> 256.8519232 | I74: =VLOOKUP(A74,aidcalc,5,FALSE) -> 47235495 | J74: =VLOOKUP(A74,aidcalc,10,FALSE) -> 49904803 | K74: =(J74-I74)/$D74 -> 527.7398181 | L74: =VLOOKUP(A74,aidcalc,6,FALSE) -> 29191961 | M74: =VLOOKUP(A74,aidcalc,25,FALSE) -> 29343701 | N74: =M74-L74 -> 151740 | O74: =(M74-L74)/$D74 -> 30 | P74: =ROUND(IF(F74>0,(M74-L74)/L74,100),2) -> 0.01
A75: 103 | B75: Gardner | C75: 2397 | D75: 2453 | E75: 56 | F75: 38690363.83 | G75: 41579344.61 | H75: 1177.733706 | I75: 11262118 | J75: 11909305 | K75: 263.834896 | L75: 27428246 | M75: 29670040 | N75: 2241794 | O75: 913.8988993 | P75: 0.08
A76: 105 | B76: Georgetown | C76: 1229 | D76: 1196 | E76: -33 | F76: 15011687.49 | G76: 15093327.77 | H76: 68.26110368 | I76: 11377637 | J76: 11942014 | K76: 471.8871237 | L76: 5713498 | M76: 5749378 | N76: 35880 | O76: 30 | P76: 0.01
A77: 107 | B77: Gloucester | C77: 3035 | D77: 3064 | E77: 29 | F77: 47045109.89 | G77: 49312993.39 | H77: 740.1708561 | I77: 35714197 | J77: 37663938 | K77: 636.3384465 | L77: 11330913 | M77: 11649055 | N77: 318142 | O77: 103.8322454 | P77: 0.03
A78: 110 | B78: Grafton | C78: 2950 | D78: 2902 | E78: -48 | F78: 36858149.16 | G78: 37093634.1 | H78: 81.14574087 | I78: 24436656 | J78: 25816161 | K78: 475.3635424 | L78: 12794520 | M78: 12881580 | N78: 87060 | O78: 30 | P78: 0.01
A79: 111 | B79: Granby | C79: 672 | D79: 655 | E79: -17 | F79: 9588488.89 | G79: 9651932.1 | H79: 96.8598626 | I79: 5667319 | J79: 5916505 | K79: 380.4366412 | L79: 4765430 | M79: 4785080 | N79: 19650 | O79: 30 | P79: 0
A80: 114 | B80: Greenfield | C80: 1791 | D80: 1759 | E80: -32 | F80: 27294290.69 | G80: 27946623.42 | H80: 370.8543093 | I80: 11091044 | J80: 11465815 | K80: 213.0591245 | L80: 16203247 | M80: 16480808 | N80: 277561 | O80: 157.7947698 | P80: 0.02
A81: 117 | B81: Hadley | C81: 456 | D81: 449 | E81: -7 | F81: 6277106.59 | G81: 6210751.32 | H81: -147.7845657 | I81: 5178613 | J81: 5123870 | K81: -121.922049 | L81: 1350100 | M81: 1363570 | N81: 13470 | O81: 30 | P81: 0.01
A82: 118 | B82: Halifax | C82: 613 | D82: 574 | E82: -39 | F82: 7849455.023 | G82: 7659686.117 | H82: -330.6078517 | I82: 4340378 | J82: 4131179 | K82: -364.4581882 | L82: 3509077 | M82: 3528507 | N82: 19430 | O82: 33.85017422 | P82: 0.01
A83: 121 | B83: Hancock | C83: 86 | D83: 85 | E83: -1 | F83: 1216494.75 | G83: 1270682.74 | H83: 637.5057647 | I83: 780690 | J83: 820427 | K83: 467.4941176 | L83: 435805 | M83: 450256 | N83: 14451 | O83: 170.0117647 | P83: 0.03
A84: 122 | B84: Hanover | C84: 2481 | D84: 2497 | E84: 16 | F84: 30800181.27 | G84: 31856906.4 | H84: 423.1978871 | I84: 23372172 | J84: 24358434 | K84: 394.9787745 | L84: 7458443 | M84: 7533353 | N84: 74910 | O84: 30 | P84: 0.01
A85: 125 | B85: Harvard | C85: 875 | D85: 881 | E85: 6 | F85: 10576374.95 | G85: 10978851.09 | H85: 456.8401135 | I85: 8379508 | J85: 8697858 | K85: 361.3507378 | L85: 2196867 | M85: 2280993 | N85: 84126 | O85: 95.4892168 | P85: 0.04
A86: 127 | B86: Hatfield | C86: 317 | D86: 310 | E86: -7 | F86: 4215602.35 | G86: 4163176.24 | H86: -169.1164839 | I86: 3472030 | J86: 3434620 | K86: -120.6774194 | L86: 895156 | M86: 904456 | N86: 9300 | O86: 30 | P86: 0.01
A87: 128 | B87: Haverhill | C87: 8287 | D87: 8401 | E87: 114 | F87: 132551888.2 | G87: 140785594.1 | H87: 980.086404 | I87: 49918077 | J87: 52949206 | K87: 360.8057374 | L87: 82633811 | M87: 87836388 | N87: 5202577 | O87: 619.2806809 | P87: 0.06
A88: 131 | B88: Hingham | C88: 3807 | D88: 3606 | E88: -201 | F88: 47057670.47 | G88: 45880135.11 | H88: -326.5489074 | I88: 38822578 | J88: 37851111 | K88: -269.4029395 | L88: 8535193 | M88: 8643373 | N88: 108180 | O88: 30 | P88: 0.01
A89: 133 | B89: Holbrook | C89: 1352 | D89: 1355 | E89: 3 | F89: 20493828.68 | G89: 21264601.48 | H89: 568.836016 | I89: 9611922 | J89: 10008310 | K89: 292.5372694 | L89: 10881907 | M89: 11256291 | N89: 374384 | O89: 276.298155 | P89: 0.03
A90: 135 | B90: Holland | C90: 175 | D90: 157 | E90: -18 | F90: 2529520.89 | G90: 2372741.1 | H90: -998.5973885 | I90: 1516165 | J90: 1516026 | K90: -0.8853503185 | L90: 1013356 | M90: 1018066 | N90: 4710 | O90: 30 | P90: 0
A91: 136 | B91: Holliston | C91: 2686 | D91: 2652 | E91: -34 | F91: 32828254.54 | G91: 33400106.24 | H91: 215.6303557 | I91: 23937028 | J91: 25424721 | K91: 560.9702112 | L91: 8912782 | M91: 8992342 | N91: 79560 | O91: 30 | P91: 0.01
A92: 137 | B92: Holyoke | C92: 5926 | D92: 5850 | E92: -76 | F92: 109412142.3 | G92: 114196080.5 | H92: 817.7672154 | I92: 12452771 | J92: 13183748 | K92: 124.9533333 | L92: 96959371 | M92: 101012333 | N92: 4052962 | O92: 692.8140171 | P92: 0.04
A93: 138 | B93: Hopedale | C93: 875 | D93: 865 | E93: -10 | F93: 11489500.85 | G93: 11657637.4 | H93: 194.3775145 | I93: 6489561 | J93: 6842443 | K93: 407.9560694 | L93: 6221250 | M93: 6247200 | N93: 25950 | O93: 30 | P93: 0
A94: 139 | B94: Hopkinton | C94: 4139 | D94: 4165 | E94: 26 | F94: 50873294.83 | G94: 52659810.85 | H94: 428.9354191 | I94: 41073636 | J94: 43444344 | K94: 569.197599 | L94: 9799659 | M94: 9924609 | N94: 124950 | O94: 30 | P94: 0.01
A95: 141 | B95: Hudson | C95: 2417 | D95: 2407 | E95: -10 | F95: 34207457.53 | G95: 35380191.65 | H95: 487.2181622 | I95: 21209511 | J95: 22433888 | K95: 508.6734524 | L95: 12997947 | M95: 13070157 | N95: 72210 | O95: 30 | P95: 0.01
A96: 142 | B96: Hull | C96: 791 | D96: 757 | E96: -34 | F96: 10986735.57 | G96: 10807124.3 | H96: -237.2671971 | I96: 9052274 | J96: 8915878 | K96: -180.1796565 | L96: 3996296 | M96: 4019006 | N96: 22710 | O96: 30 | P96: 0.01
A97: 144 | B97: Ipswich | C97: 1557 | D97: 1551 | E97: -6 | F97: 20567036.16 | G97: 21026999.6 | H97: 296.5592781 | I97: 16419694 | J97: 17194441 | K97: 499.5145068 | L97: 4147342 | M97: 4193872 | N97: 46530 | O97: 30 | P97: 0.01
A98: 145 | B98: Kingston | C98: 1125 | D98: 1169 | E98: 44 | F98: 14371240.41 | G98: 15142057.2 | H98: 659.3813493 | I98: 8940323 | J98: 9569989 | K98: 538.6364414 | L98: 5430917 | M98: 5572068 | N98: 141151 | O98: 120.7450813 | P98: 0.03
A99: 149 | B99: Lawrence | C99: 14566 | D99: 14815 | E99: 249 | F99: 279873222.1 | G99: 301137886.6 | H99: 1435.346906 | I99: 13728391 | J99: 15202577 | K99: 99.50631117 | L99: 266144831 | M99: 285935310 | N99: 19790479 | O99: 1335.840634 | P99: 0.07
A100: 150 | B100: Lee | C100: 570 | D100: 549 | E100: -21 | F100: 8739704.66 | G100: 8560093.52 | H100: -327.1605464 | I100: 6760874 | J100: 7062077 | K100: 548.6393443 | L100: 2170239 | M100: 2186709 | N100: 16470 | O100: 30 | P100: 0.01
A101: 151 | B101: Leicester | C101: 1443 | D101: 1405 | E101: -38 | F101: 20759208.56 | G101: 21355735.5 | H101: 424.5743345 | I101: 9660962 | J101: 10610635 | K101: 675.9238434 | L101: 11098247 | M101: 11140397 | N101: 42150 | O101: 30 | P101: 0
A102: 152 | B102: Lenox | C102: 489 | D102: 482 | E102: -7 | F102: 6717817.41 | G102: 6818728.75 | H102: 209.3596266 | I102: 5422289 | J102: 5625451 | K102: 421.4979253 | L102: 1345245 | M102: 1359705 | N102: 14460 | O102: 30 | P102: 0.01
A103: 153 | B103: Leominster | C103: 6020 | D103: 6009 | E103: -11 | F103: 99599000.58 | G103: 103670289.4 | H103: 677.5318306 | I103: 35204065 | J103: 36964269 | K103: 292.9279414 | L103: 64394936 | M103: 66706020 | N103: 2311084 | O103: 384.603761 | P103: 0.04
A104: 154 | B104: Leverett | C104: 101 | D104: 105 | E104: 4 | F104: 1255147.3 | G104: 1407132.92 | H104: 1447.482095 | I104: 954740 | J104: 1084094 | K104: 1231.942857 | L104: 396968 | M104: 400118 | N104: 3150 | O104: 30 | P104: 0.01
A105: 155 | B105: Lexington | C105: 6893 | D105: 6851 | E105: -42 | F105: 90646899.41 | G105: 91458917.92 | H105: 118.5255461 | I105: 73037768 | J105: 75453607 | K105: 352.6257481 | L105: 17609131 | M105: 17814661 | N105: 205530 | O105: 30 | P105: 0.01
A106: 157 | B106: Lincoln | C106: 586 | D106: 585 | E106: -1 | F106: 7355301.967 | G106: 7515362.228 | H106: 273.6072829 | I106: 6068124 | J106: 6200174 | K106: 225.7264957 | L106: 1287178 | M106: 1315188 | N106: 28010 | O106: 47.88034188 | P106: 0.02
A107: 158 | B107: Littleton | C107: 1665 | D107: 1636 | E107: -29 | F107: 20056951.58 | G107: 20185599.03 | H107: 78.63536064 | I107: 15207996 | J107: 15942774 | K107: 449.1308068 | L107: 4848956 | M107: 4898036 | N107: 49080 | O107: 30 | P107: 0.01
A108: 159 | B108: Longmeadow | C108: 2725 | D108: 2723 | E108: -2 | F108: 33192700.99 | G108: 34209142.06 | H108: 373.2798641 | I108: 26093332 | J108: 27327546 | K108: 453.2552332 | L108: 7099369 | M108: 7181059 | N108: 81690 | O108: 30 | P108: 0.01
A109: 160 | B109: Lowell | C109: 16323 | D109: 16504 | E109: 181 | F109: 288791629.5 | G109: 307801485.1 | H109: 1151.833225 | I109: 60097975 | J109: 64985750 | K109: 296.1569922 | L109: 229138873 | M109: 243260953 | N109: 14122080 | O109: 855.6761997 | P109: 0.06
A110: 161 | B110: Ludlow | C110: 2248 | D110: 2221 | E110: -27 | F110: 32627792.16 | G110: 33315843.15 | H110: 309.7933318 | I110: 18168773 | J110: 18877355 | K110: 319.0373706 | L110: 14459019 | M110: 14525649 | N110: 66630 | O110: 30 | P110: 0
A111: 162 | B111: Lunenburg | C111: 1615 | D111: 1633 | E111: 18 | F111: 20659694.91 | G111: 21553250.21 | H111: 547.1863442 | I111: 11910986 | J111: 12596172 | K111: 419.5872627 | L111: 8819128 | M111: 8957078 | N111: 137950 | O111: 84.47642376 | P111: 0.02
A112: 163 | B112: Lynn | C112: 17895 | D112: 18143 | E112: 248 | F112: 329943497.1 | G112: 351559827.6 | H112: 1191.44191 | I112: 60851330 | J112: 64398962 | K112: 195.537232 | L112: 269092167 | M112: 287160866 | N112: 18068699 | O112: 995.9047015 | P112: 0.07
A113: 164 | B113: Lynnfield | C113: 2207 | D113: 2195 | E113: -12 | F113: 27452371.78 | G113: 27975039.2 | H113: 238.1172746 | I113: 21507362 | J113: 22407843 | K113: 410.2419134 | L113: 5945010 | M113: 6010860 | N113: 65850 | O113: 30 | P113: 0.01
A114: 165 | B114: Malden | C114: 6940 | D114: 6863 | E114: -77 | F114: 117616659.1 | G114: 121461101.7 | H114: 560.1694019 | I114: 54419682 | J114: 57646480 | K114: 470.1731021 | L114: 63196977 | M114: 63814622 | N114: 617645 | O114: 89.99635728 | P114: 0.01
A115: 167 | B115: Mansfield | C115: 3485 | D115: 3412 | E115: -73 | F115: 46129087.01 | G115: 46126612.6 | H115: -0.7252062309 | I115: 32585038 | J115: 34993635 | K115: 705.9194021 | L115: 19491149 | M115: 19593509 | N115: 102360 | O115: 30 | P115: 0.01
A116: 168 | B116: Marblehead | C116: 2658 | D116: 2588 | E116: -70 | F116: 32681938.29 | G116: 32926181.66 | H116: 94.37533617 | I116: 26962599 | J116: 27164100 | K116: 77.85973725 | L116: 6354327 | M116: 6431967 | N116: 77640 | O116: 30 | P116: 0.01
A117: 169 | B117: Marion | C117: 401 | D117: 388 | E117: -13 | F117: 5068217.26 | G117: 5105842 | H117: 96.97097938 | I117: 3913467 | J117: 3952749 | K117: 101.242268 | L117: 1154750 | M117: 1166390 | N117: 11640 | O117: 30 | P117: 0.01
A118: 170 | B118: Marlborough | C118: 5370 | D118: 5345 | E118: -25 | F118: 87221685 | G118: 91235300.24 | H118: 750.9102421 | I118: 41360456 | J118: 43498129 | K118: 399.9388213 | L118: 45861229 | M118: 47737171 | N118: 1875942 | O118: 350.9713751 | P118: 0.04
A119: 171 | B119: Marshfield | C119: 3783 | D119: 3669 | E119: -114 | F119: 49950295.56 | G119: 49720641.06 | H119: -62.59321267 | I119: 39070159 | J119: 40410173 | K119: 365.2259471 | L119: 15233203 | M119: 15343273 | N119: 110070 | O119: 30 | P119: 0.01
A120: 172 | B120: Mashpee | C120: 1422 | D120: 1416 | E120: -6 | F120: 20496134.48 | G120: 21252065.28 | H120: 533.849435 | I120: 16524355 | J120: 17532953 | K120: 712.2867232 | L120: 4858266 | M120: 4900746 | N120: 42480 | O120: 30 | P120: 0.01
A121: 173 | B121: Mattapoisett | C121: 414 | D121: 383 | E121: -31 | F121: 5079932.73 | G121: 4861034.76 | H121: -571.5351697 | I121: 4120905 | J121: 4010354 | K121: -288.6449086 | L121: 1005221 | M121: 1016711 | N121: 11490 | O121: 30 | P121: 0.01
A122: 174 | B122: Maynard | C122: 1240 | D122: 1258 | E122: 18 | F122: 17768872.03 | G122: 17943402.25 | H122: 138.7362606 | I122: 12105654 | J122: 12814034 | K122: 563.100159 | L122: 5663218 | M122: 5700958 | N122: 37740 | O122: 30 | P122: 0.01
A123: 175 | B123: Medfield | C123: 2427 | D123: 2371 | E123: -56 | F123: 29777089 | G123: 29962723.08 | H123: 78.29358287 | I123: 23849002 | J123: 24719247 | K123: 367.0371151 | L123: 6653094 | M123: 6724224 | N123: 71130 | O123: 30 | P123: 0.01
A124: 176 | B124: Medford | C124: 4559 | D124: 4524 | E124: -35 | F124: 71888258.34 | G124: 73661905.41 | H124: 392.0528435 | I124: 54480958 | J124: 57259487 | K124: 614.1752874 | L124: 17407300 | M124: 17543020 | N124: 135720 | O124: 30 | P124: 0.01
A125: 177 | B125: Medway | C125: 2120 | D125: 2157 | E125: 37 | F125: 26890897.84 | G125: 28282405.94 | H125: 645.1126999 | I125: 19298650 | J125: 20377171 | K125: 500.0097357 | L125: 10818549 | M125: 10883259 | N125: 64710 | O125: 30 | P125: 0.01
A126: 178 | B126: Melrose | C126: 4062 | D126: 4112 | E126: 50 | F126: 51330398.77 | G126: 53458998.81 | H126: 517.6556535 | I126: 39070041 | J126: 41052667 | K126: 482.1561284 | L126: 12260358 | M126: 12406332 | N126: 145974 | O126: 35.49951362 | P126: 0.01
A127: 181 | B127: Methuen | C127: 6775 | D127: 6860 | E127: 85 | F127: 109298849.8 | G127: 115572663.1 | H127: 914.5500394 | I127: 44617436 | J127: 47006431 | K127: 348.25 | L127: 64681414 | M127: 68566232 | N127: 3884818 | O127: 566.3 | P127: 0.06
A128: 182 | B128: Middleborough | C128: 3137 | D128: 3086 | E128: -51 | F128: 44333813.13 | G128: 45230728.26 | H128: 290.6400292 | I128: 22002952 | J128: 23018563 | K128: 329.102722 | L128: 22330861 | M128: 22423441 | N128: 92580 | O128: 30 | P128: 0
A129: 184 | B129: Middleton | C129: 703 | D129: 702 | E129: -1 | F129: 8542770.197 | G129: 8701795.6 | H129: 226.5319137 | I129: 6914393 | J129: 7178981 | K129: 376.9059829 | L129: 1769171 | M129: 1790231 | N129: 21060 | O129: 30 | P129: 0.01
A130: 185 | B130: Milford | C130: 4704 | D130: 4680 | E130: -24 | F130: 75437511.28 | G130: 79238636.23 | H130: 812.2061854 | I130: 28632172 | J130: 30457472 | K130: 390.0213675 | L130: 46805339 | M130: 48781164 | N130: 1975825 | O130: 422.1848291 | P130: 0.04
A131: 186 | B131: Millbury | C131: 1638 | D131: 1646 | E131: 8 | F131: 22434599.24 | G131: 23335746.68 | H131: 547.477181 | I131: 13581840 | J131: 14332604 | K131: 456.1142163 | L131: 8852759 | M131: 9003143 | N131: 150384 | O131: 91.36330498 | P131: 0.02
A132: 187 | B132: Millis | C132: 1089 | D132: 1086 | E132: -3 | F132: 14054851.19 | G132: 14399304.71 | H132: 317.1763487 | I132: 11047181 | J132: 11879426 | K132: 766.339779 | L132: 4992022 | M132: 5024602 | N132: 32580 | O132: 30 | P132: 0.01
A133: 189 | B133: Milton | C133: 4294 | D133: 4303 | E133: 9 | F133: 53957475.52 | G133: 55668073.97 | H133: 397.5362423 | I133: 42281594 | J133: 44754966 | K133: 574.8017662 | L133: 11675882 | M133: 11804972 | N133: 129090 | O133: 30 | P133: 0.01
A134: 191 | B134: Monson | C134: 810 | D134: 811 | E134: 1 | F134: 11361547.17 | G134: 11727051 | H134: 450.6828977 | I134: 6395027 | J134: 6544094 | K134: 183.8064118 | L134: 7667285 | M134: 7691615 | N134: 24330 | O134: 30 | P134: 0
A135: 196 | B135: Nahant | C135: 248 | D135: 238 | E135: -10 | F135: 2954392.42 | G135: 2899841.5 | H135: -229.2055462 | I135: 2437374 | J135: 2392369 | K135: -189.0966387 | L135: 561403 | M135: 568543 | N135: 7140 | O135: 30 | P135: 0.01
A136: 197 | B136: Nantucket | C136: 1713 | D136: 1668 | E136: -45 | F136: 25201462.49 | G136: 25503740.11 | H136: 181.2215947 | I136: 20791207 | J136: 21040586 | K136: 149.5077938 | L136: 4410255 | M136: 4463154 | N136: 52899 | O136: 31.71402878 | P136: 0.01
A137: 198 | B137: Natick | C137: 5309 | D137: 5293 | E137: -16 | F137: 65231071.03 | G137: 67705003.25 | H137: 467.3969805 | I137: 52065336 | J137: 54652036 | K137: 488.7020593 | L137: 13165735 | M137: 13324525 | N137: 158790 | O137: 30 | P137: 0.01
A138: 199 | B138: Needham | C138: =VLOOKUP(A138,aidcalc,14,FALSE) -> 5558 | D138: =VLOOKUP(A138,aidcalc,15,FALSE) -> 5582 | E138: =D138-C138 -> 24 | F138: =VLOOKUP(A138,aidcalc,4,FALSE) -> 70773642.89 | G138: =VLOOKUP(A138,aidcalc,9,FALSE) -> 72804871.55 | H138: =(G138-F138)/$D138 -> 363.889047 | I138: =VLOOKUP(A138,aidcalc,5,FALSE) -> 57461187 | J138: =VLOOKUP(A138,aidcalc,10,FALSE) -> 60064019 | K138: =(J138-I138)/$D138 -> 466.2902186 | L138: =VLOOKUP(A138,aidcalc,6,FALSE) -> 13312456 | M138: =VLOOKUP(A138,aidcalc,25,FALSE) -> 13479916 | N138: =M138-L138 -> 167460 | O138: =(M138-L138)/$D138 -> 30 | P138: =ROUND(IF(F138>0,(M138-L138)/L138,100),2) -> 0.01
A139: 201 | B139: New Bedford | C139: 14148 | D139: 14110 | E139: -38 | F139: 259908138.3 | G139: 274295635.7 | H139: 1019.666719 | I139: 35809016 | J139: 38100328 | K139: 162.3892275 | L139: 224099122 | M139: 236195308 | N139: 12096186 | O139: 857.2775337 | P139: 0.05
A140: 204 | B140: Newburyport | C140: 2232 | D140: 2185 | E140: -47 | F140: 27448207.99 | G140: 27495318.33 | H140: 21.56079634 | I140: 21788063 | J140: 22663663 | K140: 400.7322654 | L140: 5660145 | M140: 5725695 | N140: 65550 | O140: 30 | P140: 0.01
A141: 207 | B141: Newton | C141: 11885 | D141: 11757 | E141: -128 | F141: 156764603.6 | G141: 159581216 | H141: 239.5689688 | I141: 129330798 | J141: 131654503 | K141: 197.6443821 | L141: 27433806 | M141: 27926713 | N141: 492907 | O141: 41.92455558 | P141: 0.02
A142: 208 | B142: Norfolk | C142: 1010 | D142: 1031 | E142: 21 | F142: 11993145.44 | G142: 12570922.11 | H142: 560.4041383 | I142: 9300692 | J142: 9797405 | K142: 481.7778855 | L142: 3612405 | M142: 3643335 | N142: 30930 | O142: 30 | P142: 0.01
A143: 209 | B143: North Adams | C143: 1315 | D143: 1280 | E143: -35 | F143: 21755055.92 | G143: 22167145.4 | H143: 321.9449063 | I143: 5538974 | J143: 5755876 | K143: 169.4546875 | L143: 16216082 | M143: 16411269 | N143: 195187 | O143: 152.4898438 | P143: 0.01
A144: 210 | B144: Northampton | C144: 2668 | D144: 2600 | E144: -68 | F144: 35618666.02 | G144: 35941837.47 | H144: 124.2967115 | I144: 28077001 | J144: 29043502 | K144: 371.7311538 | L144: 7958689 | M144: 8036689 | N144: 78000 | O144: 30 | P144: 0.01
A145: 211 | B145: North Andover | C145: 4505 | D145: 4460 | E145: -45 | F145: 57569717.3 | G145: 58910913.62 | H145: 300.7166637 | I145: 45627018 | J145: 47473089 | K145: 413.9172646 | L145: 11942699 | M145: 12076499 | N145: 133800 | O145: 30 | P145: 0.01
A146: 212 | B146: North Attleborough | C146: 4031 | D146: 3974 | E146: -57 | F146: 51608133.33 | G146: 52546109.43 | H146: 236.0282084 | I146: 32183541 | J146: 34401206 | K146: 558.043533 | L146: 21293531 | M146: 21412751 | N146: 119220 | O146: 30 | P146: 0.01
A147: 213 | B147: Northborough | C147: 1618 | D147: 1667 | E147: 49 | F147: 19538316.1 | G147: 20846041.26 | H147: 784.4782004 | I147: 15713655 | J147: 16680811 | K147: 580.1775645 | L147: 4232990 | M147: 4283000 | N147: 50010 | O147: 30 | P147: 0.01
A148: 214 | B148: Northbridge | C148: 1997 | D148: 1918 | E148: -79 | F148: 28109617.77 | G148: 27767580.22 | H148: -178.330318 | I148: 14472856 | J148: 15208417 | K148: 383.504171 | L148: 15905881 | M148: 15963421 | N148: 57540 | O148: 30 | P148: 0
A149: 215 | B149: North Brookfield | C149: 574 | D149: 565 | E149: -9 | F149: 8281136.67 | G149: 8141268.73 | H149: -247.5538761 | I149: 3375581 | J149: 3522338 | K149: 259.7469027 | L149: 4905556 | M149: 4922506 | N149: 16950 | O149: 30 | P149: 0
A150: 217 | B150: North Reading | C150: 2269 | D150: 2260 | E150: -9 | F150: 29062440.79 | G150: 29675954.01 | H150: 271.4660242 | I150: 23011257 | J150: 24047868 | K150: 458.6774336 | L150: 7492247 | M150: 7560047 | N150: 67800 | O150: 30 | P150: 0.01
A151: 218 | B151: Norton | C151: 2189 | D151: 2173 | E151: -16 | F151: 29128867.22 | G151: 29382015.71 | H151: 116.4972342 | I151: 20948264 | J151: 22278752 | K151: 612.2816383 | L151: 13160540 | M151: 13225730 | N151: 65190 | O151: 30 | P151: 0
A152: 219 | B152: Norwell | C152: 2100 | D152: 2115 | E152: 15 | F152: 25956168.81 | G152: 26697645.46 | H152: 350.5799783 | I152: 20944041 | J152: 22025558 | K152: 511.3555556 | L152: 5012128 | M152: 5075578 | N152: 63450 | O152: 30 | P152: 0.01
A153: 220 | B153: Norwood | C153: 3547 | D153: 3596 | E153: 49 | F153: 53483623.87 | G153: 56489036.92 | H153: 835.7655873 | I153: 37142187 | J153: 39117797 | K153: 549.39099 | L153: 16341437 | M153: 17371240 | N153: 1029803 | O153: 286.3745829 | P153: 0.06
A154: 221 | B154: Oak Bluffs | C154: 435 | D154: 421 | E154: -14 | F154: 6470637.93 | G154: 6233849.85 | H154: -562.4419952 | I154: 4519073 | J154: 5142926 | K154: 1481.836105 | L154: 1951565 | M154: 1964195 | N154: 12630 | O154: 30 | P154: 0.01
A155: 223 | B155: Orange | C155: 583 | D155: 573 | E155: -10 | F155: 9212499.92 | G155: 9410329.76 | H155: 345.2527749 | I155: 2332598 | J155: 2447549 | K155: 200.6125654 | L155: 6879902 | M155: 6962781 | N155: 82879 | O155: 144.6404887 | P155: 0.01
A156: 224 | B156: Orleans | C156: 149 | D156: 145 | E156: -4 | F156: 2114047.88 | G156: 2052611.25 | H156: -423.7008966 | I156: 1744090 | J156: 1693404 | K156: -349.5586207 | L156: 454554 | M156: 458904 | N156: 4350 | O156: 30 | P156: 0.01
A157: 226 | B157: Oxford | C157: 1526 | D157: 1569 | E157: 43 | F157: 21950126.81 | G157: 23877644.36 | H157: 1228.500669 | I157: 10995071 | J157: 11652431 | K157: 418.9674952 | L157: 10955056 | M157: 12225213 | N157: 1270157 | O157: 809.5328235 | P157: 0.12
A158: 227 | B158: Palmer | C158: 1244 | D158: 1196 | E158: -48 | F158: 19001379.49 | G158: 19085460.55 | H158: 70.30188963 | I158: 7280709 | J158: 7583656 | K158: 253.3001672 | L158: 11720670 | M158: 11756550 | N158: 35880 | O158: 30 | P158: 0
A159: 229 | B159: Peabody | C159: 5959 | D159: 5981 | E159: 22 | F159: 91177548.53 | G159: 95235570.94 | H159: 678.4856061 | I159: 55819170 | J159: 58253093 | K159: 406.9424845 | L159: 35358379 | M159: 36982478 | N159: 1624099 | O159: 271.543053 | P159: 0.05
A160: 230 | B160: Pelham | C160: 63 | D160: 63 | E160: 0 | F160: 858482.56 | G160: 910076.45 | H160: 818.9506349 | I160: 631932 | J160: 661901 | K160: 475.6984127 | L160: 248263 | M160: 250153 | N160: 1890 | O160: 30 | P160: 0.01
A161: 231 | B161: Pembroke | C161: 2599 | D161: 2483 | E161: -116 | F161: 33926554.38 | G161: 33084431.37 | H161: -339.1554608 | I161: 23884371 | J161: 25260111 | K161: 554.0636327 | L161: 14008892 | M161: 14083382 | N161: 74490 | O161: 30 | P161: 0.01
A162: 234 | B162: Petersham | C162: 77 | D162: 83 | E162: 6 | F162: 1133842.72 | G162: 1198701.79 | H162: 781.4345783 | I162: 637636 | J162: 665286 | K162: 333.1325301 | L162: 496207 | M162: 533416 | N162: 37209 | O162: 448.3012048 | P162: 0.07
A163: 236 | B163: Pittsfield | C163: 5577 | D163: 5558 | E163: -19 | F163: 92916030.26 | G163: 95351493.22 | H163: 438.190529 | I163: 32068500 | J163: 33854715 | K163: 321.377294 | L163: 60847530 | M163: 61496778 | N163: 649248 | O163: 116.8132422 | P163: 0.01
A164: 238 | B164: Plainville | C164: 655 | D164: 633 | E164: -22 | F164: 8340185.27 | G164: 8367252.29 | H164: 42.75990521 | I164: 6122586 | J164: 6375021 | K164: 398.7914692 | L164: 3027041 | M164: 3046031 | N164: 18990 | O164: 30 | P164: 0.01
A165: 239 | B165: Plymouth | C165: 7691 | D165: 7591 | E165: -100 | F165: 111949866.6 | G165: 112142999.4 | H165: 25.44234689 | I165: 83683584 | J165: 88503759 | K165: 634.9855092 | L165: 28266283 | M165: 28494013 | N165: 227730 | O165: 30 | P165: 0.01
A166: 240 | B166: Plympton | C166: 251 | D166: 266 | E166: 15 | F166: 3146739.094 | G166: 3481068.928 | H166: 1256.879072 | I166: 2196202 | J166: 2366387 | K166: 639.7932331 | L166: 950537 | M166: 1114682 | N166: 164145 | O166: 617.0864662 | P166: 0.17
A167: 242 | B167: Provincetown | C167: 98 | D167: 87 | E167: -11 | F167: 1708796.98 | G167: 1580908.48 | H167: -1469.982759 | I167: 1409758 | J167: 1304249 | K167: -1212.747126 | L167: 305451 | M167: 308061 | N167: 2610 | O167: 30 | P167: 0.01
A168: 243 | B168: Quincy | C168: 9715 | D168: 9799 | E168: 84 | F168: 164068488.8 | G168: 167806908.7 | H168: 381.5103506 | I168: 118960682 | J168: 127477978 | K168: 869.2005307 | L168: 45107807 | M168: 45401777 | N168: 293970 | O168: 30 | P168: 0.01
A169: 244 | B169: Randolph | C169: 3050 | D169: 3105 | E169: 55 | F169: 50608513.31 | G169: 53594121.67 | H169: 961.5485867 | I169: 26405867 | J169: 27736093 | K169: 428.4141707 | L169: 24202646 | M169: 25858029 | N169: 1655383 | O169: 533.1346216 | P169: 0.07
A170: 246 | B170: Reading | C170: 3708 | D170: 3676 | E170: -32 | F170: 46064559.3 | G170: 47026965.01 | H170: 261.8078652 | I170: 37284680 | J170: 38797246 | K170: 411.4706202 | L170: 11394279 | M170: 11504559 | N170: 110280 | O170: 30 | P170: 0.01
A171: 248 | B171: Revere | C171: 7955 | D171: 8010 | E171: 55 | F171: 142967579.1 | G171: 150563631.9 | H171: 948.3211929 | I171: 44549397 | J171: 48521069 | K171: 495.839201 | L171: 98418182 | M171: 102042563 | N171: 3624381 | O171: 452.4820225 | P171: 0.04
A172: 249 | B172: Richmond | C172: 120 | D172: 122 | E172: 2 | F172: 1653453.75 | G172: 1660447.39 | H172: 57.32491803 | I172: 1364099 | J172: 1369869 | K172: 47.29508197 | L172: 522455 | M172: 526115 | N172: 3660 | O172: 30 | P172: 0.01
A173: 250 | B173: Rochester | C173: 499 | D173: 500 | E173: 1 | F173: 6163095.86 | G173: 6292946.62 | H173: 259.70152 | I173: 3840072 | J173: 4161563 | K173: 642.982 | L173: 2414282 | M173: 2429282 | N173: 15000 | O173: 30 | P173: 0.01
A174: 251 | B174: Rockland | C174: 2213 | D174: 2186 | E174: -27 | F174: 34848972.48 | G174: 35637553.05 | H174: 360.741341 | I174: 16311436 | J174: 17101694 | K174: 361.5086917 | L174: 18537536 | M174: 18603116 | N174: 65580 | O174: 30 | P174: 0
A175: 252 | B175: Rockport | C175: 587 | D175: 555 | E175: -32 | F175: 8129580.119 | G175: 7652804.318 | H175: -859.0554978 | I175: 6706904 | J175: 6313563 | K175: -708.7225225 | L175: 1590746 | M175: 1607396 | N175: 16650 | O175: 30 | P175: 0.01
A176: 253 | B176: Rowe | C176: 41 | D176: 45 | E176: 4 | F176: 751366.82 | G176: 777079.69 | H176: 571.3971111 | I176: 619878 | J176: 641091 | K176: 471.4 | L176: 146165 | M176: 147515 | N176: 1350 | O176: 30 | P176: 0.01
A177: 258 | B177: Salem | C177: 4202 | D177: 4290 | E177: 88 | F177: 69935642.15 | G177: 75147986.84 | H177: 1214.998762 | I177: 42479762 | J177: 45547856 | K177: 715.1734266 | L177: 27455880 | M177: 29600131 | N177: 2144251 | O177: 499.8254079 | P177: 0.08
A178: 261 | B178: Sandwich | C178: 2276 | D178: 2227 | E178: -49 | F178: 29251950.23 | G178: 29463671.11 | H178: 95.06999551 | I178: 24132859 | J178: 24307529 | K178: 78.43286933 | L178: 7508068 | M178: 7574878 | N178: 66810 | O178: 30 | P178: 0.01
A179: 262 | B179: Saugus | C179: 2830 | D179: 2977 | E179: 147 | F179: 42085454.03 | G179: 46252696.5 | H179: 1399.812721 | I179: 30096004 | J179: 32251625 | K179: 724.0917031 | L179: 11989450 | M179: 14001072 | N179: 2011622 | O179: 675.7211958 | P179: 0.17
A180: 263 | B180: Savoy | C180: 40 | D180: 35 | E180: -5 | F180: 576479.4 | G180: 622293.56 | H180: 1308.976 | I180: 429924 | J180: 425422 | K180: -128.6285714 | L180: 522299 | M180: 523349 | N180: 1050 | O180: 30 | P180: 0
A181: 264 | B181: Scituate | C181: 2763 | D181: 2752 | E181: -11 | F181: 34295600.02 | G181: 35051638.61 | H181: 274.7233254 | I181: 27754773 | J181: 28917602 | K181: 422.5396076 | L181: 6540827 | M181: 6623387 | N181: 82560 | O181: 30 | P181: 0.01
A182: 265 | B182: Seekonk | C182: 2067 | D182: 2076 | E182: 9 | F182: 25865534.95 | G182: 26813049.12 | H182: 456.4133767 | I182: 18110661 | J182: 19300233 | K182: 573.0115607 | L182: 7754874 | M182: 7817154 | N182: 62280 | O182: 30 | P182: 0.01
A183: 266 | B183: Sharon | C183: 3495 | D183: 3518 | E183: 23 | F183: 44179615.27 | G183: 45592861.89 | H183: 401.7187665 | I183: 33681121 | J183: 35375016 | K183: 481.4937464 | L183: 10498494 | M183: 10604034 | N183: 105540 | O183: 30 | P183: 0.01
A184: 269 | B184: Sherborn | C184: 401 | D184: 402 | E184: 1 | F184: 4685609.032 | G184: 4869362.174 | H184: 457.0973683 | I184: 3865627 | J184: 4017224 | K184: 377.1069652 | L184: 846957 | M184: 859017 | N184: 12060 | O184: 30 | P184: 0.01
A185: 271 | B185: Shrewsbury | C185: 5972 | D185: 5998 | E185: 26 | F185: 74633713.99 | G185: 77749654.6 | H185: 519.4966005 | I185: 57993834 | J185: 60858729 | K185: 477.6417139 | L185: 20971468 | M185: 21151408 | N185: 179940 | O185: 30 | P185: 0.01
A186: 272 | B186: Shutesbury | C186: 111 | D186: 99 | E186: -12 | F186: 1442294.22 | G186: 1324918.66 | H186: -1185.611717 | I186: 820401 | J186: 820715 | K186: 3.171717172 | L186: 645986 | M186: 648956 | N186: 2970 | O186: 30 | P186: 0
A187: 273 | B187: Somerset | C187: 1628 | D187: 1587 | E187: -41 | F187: 21144659.59 | G187: 20945424.47 | H187: -125.5419786 | I187: 10510731 | J187: 10904295 | K187: 247.9924386 | L187: 10633929 | M187: 10681539 | N187: 47610 | O187: 30 | P187: 0
A188: 274 | B188: Somerville | C188: 5100 | D188: 5146 | E188: 46 | F188: 88070540.98 | G188: 92243672.76 | H188: 810.9467137 | I188: 71896983 | J188: 76101030 | K188: 816.9543335 | L188: 21245048 | M188: 21399428 | N188: 154380 | O188: 30 | P188: 0.01
A189: 275 | B189: Southampton | C189: 492 | D189: 463 | E189: -29 | F189: 6284662 | G189: 6090235.14 | H189: -419.9284233 | I189: 4309371 | J189: 4422715 | K189: 244.8034557 | L189: 2623246 | M189: 2637136 | N189: 13890 | O189: 30 | P189: 0.01
A190: 276 | B190: Southborough | C190: 1200 | D190: 1223 | E190: 23 | F190: 14230837.13 | G190: 14839839.36 | H190: 497.9576703 | I190: 11416440 | J190: 12013513 | K190: 488.2035977 | L190: 3163171 | M190: 3199861 | N190: 36690 | O190: 30 | P190: 0.01
A191: 277 | B191: Southbridge | C191: 2165 | D191: 2248 | E191: 83 | F191: 38095220.9 | G191: 41954846.99 | H191: 1716.91552 | I191: 9107735 | J191: 9707358 | K191: 266.73621 | L191: 28987486 | M191: 32247489 | N191: 3260003 | O191: 1450.17927 | P191: 0.11
A192: 278 | B192: South Hadley | C192: 1859 | D192: 1817 | E192: -42 | F192: 25928069.82 | G192: 26072273.24 | H192: 79.36346725 | I192: 15249839 | J192: 15934556 | K192: 376.8392955 | L192: 10678231 | M192: 10732741 | N192: 54510 | O192: 30 | P192: 0.01
A193: 281 | B193: Springfield | C193: 28326 | D193: 28394 | E193: 68 | F193: 525763852.9 | G193: 557035159.8 | H193: 1101.335033 | I193: 48026085 | J193: 51503174 | K193: 122.4585828 | L193: 477737768 | M193: 505531986 | N193: 27794218 | O193: 978.8764528 | P193: 0.06
A194: 284 | B194: Stoneham | C194: 2425 | D194: 2456 | E194: 31 | F194: 32165599.71 | G194: 33160025.14 | H194: 404.8963472 | I194: 24905971 | J194: 26074168 | K194: 475.6502443 | L194: 7259629 | M194: 7333309 | N194: 73680 | O194: 30 | P194: 0.01
A195: 285 | B195: Stoughton | C195: 3693 | D195: 3781 | E195: 88 | F195: 56987020.3 | G195: 60499235.96 | H195: 928.9118394 | I195: 30547654 | J195: 31939552 | K195: 368.1295953 | L195: 26439366 | M195: 28559684 | N195: 2120318 | O195: 560.7823327 | P195: 0.08
A196: 287 | B196: Sturbridge | C196: 883 | D196: 901 | E196: 18 | F196: 10737439.59 | G196: 11545308.15 | H196: 896.6354717 | I196: 6009212 | J196: 6369431 | K196: 399.7991121 | L196: 4728228 | M196: 5175877 | N196: 447649 | O196: 496.8357381 | P196: 0.09
A197: 288 | B197: Sudbury | C197: 2513 | D197: 2509 | E197: -4 | F197: 28628096.43 | G197: 29586742.63 | H197: 382.0829814 | I197: 23070588 | J197: 23966883 | K197: 357.2319649 | L197: 5557508 | M197: 5632778 | N197: 75270 | O197: 30 | P197: 0.01
A198: 289 | B198: Sunderland | C198: 146 | D198: 142 | E198: -4 | F198: 1946645.52 | G198: 2077119.52 | H198: 918.8309859 | I198: 1555821 | J198: 1678401 | K198: 863.2394366 | L198: 895488 | M198: 899748 | N198: 4260 | O198: 30 | P198: 0
A199: 290 | B199: Sutton | C199: 1294 | D199: 1314 | E199: 20 | F199: 16076441.03 | G199: 16892397.65 | H199: 620.9715525 | I199: 12750768 | J199: 13481611 | K199: 556.1971081 | L199: 5669325 | M199: 5708745 | N199: 39420 | O199: 30 | P199: 0.01
A200: 291 | B200: Swampscott | C200: 2024 | D200: 2040 | E200: 16 | F200: 26012947.4 | G200: 26938857.69 | H200: 453.8775931 | I200: 20898493 | J200: 21599795 | K200: 343.7754902 | L200: 5114454 | M200: 5339063 | N200: 224609 | O200: 110.102451 | P200: 0.04
A201: 292 | B201: Swansea | C201: 2033 | D201: 2081 | E201: 48 | F201: 26694462.58 | G201: 28125194.14 | H201: 687.5211725 | I201: 16252187 | J201: 17101642 | K201: 408.195579 | L201: 10442276 | M201: 11023552 | N201: 581276 | O201: 279.3253244 | P201: 0.06
A202: 293 | B202: Taunton | C202: =VLOOKUP(A202,aidcalc,14,FALSE) -> 8075 | D202: =VLOOKUP(A202,aidcalc,15,FALSE) -> 8235 | E202: =D202-C202 -> 160 | F202: =VLOOKUP(A202,aidcalc,4,FALSE) -> 131396476.3 | G202: =VLOOKUP(A202,aidcalc,9,FALSE) -> 139952638.3 | H202: =(G202-F202)/$D202 -> 1038.999636 | I202: =VLOOKUP(A202,aidcalc,5,FALSE) -> 42467828 | J202: =VLOOKUP(A202,aidcalc,10,FALSE) -> 45057486 | K202: =(J202-I202)/$D202 -> 314.4697025 | L202: =VLOOKUP(A202,aidcalc,6,FALSE) -> 88928648 | M202: =VLOOKUP(A202,aidcalc,25,FALSE) -> 94895152 | N202: =M202-L202 -> 5966504 | O202: =(M202-L202)/$D202 -> 724.5299332 | P202: =ROUND(IF(F202>0,(M202-L202)/L202,100),2) -> 0.07
A203: 295 | B203: Tewksbury | C203: 3249 | D203: 3258 | E203: 9 | F203: 41191248.02 | G203: 42572022.78 | H203: 423.8105463 | I203: 32555022 | J203: 34164259 | K203: 493.9340086 | L203: 13812515 | M203: 13910255 | N203: 97740 | O203: 30 | P203: 0.01
... 128 more rows

Sheet Rates
A3: Massachusetts Department of Elementary and Secondary Education
A4: Office of School Finance
A6: ="Foundation Budget Rates Per Pupil, "& CYr &" Chapter 70" -> Foundation Budget Rates Per Pupil, FY25 Chapter 70
C8: Administration | D8: Instructional Leadership | E8: Classroom & Specialist Teachers | F8: Other Teaching Services | G8: Professional Development | H8: Instructional Materials, Equipment & Technology | I8: Guidance & Psychological Services | J8: Pupil Services | K8: Operations & Maintenance | L8: Employee Benefits/Fixed Charges | M8: Special Education Tuition | N8: Total, All Categories
A10: 1 | B10: Pre-school | C10: 224.33 | D10: 405.14 | E10: 1857.73 | F10: 476.45 | G10: 73.47 | H10: 268.87 | I10: 189.27 | J10: 53.76 | K10: 515.87 | L10: 810.9 | M10: 0 | N10: 4875.79
A11: 2 | B11: Kindergarten half-day | C11: 224.33 | D11: 405.14 | E11: 1857.73 | F11: 476.45 | G11: 73.47 | H11: 268.87 | I11: 189.27 | J11: 53.76 | K11: 515.87 | L11: 810.9 | M11: 0 | N11: 4875.79
A12: 3 | B12: Kindergarten full-day | C12: 448.65 | D12: 810.3 | E12: 3715.45 | F12: 952.94 | G12: 147.02 | H12: 537.77 | I12: 378.55 | J12: 107.56 | K12: 1031.73 | L12: 1621.78 | M12: 0 | N12: 9751.75
A13: 4 | B13: Elementary | C13: 448.65 | D13: 810.3 | E13: 3715.4 | F13: 952.94 | G13: 147.04 | H13: 537.77 | I13: 378.55 | J13: 161.32 | K13: 1031.73 | L13: 1621.8 | M13: 0 | N13: 9805.5
A14: 5 | B14: Junior/Middle | C14: 448.65 | D14: 810.3 | E14: 3269.57 | F14: 685.98 | G14: 159.38 | H14: 537.77 | I14: 408.39 | J14: 263.52 | K14: 1118.52 | L14: 1730.8 | M14: 0 | N14: 9432.88
A15: 6 | B15: High School | C15: 448.65 | D15: 810.3 | E15: 4808.16 | F15: 571.07 | G15: 154.55 | H15: 860.42 | I15: 451.12 | J15: 607.66 | K15: 1084.53 | L15: 1537.47 | M15: 0 | N15: 11333.93
A16: 7 | B16: Vocational | C16: 448.65 | D16: 810.3 | E16: 8173.93 | F16: 571.07 | G16: 255.51 | H16: 1505.73 | I16: 451.12 | J16: 607.66 | K16: 2029.75 | L16: 2006.61 | M16: 0 | N16: 16860.33
A17: 8 | B17: Special Education in-district | C17: 3096.41 | D17: 0 | E17: 10217.38 | F17: 9539.82 | G17: 492.88 | H17: 430.2 | I17: 0 | J17: 0 | K17: 3458.83 | L17: 4098.1 | M17: 0 | N17: 31333.62
A18: 9 | B18: Special Education tuitioned-out | C18: 3702.76 | D18: 0 | E18: 0 | F18: 56.56 | G18: 0 | H18: 0 | I18: 0 | J18: 0 | K18: 0 | L18: 0 | M18: 35155.74 | N18: 38915.06
A19: 10 | B19: English learners PK-5 | C19: 111.09 | D19: 194.4 | E19: 1360.76 | F19: 194.4 | G19: 55.54 | H19: 138.84 | I19: 83.31 | J19: 27.78 | K19: 333.25 | L19: 322.91 | M19: 0 | N19: 2822.28
A20: 11 | B20: English learners 6-8 | C20: 118.24 | D20: 206.89 | E20: 1448.24 | F20: 206.89 | G20: 59.11 | H20: 147.78 | I20: 88.67 | J20: 29.56 | K20: 354.67 | L20: 343.66 | M20: 0 | N20: 3003.71
A21: 12 | B21: English learners high school/voc | C21: 126.78 | D21: 221.87 | E21: 1553.06 | F21: 221.87 | G21: 63.38 | H21: 158.47 | I21: 95.08 | J21: 31.7 | K21: 380.34 | L21: 368.53 | M21: 0 | N21: 3221.08
A22: 13 | B22: Low-income group 1 (0-5.99%) | C22: 55.91 | D22: 264.89 | E22: 2585.88 | F22: 0 | G22: 125.46 | H22: 19.23 | I22: 104.71 | J22: 544.1 | K22: 0 | L22: 442.14 | M22: 0 | N22: 4142.32
A23: 14 | B23: Low-income group 2 (6-11.99%) | C23: 58.4 | D23: 276.71 | E23: 2701.21 | F23: 0 | G23: 131.06 | H23: 20.09 | I23: 109.38 | J23: 568.37 | K23: 0 | L23: 461.87 | M23: 0 | N23: 4327.09
A24: 15 | B24: Low-income group 3 (12-17.99%) | C24: 60.89 | D24: 288.53 | E24: 2816.54 | F24: 0 | G24: 136.65 | H24: 20.95 | I24: 114.05 | J24: 592.64 | K24: 0 | L24: 481.59 | M24: 0 | N24: 4511.84
A25: 16 | B25: Low-income group 4 (18-23.99%) | C25: 63.39 | D25: 300.34 | E25: 2931.87 | F25: 0 | G25: 142.24 | H25: 21.8 | I25: 118.72 | J25: 616.9 | K25: 0 | L25: 501.31 | M25: 0 | N25: 4696.57
A26: 17 | B26: Low-income group 5 (24-29.99%) | C26: 65.88 | D26: 312.15 | E26: 3047.2 | F26: 0 | G26: 147.84 | H26: 22.66 | I26: 123.39 | J26: 641.17 | K26: 0 | L26: 521.03 | M26: 0 | N26: 4881.32
A27: 18 | B27: Low-income group 6 (30-35.99%) | C27: 72.74 | D27: 344.67 | E27: 3364.62 | F27: 0 | G27: 163.23 | H27: 25.03 | I27: 136.24 | J27: 707.96 | K27: 0 | L27: 575.3 | M27: 0 | N27: 5389.79
A28: 19 | B28: Low-income group 7 (36-41.99%) | C28: 78.73 | D28: 373.02 | E28: 3641.44 | F28: 0 | G28: 176.66 | H28: 27.08 | I28: 147.45 | J28: 766.21 | K28: 0 | L28: 622.63 | M28: 0 | N28: 5833.22
A29: 20 | B29: Low-income group 8 (42-47.99%) | C29: 84.72 | D29: 401.38 | E29: 3918.27 | F29: 0 | G29: 190.09 | H29: 29.15 | I29: 158.66 | J29: 824.45 | K29: 0 | L29: 669.96 | M29: 0 | N29: 6276.68
A30: 21 | B30: Low-income group 9 (48-53.99%) | C30: 90.7 | D30: 429.74 | E30: 4195.1 | F30: 0 | G30: 203.52 | H30: 31.19 | I30: 169.87 | J30: 882.71 | K30: 0 | L30: 717.3 | M30: 0 | N30: 6720.13
A31: 22 | B31: Low-income group 10 (54-69.99%) | C31: 96.68 | D31: 458.1 | E31: 4471.93 | F31: 0 | G31: 216.95 | H31: 33.26 | I31: 181.08 | J31: 940.95 | K31: 0 | L31: 764.64 | M31: 0 | N31: 7163.59
A32: 23 | B32: Low-income group 11 (70-79.99%) | C32: 105.8 | D32: 501.28 | E32: 4893.48 | F32: 0 | G32: 237.4 | H32: 36.39 | I32: 198.15 | J32: 1029.66 | K32: 0 | L32: 836.71 | M32: 0 | N32: 7838.87
A33: 24 | B33: Low-income group 12 (80%+) | C33: 114.92 | D33: 544.47 | E33: 5315.04 | F33: 0 | G33: 257.85 | H33: 39.53 | I33: 215.22 | J33: 1118.35 | K33: 0 | L33: 908.79 | M33: 0 | N33: 8514.17

Sheet Townwide Contributions
A1: 1 | C1: From DOR 3 | D1: 4 | E1: From DOR 5 | F1: 6 | G1: 7 | H1: 8 | I1: =H1+1 -> 9 | J1: =I1+1 -> 10 | K1: 11 | L1: 12 | M1: 13 | N1: c70fy24 14 | O1: From DOR 1/11/24 15 | P1: 16 | Q1: 17 | R1: 18 | S1: 19 | T1: 20 | U1: 21 | V1: 22 | W1: 23 | X1: 24 | Y1: 25 | Z1: 26 | AA1: 27 | AB1: 28 | AC1: 29 | AD1: 30 | AE1: 29
B2: Return to Index | C2: 1. Calculation of effort goal (target local share) | N2: 2. Calculation of annual increments toward goal (required local contribution) | AA2: Analysis of Gap Closing
B3: More about the data | S3: Increments | T3: Thresholds
D4: uniform property percentage | F4: uniform income percentage | S4: =parameters!C18 -> 0.01 | T4: =parameters!C16 -> 2.5 | V4: Effort Reduction | W4: OPTION TO ACTIVATE THIS INCREMENT
D5: =parameters!C29 -> 0.003901954956 | F5: =parameters!C30 -> 0.01429851375 | S5: =parameters!C19 -> 0.02 | T5: =parameters!C17 -> 7.5 | V5: =effortred -> 1 | W5: 1 | AG5: SUMMARY FOR EXPORT (reads from columns to the left)
J6: maximum | K6: target local | N6: required | Q6: preliminary | S6: percentage | T6: dollar
D7: local effort | F7: local effort | G7: combined | J7: local contribution | K7: contribution | L7: target | N7: local | P7: preliminary | Q7: contribution | R7: shortfall | S7: increment | T7: increment | V7: excess effort | X7: required | AA7: Before | AB7: After implementation | AI7: CEY% | AJ7: target
C8: total | D8: from property | E8: DOR total | F8: from income | G8: effort | H8: =CYr -> FY25 | I8: CEY % | J8: foundation pct= | K8: (lesser of max local | L8: local | N8: contribution | O8: mrgf | P8: contribution | Q8: percentage of | R8: from target | S8: toward | T8: toward | U8: excess | V8: times effort | W8: CEY% > 175% | X8: contribution | Y8: percentage | AA8: below effort | AB8: below effort | AC8: above effort | AD8: distance from | AI8: found | AJ8: local share | AK8: MRGF | AL8: RLC | AM8: distance from
A9: LEA | B9: Town | C9: EQV 2022 | D9: wealth | E9: income 2021 | F9: wealth | G9: yield | H9: foundation | I9: Found | J9: =maxloc -> 0.825 | K9: or effort yield) | L9: share | N9: FY24 | O9: FY25 | P9: =CYr -> FY25 | Q9: foundation | R9: local share | S9: target | T9: target | U9: effort | V9: reduction % | W9: increment | X9: =CYr -> FY25 | Y9: of foundation | AA9: shortfall | AB9: shortfall | AC9: excess | AD9: target | AG9: Town code | AH9: Town | AI9: =CYr -> FY25 | AJ9: =CYr -> FY25 | AK9: =CYr -> FY25 | AL9: =CYr -> FY25 | AM9: target
A10: 1 | B10: Abington | C10: 2693823800 | D10: =D$5*C10 -> 10511179.13 | E10: 725757000 | F10: =E10*F$5 -> 10377246.44 | G10: =ROUND(D10+F10,0) -> 20888426 | H10: =(SUMIF(town1755,A10,found1755)/2) -> 34597444.91 | I10: =IF(H10=0,0,G10/H10) -> 0.6037563194 | J10: =ROUND(H10*maxloc,0) -> 28542892 | K10: =MIN(G10,J10) -> 20888426 | L10: =IF(H10>0, ROUND((K10*100/H10), 2), 0) -> 60.38 | N10: 18276651 | O10: 0.0331 | P10: =ROUND(N10*(1+O10),0) -> 18881608 | Q10: =IF(H10=0,0,P10*100/H10) -> 54.57515158 | R10: =IF(L10>Q10,L10-Q10,0) -> 5.804848425 | S10: =IF(AND(R10>$T$4,R10<=$T$5),$S$4,IF(R10>$T$5,$S$5,0)) -> 0.01 | T10: =ROUND(S10*N10,0) -> 182767 | U10: =MAX(P10-K10,0) -> 0 | V10: =MAX(U10*(V$5),0) -> 0 | W10: =IF(AND(I10>1.75,$W$5=1),MAX(K10-(P10+T10),0),0) -> 0 | X10: =MIN(H10*parameters!C$22,ROUND(P10+T10-V10+W10,0)) -> 19064375 | Y10: =IF(H10=0,0,X10*100/H10) -> 55.10341891 | AA10: =IF(Q10<L10, P10-K10, 0) -> -2006818 | AB10: =-1*MAX(K10-(P10+T10+W10),0) -> -1824051 | AC10: =IF(Q10>L10, X10-K10,0) -> 0 | AD10: =Y10-L10 -> -5.276581091 | AG10: =TEXT(A10,"000") -> 001 | AH10: =B10 -> Abington | AI10: =I10 -> 0.6037563194 | AJ10: =L10 -> 60.38 | AK10: =O10 -> 0.0331 | AL10: =X10 -> 19064375 | AM10: =AD10 -> -5.276581091
A11: 2 | B11: Acton | C11: 5255138400 | D11: 20505313.32 | E11: 2210950000 | F11: =E11*F$5 -> 31613298.97 | G11: 52118612 | H11: =(SUMIF(town1755,A11,found1755)/2) -> 56017875.56 | I11: =IF(H11=0,0,G11/H11) -> 0.9303925127 | J11: 46214747 | K11: =MIN(G11,J11) -> 46214747 | L11: =IF(H11>0, ROUND((K11*100/H11), 2), 0) -> 82.5 | N11: 43415702 | O11: 0.0386 | P11: =ROUND(N11*(1+O11),0) -> 45091548 | Q11: =IF(H11=0,0,P11*100/H11) -> 80.49492692 | R11: =IF(L11>Q11,L11-Q11,0) -> 2.005073076 | S11: =IF(AND(R11>$T$4,R11<=$T$5),$S$4,IF(R11>$T$5,$S$5,0)) -> 0 | T11: =ROUND(S11*N11,0) -> 0 | U11: =MAX(P11-K11,0) -> 0 | V11: 0 | W11: =IF(AND(I11>1.75,$W$5=1),MAX(K11-(P11+T11),0),0) -> 0 | X11: =MIN(H11*parameters!C$22,ROUND(P11+T11-V11+W11,0)) -> 45091548 | Y11: =IF(H11=0,0,X11*100/H11) -> 80.49492692 | AA11: =IF(Q11<L11, P11-K11, 0) -> -1123199 | AB11: =-1*MAX(K11-(P11+T11+W11),0) -> -1123199 | AC11: =IF(Q11>L11, X11-K11,0) -> 0 | AD11: =Y11-L11 -> -2.005073076 | AG11: =TEXT(A11,"000") -> 002 | AH11: =B11 -> Acton | AI11: =I11 -> 0.9303925127 | AJ11: 82.5 | AK11: =O11 -> 0.0386 | AL11: 45091548 | AM11: =AD11 -> -2.005073076
A12: 3 | B12: Acushnet | C12: 1630578800 | D12: 6362445.029 | E12: 427553000 | F12: =E12*F$5 -> 6113372.448 | G12: 12475817 | H12: 19760473.03 | I12: 0.6313521432 | J12: 16302390 | K12: 12475817 | L12: 63.14 | N12: 10679653 | O12: 0.0388 | P12: 11094024 | Q12: 56.14250216 | R12: 6.997497839 | S12: 0.01 | T12: 106797 | U12: 0 | V12: 0 | W12: 0 | X12: =MIN(H12*parameters!C$22,ROUND(P12+T12-V12+W12,0)) -> 11200821 | Y12: 56.68295987 | AA12: -1381793 | AB12: -1274996 | AC12: 0 | AD12: -6.45704013 | AG12: 003 | AH12: Acushnet | AI12: 0.6313521432 | AJ12: 63.14 | AK12: 0.0388 | AL12: 11200821 | AM12: -6.45704013
A13: 4 | B13: Adams | C13: 593584400 | D13: 2316139.591 | E13: 214031000 | F13: 3060325.196 | G13: 5376465 | H13: 16685919.72 | I13: 0.3222156818 | J13: 13765884 | K13: 5376465 | L13: 32.22 | N13: 4840721 | O13: 0.0326 | P13: 4998529 | Q13: 29.95656867 | R13: 2.263431333 | S13: 0 | T13: 0 | U13: 0 | V13: 0 | W13: 0 | X13: =MIN(H13*parameters!C$22,ROUND(P13+T13-V13+W13,0)) -> 4998529 | Y13: 29.95656867 | AA13: -377936 | AB13: -377936 | AC13: 0 | AD13: -2.263431333 | AG13: 004 | AH13: Adams | AI13: 0.3222156818 | AJ13: 32.22 | AK13: 0.0326 | AL13: 4998529 | AM13: -2.263431333
A14: 5 | B14: Agawam | C14: 3580768800 | D14: 13971998.56 | E14: 1013311000 | F14: 14488841.26 | G14: 28460840 | H14: 52963671.53 | I14: 0.5373653143 | J14: 43695029 | K14: 28460840 | L14: 53.74 | N14: 25373043 | O14: 0.0503 | P14: 26649307 | Q14: 50.3162002 | R14: 3.423799801 | S14: 0.01 | T14: 253730 | U14: 0 | V14: 0 | W14: 0 | X14: =MIN(H14*parameters!C$22,ROUND(P14+T14-V14+W14,0)) -> 26903037 | Y14: 50.79526442 | AA14: -1811533 | AB14: -1557803 | AC14: 0 | AD14: -2.94473558 | AG14: 005 | AH14: Agawam | AI14: 0.5373653143 | AJ14: 53.74 | AK14: 0.0503 | AL14: 26903037 | AM14: -2.94473558
A15: 6 | B15: Alford | C15: 308074200 | D15: 1202091.651 | E15: 40805000 | F15: 583450.8534 | G15: 1785543 | H15: 278846.8239 | I15: 6.403311235 | J15: 230049 | K15: 230049 | L15: 82.5 | N15: 229564 | O15: 0.0319 | P15: 236887 | Q15: 84.95237519 | R15: 0 | S15: 0 | T15: 0 | U15: 6838 | V15: 6838 | W15: 0 | X15: =MIN(H15*parameters!C$22,ROUND(P15+T15-V15+W15,0)) -> 230049 | Y15: 82.5001328 | AA15: 0 | AB15: 0 | AC15: 0 | AD15: 0.0001328016021 | AG15: 006 | AH15: Alford | AI15: 6.403311235 | AJ15: 82.5 | AK15: 0.0319 | AL15: 230049 | AM15: 0.0001328016021
A16: 7 | B16: Amesbury | C16: 2989453900 | D16: 11664714.46 | E16: 825009000 | F16: 11796402.53 | G16: 23461117 | H16: 29097478.51 | I16: 0.8062938166 | J16: 24005420 | K16: 23461117 | L16: 80.63 | N16: 20012026 | O16: 0.0323 | P16: 20658414 | Q16: 70.99726526 | R16: 9.632734741 | S16: 0.02 | T16: 400241 | U16: 0 | V16: 0 | W16: 0 | X16: =MIN(H16*parameters!C$22,ROUND(P16+T16-V16+W16,0)) -> 21058655 | Y16: 72.37278307 | AA16: -2802703 | AB16: -2402462 | AC16: 0 | AD16: -8.257216928 | AG16: 007 | AH16: Amesbury | AI16: 0.8062938166 | AJ16: 80.63 | AK16: 0.0323 | AL16: 21058655 | AM16: -8.257216928
A17: 8 | B17: Amherst | C17: 2913802400 | D17: 11369525.71 | E17: 952563000 | F17: 13620235.15 | G17: 24989761 | H17: 27395677.93 | I17: 0.9121789599 | J17: 22601434 | K17: 22601434 | L17: 82.5 | N17: 22289606 | O17: 0.0367 | P17: 23107635 | Q17: 84.3477393 | R17: 0 | S17: 0 | T17: 0 | U17: 506201 | V17: 506201 | W17: 0 | X17: =MIN(H17*parameters!C$22,ROUND(P17+T17-V17+W17,0)) -> 22601434 | Y17: 82.49999893 | AA17: 0 | AB17: 0 | AC17: 0 | AD17: -1.065371734e-06 | AG17: 008 | AH17: Amherst | AI17: 0.9121789599 | AJ17: 82.5 | AK17: 0.0367 | AL17: 22601434 | AM17: -1.065371734e-06
A18: 9 | B18: Andover | C18: 10204123200 | D18: 39816029.09 | E18: 4352871000 | F18: 62239585.83 | G18: 102055615 | H18: 73858628.69 | I18: 1.381769697 | J18: 60933369 | K18: 60933369 | L18: 82.5 | N18: 59359726 | O18: 0.036 | P18: 61496676 | Q18: 83.26268317 | R18: 0 | S18: 0 | T18: 0 | U18: 563307 | V18: 563307 | W18: 0 | X18: =MIN(H18*parameters!C$22,ROUND(P18+T18-V18+W18,0)) -> 60933369 | Y18: 82.50000045 | AA18: 0 | AB18: 0 | AC18: 0 | AD18: 4.48890745e-07 | AG18: 009 | AH18: Andover | AI18: 1.381769697 | AJ18: 82.5 | AK18: 0.036 | AL18: 60933369 | AM18: 4.48890745e-07
A19: 10 | B19: Arlington | C19: 13535163100 | D19: 52813596.73 | E19: 4037248000 | F19: 57726646.03 | G19: 110540243 | H19: 81949369.01 | I19: 1.348884614 | J19: 67608229 | K19: 67608229 | L19: 82.5 | N19: 59605871 | O19: 0.0356 | P19: 61727840 | Q19: 75.32436277 | R19: 7.175637233 | S19: 0.01 | T19: 596059 | U19: 0 | V19: 0 | W19: 0 | X19: =MIN(H19*parameters!C$22,ROUND(P19+T19-V19+W19,0)) -> 62323899 | Y19: 76.05171309 | AA19: -5880389 | AB19: -5284330 | AC19: 0 | AD19: -6.448286911 | AG19: 010 | AH19: Arlington | AI19: 1.348884614 | AJ19: 82.5 | AK19: 0.0356 | AL19: 62323899 | AM19: -6.448286911
A20: 11 | B20: Ashburnham | C20: 852436100 | D20: 3326167.265 | E20: 252007000 | F20: 3603325.554 | G20: 6929493 | H20: 14305578.66 | I20: 0.4843909615 | J20: 11802102 | K20: 6929493 | L20: 48.44 | N20: 6256339 | O20: 0.0392 | P20: 6501587 | Q20: 45.44791341 | R20: 2.99208659 | S20: 0.01 | T20: 62563 | U20: 0 | V20: 0 | W20: 0 | X20: =MIN(H20*parameters!C$22,ROUND(P20+T20-V20+W20,0)) -> 6564150 | Y20: 45.8852463 | AA20: -427906 | AB20: -365343 | AC20: 0 | AD20: -2.554753704 | AG20: 011 | AH20: Ashburnham | AI20: 0.4843909615 | AJ20: 48.44 | AK20: 0.0392 | AL20: 6564150 | AM20: -2.554753704
A21: 12 | B21: Ashby | C21: 417224700 | D21: 1627991.986 | E21: 121033000 | F21: 1730592.014 | G21: 3358584 | H21: 6071342.046 | I21: 0.5531864248 | J21: 5008857 | K21: 3358584 | L21: 55.32 | N21: 2992812 | O21: 0.0455 | P21: 3128985 | Q21: 51.536958 | R21: 3.783042004 | S21: 0.01 | T21: 29928 | U21: 0 | V21: 0 | W21: 0 | X21: =MIN(H21*parameters!C$22,ROUND(P21+T21-V21+W21,0)) -> 3158913 | Y21: 52.02989679 | AA21: -229599 | AB21: -199671 | AC21: 0 | AD21: -3.290103215 | AG21: 012 | AH21: Ashby | AI21: 0.5531864248 | AJ21: 55.32 | AK21: 0.0455 | AL21: 3158913 | AM21: -3.290103215
A22: 13 | B22: Ashfield | C22: 293407600 | D22: 1144863.239 | E22: 82357000 | F22: 1177582.697 | G22: 2322446 | H22: 2351117.64 | I22: 0.9878051018 | J22: 1939672 | K22: 1939672 | L22: 82.5 | N22: 1608103 | O22: 0.0503 | P22: 1688991 | Q22: 71.83779199 | R22: 10.66220801 | S22: 0.02 | T22: 32162 | U22: 0 | V22: 0 | W22: 0 | X22: =MIN(H22*parameters!C$22,ROUND(P22+T22-V22+W22,0)) -> 1721153 | Y22: 73.20573715 | AA22: -250681 | AB22: -218519 | AC22: 0 | AD22: -9.294262846 | AG22: 013 | AH22: Ashfield | AI22: 0.9878051018 | AJ22: 82.5 | AK22: 0.0503 | AL22: 1721153 | AM22: -9.294262846
A23: 14 | B23: Ashland | C23: 3593981200 | D23: 14023552.75 | E23: 1254293000 | F23: 17934525.7 | G23: 31958078 | H23: 39225149.23 | I23: 0.8147343893 | J23: 32360748 | K23: 31958078 | L23: 81.47 | N23: 26422222 | O23: 0.0332 | P23: 27299440 | Q23: 69.59677793 | R23: 11.87322207 | S23: 0.02 | T23: 528444 | U23: 0 | V23: 0 | W23: 0 | X23: =MIN(H23*parameters!C$22,ROUND(P23+T23-V23+W23,0)) -> 27827884 | Y23: 70.94398504 | AA23: -4658638 | AB23: -4130194 | AC23: 0 | AD23: -10.52601496 | AG23: 014 | AH23: Ashland | AI23: 0.8147343893 | AJ23: 81.47 | AK23: 0.0332 | AL23: 27827884 | AM23: -10.52601496
A24: 15 | B24: Athol | C24: 1060563000 | D24: 4138269.054 | E24: 297621000 | F24: 4255537.96 | G24: 8393807 | H24: 28894458.97 | I24: 0.2904988465 | J24: 23837929 | K24: 8393807 | L24: 29.05 | N24: 4052122 | O24: 0.0539 | P24: 4270531 | Q24: 14.77975762 | R24: 14.27024238 | S24: 0.02 | T24: 81042 | U24: 0 | V24: 0 | W24: 0 | X24: =MIN(H24*parameters!C$22,ROUND(P24+T24-V24+W24,0)) -> 4351573 | Y24: 15.06023354 | AA24: -4123276 | AB24: -4042234 | AC24: 0 | AD24: -13.98976646 | AG24: 015 | AH24: Athol | AI24: 0.2904988465 | AJ24: 29.05 | AK24: 0.0539 | AL24: 4351573 | AM24: -13.98976646
A25: 16 | B25: Attleboro | C25: 5949246000 | D25: 23213689.91 | E25: 1863620000 | F25: 26646996.19 | G25: 49860686 | H25: 102404642.3 | I25: 0.4868986879 | J25: 84483830 | K25: 49860686 | L25: 48.69 | N25: 43887130 | O25: 0.0433 | P25: 45787443 | Q25: 44.71227275 | R25: 3.977727246 | S25: 0.01 | T25: 438871 | U25: 0 | V25: 0 | W25: 0 | X25: =MIN(H25*parameters!C$22,ROUND(P25+T25-V25+W25,0)) -> 46226314 | Y25: 45.14083829 | AA25: -4073243 | AB25: -3634372 | AC25: 0 | AD25: -3.549161714 | AG25: 016 | AH25: Attleboro | AI25: 0.4868986879 | AJ25: 48.69 | AK25: 0.0433 | AL25: 46226314 | AM25: -3.549161714
A26: 17 | B26: Auburn | C26: 2748972400 | D26: 10726366.48 | E26: 708058000 | F26: 10124177.05 | G26: 20850544 | H26: 35171470.24 | I26: 0.5928254878 | J26: 29016463 | K26: 20850544 | L26: 59.28 | N26: 18294872 | O26: 0.0416 | P26: 19055939 | Q26: 54.18010357 | R26: 5.099896433 | S26: 0.01 | T26: 182949 | U26: 0 | V26: 0 | W26: 0 | X26: =MIN(H26*parameters!C$22,ROUND(P26+T26-V26+W26,0)) -> 19238888 | Y26: 54.70026664 | AA26: -1794605 | AB26: -1611656 | AC26: 0 | AD26: -4.579733361 | AG26: 017 | AH26: Auburn | AI26: 0.5928254878 | AJ26: 59.28 | AK26: 0.0416 | AL26: 19238888 | AM26: -4.579733361
A27: 18 | B27: Avon | C27: 1081305500 | D27: 4219205.354 | E27: 213586000 | F27: 3053962.357 | G27: 7273168 | H27: 10581792.5 | I27: 0.687328541 | J27: 8729979 | K27: 7273168 | L27: 68.73 | N27: 6019496 | O27: 0.0285 | P27: 6191052 | Q27: 58.50664715 | R27: 10.22335285 | S27: 0.02 | T27: 120390 | U27: 0 | V27: 0 | W27: 0 | X27: =MIN(H27*parameters!C$22,ROUND(P27+T27-V27+W27,0)) -> 6311442 | Y27: 59.64435609 | AA27: -1082116 | AB27: -961726 | AC27: 0 | AD27: -9.085643907 | AG27: 018 | AH27: Avon | AI27: 0.687328541 | AJ27: 68.73 | AK27: 0.0285 | AL27: 6311442 | AM27: -9.085643907
A28: 19 | B28: Ayer | C28: 1529467100 | D28: 5967911.73 | E28: 374452000 | F28: 5354107.07 | G28: 11322019 | H28: 14940353.43 | I28: 0.7578146699 | J28: 12325792 | K28: 11322019 | L28: 75.78 | N28: 10060490 | O28: 0.0498 | P28: 10561502 | Q28: 70.69111217 | R28: 5.088887826 | S28: 0.01 | T28: 100605 | U28: 0 | V28: 0 | W28: 0 | X28: =MIN(H28*parameters!C$22,ROUND(P28+T28-V28+W28,0)) -> 10662107 | Y28: 71.36448982 | AA28: -760517 | AB28: -659912 | AC28: 0 | AD28: -4.415510182 | AG28: 019 | AH28: Ayer | AI28: 0.7578146699 | AJ28: 75.78 | AK28: 0.0498 | AL28: 10662107 | AM28: -4.415510182
A29: 20 | B29: Barnstable | C29: 18221137000 | D29: 71098055.81 | E29: 2661860000 | F29: 38060641.8 | G29: 109158698 | H29: 92749141.07 | I29: 1.176924085 | J29: 76518041 | K29: 76518041 | L29: 82.5 | N29: 62777242 | O29: 0.0433 | P29: 65495497 | Q29: 70.61574505 | R29: 11.88425495 | S29: 0.02 | T29: 1255545 | U29: 0 | V29: 0 | W29: 0 | X29: =MIN(H29*parameters!C$22,ROUND(P29+T29-V29+W29,0)) -> 66751042 | Y29: 71.96944492 | AA29: -11022544 | AB29: -9766999 | AC29: 0 | AD29: -10.53055508 | AG29: 020 | AH29: Barnstable | AI29: 1.176924085 | AJ29: 82.5 | AK29: 0.0433 | AL29: 66751042 | AM29: -10.53055508
A30: 21 | B30: Barre | C30: 583632100 | D30: 2277306.165 | E30: 181866000 | F30: 2600413.501 | G30: 4877720 | H30: 11325156.66 | I30: 0.4306977949 | J30: 9343254 | K30: 4877720 | L30: 43.07 | N30: 4168364 | O30: 0.0307 | P30: 4296333 | Q30: 37.93619046 | R30: 5.133809545 | S30: 0.01 | T30: 41684 | U30: 0 | V30: 0 | W30: 0 | X30: =MIN(H30*parameters!C$22,ROUND(P30+T30-V30+W30,0)) -> 4338017 | Y30: 38.304256 | AA30: -581387 | AB30: -539703 | AC30: 0 | AD30: -4.765743996 | AG30: 021 | AH30: Barre | AI30: 0.4306977949 | AJ30: 43.07 | AK30: 0.0307 | AL30: 4338017 | AM30: -4.765743996
A31: 22 | B31: Becket | C31: 630004600 | D31: 2458249.571 | E31: 69919000 | F31: 999737.7827 | G31: 3457987 | H31: 2956042.415 | I31: 1.169802903 | J31: 2438735 | K31: 2438735 | L31: 82.5 | N31: 2256532 | O31: 0.0304 | P31: 2325131 | Q31: 78.65688895 | R31: 3.843111048 | S31: 0.01 | T31: 22565 | U31: 0 | V31: 0 | W31: 0 | X31: =MIN(H31*parameters!C$22,ROUND(P31+T31-V31+W31,0)) -> 2347696 | Y31: 79.42024065 | AA31: -113604 | AB31: -91039 | AC31: 0 | AD31: -3.079759349 | AG31: 022 | AH31: Becket | AI31: 1.169802903 | AJ31: 82.5 | AK31: 0.0304 | AL31: 2347696 | AM31: -3.079759349
A32: 23 | B32: Bedford | C32: 4632427000 | D32: 18075521.49 | E32: 1482905000 | F32: 21203337.53 | G32: 39278859 | H32: 35593827.02 | I32: 1.103530086 | J32: 29364907 | K32: 29364907 | L32: 82.5 | N32: 28048469 | O32: 0.0511 | P32: 29481746 | Q32: 82.82825554 | R32: 0 | S32: 0 | T32: 0 | U32: 116839 | V32: 116839 | W32: 0 | X32: =MIN(H32*parameters!C$22,ROUND(P32+T32-V32+W32,0)) -> 29364907 | Y32: 82.49999918 | AA32: 0 | AB32: 0 | AC32: 0 | AD32: -8.21907463e-07 | AG32: 023 | AH32: Bedford | AI32: 1.103530086 | AJ32: 82.5 | AK32: 0.0511 | AL32: 29364907 | AM32: -8.21907463e-07
A33: 24 | B33: Belchertown | C33: 1889367600 | D33: 7372227.27 | E33: 643145000 | F33: 9196017.624 | G33: 16568245 | H33: 30424639.67 | I33: 0.5445666795 | J33: 25100328 | K33: 16568245 | L33: 54.46 | N33: 14881810 | O33: 0.0344 | P33: 15393744 | Q33: 50.5963067 | R33: 3.863693303 | S33: 0.01 | T33: 148818 | U33: 0 | V33: 0 | W33: 0 | X33: =MIN(H33*parameters!C$22,ROUND(P33+T33-V33+W33,0)) -> 15542562 | Y33: 51.08544314 | AA33: -1174501 | AB33: -1025683 | AC33: 0 | AD33: -3.374556861 | AG33: 024 | AH33: Belchertown | AI33: 0.5445666795 | AJ33: 54.46 | AK33: 0.0344 | AL33: 15542562 | AM33: -3.374556861
A34: 25 | B34: Bellingham | C34: 3317158400 | D34: 12943402.66 | E34: 746199000 | F34: 10669536.66 | G34: 23612939 | H34: 31842037.69 | I34: 0.7415649472 | J34: 26269681 | K34: 23612939 | L34: 74.16 | N34: 20868907 | O34: 0.0468 | P34: 21845572 | Q34: 68.60607418 | R34: 5.553925821 | S34: 0.01 | T34: 208689 | U34: 0 | V34: 0 | W34: 0 | X34: =MIN(H34*parameters!C$22,ROUND(P34+T34-V34+W34,0)) -> 22054261 | Y34: 69.26146251 | AA34: -1767367 | AB34: -1558678 | AC34: 0 | AD34: -4.898537488 | AG34: 025 | AH34: Bellingham | AI34: 0.7415649472 | AJ34: 74.16 | AK34: 0.0468 | AL34: 22054261 | AM34: -4.898537488
A35: 26 | B35: Belmont | C35: 10384380400 | D35: 40519384.56 | E35: 3763630000 | F35: 53814315.29 | G35: =ROUND(D35+F35,0) -> 94333700 | H35: =(SUMIF(town1755,A35,found1755)/2) -> 59519672.35 | I35: 1.584916319 | J35: 49103730 | K35: 49103730 | L35: 82.5 | N35: 45639441 | O35: 0.0493 | P35: 47889465 | Q35: 80.45989352 | R35: =IF(L35>Q35,L35-Q35,0) -> 2.04010648 | S35: =IF(AND(R35>$T$4,R35<=$T$5),$S$4,IF(R35>$T$5,$S$5,0)) -> 0 | T35: =ROUND(S35*N35,0) -> 0 | U35: 0 | V35: 0 | W35: 0 | X35: =MIN(H35*parameters!C$22,ROUND(P35+T35-V35+W35,0)) -> 47889465 | Y35: 80.45989352 | AA35: -1214265 | AB35: -1214265 | AC35: 0 | AD35: -2.04010648 | AG35: 026 | AH35: Belmont | AI35: 1.584916319 | AJ35: 82.5 | AK35: 0.0493 | AL35: 47889465 | AM35: -2.04010648
A36: 27 | B36: Berkley | C36: 1087861600 | D36: 4244786.961 | E36: 323269000 | F36: 4622266.24 | G36: 8867053 | H36: 14867562.63 | I36: 0.5964025993 | J36: 12265739 | K36: 8867053 | L36: 59.64 | N36: 7901373 | O36: 0.0522 | P36: 8313825 | Q36: 55.91921962 | R36: 3.720780384 | S36: 0.01 | T36: 79014 | U36: 0 | V36: 0 | W36: 0 | X36: =MIN(H36*parameters!C$22,ROUND(P36+T36-V36+W36,0)) -> 8392839 | Y36: 56.45067189 | AA36: -553228 | AB36: -474214 | AC36: 0 | AD36: -3.189328108 | AG36: 027 | AH36: Berkley | AI36: 0.5964025993 | AJ36: 59.64 | AK36: 0.0522 | AL36: 8392839 | AM36: -3.189328108
A37: 28 | B37: Berlin | C37: 775450700 | D37: 3025773.702 | E37: 255252000 | F37: 3649724.231 | G37: 6675498 | H37: 6160847.617 | I37: 1.083535646 | J37: 5082699 | K37: 5082699 | L37: 82.5 | N37: 4061620 | O37: 0.0507 | P37: 4267544 | Q37: 69.2687803 | R37: 13.2312197 | S37: 0.02 | T37: 81232 | U37: 0 | V37: 0 | W37: 0 | X37: =MIN(H37*parameters!C$22,ROUND(P37+T37-V37+W37,0)) -> 4348776 | Y37: 70.58730017 | AA37: -815155 | AB37: -733923 | AC37: 0 | AD37: -11.91269983 | AG37: 028 | AH37: Berlin | AI37: 1.083535646 | AJ37: 82.5 | AK37: 0.0507 | AL37: 4348776 | AM37: -11.91269983
A38: 29 | B38: Bernardston | C38: 289619100 | D38: 1130080.682 | E38: 78888000 | F38: 1127981.152 | G38: 2258062 | H38: 3729759.934 | I38: 0.6054175174 | J38: 3077052 | K38: 2258062 | L38: 60.54 | N38: 1902064 | O38: 0.0365 | P38: 1971489 | Q38: 52.85833498 | R38: 7.681665022 | S38: 0.02 | T38: 38041 | U38: 0 | V38: 0 | W38: 0 | X38: =MIN(H38*parameters!C$22,ROUND(P38+T38-V38+W38,0)) -> 2009530 | Y38: 53.87826657 | AA38: -286573 | AB38: -248532 | AC38: 0 | AD38: -6.661733427 | AG38: 029 | AH38: Bernardston | AI38: 0.6054175174 | AJ38: 60.54 | AK38: 0.0365 | AL38: 2009530 | AM38: -6.661733427
A39: 30 | B39: Beverly | C39: 8971044300 | D39: 35004610.76 | E39: 2638106000 | F39: 37720994.91 | G39: 72725606 | H39: 65917321.94 | I39: 1.103285204 | J39: 54381791 | K39: 54381791 | L39: 82.5 | N39: 49847871 | O39: 0.0392 | P39: 51801908 | Q39: 78.58618415 | R39: 3.913815855 | S39: 0.01 | T39: 498479 | U39: 0 | V39: 0 | W39: 0 | X39: =MIN(H39*parameters!C$22,ROUND(P39+T39-V39+W39,0)) -> 52300387 | Y39: 79.34240267 | AA39: -2579883 | AB39: -2081404 | AC39: 0 | AD39: -3.157597329 | AG39: 030 | AH39: Beverly | AI39: 1.103285204 | AJ39: 82.5 | AK39: 0.0392 | AL39: 52300387 | AM39: -3.157597329
A40: 31 | B40: Billerica | C40: 9046472000 | D40: 35298926.25 | E40: 2117423000 | F40: 30276001.87 | G40: 65574928 | H40: 74493027.38 | I40: 0.8802827635 | J40: 61456748 | K40: 61456748 | L40: 82.5 | N40: 56649439 | O40: 0.0485 | P40: 59396937 | Q40: 79.73489478 | R40: 2.765105217 | S40: 0.01 | T40: 566494 | U40: 0 | V40: 0 | W40: 0 | X40: =MIN(H40*parameters!C$22,ROUND(P40+T40-V40+W40,0)) -> 59963431 | Y40: 80.49536059 | AA40: -2059811 | AB40: -1493317 | AC40: 0 | AD40: -2.004639412 | AG40: 031 | AH40: Billerica | AI40: 0.8802827635 | AJ40: 82.5 | AK40: 0.0485 | AL40: 59963431 | AM40: -2.004639412
A41: 32 | B41: Blackstone | C41: 1231116000 | D41: 4803759.177 | E41: 354452000 | F41: 5068136.795 | G41: 9871896 | H41: 17942546.15 | I41: 0.5501948227 | J41: 14802601 | K41: 9871896 | L41: 55.02 | N41: 8736520 | O41: 0.0471 | P41: 9148010 | Q41: 50.98501585 | R41: 4.034984151 | S41: 0.01 | T41: 87365 | U41: 0 | V41: 0 | W41: 0 | X41: =MIN(H41*parameters!C$22,ROUND(P41+T41-V41+W41,0)) -> 9235375 | Y41: 51.47193114 | AA41: -723886 | AB41: -636521 | AC41: 0 | AD41: -3.548068865 | AG41: 032 | AH41: Blackstone | AI41: 0.5501948227 | AJ41: 55.02 | AK41: 0.0471 | AL41: 9235375 | AM41: -3.548068865
A42: 33 | B42: Blandford | C42: 241062700 | D42: 940615.7969 | E42: 43557000 | F42: 622800.3633 | G42: 1563416 | H42: 1709443.351 | I42: 0.9145760808 | J42: 1410291 | K42: 1410291 | L42: 82.5 | N42: 1142266 | O42: 0.0141 | P42: 1158372 | Q42: 67.76311128 | R42: 14.73688872 | S42: 0.02 | T42: 22845 | U42: 0 | V42: 0 | W42: 0 | X42: =MIN(H42*parameters!C$22,ROUND(P42+T42-V42+W42,0)) -> 1181217 | Y42: 69.09951123 | AA42: -251919 | AB42: -229074 | AC42: 0 | AD42: -13.40048877 | AG42: 033 | AH42: Blandford | AI42: 0.9145760808 | AJ42: 82.5 | AK42: 0.0141 | AL42: 1181217 | AM42: -13.40048877
A43: 34 | B43: Bolton | C43: 1307897000 | D43: 5103355.18 | E43: 568334000 | F43: 8126331.512 | G43: 13229687 | H43: 13670788.18 | I43: 0.9677340342 | J43: 11278400 | K43: 11278400 | L43: 82.5 | N43: 10584415 | O43: 0.043 | P43: 11039545 | Q43: 80.75280555 | R43: 1.747194447 | S43: 0 | T43: 0 | U43: 0 | V43: 0 | W43: 0 | X43: =MIN(H43*parameters!C$22,ROUND(P43+T43-V43+W43,0)) -> 11039545 | Y43: 80.75280555 | AA43: -238855 | AB43: -238855 | AC43: 0 | AD43: -1.747194447 | AG43: 034 | AH43: Bolton | AI43: 0.9677340342 | AJ43: 82.5 | AK43: 0.043 | AL43: 11039545 | AM43: -1.747194447
A44: 35 | B44: Boston | C44: 226367656500 | D44: 883276399.1 | E44: 49961353000 | F44: 714373092.7 | G44: 1597649492 | H44: 1144725045 | I44: 1.395662215 | J44: 944398162 | K44: 944398162 | L44: 82.5 | N44: 880485066 | O44: 0.0842 | P44: 954621909 | Q44: 83.39311814 | R44: 0 | S44: 0 | T44: 0 | U44: 10223747 | V44: 10223747 | W44: 0 | X44: =MIN(H44*parameters!C$22,ROUND(P44+T44-V44+W44,0)) -> 944398162 | Y44: 82.5 | AA44: 0 | AB44: 0 | AC44: 0 | AD44: 3.879151222e-09 | AG44: 035 | AH44: Boston | AI44: 1.395662215 | AJ44: 82.5 | AK44: 0.0842 | AL44: 944398162 | AM44: 3.879151222e-09
A45: 36 | B45: Bourne | C45: 5710427600 | D45: 22281831.27 | E45: 1041101000 | F45: 14886196.96 | G45: 37168028 | H45: 28339240.44 | I45: 1.311539315 | J45: 23379873 | K45: 23379873 | L45: 82.5 | N45: 21662971 | O45: 0.0483 | P45: 22709292 | Q45: 80.13373557 | R45: 2.366264426 | S45: 0 | T45: 0 | U45: 0 | V45: 0 | W45: 0 | X45: =MIN(H45*parameters!C$22,ROUND(P45+T45-V45+W45,0)) -> 22709292 | Y45: 80.13373557 | AA45: -670581 | AB45: -670581 | AC45: 0 | AD45: -2.366264426 | AG45: 036 | AH45: Bourne | AI45: 1.311539315 | AJ45: 82.5 | AK45: 0.0483 | AL45: 22709292 | AM45: -2.366264426
A46: 37 | B46: Boxborough | C46: 1364276100 | D46: 5323343.889 | E46: 502257000 | F46: 7181528.619 | G46: 12504873 | H46: 11699762.97 | I46: 1.068814217 | J46: 9652304 | K46: 9652304 | L46: 82.5 | N46: 8509382 | O46: 0.0385 | P46: 8836993 | Q46: 75.53138487 | R46: =IF(L46>Q46,L46-Q46,0) -> 6.968615134 | S46: 0.01 | T46: 85094 | U46: 0 | V46: 0 | W46: 0 | X46: =MIN(H46*parameters!C$22,ROUND(P46+T46-V46+W46,0)) -> 8922087 | Y46: 76.25869875 | AA46: -815311 | AB46: -730217 | AC46: 0 | AD46: -6.241301255 | AG46: 037 | AH46: Boxborough | AI46: 1.068814217 | AJ46: 82.5 | AK46: 0.0385 | AL46: 8922087 | AM46: -6.241301255
A47: 38 | B47: Boxford | C47: 2248921600 | D47: 8775190.782 | E47: 1174940000 | F47: 16799895.74 | G47: 25575087 | H47: 17454800.99 | I47: 1.465217908 | J47: 14400211 | K47: 14400211 | L47: 82.5 | N47: 13214112 | O47: 0.0351 | P47: 13677927 | Q47: 78.36197619 | R47: 4.138023807 | S47: 0.01 | T47: 132141 | U47: 0 | V47: 0 | W47: 0 | X47: =MIN(H47*parameters!C$22,ROUND(P47+T47-V47+W47,0)) -> 13810068 | Y47: 79.11902292 | AA47: -722284 | AB47: -590143 | AC47: 0 | AD47: -3.380977077 | AG47: 038 | AH47: Boxford | AI47: 1.465217908 | AJ47: 82.5 | AK47: 0.0351 | AL47: 13810068 | AM47: -3.380977077
A48: 39 | B48: Boylston | C48: 1023674500 | D48: 3994331.788 | E48: 387762000 | F48: 5544420.288 | G48: 9538752 | H48: 8416317.208 | I48: 1.133364126 | J48: 6943462 | K48: 6943462 | L48: 82.5 | N48: 6610813 | O48: 0.064 | P48: 7033905 | Q48: 83.57461852 | R48: 0 | S48: 0 | T48: 0 | U48: 90443 | V48: 90443 | W48: 0 | X48: =MIN(H48*parameters!C$22,ROUND(P48+T48-V48+W48,0)) -> 6943462 | Y48: 82.5000036 | AA48: 0 | AB48: 0 | AC48: 0 | AD48: 3.600489279e-06 | AG48: 039 | AH48: Boylston | AI48: 1.133364126 | AJ48: 82.5 | AK48: 0.064 | AL48: 6943462 | AM48: 3.600489279e-06
A49: 40 | B49: Braintree | C49: 8924863200 | D49: 34824414.19 | E49: 2074879000 | F49: 29667685.9 | G49: 64492100 | H49: 77458582.76 | I49: 0.8326010844 | J49: 63903331 | K49: 63903331 | L49: 82.5 | N49: 54636896 | O49: 0.0442 | P49: 57051847 | Q49: 73.65464867 | R49: 8.845351326 | S49: 0.02 | T49: 1092738 | U49: 0 | V49: 0 | W49: 0 | X49: =MIN(H49*parameters!C$22,ROUND(P49+T49-V49+W49,0)) -> 58144585 | Y49: 75.06538711 | AA49: -6851484 | AB49: -5758746 | AC49: 0 | AD49: -7.434612889 | AG49: 040 | AH49: Braintree | AI49: 0.8326010844 | AJ49: 82.5 | AK49: 0.0442 | AL49: 58144585 | AM49: -7.434612889
A50: 41 | B50: Brewster | C50: 4941374200 | D50: 19281019.55 | E50: 548709000 | F50: 7845723.18 | G50: 27126743 | H50: 15030204.13 | I50: 1.804815341 | J50: 12399918 | K50: 12399918 | L50: 82.5 | N50: 11559348 | O50: 0.0445 | P50: 12073739 | Q50: 80.32984045 | R50: 2.170159549 | S50: 0 | T50: 0 | U50: 0 | V50: 0 | W50: 326179 | X50: =MIN(H50*parameters!C$22,ROUND(P50+T50-V50+W50,0)) -> 12399918 | Y50: 82.49999727 | AA50: -326179 | AB50: 0 | AC50: 0 | AD50: -2.72975862e-06 | AG50: 041 | AH50: Brewster | AI50: 1.804815341 | AJ50: 82.5 | AK50: 0.0445 | AL50: 12399918 | AM50: -2.72975862e-06
A51: 42 | B51: Bridgewater | C51: 3904478200 | D51: 15235098.06 | E51: 1184040000 | F51: 16930012.22 | G51: 32165110 | H51: 50241619.78 | I51: 0.6402084595 | J51: 41449336 | K51: 32165110 | L51: 64.02 | N51: 27661871 | O51: 0.0504 | P51: 29056029 | Q51: 57.83258806 | R51: 6.187411939 | S51: 0.01 | T51: 276619 | U51: 0 | V51: 0 | W51: 0 | X51: =MIN(H51*parameters!C$22,ROUND(P51+T51-V51+W51,0)) -> 29332648 | Y51: 58.38316545 | AA51: -3109081 | AB51: -2832462 | AC51: 0 | AD51: -5.636834546 | AG51: 042 | AH51: Bridgewater | AI51: 0.6402084595 | AJ51: 64.02 | AK51: 0.0504 | AL51: 29332648 | AM51: -5.636834546
A52: 43 | B52: Brimfield | C52: 523323600 | D52: 2041985.114 | E52: 165106000 | F52: 2360770.411 | G52: 4402756 | H52: 7715874.928 | I52: 0.5706100787 | J52: 6365597 | K52: 4402756 | L52: 57.06 | N52: 3879027 | O52: 0.0312 | P52: 4000053 | Q52: 51.84185899 | R52: 5.218141008 | S52: 0.01 | T52: 38790 | U52: 0 | V52: 0 | W52: 0 | X52: =MIN(H52*parameters!C$22,ROUND(P52+T52-V52+W52,0)) -> 4038843 | Y52: 52.34458876 | AA52: -402703 | AB52: -363913 | AC52: 0 | AD52: -4.715411242 | AG52: 043 | AH52: Brimfield | AI52: 0.5706100787 | AJ52: 57.06 | AK52: 0.0312 | AL52: 4038843 | AM52: -4.715411242
A53: 44 | B53: Brockton | C53: 10593077300 | D53: 41333710.47 | E53: 2588984000 | F53: 37018623.31 | G53: 78352334 | H53: 337358037.1 | I53: 0.2322527564 | J53: 278320381 | K53: 78352334 | L53: 23.23 | N53: 58519115 | O53: 0.0605 | P53: 62059521 | Q53: 18.39574404 | R53: 4.834255962 | S53: 0.01 | T53: 585191 | U53: 0 | V53: 0 | W53: 0 | X53: =MIN(H53*parameters!C$22,ROUND(P53+T53-V53+W53,0)) -> 62644712 | Y53: 18.56920693 | AA53: -16292813 | AB53: -15707622 | AC53: 0 | AD53: -4.660793072 | AG53: 044 | AH53: Brockton | AI53: 0.2322527564 | AJ53: 23.23 | AK53: 0.0605 | AL53: 62644712 | AM53: -4.660793072
A54: 45 | B54: Brookfield | C54: 370083900 | D54: 1444050.708 | E54: 119304000 | F54: 1705869.884 | G54: 3149921 | H54: 6491196.096 | I54: 0.4852604902 | J54: 5355237 | K54: 3149921 | L54: 48.53 | N54: 2685192 | O54: 0.0422 | P54: 2798507 | Q54: 43.11234722 | R54: 5.417652777 | S54: 0.01 | T54: 26852 | U54: 0 | V54: 0 | W54: 0 | X54: =MIN(H54*parameters!C$22,ROUND(P54+T54-V54+W54,0)) -> 2825359 | Y54: 43.52601521 | AA54: -351414 | AB54: -324562 | AC54: 0 | AD54: -5.003984793 | AG54: 045 | AH54: Brookfield | AI54: 0.4852604902 | AJ54: 48.53 | AK54: 0.0422 | AL54: 2825359 | AM54: -5.003984793
A55: 46 | B55: Brookline | C55: 29895594800 | D55: 116651264.3 | E55: 8103015000 | F55: 115861071.4 | G55: 232512336 | H55: 91960933.81 | I55: 2.528381633 | J55: 75867770 | K55: 75867770 | L55: 82.5 | N55: 73750578 | O55: 0.0369 | P55: 76471974 | Q55: 83.15702204 | R55: 0 | S55: 0 | T55: 0 | U55: 604204 | V55: 604204 | W55: 0 | X55: =MIN(H55*parameters!C$22,ROUND(P55+T55-V55+W55,0)) -> 75867770 | Y55: 82.49999957 | AA55: 0 | AB55: 0 | AC55: 0 | AD55: -4.308209753e-07 | AG55: 046 | AH55: Brookline | AI55: 2.528381633 | AJ55: 82.5 | AK55: 0.0369 | AL55: 75867770 | AM55: -4.308209753e-07
A56: 47 | B56: Buckland | C56: 270428900 | D56: 1055201.386 | E56: 45980212 | F56: 657448.6934 | G56: 1712650 | H56: 2982952.633 | I56: 0.574145892 | J56: 2460936 | K56: 1712650 | L56: 57.41 | N56: 1513778 | O56: 0.0368 | P56: 1569485 | Q56: 52.61514993 | R56: 4.79485007 | S56: 0.01 | T56: 15138 | U56: 0 | V56: 0 | W56: 0 | X56: =MIN(H56*parameters!C$22,ROUND(P56+T56-V56+W56,0)) -> 1584623 | Y56: 53.12263368 | AA56: -143165 | AB56: -128027 | AC56: 0 | AD56: -4.287366316 | AG56: 047 | AH56: Buckland | AI56: 0.574145892 | AJ56: 57.41 | AK56: 0.0368 | AL56: 1584623 | AM56: -4.287366316
A57: 48 | B57: Burlington | C57: 9008541100 | D57: 35150921.59 | E57: 1715507000 | F57: 24529200.42 | G57: 59680122 | H57: 51354439.48 | I57: 1.162121963 | J57: 42367413 | K57: 42367413 | L57: 82.5 | N57: 38789889 | O57: 0.0448 | P57: 40527676 | Q57: 78.91757054 | R57: 3.582429459 | S57: 0.01 | T57: 387899 | U57: 0 | V57: 0 | W57: 0 | X57: =MIN(H57*parameters!C$22,ROUND(P57+T57-V57+W57,0)) -> 40915575 | Y57: 79.67290738 | AA57: -1839737 | AB57: -1451838 | AC57: 0 | AD57: -2.827092619 | AG57: 048 | AH57: Burlington | AI57: 1.162121963 | AJ57: 82.5 | AK57: 0.0448 | AL57: 40915575 | AM57: -2.827092619
A58: 49 | B58: Cambridge | C58: 70337058800 | D58: 274452035.1 | E58: 11053450000 | F58: 158047906.8 | G58: 432499942 | H58: 118880084.1 | I58: 3.638119415 | J58: 98076069 | K58: 98076069 | L58: 82.5 | N58: 93004291 | O58: 0.0687 | P58: 99393686 | Q58: 83.60835775 | R58: 0 | S58: 0 | T58: 0 | U58: 1317617 | V58: 1317617 | W58: 0 | X58: =MIN(H58*parameters!C$22,ROUND(P58+T58-V58+W58,0)) -> 98076069 | Y58: 82.49999968 | AA58: 0 | AB58: 0 | AC58: 0 | AD58: -3.186437851e-07 | AG58: 049 | AH58: Cambridge | AI58: 3.638119415 | AJ58: 82.5 | AK58: 0.0687 | AL58: 98076069 | AM58: -3.186437851e-07
A59: 50 | B59: Canton | C59: 6376735000 | D59: 24881732.73 | E59: 1924272000 | F59: 27514229.64 | G59: 52395962 | H59: 46811196.09 | I59: 1.119304064 | J59: 38619237 | K59: 38619237 | L59: 82.5 | N59: 36271351 | O59: 0.0496 | P59: 38070410 | Q59: 81.32757371 | R59: 1.172426295 | S59: 0 | T59: 0 | U59: 0 | V59: 0 | W59: 0 | X59: =MIN(H59*parameters!C$22,ROUND(P59+T59-V59+W59,0)) -> 38070410 | Y59: 81.32757371 | AA59: -548827 | AB59: -548827 | AC59: 0 | AD59: -1.172426295 | AG59: 050 | AH59: Canton | AI59: 1.119304064 | AJ59: 82.5 | AK59: 0.0496 | AL59: 38070410 | AM59: -1.172426295
A60: 51 | B60: Carlisle | C60: 1841728700 | D60: 7186342.428 | E60: 1066804000 | F60: 15253711.66 | G60: 22440054 | H60: 11040307.66 | I60: 2.032556944 | J60: 9108254 | K60: 9108254 | L60: 82.5 | N60: 9058143 | O60: 0.0356 | P60: 9380613 | Q60: 84.96695282 | R60: 0 | S60: 0 | T60: 0 | U60: 272359 | V60: 272359 | W60: 0 | X60: =MIN(H60*parameters!C$22,ROUND(P60+T60-V60+W60,0)) -> 9108254 | Y60: 82.50000164 | AA60: 0 | AB60: 0 | AC60: 0 | AD60: 1.642625861e-06 | AG60: 051 | AH60: Carlisle | AI60: 2.032556944 | AJ60: 82.5 | AK60: 0.0356 | AL60: 9108254 | AM60: 1.642625861e-06
A61: 52 | B61: Carver | C61: 1736816700 | D61: 6776980.529 | E61: 443993000 | F61: 6348440.014 | G61: 13125421 | H61: 22480436.56 | I61: 0.5838597024 | J61: 18546360 | K61: 13125421 | L61: 58.39 | N61: 11709088 | O61: 0.0364 | P61: 12135299 | Q61: 53.98159848 | R61: 4.408401519 | S61: 0.01 | T61: 117091 | U61: 0 | V61: 0 | W61: 0 | X61: =MIN(H61*parameters!C$22,ROUND(P61+T61-V61+W61,0)) -> 12252390 | Y61: 54.5024558 | AA61: -990122 | AB61: -873031 | AC61: 0 | AD61: -3.887544197 | AG61: 052 | AH61: Carver | AI61: 0.5838597024 | AJ61: 58.39 | AK61: 0.0364 | AL61: 12252390 | AM61: -3.887544197
A62: 53 | B62: Charlemont | C62: 155406800 | D62: 606390.3334 | E62: 34318000 | F62: 490696.3948 | G62: 1097087 | H62: 1838952.948 | I62: 0.5965824201 | J62: 1517136 | K62: 1097087 | L62: 59.66 | N62: 969108 | O62: 0.0557 | P62: 1023087 | Q62: 55.634213 | R62: 4.025786997 | S62: 0.01 | T62: 9691 | U62: 0 | V62: 0 | W62: 0 | X62: =MIN(H62*parameters!C$22,ROUND(P62+T62-V62+W62,0)) -> 1032778 | Y62: 56.16119767 | AA62: -74000 | AB62: -64309 | AC62: 0 | AD62: -3.498802334 | AG62: 053 | AH62: Charlemont | AI62: 0.5965824201 | AJ62: 59.66 | AK62: 0.0557 | AL62: 1032778 | AM62: -3.498802334
A63: 54 | B63: Charlton | C63: 2225215400 | D63: 8682690.257 | E63: 625937000 | F63: 8949968.799 | G63: 17632659 | H63: 28922146.09 | I63: 0.6096594266 | J63: 23860771 | K63: 17632659 | L63: 60.97 | N63: 14999738 | O63: 0.0717 | P63: 16075219 | Q63: 55.5810034 | R63: 5.388996603 | S63: 0.01 | T63: 149997 | U63: 0 | V63: 0 | W63: 0 | X63: =MIN(H63*parameters!C$22,ROUND(P63+T63-V63+W63,0)) -> 16225216 | Y63: 56.09962674 | AA63: -1557440 | AB63: -1407443 | AC63: 0 | AD63: -4.870373263 | AG63: 054 | AH63: Charlton | AI63: 0.6096594266 | AJ63: 60.97 | AK63: 0.0717 | AL63: 16225216 | AM63: -4.870373263
A64: 55 | B64: Chatham | C64: 8768778800 | D64: 34215379.89 | E64: 641046000 | F64: 9166005.043 | G64: 43381385 | H64: 5862809.67 | I64: 7.399418955 | J64: 4836818 | K64: 4836818 | L64: 82.5 | N64: 4800170 | O64: 0.0737 | P64: 5153943 | Q64: 87.90909633 | R64: 0 | S64: 0 | T64: 0 | U64: 317125 | V64: 317125 | W64: 0 | X64: =MIN(H64*parameters!C$22,ROUND(P64+T64-V64+W64,0)) -> 4836818 | Y64: 82.50000038 | AA64: 0 | AB64: 0 | AC64: 0 | AD64: 3.821375287e-07 | AG64: 055 | AH64: Chatham | AI64: 7.399418955 | AJ64: 82.5 | AK64: 0.0737 | AL64: 4836818 | AM64: 3.821375287e-07
A65: 56 | B65: Chelmsford | C65: 7194279300 | D65: 28071753.77 | E65: 2403772000 | F65: 34370366.99 | G65: 62442121 | H65: 71366061.72 | I65: 0.8749553989 | J65: 58877001 | K65: 58877001 | L65: 82.5 | N65: 53028118 | O65: 0.0458 | P65: 55456806 | Q65: 77.70753306 | R65: 4.792466944 | S65: 0.01 | T65: 530281 | U65: 0 | V65: 0 | W65: 0 | X65: =MIN(H65*parameters!C$22,ROUND(P65+T65-V65+W65,0)) -> 55987087 | Y65: 78.45057672 | AA65: -3420195 | AB65: -2889914 | AC65: 0 | AD65: -4.04942328 | AG65: 056 | AH65: Chelmsford | AI65: 0.8749553989 | AJ65: 82.5 | AK65: 0.0458 | AL65: 55987087 | AM65: -4.04942328
A66: 57 | B66: Chelsea | C66: 5133648900 | D66: 20031266.77 | E66: 954502000 | F66: 13647959.97 | G66: 33679227 | H66: 152591065 | I66: 0.2207155903 | J66: 125887629 | K66: 33679227 | L66: 22.07 | N66: 22930216 | O66: 0.0669 | P66: 24464247 | Q66: 16.03255538 | R66: 6.037444625 | S66: 0.01 | T66: 229302 | U66: 0 | V66: 0 | W66: 0 | X66: =MIN(H66*parameters!C$22,ROUND(P66+T66-V66+W66,0)) -> 24693549 | Y66: 16.18282761 | AA66: -9214980 | AB66: -8985678 | AC66: 0 | AD66: -5.887172392 | AG66: 057 | AH66: Chelsea | AI66: 0.2207155903 | AJ66: 22.07 | AK66: 0.0669 | AL66: 24693549 | AM66: -5.887172392
A67: 58 | B67: Cheshire | C67: 380218700 | D67: 1483596.241 | E67: 116368000 | F67: 1663889.448 | G67: 3147486 | H67: 5701231.884 | I67: 0.5520712127 | J67: 4703516 | K67: 3147486 | L67: 55.21 | N67: 2769784 | O67: 0.0245 | P67: 2837644 | Q67: 49.77247124 | R67: 5.437528757 | S67: 0.01 | T67: 27698 | U67: 0 | V67: 0 | W67: 0 | X67: =MIN(H67*parameters!C$22,ROUND(P67+T67-V67+W67,0)) -> 2865342 | Y67: 50.25829607 | AA67: -309842 | AB67: -282144 | AC67: 0 | AD67: -4.951703929 | AG67: 058 | AH67: Cheshire | AI67: 0.5520712127 | AJ67: 55.21 | AK67: 0.0245 | AL67: 2865342 | AM67: -4.951703929
A68: 59 | B68: Chester | C68: 150115400 | D68: 585743.5289 | E68: 37246000 | F68: 532562.443 | G68: 1118306 | H68: 1983040.399 | I68: 0.5639350568 | J68: 1636008 | K68: 1118306 | L68: 56.39 | N68: 965457 | O68: 0.0304 | P68: 994807 | Q68: 50.16574551 | R68: 6.224254486 | S68: 0.01 | T68: 9655 | U68: 0 | V68: 0 | W68: 0 | X68: =MIN(H68*parameters!C$22,ROUND(P68+T68-V68+W68,0)) -> 1004462 | Y68: 50.65262415 | AA68: -123499 | AB68: -113844 | AC68: 0 | AD68: -5.737375852 | AG68: 059 | AH68: Chester | AI68: 0.5639350568 | AJ68: 56.39 | AK68: 0.0304 | AL68: 1004462 | AM68: -5.737375852
A69: 60 | B69: Chesterfield | C69: 190606900 | D69: 743739.538 | E69: 29463000 | F69: 421277.1105 | G69: 1165017 | H69: 1426233.421 | I69: 0.8168487589 | J69: 1176643 | K69: 1165017 | L69: 81.68 | N69: 1043047 | O69: 0.0378 | P69: 1082474 | Q69: 75.89739407 | R69: 5.782605932 | S69: 0.01 | T69: 10430 | U69: 0 | V69: 0 | W69: 0 | X69: =MIN(H69*parameters!C$22,ROUND(P69+T69-V69+W69,0)) -> 1092904 | Y69: 76.62869091 | AA69: -82543 | AB69: -72113 | AC69: 0 | AD69: -5.051309087 | AG69: 060 | AH69: Chesterfield | AI69: 0.8168487589 | AJ69: 81.68 | AK69: 0.0378 | AL69: 1092904 | AM69: -5.051309087
A70: 61 | B70: Chicopee | C70: 4667842700 | D70: 18213711.95 | E70: 1348503000 | F70: 19281588.68 | G70: 37495301 | H70: 129024990.3 | I70: 0.2906049511 | J70: 106445617 | K70: 37495301 | L70: 29.06 | N70: 33865812 | O70: 0.0374 | P70: 35132393 | Q70: 27.22913825 | R70: 1.830861745 | S70: 0 | T70: 0 | U70: 0 | V70: 0 | W70: 0 | X70: =MIN(H70*parameters!C$22,ROUND(P70+T70-V70+W70,0)) -> 35132393 | Y70: 27.22913825 | AA70: -2362908 | AB70: -2362908 | AC70: 0 | AD70: -1.830861745 | AG70: 061 | AH70: Chicopee | AI70: 0.2906049511 | AJ70: 29.06 | AK70: 0.0374 | AL70: 35132393 | AM70: -1.830861745
A71: 62 | B71: Chilmark | C71: 3878126000 | D71: 15132272.96 | E71: 128312000 | F71: 1834670.896 | G71: 16966944 | H71: 1428631.389 | I71: 11.87636232 | J71: 1178621 | K71: 1178621 | L71: 82.5 | N71: 1318475 | O71: 0.0544 | P71: 1390200 | Q71: 97.30991565 | R71: 0 | S71: 0 | T71: 0 | U71: 211579 | V71: 211579 | W71: 0 | X71: =MIN(H71*parameters!C$22,ROUND(P71+T71-V71+W71,0)) -> 1178621 | Y71: 82.50000726 | AA71: 0 | AB71: 0 | AC71: 0 | AD71: 7.259184883e-06 | AG71: 062 | AH71: Chilmark | AI71: 11.87636232 | AJ71: 82.5 | AK71: 0.0544 | AL71: 1178621 | AM71: 7.259184883e-06
A72: 63 | B72: Clarksburg | C72: 149674900 | D72: 584024.7178 | E72: 48425000 | F72: 692405.5282 | G72: 1276430 | H72: 4029768.914 | I72: 0.3167501728 | J72: 3324559 | K72: 1276430 | L72: 31.68 | N72: 1088329 | O72: 0.0238 | P72: 1114231 | Q72: 27.6499974 | R72: 4.0300026 | S72: 0.01 | T72: 10883 | U72: 0 | V72: 0 | W72: 0 | X72: =MIN(H72*parameters!C$22,ROUND(P72+T72-V72+W72,0)) -> 1125114 | Y72: 27.92006251 | AA72: -162199 | AB72: -151316 | AC72: 0 | AD72: -3.759937486 | AG72: 063 | AH72: Clarksburg | AI72: 0.3167501728 | AJ72: 31.68 | AK72: 0.0238 | AL72: 1125114 | AM72: -3.759937486
A73: 64 | B73: Clinton | C73: 1853848200 | D73: 7233632.171 | E73: 541547000 | F73: 7743317.224 | G73: 14976949 | H73: 34402202.62 | I73: 0.4353485492 | J73: 28381817 | K73: 14976949 | L73: 43.53 | N73: 13217258 | O73: 0.0511 | P73: 13892660 | Q73: 40.38305382 | R73: 3.146946178 | S73: 0.01 | T73: 132173 | U73: 0 | V73: 0 | W73: 0 | X73: =MIN(H73*parameters!C$22,ROUND(P73+T73-V73+W73,0)) -> 14024833 | Y73: 40.76725306 | AA73: -1084289 | AB73: -952116 | AC73: 0 | AD73: -2.762746941 | AG73: 064 | AH73: Clinton | AI73: 0.4353485492 | AJ73: 43.53 | AK73: 0.0511 | AL73: 14024833 | AM73: -2.762746941
A74: 65 | B74: Cohasset | C74: 3547050800 | D74: 13840432.45 | E74: 1547972000 | F74: 22133698.92 | G74: 35974131 | H74: 18026879.02 | I74: 1.995582872 | J74: =ROUND(H74*maxloc,0) -> 14872175 | K74: 14872175 | L74: 82.5 | N74: 13956055 | O74: 0.0374 | P74: 14478011 | Q74: 80.31346404 | R74: 2.186535957 | S74: 0 | T74: 0 | U74: 0 | V74: =MAX(U74*(V$5),0) -> 0 | W74: 394164 | X74: =MIN(H74*parameters!C$22,ROUND(P74+T74-V74+W74,0)) -> 14872175 | Y74: 82.49999894 | AA74: -394164 | AB74: 0 | AC74: 0 | AD74: -1.063486579e-06 | AG74: 065 | AH74: Cohasset | AI74: 1.995582872 | AJ74: =L74 -> 82.5 | AK74: 0.0374 | AL74: =X74 -> 14872175 | AM74: -1.063486579e-06
A75: 66 | B75: Colrain | C75: 203121700 | D75: =D$5*C75 -> 792571.7239 | E75: 52497000 | F75: 750629.0762 | G75: =ROUND(D75+F75,0) -> 1543201 | H75: =(SUMIF(town1755,A75,found1755)/2) -> 2563665.968 | I75: =IF(H75=0,0,G75/H75) -> 0.6019508858 | J75: 2115024 | K75: =MIN(G75,J75) -> 1543201 | L75: =IF(H75>0, ROUND((K75*100/H75), 2), 0) -> 60.2 | N75: 1416811 | O75: 0.0474 | P75: =ROUND(N75*(1+O75),0) -> 1483968 | Q75: =IF(H75=0,0,P75*100/H75) -> 57.88460816 | R75: =IF(L75>Q75,L75-Q75,0) -> 2.315391836 | S75: =IF(AND(R75>$T$4,R75<=$T$5),$S$4,IF(R75>$T$5,$S$5,0)) -> 0 | T75: =ROUND(S75*N75,0) -> 0 | U75: =MAX(P75-K75,0) -> 0 | V75: 0 | W75: =IF(AND(I75>1.75,$W$5=1),MAX(K75-(P75+T75),0),0) -> 0 | X75: =MIN(H75*parameters!C$22,ROUND(P75+T75-V75+W75,0)) -> 1483968 | Y75: =IF(H75=0,0,X75*100/H75) -> 57.88460816 | AA75: =IF(Q75<L75, P75-K75, 0) -> -59233 | AB75: =-1*MAX(K75-(P75+T75+W75),0) -> -59233 | AC75: =IF(Q75>L75, X75-K75,0) -> 0 | AD75: =Y75-L75 -> -2.315391836 | AG75: =TEXT(A75,"000") -> 066 | AH75: =B75 -> Colrain | AI75: =I75 -> 0.6019508858 | AJ75: 60.2 | AK75: =O75 -> 0.0474 | AL75: 1483968 | AM75: =AD75 -> -2.315391836
A76: 67 | B76: Concord | C76: 7337635800 | D76: 28631124.37 | E76: 4071649000 | F76: =E76*F$5 -> 58218529.2 | G76: 86849654 | H76: 38535509.63 | I76: 2.253756466 | J76: 31791795 | K76: 31791795 | L76: 82.5 | N76: 31097056 | O76: 0.039 | P76: 32309841 | Q76: 83.84433296 | R76: 0 | S76: 0 | T76: 0 | U76: 518046 | V76: 518046 | W76: 0 | X76: =MIN(H76*parameters!C$22,ROUND(P76+T76-V76+W76,0)) -> 31791795 | Y76: 82.49999885 | AA76: 0 | AB76: 0 | AC76: 0 | AD76: -1.147459145e-06 | AG76: 067 | AH76: Concord | AI76: 2.253756466 | AJ76: 82.5 | AK76: 0.039 | AL76: 31791795 | AM76: -1.147459145e-06
A77: 68 | B77: Conway | C77: 298724500 | D77: 1165609.543 | E77: 84070000 | F77: 1202076.051 | G77: 2367686 | H77: 2360859.492 | I77: 1.002891535 | J77: 1947709 | K77: 1947709 | L77: 82.5 | N77: 1923294 | O77: 0.0503 | P77: 2020036 | Q77: 85.56358424 | R77: 0 | S77: 0 | T77: 0 | U77: 72327 | V77: 72327 | W77: 0 | X77: =MIN(H77*parameters!C$22,ROUND(P77+T77-V77+W77,0)) -> 1947709 | Y77: 82.49999659 | AA77: 0 | AB77: 0 | AC77: 0 | AD77: -3.414650593e-06 | AG77: 068 | AH77: Conway | AI77: 1.002891535 | AJ77: 82.5 | AK77: 0.0503 | AL77: 1947709 | AM77: -3.414650593e-06
A78: 69 | B78: Cummington | C78: 153578200 | D78: 599255.2186 | E78: 53063000 | F78: 758722.0349 | G78: 1357977 | H78: 793235.8787 | I78: 1.711946013 | J78: 654420 | K78: 654420 | L78: 82.5 | N78: 650414 | O78: 0.0346 | P78: 672918 | Q78: 84.83201757 | R78: 0 | S78: 0 | T78: 0 | U78: 18498 | V78: 18498 | W78: 0 | X78: =MIN(H78*parameters!C$22,ROUND(P78+T78-V78+W78,0)) -> 654420 | Y78: 82.50005043 | AA78: 0 | AB78: 0 | AC78: 0 | AD78: 5.043406216e-05 | AG78: 069 | AH78: Cummington | AI78: 1.711946013 | AJ78: 82.5 | AK78: 0.0346 | AL78: 654420 | AM78: 5.043406216e-05
A79: 70 | B79: Dalton | C79: 732087000 | D79: 2856570.498 | E79: 247394000 | F79: 3537366.51 | G79: 6393937 | H79: 13360959.4 | I79: 0.4785537331 | J79: 11022792 | K79: 6393937 | L79: 47.86 | N79: 5875937 | O79: 0.0355 | P79: 6084533 | Q79: 45.5396414 | R79: 2.320358596 | S79: 0 | T79: 0 | U79: 0 | V79: 0 | W79: 0 | X79: =MIN(H79*parameters!C$22,ROUND(P79+T79-V79+W79,0)) -> 6084533 | Y79: 45.5396414 | AA79: -309404 | AB79: -309404 | AC79: 0 | AD79: -2.320358596 | AG79: 070 | AH79: Dalton | AI79: 0.4785537331 | AJ79: 47.86 | AK79: 0.0355 | AL79: 6084533 | AM79: -2.320358596
A80: 71 | B80: Danvers | C80: 6417792300 | D80: 25041936.47 | E80: 1676555000 | F80: 23972244.71 | G80: 49014181 | H80: 49160098.01 | I80: 0.9970317999 | J80: 40557081 | K80: 40557081 | L80: 82.5 | N80: 36825830 | O80: 0.0418 | P80: 38365150 | Q80: 78.04123986 | R80: 4.458760142 | S80: 0.01 | T80: 368258 | U80: 0 | V80: 0 | W80: 0 | X80: =MIN(H80*parameters!C$22,ROUND(P80+T80-V80+W80,0)) -> 38733408 | Y80: 78.79033926 | AA80: -2191931 | AB80: -1823673 | AC80: 0 | AD80: -3.709660741 | AG80: 071 | AH80: Danvers | AI80: 0.9970317999 | AJ80: 82.5 | AK80: 0.0418 | AL80: 38733408 | AM80: -3.709660741
A81: 72 | B81: Dartmouth | C81: 6798935400 | D81: 26529139.68 | E81: 1647371000 | F81: 23554956.89 | G81: 50084097 | H81: 52393751.6 | I81: 0.9559173655 | J81: 43224845 | K81: 43224845 | L81: 82.5 | N81: 40917000 | O81: 0.0368 | P81: 42422746 | Q81: 80.96909403 | R81: 1.530905968 | S81: 0 | T81: 0 | U81: 0 | V81: 0 | W81: 0 | X81: =MIN(H81*parameters!C$22,ROUND(P81+T81-V81+W81,0)) -> 42422746 | Y81: 80.96909403 | AA81: -802099 | AB81: -802099 | AC81: 0 | AD81: -1.530905968 | AG81: 072 | AH81: Dartmouth | AI81: 0.9559173655 | AJ81: 82.5 | AK81: 0.0368 | AL81: 42422746 | AM81: -1.530905968
A82: 73 | B82: Dedham | C82: 6593838900 | D82: 25728862.37 | E82: 1947076000 | F82: 27840292.95 | G82: 53569155 | H82: 41593171.87 | I82: 1.28793147 | J82: 34314367 | K82: 34314367 | L82: 82.5 | N82: 29620340 | O82: 0.0341 | P82: 30630394 | Q82: 73.64284237 | R82: 8.857157626 | S82: 0.02 | T82: 592407 | U82: 0 | V82: 0 | W82: 0 | X82: =MIN(H82*parameters!C$22,ROUND(P82+T82-V82+W82,0)) -> 31222801 | Y82: 75.06713144 | AA82: -3683973 | AB82: -3091566 | AC82: 0 | AD82: -7.432868558 | AG82: 073 | AH82: Dedham | AI82: 1.28793147 | AJ82: 82.5 | AK82: 0.0341 | AL82: 31222801 | AM82: -7.432868558
A83: 74 | B83: Deerfield | C83: 869370900 | D83: 3392246.091 | E83: 279111000 | F83: 3990872.47 | G83: 7383119 | H83: 7435446.165 | I83: 0.9929624714 | J83: 6134243 | K83: 6134243 | L83: 82.5 | N83: 5888626 | O83: 0.0489 | P83: 6176580 | Q83: 83.06939305 | R83: 0 | S83: 0 | T83: 0 | U83: 42337 | V83: 42337 | W83: 0 | X83: =MIN(H83*parameters!C$22,ROUND(P83+T83-V83+W83,0)) -> 6134243 | Y83: 82.49999884 | AA83: 0 | AB83: 0 | AC83: 0 | AD83: -1.161223665e-06 | AG83: 074 | AH83: Deerfield | AI83: 0.9929624714 | AJ83: 82.5 | AK83: 0.0489 | AL83: 6134243 | AM83: -1.161223665e-06
A84: 75 | B84: Dennis | C84: 8912902400 | D84: 34777743.69 | E84: 820126000 | F84: 11726582.89 | G84: 46504327 | H84: 17386038.38 | I84: 2.674808716 | J84: 14343482 | K84: 14343482 | L84: 82.5 | N84: 13779891 | O84: 0.0685 | P84: 14723814 | Q84: 84.68757332 | R84: 0 | S84: 0 | T84: 0 | U84: 380332 | V84: 380332 | W84: 0 | X84: =MIN(H84*parameters!C$22,ROUND(P84+T84-V84+W84,0)) -> 14343482 | Y84: 82.50000194 | AA84: 0 | AB84: 0 | AC84: 0 | AD84: 1.938059512e-06 | AG84: 075 | AH84: Dennis | AI84: 2.674808716 | AJ84: 82.5 | AK84: 0.0685 | AL84: 14343482 | AM84: 1.938059512e-06
A85: 76 | B85: Dighton | C85: 1314856400 | D85: 5130510.446 | E85: 349022000 | F85: 4990495.865 | G85: 10121006 | H85: 18047299.17 | I85: 0.5608044676 | J85: 14889022 | K85: 10121006 | L85: 56.08 | N85: 8745483 | O85: 0.0437 | P85: 9127661 | Q85: 50.57632677 | R85: 5.503673226 | S85: 0.01 | T85: 87455 | U85: 0 | V85: 0 | W85: 0 | X85: =MIN(H85*parameters!C$22,ROUND(P85+T85-V85+W85,0)) -> 9215116 | Y85: 51.06091452 | AA85: -993345 | AB85: -905890 | AC85: 0 | AD85: -5.019085481 | AG85: 076 | AH85: Dighton | AI85: 0.5608044676 | AJ85: 56.08 | AK85: 0.0437 | AL85: 9215116 | AM85: -5.019085481
A86: 77 | B86: Douglas | C86: 1302158500 | D86: 5080963.812 | E86: 438813000 | F86: 6274373.713 | G86: 11355338 | H86: 16678623.74 | I86: 0.6808318348 | J86: 13759865 | K86: 11355338 | L86: 68.08 | N86: 9714500 | O86: 0.0573 | P86: 10271141 | Q86: 61.58266511 | R86: 6.497334893 | S86: 0.01 | T86: 97145 | U86: 0 | V86: 0 | W86: 0 | X86: =MIN(H86*parameters!C$22,ROUND(P86+T86-V86+W86,0)) -> 10368286 | Y86: 62.16511724 | AA86: -1084197 | AB86: -987052 | AC86: 0 | AD86: -5.914882758 | AG86: 077 | AH86: Douglas | AI86: 0.6808318348 | AJ86: 68.08 | AK86: 0.0573 | AL86: 10368286 | AM86: -5.914882758
A87: 78 | B87: Dover | C87: 2854881300 | D87: 11139618.24 | E87: 2117733000 | F87: 30280434.41 | G87: 41420053 | H87: 14138961.9 | I87: 2.929497462 | J87: 11664644 | K87: 11664644 | L87: 82.5 | N87: 11620689 | O87: 0.044 | P87: 12131999 | Q87: 85.80544374 | R87: 0 | S87: 0 | T87: 0 | U87: 467355 | V87: 467355 | W87: 0 | X87: =MIN(H87*parameters!C$22,ROUND(P87+T87-V87+W87,0)) -> 11664644 | Y87: 82.50000305 | AA87: 0 | AB87: 0 | AC87: 0 | AD87: 3.053328427e-06 | AG87: 078 | AH87: Dover | AI87: 2.929497462 | AJ87: 82.5 | AK87: 0.044 | AL87: 11664644 | AM87: 3.053328427e-06
A88: 79 | B88: Dracut | C88: 4790569000 | D88: 18692584.45 | E88: 1366275000 | F88: 19535701.87 | G88: 38228286 | H88: 65871823.54 | I88: 0.5803435209 | J88: 54344254 | K88: 38228286 | L88: 58.03 | N88: 32435218 | O88: 0.032 | P88: 33473145 | Q88: 50.81557364 | R88: 7.214426358 | S88: 0.01 | T88: 324352 | U88: 0 | V88: 0 | W88: 0 | X88: =MIN(H88*parameters!C$22,ROUND(P88+T88-V88+W88,0)) -> 33797497 | Y88: 51.30797234 | AA88: -4755141 | AB88: -4430789 | AC88: 0 | AD88: -6.722027662 | AG88: 079 | AH88: Dracut | AI88: 0.5803435209 | AJ88: 58.03 | AK88: 0.032 | AL88: 33797497 | AM88: -6.722027662
A89: 80 | B89: Dudley | C89: 1305684900 | D89: 5094723.666 | E89: 403891000 | F89: 5775041.016 | G89: 10869765 | H89: 24335665.82 | I89: 0.4466598564 | J89: 20076924 | K89: 10869765 | L89: 44.67 | N89: 8369257 | O89: 0.0649 | P89: 8912422 | Q89: 36.62288127 | R89: 8.047118727 | S89: 0.02 | T89: 167385 | U89: 0 | V89: 0 | W89: 0 | X89: =MIN(H89*parameters!C$22,ROUND(P89+T89-V89+W89,0)) -> 9079807 | Y89: 37.3106989 | AA89: -1957343 | AB89: -1789958 | AC89: 0 | AD89: -7.359301097 | AG89: 080 | AH89: Dudley | AI89: 0.4466598564 | AJ89: 44.67 | AK89: 0.0649 | AL89: 9079807 | AM89: -7.359301097
A90: 81 | B90: Dunstable | C90: 708127800 | D90: 2763082.778 | E90: 253941000 | F90: 3630978.879 | G90: 6394062 | H90: 6746754.764 | I90: 0.9477240871 | J90: 5566073 | K90: 5566073 | L90: 82.5 | N90: 5265872 | O90: 0.0387 | P90: 5469661 | Q90: 81.07099177 | R90: 1.429008226 | S90: 0 | T90: 0 | U90: 0 | V90: 0 | W90: 0 | X90: =MIN(H90*parameters!C$22,ROUND(P90+T90-V90+W90,0)) -> 5469661 | Y90: 81.07099177 | AA90: -96412 | AB90: -96412 | AC90: 0 | AD90: -1.429008226 | AG90: 081 | AH90: Dunstable | AI90: 0.9477240871 | AJ90: 82.5 | AK90: 0.0387 | AL90: 5469661 | AM90: -1.429008226
A91: 82 | B91: Duxbury | C91: 5389486400 | D91: 21029533.17 | E91: 2100585000 | F91: 30035243.5 | G91: 51064777 | H91: 33652713.46 | I91: 1.517404445 | J91: 27763489 | K91: 27763489 | L91: 82.5 | N91: 26987503 | O91: 0.0363 | P91: 27967149 | Q91: 83.10518269 | R91: 0 | S91: 0 | T91: 0 | U91: 203660 | V91: 203660 | W91: 0 | X91: =MIN(H91*parameters!C$22,ROUND(P91+T91-V91+W91,0)) -> 27763489 | Y91: 82.50000118 | AA91: 0 | AB91: 0 | AC91: 0 | AD91: 1.178181364e-06 | AG91: 082 | AH91: Duxbury | AI91: 1.517404445 | AJ91: 82.5 | AK91: 0.0363 | AL91: 27763489 | AM91: 1.178181364e-06
A92: 83 | B92: East Bridgewater | C92: 2211733200 | D92: 8630083.32 | E92: 612754000 | F92: 8761471.492 | G92: 17391555 | H92: 28901677.28 | I92: 0.6017489861 | J92: 23843884 | K92: 17391555 | L92: 60.17 | N92: 15105540 | O92: 0.0461 | P92: 15801905 | Q92: 54.67469879 | R92: 5.495301208 | S92: 0.01 | T92: 151055 | U92: 0 | V92: 0 | W92: 0 | X92: =MIN(H92*parameters!C$22,ROUND(P92+T92-V92+W92,0)) -> 15952960 | Y92: 55.19735012 | AA92: -1589650 | AB92: -1438595 | AC92: 0 | AD92: -4.972649881 | AG92: 083 | AH92: East Bridgewater | AI92: 0.6017489861 | AJ92: 60.17 | AK92: 0.0461 | AL92: 15952960 | AM92: -4.972649881
A93: 84 | B93: East Brookfield | C93: 319420900 | D93: 1246365.964 | E93: 84306000 | F93: 1205450.5 | G93: 2451816 | H93: 4204269.605 | I93: 0.5831728768 | J93: 3468522 | K93: 2451816 | L93: 58.32 | N93: 2129815 | O93: 0.0382 | P93: 2211174 | Q93: 52.59353486 | R93: 5.726465142 | S93: 0.01 | T93: 21298 | U93: 0 | V93: 0 | W93: 0 | X93: =MIN(H93*parameters!C$22,ROUND(P93+T93-V93+W93,0)) -> 2232472 | Y93: 53.10011512 | AA93: -240642 | AB93: -219344 | AC93: 0 | AD93: -5.219884879 | AG93: 084 | AH93: East Brookfield | AI93: 0.5831728768 | AJ93: 58.32 | AK93: 0.0382 | AL93: 2232472 | AM93: -5.219884879
A94: 85 | B94: Eastham | C94: 3597520100 | D94: 14037361.38 | E94: 292256000 | F94: 4178826.434 | G94: 18216188 | H94: 7069182.605 | I94: 2.576845021 | J94: 5832076 | K94: 5832076 | L94: 82.5 | N94: 5472129 | O94: 0.0595 | P94: 5797721 | Q94: 82.01402233 | R94: 0.4859776706 | S94: 0 | T94: 0 | U94: 0 | V94: 0 | W94: 34355 | X94: =MIN(H94*parameters!C$22,ROUND(P94+T94-V94+W94,0)) -> 5832076 | Y94: 82.50000497 | AA94: -34355 | AB94: 0 | AC94: 0 | AD94: 4.965873813e-06 | AG94: 085 | AH94: Eastham | AI94: 2.576845021 | AJ94: 82.5 | AK94: 0.0595 | AL94: 5832076 | AM94: 4.965873813e-06
A95: 86 | B95: Easthampton | C95: 1916129500 | D95: 7476650.998 | E95: 579418000 | F95: 8284816.238 | G95: 15761467 | H95: 23097746.73 | I95: 0.682381151 | J95: 19055641 | K95: 15761467 | L95: 68.24 | N95: 13894543 | O95: 0.065 | P95: 14797688 | Q95: 64.06550463 | R95: 4.174495373 | S95: 0.01 | T95: 138945 | U95: 0 | V95: 0 | W95: 0 | X95: =MIN(H95*parameters!C$22,ROUND(P95+T95-V95+W95,0)) -> 14936633 | Y95: 64.66705681 | AA95: -963779 | AB95: -824834 | AC95: 0 | AD95: -3.572943189 | AG95: 086 | AH95: Easthampton | AI95: 0.682381151 | AJ95: 68.24 | AK95: 0.065 | AL95: 14936633 | AM95: -3.572943189
A96: 87 | B96: East Longmeadow | C96: 2311361300 | D96: 9018827.679 | E96: 853911000 | F96: 12209658.17 | G96: 21228486 | H96: 34405381.24 | I96: 0.6170106313 | J96: 28384440 | K96: 21228486 | L96: 61.7 | N96: 18843898 | O96: 0.0335 | P96: 19475169 | Q96: 56.60500857 | R96: 5.094991428 | S96: 0.01 | T96: 188439 | U96: 0 | V96: 0 | W96: 0 | X96: =MIN(H96*parameters!C$22,ROUND(P96+T96-V96+W96,0)) -> 19663608 | Y96: 57.15271068 | AA96: -1753317 | AB96: -1564878 | AC96: 0 | AD96: -4.547289315 | AG96: 087 | AH96: East Longmeadow | AI96: 0.6170106313 | AJ96: 61.7 | AK96: 0.0335 | AL96: 19663608 | AM96: -4.547289315
A97: 88 | B97: Easton | C97: 4412594900 | D97: 17217746.54 | E97: 1649668000 | F97: 23587800.58 | G97: 40805547 | H97: 46408035.78 | I97: 0.8792776146 | J97: 38286630 | K97: 38286630 | L97: 82.5 | N97: 34739005 | O97: 0.0363 | P97: 36000031 | Q97: 77.57283926 | R97: 4.927160739 | S97: 0.01 | T97: 347390 | U97: 0 | V97: 0 | W97: 0 | X97: =MIN(H97*parameters!C$22,ROUND(P97+T97-V97+W97,0)) -> 36347421 | Y97: 78.32139497 | AA97: -2286599 | AB97: -1939209 | AC97: 0 | AD97: -4.178605033 | AG97: 088 | AH97: Easton | AI97: 0.8792776146 | AJ97: 82.5 | AK97: 0.0363 | AL97: 36347421 | AM97: -4.178605033
A98: 89 | B98: Edgartown | C98: 11072643200 | D98: 43204955.01 | E98: 488693000 | F98: 6987583.578 | G98: 50192539 | H98: 9521303.175 | I98: 5.271603905 | J98: 7855075 | K98: 7855075 | L98: 82.5 | N98: 8277359 | O98: 0.0383 | P98: 8594382 | Q98: 90.26476567 | R98: 0 | S98: 0 | T98: 0 | U98: 739307 | V98: 739307 | W98: 0 | X98: =MIN(H98*parameters!C$22,ROUND(P98+T98-V98+W98,0)) -> 7855075 | Y98: 82.49999875 | AA98: 0 | AB98: 0 | AC98: 0 | AD98: -1.254000537e-06 | AG98: 089 | AH98: Edgartown | AI98: 5.271603905 | AJ98: 82.5 | AK98: 0.0383 | AL98: 7855075 | AM98: -1.254000537e-06
A99: 90 | B99: Egremont | C99: 616396400 | D99: 2405150.988 | E99: 54717000 | F99: 782371.7767 | G99: 3187523 | H99: 1268753.049 | I99: 2.512327362 | J99: 1046721 | K99: 1046721 | L99: 82.5 | N99: 1067474 | O99: 0.0429 | P99: 1113269 | Q99: 87.74512906 | R99: 0 | S99: 0 | T99: 0 | U99: 66548 | V99: 66548 | W99: 0 | X99: =MIN(H99*parameters!C$22,ROUND(P99+T99-V99+W99,0)) -> 1046721 | Y99: 82.4999791 | AA99: 0 | AB99: 0 | AC99: 0 | AD99: -2.089971397e-05 | AG99: 090 | AH99: Egremont | AI99: 2.512327362 | AJ99: 82.5 | AK99: 0.0429 | AL99: 1046721 | AM99: -2.089971397e-05
A100: 91 | B100: Erving | C100: 969923800 | D100: 3784598.978 | E100: 60012000 | F100: 858082.407 | G100: 4642681 | H100: 3345971.162 | I100: 1.387543638 | J100: 2760426 | K100: 2760426 | L100: 82.5 | N100: 2588960 | O100: 0.0314 | P100: 2670253 | Q100: 79.80502135 | R100: 2.694978654 | S100: 0.01 | T100: 25890 | U100: 0 | V100: 0 | W100: 0 | X100: =MIN(H100*parameters!C$22,ROUND(P100+T100-V100+W100,0)) -> 2696143 | Y100: 80.57878773 | AA100: -90173 | AB100: -64283 | AC100: 0 | AD100: -1.921212272 | AG100: 091 | AH100: Erving | AI100: 1.387543638 | AJ100: 82.5 | AK100: 0.0314 | AL100: 2696143 | AM100: -1.921212272
A101: 92 | B101: Essex | C101: 1081249700 | D101: 4218987.625 | E101: 465083000 | F101: 6649995.669 | G101: 10868983 | H101: 6760399.51 | I101: 1.607742706 | J101: 5577330 | K101: 5577330 | L101: 82.5 | N101: 5170162 | O101: 0.0411 | P101: 5382656 | Q101: 79.62038326 | R101: 2.87961674 | S101: 0.01 | T101: 51702 | U101: 0 | V101: 0 | W101: 0 | X101: =MIN(H101*parameters!C$22,ROUND(P101+T101-V101+W101,0)) -> 5434358 | Y101: 80.38516055 | AA101: -194674 | AB101: -142972 | AC101: 0 | AD101: -2.114839453 | AG101: 092 | AH101: Essex | AI101: 1.607742706 | AJ101: 82.5 | AK101: 0.0411 | AL101: 5434358 | AM101: -2.114839453
A102: 93 | B102: Everett | C102: 9500450600 | D102: 37070330.3 | E102: 1260524000 | F102: 18023619.74 | G102: 55093950 | H102: 161607819 | I102: 0.3409114134 | J102: 133326451 | K102: 55093950 | L102: 34.09 | N102: 40961068 | O102: 0.0578 | P102: 43328618 | Q102: 26.81096636 | R102: 7.279033639 | S102: 0.01 | T102: 409611 | U102: 0 | V102: 0 | W102: 0 | X102: =MIN(H102*parameters!C$22,ROUND(P102+T102-V102+W102,0)) -> 43738229 | Y102: 27.06442625 | AA102: -11765332 | AB102: -11355721 | AC102: 0 | AD102: -7.02557375 | AG102: 093 | AH102: Everett | AI102: 0.3409114134 | AJ102: 34.09 | AK102: 0.0578 | AL102: 43738229 | AM102: -7.02557375
A103: 94 | B103: Fairhaven | C103: 2882044000 | D103: 11245605.87 | E103: 662456000 | F103: 9472136.223 | G103: 20717742 | H103: 28208991.5 | I103: 0.7344375286 | J103: 23272418 | K103: 20717742 | L103: 73.44 | N103: 16724054 | O103: 0.0448 | P103: 17473292 | Q103: 61.94227823 | R103: 11.49772177 | S103: 0.02 | T103: 334481 | U103: 0 | V103: 0 | W103: 0 | X103: =MIN(H103*parameters!C$22,ROUND(P103+T103-V103+W103,0)) -> 17807773 | Y103: 63.128003 | AA103: -3244450 | AB103: -2909969 | AC103: 0 | AD103: -10.311997 | AG103: 094 | AH103: Fairhaven | AI103: 0.7344375286 | AJ103: 73.44 | AK103: 0.0448 | AL103: 17807773 | AM103: -10.311997
A104: 95 | B104: Fall River | C104: 7843860400 | D104: 30606389.96 | E104: 2026895000 | F104: 28981586.02 | G104: 59587976 | H104: 267485067.1 | I104: 0.2227712247 | J104: 220675180 | K104: 59587976 | L104: 22.28 | N104: 42537361 | O104: 0.0444 | P104: 44426020 | Q104: 16.60878511 | R104: 5.671214889 | S104: 0.01 | T104: 425374 | U104: 0 | V104: 0 | W104: 0 | X104: =MIN(H104*parameters!C$22,ROUND(P104+T104-V104+W104,0)) -> 44851394 | Y104: 16.76781231 | AA104: -15161956 | AB104: -14736582 | AC104: 0 | AD104: -5.512187694 | AG104: 095 | AH104: Fall River | AI104: 0.2227712247 | AJ104: 22.28 | AK104: 0.0444 | AL104: 44851394 | AM104: -5.512187694
A105: 96 | B105: Falmouth | C105: 15449979300 | D105: 60285123.29 | E105: 2053402000 | F105: 29360596.72 | G105: 89645720 | H105: 47508165.85 | I105: 1.886953924 | J105: 39194237 | K105: 39194237 | L105: 82.5 | N105: 36602682 | O105: 0.0541 | P105: 38582887 | Q105: 81.21316895 | R105: 1.286831049 | S105: 0 | T105: 0 | U105: 0 | V105: 0 | W105: 611350 | X105: =MIN(H105*parameters!C$22,ROUND(P105+T105-V105+W105,0)) -> 39194237 | Y105: 82.50000036 | AA105: -611350 | AB105: 0 | AC105: 0 | AD105: 3.599276255e-07 | AG105: 096 | AH105: Falmouth | AI105: 1.886953924 | AJ105: 82.5 | AK105: 0.0541 | AL105: 39194237 | AM105: 3.599276255e-07
A106: 97 | B106: Fitchburg | C106: 3678508500 | D106: 14353374.47 | E106: 1057088000 | F106: 15114787.3 | G106: 29468162 | H106: 108828587.4 | I106: 0.2707759302 | J106: 89783585 | K106: 29468162 | L106: 27.08 | N106: 23611394 | O106: 0.0449 | P106: 24671546 | Q106: 22.67009669 | R106: 4.40990331 | S106: 0.01 | T106: 236114 | U106: 0 | V106: 0 | W106: 0 | X106: =MIN(H106*parameters!C$22,ROUND(P106+T106-V106+W106,0)) -> 24907660 | Y106: 22.88705623 | AA106: -4796616 | AB106: -4560502 | AC106: 0 | AD106: -4.192943773 | AG106: 097 | AH106: Fitchburg | AI106: 0.2707759302 | AJ106: 27.08 | AK106: 0.0449 | AL106: 24907660 | AM106: -4.192943773
A107: 98 | B107: Florida | C107: 185906300 | D107: 725398.0086 | E107: 16498000 | F107: 235896.8798 | G107: 961295 | H107: 1566636.004 | I107: 0.6136045626 | J107: 1292475 | K107: 961295 | L107: 61.36 | N107: 748953 | O107: 0.0438 | P107: 781757 | Q107: 49.90035962 | R107: 11.45964038 | S107: 0.02 | T107: 14979 | U107: 0 | V107: 0 | W107: 0 | X107: =MIN(H107*parameters!C$22,ROUND(P107+T107-V107+W107,0)) -> 796736 | Y107: 50.85648472 | AA107: -179538 | AB107: -164559 | AC107: 0 | AD107: -10.50351528 | AG107: 098 | AH107: Florida | AI107: 0.6136045626 | AJ107: 61.36 | AK107: 0.0438 | AL107: 796736 | AM107: -10.50351528
A108: 99 | B108: Foxborough | C108: 3825226800 | D108: 14925862.67 | E108: 1381591000 | F108: 19754697.91 | G108: 34680561 | H108: 36771779.92 | I108: 0.943129788 | J108: 30336718 | K108: 30336718 | L108: 82.5 | N108: 28240512 | O108: 0.0358 | P108: 29251522 | Q108: 79.54883355 | R108: 2.951166453 | S108: 0.01 | T108: 282405 | U108: 0 | V108: 0 | W108: 0 | X108: =MIN(H108*parameters!C$22,ROUND(P108+T108-V108+W108,0)) -> 29533927 | Y108: 80.31682737 | AA108: -1085196 | AB108: -802791 | AC108: 0 | AD108: -2.183172626 | AG108: 099 | AH108: Foxborough | AI108: 0.943129788 | AJ108: 82.5 | AK108: 0.0358 | AL108: 29533927 | AM108: -2.183172626
A109: 100 | B109: Framingham | C109: 12640216800 | D109: 49321556.58 | E109: 3380098000 | F109: 48330377.72 | G109: 97651934 | H109: 178903138.4 | I109: 0.5458368973 | J109: 147595089 | K109: 97651934 | L109: 54.58 | N109: 81178259 | O109: 0.0388 | P109: 84327975 | Q109: 47.13610713 | R109: 7.443892865 | S109: 0.01 | T109: 811783 | U109: 0 | V109: 0 | W109: 0 | X109: =MIN(H109*parameters!C$22,ROUND(P109+T109-V109+W109,0)) -> 85139758 | Y109: 47.58986273 | AA109: -13323959 | AB109: -12512176 | AC109: 0 | AD109: -6.99013727 | AG109: 100 | AH109: Framingham | AI109: 0.5458368973 | AJ109: 54.58 | AK109: 0.0388 | AL109: 85139758 | AM109: -6.99013727
A110: 101 | B110: Franklin | C110: 6739455100 | D110: 26297050.23 | E110: 2160179000 | F110: 30887349.13 | G110: 57184399 | H110: 70522096.44 | I110: 0.8108720797 | J110: 58180730 | K110: 57184399 | L110: 81.09 | N110: 49918273 | O110: 0.049 | P110: 52364268 | Q110: 74.25228495 | R110: 6.837715049 | S110: 0.01 | T110: 499183 | U110: 0 | V110: 0 | W110: 0 | X110: =MIN(H110*parameters!C$22,ROUND(P110+T110-V110+W110,0)) -> 52863451 | Y110: 74.96012409 | AA110: -4820131 | AB110: -4320948 | AC110: 0 | AD110: -6.12987591 | AG110: 101 | AH110: Franklin | AI110: 0.8108720797 | AJ110: 81.09 | AK110: 0.049 | AL110: 52863451 | AM110: -6.12987591
A111: 102 | B111: Freetown | C111: 1813071700 | D111: 7074524.105 | E111: 424218000 | F111: 6065686.905 | G111: 13140211 | H111: 16711833.8 | I111: 0.7862818142 | J111: 13787263 | K111: 13140211 | L111: 78.63 | N111: 11618817 | O111: 0.0387 | P111: 12068465 | Q111: 72.21508509 | R111: 6.414914908 | S111: 0.01 | T111: 116188 | U111: 0 | V111: 0 | W111: 0 | X111: =MIN(H111*parameters!C$22,ROUND(P111+T111-V111+W111,0)) -> 12184653 | Y111: 72.91032896 | AA111: -1071746 | AB111: -955558 | AC111: 0 | AD111: -5.719671038 | AG111: 102 | AH111: Freetown | AI111: 0.7862818142 | AJ111: 78.63 | AK111: 0.0387 | AL111: 12184653 | AM111: -5.719671038
A112: 103 | B112: Gardner | C112: 1722018500 | D112: 6719238.62 | E112: 538929000 | F112: 7705883.715 | G112: 14425122 | H112: 44942116.28 | I112: 0.3209711334 | J112: 37077246 | K112: 14425122 | L112: 32.1 | N112: 12277046 | O112: 0.0385 | P112: 12749712 | Q112: 28.36918475 | R112: 3.730815246 | S112: 0.01 | T112: 122770 | U112: 0 | V112: 0 | W112: 0 | X112: =MIN(H112*parameters!C$22,ROUND(P112+T112-V112+W112,0)) -> 12872482 | Y112: 28.64235836 | AA112: -1675410 | AB112: -1552640 | AC112: 0 | AD112: -3.457641639 | AG112: 103 | AH112: Gardner | AI112: 0.3209711334 | AJ112: 32.1 | AK112: 0.0385 | AL112: 12872482 | AM112: -3.457641639
A113: 104 | B113: Aquinnah | C113: 860784100 | D113: 3358740.785 | E113: 28945000 | F113: 413870.4804 | G113: 3772611 | H113: 849822.839 | I113: 4.43929114 | J113: 701104 | K113: 701104 | L113: 82.5 | N113: 730251 | O113: 0.0413 | P113: 760410 | Q113: 89.47864956 | R113: 0 | S113: 0 | T113: 0 | U113: 59306 | V113: 59306 | W113: 0 | X113: =MIN(H113*parameters!C$22,ROUND(P113+T113-V113+W113,0)) -> 701104 | Y113: 82.50001857 | AA113: 0 | AB113: 0 | AC113: 0 | AD113: 1.857274222e-05 | AG113: 104 | AH113: Aquinnah | AI113: 4.43929114 | AJ113: 82.5 | AK113: 0.0413 | AL113: 701104 | AM113: 1.857274222e-05
A114: 105 | B114: Georgetown | C114: 1648088700 | D114: 6430767.87 | E114: 522538000 | F114: 7471516.776 | G114: 13902285 | H114: 16395123.87 | I114: 0.8479524221 | J114: 13525977 | K114: 13525977 | L114: 82.5 | N114: 12244676 | O114: 0.0494 | P114: 12849563 | Q114: 78.37429652 | R114: 4.12570348 | S114: 0.01 | T114: 122447 | U114: 0 | V114: 0 | W114: 0 | X114: =MIN(H114*parameters!C$22,ROUND(P114+T114-V114+W114,0)) -> 12972010 | Y114: 79.12114663 | AA114: -676414 | AB114: -553967 | AC114: 0 | AD114: -3.378853374 | AG114: 105 | AH114: Georgetown | AI114: 0.8479524221 | AJ114: 82.5 | AK114: 0.0494 | AL114: 12972010 | AM114: -3.378853374
A115: 106 | B115: Gill | C115: 183855300 | D115: 717395.0989 | E115: 43933000 | F115: 628176.6044 | G115: 1345572 | H115: 1899509.391 | I115: 0.7083787037 | J115: 1567095 | K115: 1345572 | L115: 70.84 | N115: 1215815 | O115: 0.0345 | P115: 1257761 | Q115: 66.21504511 | R115: 4.624954892 | S115: 0.01 | T115: 12158 | U115: 0 | V115: 0 | W115: 0 | X115: =MIN(H115*parameters!C$22,ROUND(P115+T115-V115+W115,0)) -> 1269919 | Y115: 66.85510512 | AA115: -87811 | AB115: -75653 | AC115: 0 | AD115: -3.984894882 | AG115: 106 | AH115: Gill | AI115: 0.7083787037 | AJ115: 70.84 | AK115: 0.0345 | AL115: 1269919 | AM115: -3.984894882
A116: 107 | B116: Gloucester | C116: 8654554400 | D116: 33769681.43 | E116: 1755446000 | F116: 25100268.76 | G116: 58869950 | H116: 51310104.08 | I116: 1.147336398 | J116: 42330836 | K116: 42330836 | L116: 82.5 | N116: 37316013 | O116: 0.0402 | P116: 38816117 | Q116: 75.65004533 | R116: 6.849954667 | S116: 0.01 | T116: 373160 | U116: 0 | V116: 0 | W116: 0 | X116: =MIN(H116*parameters!C$22,ROUND(P116+T116-V116+W116,0)) -> 39189277 | Y116: 76.3773095 | AA116: -3514719 | AB116: -3141559 | AC116: 0 | AD116: -6.122690502 | AG116: 107 | AH116: Gloucester | AI116: 1.147336398 | AJ116: 82.5 | AK116: 0.0402 | AL116: 39189277 | AM116: -6.122690502
A117: 108 | B117: Goshen | C117: 175826700 | D117: 686067.8634 | E117: 17600000 | F117: 251653.8419 | G117: 937722 | H117: 1350337.072 | I117: 0.6944355 | J117: 1114028 | K117: 937722 | L117: 69.44 | N117: 850119 | O117: 0.0365 | P117: 881148 | Q117: 65.25392941 | R117: 4.186070586 | S117: 0.01 | T117: 8501 | U117: 0 | V117: 0 | W117: 0 | X117: =MIN(H117*parameters!C$22,ROUND(P117+T117-V117+W117,0)) -> 889649 | Y117: 65.88347593 | AA117: -56574 | AB117: -48073 | AC117: 0 | AD117: -3.55652407 | AG117: 108 | AH117: Goshen | AI117: 0.6944355 | AJ117: 69.44 | AK117: 0.0365 | AL117: 889649 | AM117: -3.55652407
A118: 109 | B118: Gosnold | C118: 238470900 | D118: 930502.71 | E118: 900000 | F118: 12868.66237 | G118: 943371 | H118: 0 | I118: 0 | J118: 0 | K118: 0 | L118: 0 | N118: 0 | O118: 0.0453 | P118: 0 | Q118: 0 | R118: 0 | S118: 0 | T118: 0 | U118: 0 | V118: 0 | W118: 0 | X118: =MIN(H118*parameters!C$22,ROUND(P118+T118-V118+W118,0)) -> 0 | Y118: 0 | AA118: 0 | AB118: 0 | AC118: 0 | AD118: 0 | AG118: 109 | AH118: Gosnold | AI118: 0 | AJ118: 0 | AK118: 0.0453 | AL118: 0 | AM118: 0
A119: 110 | B119: Grafton | C119: 3144522000 | D119: 12269783.2 | E119: 1239803000 | F119: 17727340.24 | G119: 29997123 | H119: 39108228.29 | I119: 0.7670284314 | J119: 32264288 | K119: 29997123 | L119: 76.7 | N119: 25650988 | O119: 0.0411 | P119: 26705244 | Q119: 68.28548663 | R119: 8.414513371 | S119: 0.02 | T119: 513020 | U119: 0 | V119: 0 | W119: 0 | X119: =MIN(H119*parameters!C$22,ROUND(P119+T119-V119+W119,0)) -> 27218264 | Y119: 69.59728218 | AA119: -3291879 | AB119: -2778859 | AC119: 0 | AD119: -7.102717817 | AG119: 110 | AH119: Grafton | AI119: 0.7670284314 | AJ119: 76.7 | AK119: 0.0411 | AL119: 27218264 | AM119: -7.102717817
A120: 111 | B120: Granby | C120: 766960200 | D120: 2992644.153 | E120: 249386000 | F120: 3565849.149 | G120: 6558493 | H120: 10065730.49 | I120: 0.6515665215 | J120: 8304228 | K120: 6558493 | L120: 65.16 | N120: 5880822 | O120: 0.0392 | P120: 6111350 | Q120: 60.71442115 | R120: 4.445578853 | S120: 0.01 | T120: 58808 | U120: 0 | V120: 0 | W120: 0 | X120: =MIN(H120*parameters!C$22,ROUND(P120+T120-V120+W120,0)) -> 6170158 | Y120: 61.29866091 | AA120: -447143 | AB120: -388335 | AC120: 0 | AD120: -3.861339089 | AG120: 111 | AH120: Granby | AI120: 0.6515665215 | AJ120: 65.16 | AK120: 0.0392 | AL120: 6170158 | AM120: -3.861339089
A121: 112 | B121: Granville | C121: 236031700 | D121: 920985.0615 | E121: 64167000 | F121: 917492.7316 | G121: 1838478 | H121: 2353662.978 | I121: 0.7811135312 | J121: 1941772 | K121: 1838478 | L121: 78.11 | N121: 1631275 | O121: 0.0623 | P121: 1732903 | Q121: 73.62579164 | R121: 4.484208359 | S121: 0.01 | T121: 16313 | U121: 0 | V121: 0 | W121: 0 | X121: =MIN(H121*parameters!C$22,ROUND(P121+T121-V121+W121,0)) -> 1749216 | Y121: 74.31888152 | AA121: -105575 | AB121: -89262 | AC121: 0 | AD121: -3.791118476 | AG121: 112 | AH121: Granville | AI121: 0.7811135312 | AJ121: 78.11 | AK121: 0.0623 | AL121: 1749216 | AM121: -3.791118476
A122: 113 | B122: Great Barrington | C122: 1741152600 | D122: 6793899.016 | E122: 422825000 | F122: 6045769.075 | G122: 12839668 | H122: 11314564.99 | I122: 1.134791131 | J122: 9334516 | K122: 9334516 | L122: 82.5 | N122: 8090456 | O122: 0.0422 | P122: 8431873 | Q122: 74.5222906 | R122: 7.977709401 | S122: 0.02 | T122: 161809 | U122: 0 | V122: 0 | W122: 0 | X122: =MIN(H122*parameters!C$22,ROUND(P122+T122-V122+W122,0)) -> 8593682 | Y122: 75.95238535 | AA122: -902643 | AB122: -740834 | AC122: 0 | AD122: -6.54761465 | AG122: 113 | AH122: Great Barrington | AI122: 1.134791131 | AJ122: 82.5 | AK122: 0.0422 | AL122: 8593682 | AM122: -6.54761465
A123: 114 | B123: Greenfield | C123: 1751876500 | D123: 6835743.191 | E123: 479053000 | F123: 6849745.906 | G123: 13685489 | H123: 30830184.89 | I123: 0.4438990245 | J123: 25434903 | K123: 13685489 | L123: 44.39 | N123: 12106499 | O123: 0.0348 | P123: 12527805 | Q123: 40.63486821 | R123: 3.755131789 | S123: 0.01 | T123: 121065 | U123: 0 | V123: 0 | W123: 0 | X123: =MIN(H123*parameters!C$22,ROUND(P123+T123-V123+W123,0)) -> 12648870 | Y123: 41.02755155 | AA123: -1157684 | AB123: -1036619 | AC123: 0 | AD123: -3.362448448 | AG123: 114 | AH123: Greenfield | AI123: 0.4438990245 | AJ123: 44.39 | AK123: 0.0348 | AL123: 12648870 | AM123: -3.362448448
A124: 115 | B124: Groton | C124: 2199159100 | D124: 8581019.748 | E124: 977367000 | F124: 13974895.49 | G124: 22555915 | H124: 22250450.09 | I124: 1.013728482 | J124: 18356621 | K124: 18356621 | L124: 82.5 | N124: 17524894 | O124: 0.0463 | P124: 18336297 | Q124: 82.40865658 | R124: 0.09134341941 | S124: 0 | T124: 0 | U124: 0 | V124: 0 | W124: 0 | X124: =MIN(H124*parameters!C$22,ROUND(P124+T124-V124+W124,0)) -> 18336297 | Y124: 82.40865658 | AA124: -20324 | AB124: -20324 | AC124: 0 | AD124: -0.09134341941 | AG124: 115 | AH124: Groton | AI124: 1.013728482 | AJ124: 82.5 | AK124: 0.0463 | AL124: 18336297 | AM124: -0.09134341941
A125: 116 | B125: Groveland | C125: 1255397100 | D125: 4898502.936 | E125: 348319000 | F125: 4980444.01 | G125: 9878947 | H125: 12179383.92 | I125: 0.8111204197 | J125: 10047992 | K125: 9878947 | L125: 81.11 | N125: 8476999 | O125: 0.0247 | P125: 8686381 | Q125: 71.32036443 | R125: 9.789635571 | S125: 0.02 | T125: 169540 | U125: 0 | V125: 0 | W125: 0 | X125: =MIN(H125*parameters!C$22,ROUND(P125+T125-V125+W125,0)) -> 8855921 | Y125: 72.71238886 | AA125: -1192566 | AB125: -1023026 | AC125: 0 | AD125: -8.397611138 | AG125: 116 | AH125: Groveland | AI125: 0.8111204197 | AJ125: 81.11 | AK125: 0.0247 | AL125: 8855921 | AM125: -8.397611138
A126: 117 | B126: Hadley | C126: 1161298900 | D126: 4531335.998 | E126: 223907000 | F126: 3201537.318 | G126: 7732873 | H126: 6210751.32 | I126: 1.24507851 | J126: 5123870 | K126: 5123870 | L126: 82.5 | N126: 5178613 | O126: 0.0537 | P126: 5456705 | Q126: 87.85901607 | R126: 0 | S126: 0 | T126: 0 | U126: 332835 | V126: 332835 | W126: 0 | X126: =MIN(H126*parameters!C$22,ROUND(P126+T126-V126+W126,0)) -> 5123870 | Y126: 82.50000259 | AA126: 0 | AB126: 0 | AC126: 0 | AD126: 2.592278989e-06 | AG126: 117 | AH126: Hadley | AI126: 1.24507851 | AJ126: 82.5 | AK126: 0.0537 | AL126: 5123870 | AM126: 2.592278989e-06
A127: 118 | B127: Halifax | C127: 1210894200 | D127: 4724854.624 | E127: 320953000 | F127: 4589150.883 | G127: 9314006 | H127: 16027384.97 | I127: 0.5811307344 | J127: 13222593 | K127: 9314006 | L127: 58.11 | N127: 8352708 | O127: 0.0249 | P127: 8560690 | Q127: 53.41289309 | R127: 4.697106912 | S127: 0.01 | T127: 83527 | U127: 0 | V127: 0 | W127: 0 | X127: =MIN(H127*parameters!C$22,ROUND(P127+T127-V127+W127,0)) -> 8644217 | Y127: 53.93404485 | AA127: -753316 | AB127: -669789 | AC127: 0 | AD127: -4.175955145 | AG127: 118 | AH127: Halifax | AI127: 0.5811307344 | AJ127: 58.11 | AK127: 0.0249 | AL127: 8644217 | AM127: -4.175955145
A128: 119 | B128: Hamilton | C128: 1912849100 | D128: 7463851.025 | E128: 808275000 | F128: 11557131.2 | G128: 19020982 | H128: 13990451.14 | I128: 1.359568881 | J128: 11542122 | K128: 11542122 | L128: 82.5 | N128: 10868465 | O128: 0.0448 | P128: 11355372 | Q128: 81.16515962 | R128: 1.334840384 | S128: 0 | T128: 0 | U128: 0 | V128: 0 | W128: 0 | X128: =MIN(H128*parameters!C$22,ROUND(P128+T128-V128+W128,0)) -> 11355372 | Y128: 81.16515962 | AA128: -186750 | AB128: -186750 | AC128: 0 | AD128: -1.334840384 | AG128: 119 | AH128: Hamilton | AI128: 1.359568881 | AJ128: 82.5 | AK128: 0.0448 | AL128: 11355372 | AM128: -1.334840384
A129: 120 | B129: Hampden | C129: 758719700 | D129: 2960490.093 | E129: 261909000 | F129: 3744909.437 | G129: 6705400 | H129: 7146214.041 | I129: 0.9383150241 | J129: 5895627 | K129: 5895627 | L129: 82.5 | N129: 5737268 | O129: 0.0391 | P129: 5961595 | Q129: 83.42312399 | R129: 0 | S129: 0 | T129: 0 | U129: 65968 | V129: 65968 | W129: 0 | X129: =MIN(H129*parameters!C$22,ROUND(P129+T129-V129+W129,0)) -> 5895627 | Y129: 82.50000582 | AA129: 0 | AB129: 0 | AC129: 0 | AD129: 5.823932966e-06 | AG129: 120 | AH129: Hampden | AI129: 0.9383150241 | AJ129: 82.5 | AK129: 0.0391 | AL129: 5895627 | AM129: 5.823932966e-06
A130: 121 | B130: Hancock | C130: 338870100 | D130: 1322255.866 | E130: 15945000 | F130: 227989.8017 | G130: 1550246 | H130: 1270682.74 | I130: 1.220010276 | J130: 1048313 | K130: 1048313 | L130: 82.5 | N130: 780690 | O130: 0.0309 | P130: 804813 | Q130: 63.33705296 | R130: 19.16294704 | S130: 0.02 | T130: 15614 | U130: 0 | V130: 0 | W130: 0 | X130: =MIN(H130*parameters!C$22,ROUND(P130+T130-V130+W130,0)) -> 820427 | Y130: 64.56584119 | AA130: -243500 | AB130: -227886 | AC130: 0 | AD130: -17.93415881 | AG130: 121 | AH130: Hancock | AI130: 1.220010276 | AJ130: 82.5 | AK130: 0.0309 | AL130: 820427 | AM130: -17.93415881
A131: 122 | B131: Hanover | C131: 3333802700 | D131: 13008347.97 | E131: 1092560000 | F131: 15621984.18 | G131: 28630332 | H131: 33526431.45 | I131: 0.8539630005 | J131: 27659306 | K131: 27659306 | L131: 82.5 | N131: 24430560 | O131: 0.0393 | P131: 25390681 | Q131: 75.73332413 | R131: 6.766675875 | S131: 0.01 | T131: 244306 | U131: 0 | V131: 0 | W131: 0 | X131: =MIN(H131*parameters!C$22,ROUND(P131+T131-V131+W131,0)) -> 25634987 | Y131: 76.46202083 | AA131: -2268625 | AB131: -2024319 | AC131: 0 | AD131: -6.037979174 | AG131: 122 | AH131: Hanover | AI131: 0.8539630005 | AJ131: 82.5 | AK131: 0.0393 | AL131: 25634987 | AM131: -6.037979174
A132: 123 | B132: Hanson | C132: 1705096200 | D132: 6653208.567 | E132: 495883000 | F132: 7090389.892 | G132: 13743598 | H132: 20565969.67 | I132: 0.6682689036 | J132: 16966925 | K132: 13743598 | L132: 66.83 | N132: 11669234 | O132: 0.0465 | P132: 12211853 | Q132: 59.37893131 | R132: 7.451068694 | S132: 0.01 | T132: 116692 | U132: 0 | V132: 0 | W132: 0 | X132: =MIN(H132*parameters!C$22,ROUND(P132+T132-V132+W132,0)) -> 12328545 | Y132: 59.94633465 | AA132: -1531745 | AB132: -1415053 | AC132: 0 | AD132: -6.883665348 | AG132: 123 | AH132: Hanson | AI132: 0.6682689036 | AJ132: 66.83 | AK132: 0.0465 | AL132: 12328545 | AM132: -6.883665348
A133: 124 | B133: Hardwick | C133: 290003700 | D133: 1131581.374 | E133: 76213000 | F133: 1089732.628 | G133: 2221314 | H133: 5027315.068 | I133: 0.4418489731 | J133: 4147535 | K133: 2221314 | L133: 44.18 | N133: 1916056 | O133: 0.0298 | P133: 1973154 | Q133: 39.24866402 | R133: 4.931335982 | S133: 0.01 | T133: 19161 | U133: 0 | V133: 0 | W133: 0 | X133: =MIN(H133*parameters!C$22,ROUND(P133+T133-V133+W133,0)) -> 1992315 | Y133: 39.62980186 | AA133: -248160 | AB133: -228999 | AC133: 0 | AD133: -4.550198143 | AG133: 124 | AH133: Hardwick | AI133: 0.4418489731 | AJ133: 44.18 | AK133: 0.0298 | AL133: 1992315 | AM133: -4.550198143
A134: 125 | B134: Harvard | C134: 1434003000 | D134: 5595415.112 | E134: 589660000 | F134: 8431261.616 | G134: 14026677 | H134: 11161170.04 | I134: 1.25673894 | J134: 9207965 | K134: 9207965 | L134: 82.5 | N134: 8475317 | O134: 0.0333 | P134: 8757545 | Q134: 78.46439909 | R134: 4.035600912 | S134: 0.01 | T134: 84753 | U134: 0 | V134: 0 | W134: 0 | X134: =MIN(H134*parameters!C$22,ROUND(P134+T134-V134+W134,0)) -> 8842298 | Y134: 79.22375496 | AA134: -450420 | AB134: -365667 | AC134: 0 | AD134: -3.276245041 | AG134: 125 | AH134: Harvard | AI134: 1.25673894 | AJ134: 82.5 | AK134: 0.0333 | AL134: 8842298 | AM134: -3.276245041
A135: 126 | B135: Harwich | C135: 7143004400 | D135: 27871681.42 | E135: 740161000 | F135: 10583202.23 | G135: 38454884 | H135: 20264096.44 | I135: 1.897685599 | J135: 16717880 | K135: 16717880 | L135: 82.5 | N135: 16248682 | O135: 0.0363 | P135: 16838509 | Q135: 83.09528652 | R135: 0 | S135: 0 | T135: 0 | U135: 120629 | V135: 120629 | W135: 0 | X135: =MIN(H135*parameters!C$22,ROUND(P135+T135-V135+W135,0)) -> 16717880 | Y135: 82.50000214 | AA135: 0 | AB135: 0 | AC135: 0 | AD135: 2.141018228e-06 | AG135: 126 | AH135: Harwich | AI135: 1.897685599 | AJ135: 82.5 | AK135: 0.0363 | AL135: 16717880 | AM135: 2.141018228e-06
A136: 127 | B136: Hatfield | C136: 664037600 | D136: 2591044.804 | E136: 145276000 | F136: 2077230.883 | G136: 4668276 | H136: 4163176.24 | I136: 1.121325577 | J136: 3434620 | K136: 3434620 | L136: 82.5 | N136: 3472030 | O136: 0.0342 | P136: 3590773 | Q136: 86.25080451 | R136: 0 | S136: 0 | T136: 0 | U136: 156153 | V136: 156153 | W136: 0 | X136: =MIN(H136*parameters!C$22,ROUND(P136+T136-V136+W136,0)) -> 3434620 | Y136: 82.49999044 | AA136: 0 | AB136: 0 | AC136: 0 | AD136: -9.560008436e-06 | AG136: 127 | AH136: Hatfield | AI136: 1.121325577 | AJ136: 82.5 | AK136: 0.0342 | AL136: 3434620 | AM136: -9.560008436e-06
A137: 128 | B137: Haverhill | C137: 8774764300 | D137: 34238735.04 | E137: 2349091000 | F137: 33588509.96 | G137: 67827245 | H137: 158925375.9 | I137: 0.426786752 | J137: 131113435 | K137: 67827245 | L137: 42.68 | N137: 56709246 | O137: 0.044 | P137: 59204453 | Q137: 37.25298912 | R137: 5.427010878 | S137: 0.01 | T137: 567092 | U137: 0 | V137: 0 | W137: 0 | X137: =MIN(H137*parameters!C$22,ROUND(P137+T137-V137+W137,0)) -> 59771545 | Y137: 37.60981823 | AA137: -8622792 | AB137: -8055700 | AC137: 0 | AD137: -5.070181771 | AG137: 128 | AH137: Haverhill | AI137: 0.426786752 | AJ137: 42.68 | AK137: 0.044 | AL137: 59771545 | AM137: -5.070181771
A138: 129 | B138: Hawley | C138: 52571500 | D138: 205131.6249 | E138: 9120000 | F138: 130402.4454 | G138: 335534 | H138: 359740.7557 | I138: 0.9327105554 | J138: =ROUND(H138*maxloc,0) -> 296786 | K138: 296786 | L138: 82.5 | N138: 294808 | O138: 0.0342 | P138: 304890 | Q138: 84.75269905 | R138: 0 | S138: 0 | T138: 0 | U138: 8104 | V138: =MAX(U138*(V$5),0) -> 8104 | W138: 0 | X138: =MIN(H138*parameters!C$22,ROUND(P138+T138-V138+W138,0)) -> 296786 | Y138: 82.49996569 | AA138: 0 | AB138: 0 | AC138: 0 | AD138: -3.430904783e-05 | AG138: 129 | AH138: Hawley | AI138: 0.9327105554 | AJ138: =L138 -> 82.5 | AK138: 0.0342 | AL138: =X138 -> 296786 | AM138: -3.430904783e-05
A139: 130 | B139: Heath | C139: 105196700 | D139: =D$5*C139 -> 410472.7849 | E139: 13330000 | F139: 190599.1882 | G139: =ROUND(D139+F139,0) -> 601072 | H139: =(SUMIF(town1755,A139,found1755)/2) -> 1424406.047 | I139: =IF(H139=0,0,G139/H139) -> 0.4219807977 | J139: 1175135 | K139: =MIN(G139,J139) -> 601072 | L139: =IF(H139>0, ROUND((K139*100/H139), 2), 0) -> 42.2 | N139: 489726 | O139: 0.0357 | P139: =ROUND(N139*(1+O139),0) -> 507209 | Q139: =IF(H139=0,0,P139*100/H139) -> 35.60845596 | R139: =IF(L139>Q139,L139-Q139,0) -> 6.591544037 | S139: =IF(AND(R139>$T$4,R139<=$T$5),$S$4,IF(R139>$T$5,$S$5,0)) -> 0.01 | T139: =ROUND(S139*N139,0) -> 4897 | U139: =MAX(P139-K139,0) -> 0 | V139: 0 | W139: =IF(AND(I139>1.75,$W$5=1),MAX(K139-(P139+T139),0),0) -> 0 | X139: =MIN(H139*parameters!C$22,ROUND(P139+T139-V139+W139,0)) -> 512106 | Y139: =IF(H139=0,0,X139*100/H139) -> 35.95224838 | AA139: =IF(Q139<L139, P139-K139, 0) -> -93863 | AB139: =-1*MAX(K139-(P139+T139+W139),0) -> -88966 | AC139: =IF(Q139>L139, X139-K139,0) -> 0 | AD139: =Y139-L139 -> -6.247751618 | AG139: =TEXT(A139,"000") -> 130 | AH139: =B139 -> Heath | AI139: =I139 -> 0.4219807977 | AJ139: 42.2 | AK139: =O139 -> 0.0357 | AL139: 512106 | AM139: =AD139 -> -6.247751618
A140: 131 | B140: Hingham | C140: 8672525700 | D140: 33839804.63 | E140: 4528742000 | F140: =E140*F$5 -> 64754279.74 | G140: 98594084 | H140: 45880135.11 | I140: 2.148949295 | J140: 37851111 | K140: 37851111 | L140: 82.5 | N140: 38822578 | O140: 0.0369 | P140: 40255131 | Q140: 87.73978304 | R140: 0 | S140: 0 | T140: 0 | U140: 2404020 | V140: 2404020 | W140: 0 | X140: =MIN(H140*parameters!C$22,ROUND(P140+T140-V140+W140,0)) -> 37851111 | Y140: 82.49999899 | AA140: 0 | AB140: 0 | AC140: 0 | AD140: -1.009858622e-06 | AG140: 131 | AH140: Hingham | AI140: 2.148949295 | AJ140: 82.5 | AK140: 0.0369 | AL140: 37851111 | AM140: -1.009858622e-06
A141: 132 | B141: Hinsdale | C141: 363382200 | D141: 1417900.976 | E141: 87188000 | F141: 1246658.817 | G141: 2664560 | H141: 3076680.442 | I141: 0.8660502935 | J141: 2538261 | K141: 2538261 | L141: 82.5 | N141: 2107490 | O141: 0.038 | P141: 2187575 | Q141: 71.10179432 | R141: 11.39820568 | S141: 0.02 | T141: 42150 | U141: 0 | V141: 0 | W141: 0 | X141: =MIN(H141*parameters!C$22,ROUND(P141+T141-V141+W141,0)) -> 2229725 | Y141: 72.47177736 | AA141: -350686 | AB141: -308536 | AC141: 0 | AD141: -10.02822264 | AG141: 132 | AH141: Hinsdale | AI141: 0.8660502935 | AJ141: 82.5 | AK141: 0.038 | AL141: 2229725 | AM141: -10.02822264
A142: 133 | B142: Holbrook | C142: 1670268000 | D142: 6517310.5 | E142: 421763000 | F142: 6030584.053 | G142: 12547895 | H142: 23908695.33 | I142: 0.5248255844 | J142: 19724674 | K142: 12547895 | L142: 52.48 | N142: 10705706 | O142: 0.0411 | P142: 11145711 | Q142: 46.6178135 | R142: 5.862186503 | S142: 0.01 | T142: 107057 | U142: 0 | V142: 0 | W142: 0 | X142: =MIN(H142*parameters!C$22,ROUND(P142+T142-V142+W142,0)) -> 11252768 | Y142: 47.06558783 | AA142: -1402184 | AB142: -1295127 | AC142: 0 | AD142: -5.414412175 | AG142: 133 | AH142: Holbrook | AI142: 0.5248255844 | AJ142: 52.48 | AK142: 0.0411 | AL142: 11252768 | AM142: -5.414412175
